Workbook

Sheet START
A1: =muni -> MP326 City of Mbombela

Sheet Instructions
D2: 2020
X4: Yes
X5: No
W7: Type of Entities Range: | X7: Parent Municipality
X8: Consolidated Information
W10: Date linked | X10: 17
W11: Date | X11: =VLOOKUP(X10,W39:X55,2) -> Mid-Year Assessment | Y11: 2013-08-01
W19: MTREF Range: | X19: 2008
X20: 2009
X21: 2010
X22: 2011
X23: 2012
X24: 2013
X25: 2014
X26: 2015
X27: 2016
X28: 2017
X29: 2018
X30: 2019
X31: 2020
X32: 2021
X33: 2022
W34: MTREF Linked:
W35: MTREF: | X35: 15
X36: =INDEX(X19:X33,X35,1) -> 2022
W37: Fin Year:
X38: =MTREF&"/"&RIGHT(MTREF,2)+1 -> 2022/23
V39: Date/type of report | W39: 1 | X39: M01 July
W40: 2 | X40: M02 August
W41: 3 | X41: M03 September
W42: 4 | X42: M04 October
W43: 5 | X43: M05 November
W44: 6 | X44: M06 December
W45: 7 | X45: M07 January
W46: 8 | X46: M08 February
W47: 9 | X47: M09 March
W48: 10 | X48: M10 April
W49: 11 | X49: M11 May
W50: 12 | X50: M12 June
W51: 13 | X51: Q1 First Quarter
W52: 14 | X52: Q2 Second Quarter
W53: 15 | X53: Q3 Third Quarter
W54: 16 | X54: Q4 Fourth Quarter
W55: 17 | X55: Mid-Year Assessment

Sheet Template names (hidden)
A1: Common sheet headings
A2: Head1 | B2: =HLOOKUP(MTREF,Headings,2) -> 2021/22 | C2: Prior year -1
A3: Head2 | B3: =HLOOKUP(MTREF,Headings,5) -> Budget Year 2022/23 | C3: Year of approved budget
A4: Head2A | B4: =HLOOKUP(MTREF,Headings,4) -> 2022/23 | C4: Approved budget year
A5: Head3 | B5: =HLOOKUP(MTREF,Headings,3) -> 2022/23 Medium Term Revenue & Expenditure Framework | C5: MTREF header name
A6: Head5 | B6: Audited Outcome
A7: Head5A | B7: Outcome
A8: Head5B | B8: Pre-audit outcome
A9: Head6 | B9: Original Budget
A10: Head7 | B10: Adjusted Budget
A11: Head8 | B11: Full Year Forecast
A12: Head9 | B12: =HLOOKUP(MTREF,Headings,5) -> Budget Year 2022/23 | C12: 1st year of MTREF | D12: Year1
A13: Head10 | B13: =HLOOKUP(MTREF,Headings,6) -> Budget Year +1 2023/24 | C13: 2nd year of MTREF | D13: Year2
A14: Head11 | B14: =HLOOKUP(MTREF,Headings,7) -> Budget Year +2 2024/25 | C14: 3rd year of MTREF | D14: Year3
A15: Head12 | B15: Forecast 2010/11 | D15: Year4
A16: Head13 | B16: Forecast 2011/12 | D16: Year5
A17: Head14 | B17: Forecast 2012/13 | D17: Year6
A18: Head15 | B18: Forecast 2013/14 | D18: Year7
A19: Head16 | B19: Forecast 2014/15 | D19: Year8
A20: Head17 | B20: Forecast 2015/16 | D20: Year9
A21: Head18 | B21: Forecast 2016/17 | D21: Year10
A22: Head19 | B22: Forecast 2017/18 | D22: Year11
A23: Head20 | B23: Forecast 2018/19 | D23: Year12
A24: Head21 | B24: Forecast 2019/20 | D24: Year13
A25: Head22 | B25: Forecast 2020/21 | D25: Year14
A26: Head23 | B26: Forecast 2021/22 | D26: Year15
A27: Head24 | B27: Description | D27: Desc
A28: Head25 | B28: Schedule of funding diligence | D28: fdil
A29: Head26 | B29: Vote Description | D29: VDesc
A30: Head27 | B30: Ref
A31: Head27a | B31: References
A32: Head28 | B32: Surplus/ (Deficit) for the year | D32: Result
A33: Head29 | B33: Annual target 2007/08
A34: Head30 | B34: Revised target 2007/08
A35: Head31 | B35: Quarter ended 30 September
A36: Head32 | B36: Quarter ended 31 December
A37: Head33 | B37: Quarter ended 31 March
A38: Head34 | B38: Quarter ended 30 June
A39: Head35 | B39: Variance explanation
A40: Head36 | B40: YTD Actual 31 Dec
A41: Head37 | B41: YTD Budget 31 Dec
A42: Head38 | B42: Monthly actual
A43: Head39 | B43: YearTD actual
A44: Head40 | B44: YearTD budget
A45: Head41 | B45: YTD variance
A46: Head42 | B46: Surplus/ (Deficit) for the yr/period
A47: Head43 | B47: =Head3&" Summary" -> 2022/23 Medium Term Revenue & Expenditure Framework Summary
A48: Head44 | B48: 1996 Census
A49: Head45 | B49: 2001 Census
A50: Head46 | B50: - Adjustments Budget - Month YYYY
A51: Head47 | B51: Previous target year to complete
A52: Head48 | B52: Present value
A53: Head49 | B53: Virement
A54: Head50 | B54: Other Adjusts.
A55: Head51 | B55: Accum. Funds
A56: Head52 | B56: Multi-year capital
A57: Head53 | B57: Unfore. Unavoid.
A58: Head54 | B58: Prior Adjusted
A59: Head55 | B59: Nat. or Prov. Govt
A60: Head56 | B60: Total Adjusts.
A61: Head57 | B61: =date -> Mid-Year Assessment
A62: Head58 | B62: Parent muni.
A63: Head59 | B63: Downward adjusts
A64: Head60 | B64: Month | C64: Report header part name | D64: =date -> Mid-Year Assessment
A65: SFPerf1 | B65: Budgeted Financial Performance
A66: SFPerf2 | B66: Forecast Financial Performance
A67: SFPos1 | B67: Budgeted Financial Position
A68: SFPos2 | B68: Forecast Financial Position
A69: Cash1 | B69: Budget Cash Flow
A70: Cash2 | B70: Forecast Cash Flow
A71: RandM | B71: Expenditure includes repairs & maintenance of R'000
A72: Standard nomenclature
A73: Muni | B73: ='Lookup and lists'!B27 -> MP326 City of Mbombela
A74: Municipal Entities | B74: 2 | C74: Type of report: | D74: 1
A75: =IF((MuniEntities=1)*(MuniType=2),"YES","NO") -> NO | B75: Does this municipality have entities (consolidated budget and entity budgets required)? YES/NO
A76: s71 (Monthly Mayor report) schedules and charts
A77: S71sum | B77: =IF(Consolques="YES",E77,F77) -> Table C1 Monthly Budget Statement Summary | D77: Table C1 | E77: =D77&"Consolidated Monthly Budget Statement Summary" -> Table C1 Consolidated Monthly Budget Statement Summary | F77: =D77&"Monthly Budget Statement Summary" -> Table C1 Monthly Budget Statement Summary
A78: S71C | B78: Table C3 Monthly Budget Statement - Financial Performance (revenue and expenditure by municipal vote) | D78: Table C3 | E78: =D78&"Consolidated Monthly Budget Statement - Financial Performance (revenue and expenditure by municipal vote) " -> Table C3 Consolidated Monthly Budget Statement - Financial Performance (revenue and expenditure by municipal vote) | F78: =D78&"Monthly Budget Statement - Financial Performance (revenue and expenditure by municipal vote)" -> Table C3 Monthly Budget Statement - Financial Performance (revenue and expenditure by municipal vote)
A79: S71A | B79: =IF(Consolques="YES",E79,F79) -> Table C2 Monthly Budget Statement - Financial Performance (functional classification) | D79: Table C2 | E79: =D79&"Consolidated Monthly Budget Statement - Financial Performance (functional classification) " -> Table C2 Consolidated Monthly Budget Statement - Financial Performance (functional classification) | F79: =D79&"Monthly Budget Statement - Financial Performance (functional classification)" -> Table C2 Monthly Budget Statement - Financial Performance (functional classification)
A80: S71B | B80: =IF(Consolques="YES",E80,F80) -> Table C4 Monthly Budget Statement - Financial Performance (revenue and expenditure) | D80: Table C4 | E80: =D80&"Consolidated Monthly Budget Statement - Financial Performance (revenue and expenditure) " -> Table C4 Consolidated Monthly Budget Statement - Financial Performance (revenue and expenditure) | F80: =D80&"Monthly Budget Statement - Financial Performance (revenue and expenditure)" -> Table C4 Monthly Budget Statement - Financial Performance (revenue and expenditure)
A81: S71D | B81: =IF(Consolques="YES",E81,F81) -> Table C5 Monthly Budget Statement - Capital Expenditure (municipal vote, functional classification and funding) | D81: Table C5 | E81: =D81&"Consolidated Monthly Budget Statement - Capital Expenditure (municipal vote, functional classification and funding " -> Table C5 Consolidated Monthly Budget Statement - Capital Expenditure (municipal vote, functional classification and funding | F81: =D81&"Monthly Budget Statement - Capital Expenditure (municipal vote, functional classification and funding)" -> Table C5 Monthly Budget Statement - Capital Expenditure (municipal vote, functional classification and funding)
A82: S71E | B82: Table C6 Monthly Budget Statement - Financial Position | D82: Table C6 | E82: =D82&"Consolidated Monthly Budget Statement - Financial Position " -> Table C6 Consolidated Monthly Budget Statement - Financial Position | F82: =D82&"Monthly Budget Statement - Financial Position" -> Table C6 Monthly Budget Statement - Financial Position
A83: S71F | B83: Table C7 Monthly Budget Statement - Cash Flow | D83: Table C7 | E83: =D83&"Consolidated Monthly Budget Statement - Cash Flow " -> Table C7 Consolidated Monthly Budget Statement - Cash Flow | F83: =D83&"Monthly Budget Statement - Cash Flow " -> Table C7 Monthly Budget Statement - Cash Flow
A84: S71G | B84: =D84&"Material variance explanations " -> Supporting Table SC1 Material variance explanations | D84: Supporting Table SC1
A85: S71H | B85: =D85&"Monthly Budget Statement - performance indicators " -> Supporting Table SC2 Monthly Budget Statement - performance indicators | D85: Supporting Table SC2
A86: S71I | B86: =D86&"Monthly Budget Statement - aged debtors" -> Supporting Table SC3 Monthly Budget Statement - aged debtors | D86: Supporting Table SC3
A87: S71J | B87: =D87&"Monthly Budget Statement - aged creditors " -> Supporting Table SC4 Monthly Budget Statement - aged creditors | D87: Supporting Table SC4
A88: S71K | B88: =D88&"Monthly Budget Statement - investment portfolio " -> Supporting Table SC5 Monthly Budget Statement - investment portfolio | D88: Supporting Table SC5
A89: S71L | B89: =D89&"Monthly Budget Statement - transfers and grant receipts " -> Supporting Table SC6 Monthly Budget Statement - transfers and grant receipts | D89: Supporting Table SC6
A90: S71M | B90: =D90&" Monthly Budget Statement - transfers and grant expenditure " -> Supporting Table SC7(1) Monthly Budget Statement - transfers and grant expenditure | D90: Supporting Table SC7(1)
A91: S71N | B91: =D91&"Monthly Budget Statement - councillor and staff benefits " -> Supporting Table SC8 Monthly Budget Statement - councillor and staff benefits | D91: Supporting Table SC8
A92: S71O | B92: =D92&"Monthly Budget Statement - actuals and revised targets for cash receipts" -> Supporting Table SC9 Monthly Budget Statement - actuals and revised targets for cash receipts | D92: Supporting Table SC9
A93: S71P | B93: =IF(Consolques="YES",E93,F93) -> NOT REQUIRED - municipality does not have entities or this is the parent municipality's budget | D93: Supporting Table SC10 | E93: =D93&"Monthly Budget Statement - Parent Municipality Financial Performance (revenue and expenditure) " -> Supporting Table SC10 Monthly Budget Statement - Parent Municipality Financial Performance (revenue and expenditure) | F93: NOT REQUIRED - municipality does not have entities or this is the parent municipality's budget
A94: S71Q | B94: NOT REQUIRED - municipality does not have entities or this is the parent municipality's budget | D94: Supporting Table SC11 | E94: =D94&"Monthly Budget Statement - summary of municipal entities" -> Supporting Table SC11 Monthly Budget Statement - summary of municipal entities | F94: NOT REQUIRED - municipality does not have entities or this is the parent municipality's budget
A95: S71R | B95: Supporting Table SC12 Monthly Budget Statement - capital expenditure trend | D95: Supporting Table SC12 | E95: =D95&"Consolidated Monthly Budget Statement - capital expenditure trend " -> Supporting Table SC12 Consolidated Monthly Budget Statement - capital expenditure trend | F95: =D95&"Monthly Budget Statement - capital expenditure trend" -> Supporting Table SC12 Monthly Budget Statement - capital expenditure trend
A96: S71Sa | B96: Supporting Table SC13a Monthly Budget Statement - capital expenditure on new assets by asset class | D96: Supporting Table SC13a | E96: =D96&"Consolidated Monthly Budget Statement - capital expenditure on new assets by asset class" -> Supporting Table SC13a Consolidated Monthly Budget Statement - capital expenditure on new assets by asset class | F96: =D96&"Monthly Budget Statement - capital expenditure on new assets by asset class" -> Supporting Table SC13a Monthly Budget Statement - capital expenditure on new assets by asset class
A97: S71Sb | B97: Supporting Table SC13b Monthly Budget Statement - capital expenditure on renewal of existing assets by asset class | D97: Supporting Table SC13b | E97: =D97&"Consolidated Monthly Budget Statement - capital expenditure on renewal of existing assets by asset class" -> Supporting Table SC13b Consolidated Monthly Budget Statement - capital expenditure on renewal of existing assets by asset class | F97: =D97&"Monthly Budget Statement - capital expenditure on renewal of existing assets by asset class" -> Supporting Table SC13b Monthly Budget Statement - capital expenditure on renewal of existing assets by asset class
A98: S71Sc | B98: Supporting Table SC13c Monthly Budget Statement - expenditure on repairs and maintenance by asset class | D98: Supporting Table SC13c | E98: =D98&"Consolidated Monthly Budget Statement - expenditure on repairs and maintenance by asset class" -> Supporting Table SC13c Consolidated Monthly Budget Statement - expenditure on repairs and maintenance by asset class | F98: =D98&"Monthly Budget Statement - expenditure on repairs and maintenance by asset class" -> Supporting Table SC13c Monthly Budget Statement - expenditure on repairs and maintenance by asset class
A99: S71Sd | B99: Supporting Table SC13d Monthly Budget Statement - depreciation by asset class | D99: Supporting Table SC13d | E99: =D99&"Consolidated Monthly Budget Statement - depreciation by asset class" -> Supporting Table SC13d Consolidated Monthly Budget Statement - depreciation by asset class | F99: =D99&"Monthly Budget Statement - depreciation by asset class" -> Supporting Table SC13d Monthly Budget Statement - depreciation by asset class
A100: S71Se | B100: =IF(Consolques="YES",E100,F100) -> Supporting Table SC13e Monthly Budget Statement - capital expenditure on upgrading of existing assets by asset class | D100: Supporting Table SC13e | E100: =D100&"Consolidated Monthly Budget Statement - capital expenditure on upgrading of existing assets by asset class" -> Supporting Table SC13e Consolidated Monthly Budget Statement - capital expenditure on upgrading of existing assets by asset class | F100: =D100&"Monthly Budget Statement - capital expenditure on upgrading of existing assets by asset class" -> Supporting Table SC13e Monthly Budget Statement - capital expenditure on upgrading of existing assets by asset class
B101: s71 charts listing
B102: =D102&Head2A&" Capital Expenditure Monthly Trend: actual v target" -> Chart C1 2022/23 Capital Expenditure Monthly Trend: actual v target | D102: Chart C1
B103: =D103&Head2A&" Capital Expenditure: YTD actual v YTD target" -> Chart C2 2022/23 Capital Expenditure: YTD actual v YTD target | D103: Chart C2
B104: =D104&"Aged Consumer Debtors Analysis" -> Chart C3 Aged Consumer Debtors Analysis | D104: Chart C3
B105: =D105&"Consumer Debtors (total by Debtor Customer Category)" -> Chart C4 Consumer Debtors (total by Debtor Customer Category) | D105: Chart C4
B106: =D106&"Aged Creditors Analysis" -> Chart C5 Aged Creditors Analysis | D106: Chart C5
A107: S71T | B107: =D107&" Monthly Budget Statement - Expenditure against approved rollovers" -> Supporting Table SC7(2) Monthly Budget Statement - Expenditure against approved rollovers | D107: Supporting Table SC7(2)

Sheet Lookup and lists (hidden)
A1: Description | B1: 2013 | C1: 2014 | D1: 2015 | E1: 2016 | F1: 2017 | G1: 2018 | H1: 2019 | I1: 2020 | J1: 2021 | K1: 2022 | L1: 2023 | M1: 2024 | N1: 2025 | O1: 2026 | Q1: Grants: | R1: National - opex | S1: Provincial - opex | T1: National - capex | U1: Provincial - capex | V1: YESNO
A2: ='Template names'!C2 -> Prior year -1 | B2: =B1-1&"/"&RIGHT(B1,2)-0 -> 2012/13 | C2: =C1-1&"/"&RIGHT(C1,2)-0 -> 2013/14 | D2: =D1-1&"/"&RIGHT(D1,2)-0 -> 2014/15 | E2: =E1-1&"/"&RIGHT(E1,2)-0 -> 2015/16 | F2: =F1-1&"/"&RIGHT(F1,2)-0 -> 2016/17 | G2: 2017/18 | H2: 2018/19 | I2: 2019/20 | J2: 2020/21 | K2: 2021/22 | L2: 2022/23 | M2: 2023/24 | N2: 2024/25 | O2: 2025/26 | R2: Local Government Equitable Share | S2: Health subsidy | T2: Municipal Infrastructure Grant (MIG) | U2: Agriculture | V2: Yes
A3: ='Template names'!C5 -> MTREF header name | B3: =B1&"/"&RIGHT(B1,2)+1&" Medium Term Revenue & Expenditure Framework" -> 2013/14 Medium Term Revenue & Expenditure Framework | C3: =C1&"/"&RIGHT(C1,2)+1&" Medium Term Revenue & Expenditure Framework" -> 2014/15 Medium Term Revenue & Expenditure Framework | D3: =D1&"/"&RIGHT(D1,2)+1&" Medium Term Revenue & Expenditure Framework" -> 2015/16 Medium Term Revenue & Expenditure Framework | E3: =E1&"/"&RIGHT(E1,2)+1&" Medium Term Revenue & Expenditure Framework" -> 2016/17 Medium Term Revenue & Expenditure Framework | F3: =F1&"/"&RIGHT(F1,2)+1&" Medium Term Revenue & Expenditure Framework" -> 2017/18 Medium Term Revenue & Expenditure Framework | G3: 2018/19 Medium Term Revenue & Expenditure Framework | H3: 2019/20 Medium Term Revenue & Expenditure Framework | I3: 2020/21 Medium Term Revenue & Expenditure Framework | J3: 2021/22 Medium Term Revenue & Expenditure Framework | K3: 2022/23 Medium Term Revenue & Expenditure Framework | L3: 2023/24 Medium Term Revenue & Expenditure Framework | M3: 2024/25 Medium Term Revenue & Expenditure Framework | N3: 2025/26 Medium Term Revenue & Expenditure Framework | O3: 2026/27 Medium Term Revenue & Expenditure Framework | R3: RSC Levy Replacement | S3: Ambulance subsidy | T3: Public Transport and Systems | U3: Education | V3: No
A4: ='Template names'!C4 -> Approved budget year | B4: =B1&"/"&RIGHT(B1,2)+1 -> 2013/14 | C4: =C1&"/"&RIGHT(C1,2)+1 -> 2014/15 | D4: =D1&"/"&RIGHT(D1,2)+1 -> 2015/16 | E4: =E1&"/"&RIGHT(E1,2)+1 -> 2016/17 | F4: =F1&"/"&RIGHT(F1,2)+1 -> 2017/18 | G4: 2018/19 | H4: 2019/20 | I4: 2020/21 | J4: 2021/22 | K4: 2022/23 | L4: 2023/24 | M4: 2024/25 | N4: 2025/26 | O4: 2026/27 | R4: Finance Management | S4: Housing | T4: Rural Transport Services and Infrastructure | U4: Health
A5: ='Template names'!C12 -> 1st year of MTREF | B5: ="Budget Year "&B1&"/"&RIGHT(B1,2)+1 -> Budget Year 2013/14 | C5: ="Budget Year "&C1&"/"&RIGHT(C1,2)+1 -> Budget Year 2014/15 | D5: ="Budget Year "&D1&"/"&RIGHT(D1,2)+1 -> Budget Year 2015/16 | E5: ="Budget Year "&E1&"/"&RIGHT(E1,2)+1 -> Budget Year 2016/17 | F5: ="Budget Year "&F1&"/"&RIGHT(F1,2)+1 -> Budget Year 2017/18 | G5: Budget Year 2018/19 | H5: Budget Year 2019/20 | I5: Budget Year 2020/21 | J5: Budget Year 2021/22 | K5: Budget Year 2022/23 | L5: Budget Year 2023/24 | M5: Budget Year 2024/25 | N5: Budget Year 2025/26 | O5: Budget Year 2026/27 | R5: Municipal Systems Improvement | S5: Sport and Recreation | T5: Regional Bulk Infrastructure | U5: Housing and Local Government
A6: ='Template names'!C13 -> 2nd year of MTREF | B6: ="Budget Year +1 "&B1+1&"/"&RIGHT(B1,2)+2 -> Budget Year +1 2014/15 | C6: ="Budget Year +1 "&C1+1&"/"&RIGHT(C1,2)+2 -> Budget Year +1 2015/16 | D6: ="Budget Year +1 "&D1+1&"/"&RIGHT(D1,2)+2 -> Budget Year +1 2016/17 | E6: ="Budget Year +1 "&E1+1&"/"&RIGHT(E1,2)+2 -> Budget Year +1 2017/18 | F6: ="Budget Year +1 "&F1+1&"/"&RIGHT(F1,2)+2 -> Budget Year +1 2018/19 | G6: Budget Year +1 2019/20 | H6: Budget Year +1 2020/21 | I6: Budget Year +1 2021/22 | J6: Budget Year +1 2022/23 | K6: Budget Year +1 2023/24 | L6: Budget Year +1 2024/25 | M6: Budget Year +1 2025/26 | N6: Budget Year +1 2026/27 | O6: Budget Year +1 2027/28 | R6: Water Services Operating Subsidy | T6: Rural Households Infrastructure | U6: Other Departments
A7: ='Template names'!C14 -> 3rd year of MTREF | B7: ="Budget Year +2 "&B1+2&"/"&RIGHT(B1,2)+3 -> Budget Year +2 2015/16 | C7: ="Budget Year +2 "&C1+2&"/"&RIGHT(C1,2)+3 -> Budget Year +2 2016/17 | D7: ="Budget Year +2 "&D1+2&"/"&RIGHT(D1,2)+3 -> Budget Year +2 2017/18 | E7: ="Budget Year +2 "&E1+2&"/"&RIGHT(E1,2)+3 -> Budget Year +2 2018/19 | F7: ="Budget Year +2 "&F1+2&"/"&RIGHT(F1,2)+3 -> Budget Year +2 2019/20 | G7: Budget Year +2 2020/21 | H7: Budget Year +2 2021/22 | I7: Budget Year +2 2022/23 | J7: Budget Year +2 2023/24 | K7: Budget Year +2 2024/25 | L7: Budget Year +2 2025/26 | M7: Budget Year +2 2026/27 | N7: Budget Year +2 2027/28 | O7: Budget Year +2 2028/29 | R7: Energy Efficiency and Demand Management | T7: Neighbourhood Development Partnership | U7: Public Works, Roads, Transport
A8: NOTE: This sheet should not be directly amended - select headings from sheet 'S' | R8: Integrated National Electrification Programme | T8: 2010 FIFA World Cup Stadiums Development | U8: Sport and Recreation
R9: Municipal Drought Relief
R10: 2010 FIFA World Cup Operating
R11: Electricity Demand Side Management
R12: EPWP Incentive
A26: Name link | B26: 174
A27: Name of Muni | B27: =INDEX(B28:B311,B26,1) -> MP326 City of Mbombela
B28: Choose name from list | C28: Set name on 'Instructions' sheet
B29: BUF Buffalo City | C29: EC EASTERN CAPE
B30: NMA Nelson Mandela Bay | C30: EC EASTERN CAPE
B31: EC101 Dr Beyers Naude | C31: EC EASTERN CAPE
B32: EC102 Blue Crane Route | C32: EC EASTERN CAPE
B33: EC104 Makana | C33: EC EASTERN CAPE
B34: EC105 Ndlambe | C34: EC EASTERN CAPE
B35: EC106 Sundays River Valley | C35: EC EASTERN CAPE
B36: EC108 Kouga | C36: EC EASTERN CAPE
B37: EC109 Kou-Kamma | C37: EC EASTERN CAPE
B38: DC10 Sarah Baartman | C38: EC EASTERN CAPE
B39: EC121 Mbhashe | C39: EC EASTERN CAPE
B40: EC122 Mnquma | C40: EC EASTERN CAPE
B41: EC123 Great Kei | C41: EC EASTERN CAPE
B42: EC124 Amahlathi | C42: EC EASTERN CAPE
B43: EC126 Ngqushwa | C43: EC EASTERN CAPE
B44: EC129 Raymond Mhlaba | C44: EC EASTERN CAPE
B45: DC12 Amathole | C45: EC EASTERN CAPE
B46: EC131 Inxuba Yethemba | C46: EC EASTERN CAPE
B47: EC135 Intsika Yethu | C47: EC EASTERN CAPE
B48: EC136 Emalahleni (Ec) | C48: EC EASTERN CAPE
B49: EC137 Engcobo | C49: EC EASTERN CAPE
B50: EC138 Sakhisizwe | C50: EC EASTERN CAPE
B51: EC139 Enoch Mgijima | C51: EC EASTERN CAPE
B52: DC13 Chris Hani | C52: EC EASTERN CAPE
B53: EC141 Elundini | C53: EC EASTERN CAPE
B54: EC142 Senqu | C54: EC EASTERN CAPE
B55: EC145 Walter Sisulu | C55: EC EASTERN CAPE
B56: DC14 Joe Gqabi | C56: EC EASTERN CAPE
B57: EC153 Ngquza Hills | C57: EC EASTERN CAPE
B58: EC154 Port St Johns | C58: EC EASTERN CAPE
B59: EC155 Nyandeni | C59: EC EASTERN CAPE
B60: EC156 Mhlontlo | C60: EC EASTERN CAPE
B61: EC157 King Sabata Dalindyebo | C61: EC EASTERN CAPE
B62: DC15 O .R. Tambo | C62: EC EASTERN CAPE
B63: EC441 Matatiele | C63: EC EASTERN CAPE
B64: EC442 Umzimvubu | C64: EC EASTERN CAPE
B65: EC443 Winnie Madikizela Mandela | C65: EC EASTERN CAPE
B66: EC444 Ntabankulu | C66: EC EASTERN CAPE
B67: DC44 Alfred Nzo | C67: EC EASTERN CAPE
B68: MAN Mangaung | C68: FS FREE STATE
B69: FS161 Letsemeng | C69: FS FREE STATE
B70: FS162 Kopanong | C70: FS FREE STATE
B71: FS163 Mohokare | C71: FS FREE STATE
B72: DC16 Xhariep | C72: FS FREE STATE
B73: FS181 Masilonyana | C73: FS FREE STATE
B74: FS182 Tokologo | C74: FS FREE STATE
B75: FS183 Tswelopele | C75: FS FREE STATE
B76: FS184 Matjhabeng | C76: FS FREE STATE
B77: FS185 Nala | C77: FS FREE STATE
B78: DC18 Lejweleputswa | C78: FS FREE STATE
B79: FS191 Setsoto | C79: FS FREE STATE
B80: FS192 Dihlabeng | C80: FS FREE STATE
B81: FS193 Nketoana | C81: FS FREE STATE
B82: FS194 Maluti-a-Phofung | C82: FS FREE STATE
B83: FS195 Phumelela | C83: FS FREE STATE
B84: FS196 Mantsopa | C84: FS FREE STATE
B85: DC19 Thabo Mofutsanyana | C85: FS FREE STATE
B86: FS201 Moqhaka | C86: FS FREE STATE
B87: FS203 Ngwathe | C87: FS FREE STATE
B88: FS204 Metsimaholo | C88: FS FREE STATE
B89: FS205 Mafube | C89: FS FREE STATE
B90: DC20 Fezile Dabi | C90: FS FREE STATE
B91: EKU City of Ekurhuleni | C91: GT GAUTENG
B92: JHB City Of Johannesburg | C92: GT GAUTENG
B93: TSH City Of Tshwane | C93: GT GAUTENG
B94: GT421 Emfuleni | C94: GT GAUTENG
B95: GT422 Midvaal | C95: GT GAUTENG
B96: GT423 Lesedi | C96: GT GAUTENG
B97: DC42 Sedibeng | C97: GT GAUTENG
B98: GT481 Mogale City | C98: GT GAUTENG
B99: GT484 Merafong City | C99: GT GAUTENG
B100: GT485 Rand West City | C100: GT GAUTENG
B101: DC48 West Rand | C101: GT GAUTENG
B102: ETH eThekwini | C102: KZN KWAZULU-NATAL
B103: KZN212 Umdoni | C103: KZN KWAZULU-NATAL
B104: KZN213 Umzumbe | C104: KZN KWAZULU-NATAL
B105: KZN214 uMuziwabantu | C105: KZN KWAZULU-NATAL
B106: KZN216 Ray Nkonyeni | C106: KZN KWAZULU-NATAL
B107: DC21 Ugu | C107: KZN KWAZULU-NATAL
B108: KZN221 uMshwathi | C108: KZN KWAZULU-NATAL
B109: KZN222 uMngeni | C109: KZN KWAZULU-NATAL
B110: KZN223 Mpofana | C110: KZN KWAZULU-NATAL
B111: KZN224 Impendle | C111: KZN KWAZULU-NATAL
B112: KZN225 Msunduzi | C112: KZN KWAZULU-NATAL
B113: KZN226 Mkhambathini | C113: KZN KWAZULU-NATAL
B114: KZN227 Richmond | C114: KZN KWAZULU-NATAL
B115: DC22 uMgungundlovu | C115: KZN KWAZULU-NATAL
B116: KZN235 Okhahlamba | C116: KZN KWAZULU-NATAL
B117: KZN237 Inkosi Langalibalele | C117: KZN KWAZULU-NATAL
B118: KZN238 Alfred Duma | C118: KZN KWAZULU-NATAL
B119: DC23 Uthukela | C119: KZN KWAZULU-NATAL
B120: KZN241 Endumeni | C120: KZN KWAZULU-NATAL
B121: KZN242 Nquthu | C121: KZN KWAZULU-NATAL
B122: KZN244 Msinga | C122: KZN KWAZULU-NATAL
B123: KZN245 Umvoti | C123: KZN KWAZULU-NATAL
B124: DC24 Umzinyathi | C124: KZN KWAZULU-NATAL
B125: KZN252 Newcastle | C125: KZN KWAZULU-NATAL
B126: KZN253 Emadlangeni | C126: KZN KWAZULU-NATAL
B127: KZN254 Dannhauser | C127: KZN KWAZULU-NATAL
B128: DC25 Amajuba | C128: KZN KWAZULU-NATAL
B129: KZN261 eDumbe | C129: KZN KWAZULU-NATAL
B130: KZN262 uPhongolo | C130: KZN KWAZULU-NATAL
B131: KZN263 Abaqulusi | C131: KZN KWAZULU-NATAL
B132: KZN265 Nongoma | C132: KZN KWAZULU-NATAL
B133: KZN266 Ulundi | C133: KZN KWAZULU-NATAL
B134: DC26 Zululand | C134: KZN KWAZULU-NATAL
B135: KZN271 Umhlabuyalingana | C135: KZN KWAZULU-NATAL
B136: KZN272 Jozini | C136: KZN KWAZULU-NATAL
B137: KZN275 Mtubatuba | C137: KZN KWAZULU-NATAL
B138: KZN276 Hlabisa Big Five | C138: KZN KWAZULU-NATAL
B139: DC27 Umkhanyakude | C139: KZN KWAZULU-NATAL
B140: KZN281 Mfolozi | C140: KZN KWAZULU-NATAL
B141: KZN282 uMhlathuze | C141: KZN KWAZULU-NATAL
B142: KZN284 uMlalazi | C142: KZN KWAZULU-NATAL
B143: KZN285 Mthonjaneni | C143: KZN KWAZULU-NATAL
B144: KZN286 Nkandla | C144: KZN KWAZULU-NATAL
B145: DC28 King Cetshwayo | C145: KZN KWAZULU-NATAL
B146: KZN291 Mandeni | C146: KZN KWAZULU-NATAL
B147: KZN292 KwaDukuza | C147: KZN KWAZULU-NATAL
B148: KZN293 Ndwedwe | C148: KZN KWAZULU-NATAL
B149: KZN294 Maphumulo | C149: KZN KWAZULU-NATAL
B150: DC29 iLembe | C150: KZN KWAZULU-NATAL
B151: KZN433 Greater Kokstad | C151: KZN KWAZULU-NATAL
B152: KZN434 Ubuhlebezwe | C152: KZN KWAZULU-NATAL
B153: KZN435 Umzimkhulu | C153: KZN KWAZULU-NATAL
B154: KZN436 Dr Nkosazana Dlamini Zuma | C154: KZN KWAZULU-NATAL
B155: DC43 Harry Gwala | C155: KZN KWAZULU-NATAL
B156: LIM331 Greater Giyani | C156: LIM LIMPOPO
B157: LIM332 Greater Letaba | C157: LIM LIMPOPO
B158: LIM333 Greater Tzaneen | C158: LIM LIMPOPO
B159: LIM334 Ba-Phalaborwa | C159: LIM LIMPOPO
B160: LIM335 Maruleng | C160: LIM LIMPOPO
B161: DC33 Mopani | C161: LIM LIMPOPO
B162: LIM341 Musina | C162: LIM LIMPOPO
B163: LIM343 Thulamela | C163: LIM LIMPOPO
B164: LIM344 Makhado | C164: LIM LIMPOPO
B165: LIM345 Collins Chabane | C165: LIM LIMPOPO
B166: DC34 Vhembe | C166: LIM LIMPOPO
B167: LIM351 Blouberg | C167: LIM LIMPOPO
B168: LIM353 Molemole | C168: LIM LIMPOPO
B169: LIM354 Polokwane | C169: LIM LIMPOPO
B170: LIM355 Lepelle-Nkumpi | C170: LIM LIMPOPO
B171: DC35 Capricorn | C171: LIM LIMPOPO
B172: LIM361 Thabazimbi | C172: LIM LIMPOPO
B173: LIM362 Lephalale | C173: LIM LIMPOPO
B174: LIM366 Bela Bela | C174: LIM LIMPOPO
B175: LIM367 Mogalakwena | C175: LIM LIMPOPO
B176: LIM368 Modimolle-Mookgopong | C176: LIM LIMPOPO
B177: DC36 Waterberg | C177: LIM LIMPOPO
B178: LIM471 Ephraim Mogale | C178: LIM LIMPOPO
B179: LIM472 Elias Motsoaledi | C179: LIM LIMPOPO
B180: LIM473 Makhuduthamaga | C180: LIM LIMPOPO
B181: LIM476 Tubatse Fetakgomo | C181: LIM LIMPOPO
B182: DC47 Sekhukhune | C182: LIM LIMPOPO
B183: MP301 Albert Luthuli | C183: MP MPUMALANGA
B184: MP302 Msukaligwa | C184: MP MPUMALANGA
B185: MP303 Mkhondo | C185: MP MPUMALANGA
B186: MP304 Pixley Ka Seme (MP) | C186: MP MPUMALANGA
B187: MP305 Lekwa | C187: MP MPUMALANGA
B188: MP306 Dipaleseng | C188: MP MPUMALANGA
B189: MP307 Govan Mbeki | C189: MP MPUMALANGA
B190: DC30 Gert Sibande | C190: MP MPUMALANGA
B191: MP311 Victor Khanye | C191: MP MPUMALANGA
B192: MP312 Emalahleni (Mp) | C192: MP MPUMALANGA
B193: MP313 Steve Tshwete | C193: MP MPUMALANGA
B194: MP314 Emakhazeni | C194: MP MPUMALANGA
B195: MP315 Thembisile Hani | C195: MP MPUMALANGA
B196: MP316 Dr J.S. Moroka | C196: MP MPUMALANGA
B197: DC31 Nkangala | C197: MP MPUMALANGA
B198: MP321 Thaba Chweu | C198: MP MPUMALANGA
B199: MP324 Nkomazi | C199: MP MPUMALANGA
B200: MP325 Bushbuckridge | C200: MP MPUMALANGA
B201: MP326 City of Mbombela | C201: MP MPUMALANGA
B202: DC32 Ehlanzeni | C202: MP MPUMALANGA
B203: NC451 Joe Morolong | C203: NC NORTHERN CAPE
B204: NC452 Ga-Segonyana | C204: NC NORTHERN CAPE
B205: NC453 Gamagara | C205: NC NORTHERN CAPE
B206: DC45 John Taolo Gaetsewe | C206: NC NORTHERN CAPE
B207: NC061 Richtersveld | C207: NC NORTHERN CAPE
B208: NC062 Nama Khoi | C208: NC NORTHERN CAPE
B209: NC064 Kamiesberg | C209: NC NORTHERN CAPE
B210: NC065 Hantam | C210: NC NORTHERN CAPE
B211: NC066 Karoo Hoogland | C211: NC NORTHERN CAPE
B212: NC067 Khai-Ma | C212: NC NORTHERN CAPE
B213: DC6 Namakwa | C213: NC NORTHERN CAPE
... 73 more rows

Sheet Org structure
A1: Organisational Structure Votes | C1: Organisational Structure Sub-Votes | E1: Display Sub-Votes
A2: =B2&" - "&C2 -> Vote 01 - Council | B2: Vote 01 | C2: Council
A3: =B20&" - "&C20 -> Vote 02 - Office Of Council | B3: 01.1 | C3: Office Of The Mayor | D3: =CONCATENATE(B3, " - ", C3) -> 01.1 - Office Of The Mayor | E3: 01.1 - Office Of The Mayor
A4: =B24&" - "&C24 -> Vote 03 - Municipal Manager | B4: 01.2 | C4: Office Of The Chief Whip | D4: 01.2 - Office Of The Chief Whip | E4: 01.2 - Office Of The Chief Whip
A5: =B47&" - "&C47 -> Vote 04 - City Planning And Development Department | B5: 01.3 | C5: Office Of The Speaker | D5: 01.3 - Office Of The Speaker | E5: 01.3 - Office Of The Speaker
A6: =B57&" - "&C57 -> Vote 05 - Corporate Services Department | B6: 01.4 | C6: Mayoral Mmc - Budget & Treasury Servic | D6: 01.4 - Mayoral Mmc - Budget & Treasury Servic | E6: 01.4 - Mayoral Mmc - Budget & Treasury Servic
A7: =B70&" - "&C70 -> Vote 06 - Strategic Management Services | B7: 01.5 | C7: Mayoral Mmc - Corporate Services | D7: 01.5 - Mayoral Mmc - Corporate Services | E7: 01.5 - Mayoral Mmc - Corporate Services
A8: =B79&" - "&C79 -> Vote 07 - Financial Management | B8: 01.6 | C8: Mmc - City Planning & Development | D8: 01.6 - Mmc - City Planning & Development | E8: 01.6 - Mmc - City Planning & Development
A9: =B97&" - "&C97 -> Vote 08 - Technical Services | B9: 01.7 | C9: Mmc - Strategic Management | D9: 01.7 - Mmc - Strategic Management | E9: 01.7 - Mmc - Strategic Management
A10: =B120&" - "&C120 -> Vote 09 - Sports, Arts & Culture | B10: 01.8 | C10: Mayoral Mmc - Community Services | D10: 01.8 - Mayoral Mmc - Community Services | E10: 01.8 - Mayoral Mmc - Community Services
A11: =B132&" - "&C132 -> Vote 10 - Community Services | B11: 01.9 | C11: Mmc - Energy | D11: 01.9 - Mmc - Energy | E11: 01.9 - Mmc - Energy
A12: =B150&" - "&C150 -> Vote 11 - Public Works, Roads And Transport | B12: 01.10 | C12: Mmc - Public Safety | D12: 01.10 - Mmc - Public Safety | E12: 01.10 - Mmc - Public Safety
A13: =B173&" - "&C173 -> Vote 12 - Local Economic Development | B13: 01.11 | C13: Mmc - Water & Sanitation | D13: 01.11 - Mmc - Water & Sanitation | E13: 01.11 - Mmc - Water & Sanitation
A14: =B191&" - "&C191 -> Vote 13 - Water And Sanitation | B14: 01.12 | C14: Mmc - Public Works & Transport | D14: 01.12 - Mmc - Public Works & Transport | E14: 01.12 - Mmc - Public Works & Transport
A15: =B205&" - "&C205 -> Vote 14 - Energy | B15: 01.13 | C15: Mayoral Mmc - Centre Coordination | D15: 01.13 - Mayoral Mmc - Centre Coordination | E15: 01.13 - Mayoral Mmc - Centre Coordination
A16: =B211&" - "&C211 -> Vote 15 - Other | B16: 01.14 | C16: Mpac (Section 79) | D16: 01.14 - Mpac (Section 79) | E16: 01.14 - Mpac (Section 79)
B17: 01.15 | C17: Mmc - Local Economic Developme | D17: 01.15 - Mmc - Local Economic Developme | E17: 01.15 - Mmc - Local Economic Developme
B18: 01.16 | C18: Mmc - Technical Services | D18: 01.16 - Mmc - Technical Services | E18: 01.16 - Mmc - Technical Services
B19: 01.17 | C19: Mmc - Sports;Arts & Culture | D19: 01.17 - Mmc - Sports;Arts & Culture | E19: 01.17 - Mmc - Sports;Arts & Culture
B20: Vote 02 | C20: Office Of Council
B21: 02.1 | C21: Office Of The Gm - Office Of Council | D21: =CONCATENATE(B21, " - ", C21) -> 02.1 - Office Of The Gm - Office Of Council | E21: 02.1 - Office Of The Gm - Office Of Council
B22: 02.2 | C22: Public Stakeholder Participtn Petitions | D22: =CONCATENATE(B22, " - ", C22) -> 02.2 - Public Stakeholder Participtn Petitions | E22: 02.2 - Public Stakeholder Participtn Petitions
B23: 02.3 | C23: Council Secretariat | D23: =CONCATENATE(B23, " - ", C23) -> 02.3 - Council Secretariat | E23: 02.3 - Council Secretariat
B24: Vote 03 | C24: Municipal Manager
B25: 03.1 | C25: Municipal Manager Administration | D25: =CONCATENATE(B25, " - ", C25) -> 03.1 - Municipal Manager Administration | E25: 03.1 - Municipal Manager Administration
B26: 03.2 | C26: Municipal Manager Admin (Waste Man) | D26: 03.2 - Municipal Manager Admin (Waste Man) | E26: 03.2 - Municipal Manager Admin (Waste Man)
B27: 03.3 | C27: Municipal Manager Admin (Electricity) | D27: 03.3 - Municipal Manager Admin (Electricity) | E27: 03.3 - Municipal Manager Admin (Electricity)
B28: 03.4 | C28: Municipal Manager Admin (Rural Dev) | D28: 03.4 - Municipal Manager Admin (Rural Dev) | E28: 03.4 - Municipal Manager Admin (Rural Dev)
B29: 03.5 | C29: Internal Audit | D29: 03.5 - Internal Audit | E29: 03.5 - Internal Audit
B30: 03.6 | C30: Environmental Management And Planning | D30: 03.6 - Environmental Management And Planning | E30: 03.6 - Environmental Management And Planning
B31: 03.7 | C31: Water Services Compliance Monitoring | D31: 03.7 - Water Services Compliance Monitoring | E31: 03.7 - Water Services Compliance Monitoring
B32: 03.8 | C32: Monitoring | D32: 03.8 - Monitoring | E32: 03.8 - Monitoring
B33: 03.9 | C33: Evaluation | D33: 03.9 - Evaluation | E33: 03.9 - Evaluation
B34: 03.10 | C34: Enterprise Risk Management | D34: 03.10 - Enterprise Risk Management | E34: 03.10 - Enterprise Risk Management
B35: 03.11 | C35: Legal Services | D35: 03.11 - Legal Services | E35: 03.11 - Legal Services
B36: 03.12 | C36: Insurance Services | D36: 03.12 - Insurance Services | E36: 03.12 - Insurance Services
B37: 03.13 | C37: Office Of The Dmm - Aux | D37: 03.13 - Office Of The Dmm - Aux | E37: 03.13 - Office Of The Dmm - Aux
B38: 03.14 | C38: Performance And Monitoring | D38: 03.14 - Performance And Monitoring | E38: 03.14 - Performance And Monitoring
B39: 03.15 | C39: Enterprise Risk Management | D39: 03.15 - Enterprise Risk Management | E39: 03.15 - Enterprise Risk Management
B40: 03.16 | C40: Enviromental Management And Planning | D40: 03.16 - Enviromental Management And Planning | E40: 03.16 - Enviromental Management And Planning
B41: 03.17 | C41: Enviromental Man&Plan - Soil Conserv | D41: 03.17 - Enviromental Man&Plan - Soil Conserv | E41: 03.17 - Enviromental Man&Plan - Soil Conserv
B42: 03.18 | C42: Enviromental Man&Plan - Nature Cons | D42: 03.18 - Enviromental Man&Plan - Nature Cons | E42: 03.18 - Enviromental Man&Plan - Nature Cons
B43: 03.19 | C43: Transversal Services | D43: 03.19 - Transversal Services | E43: 03.19 - Transversal Services
B44: 03.20 | C44: Water Services Compliance Monitoring | D44: 03.20 - Water Services Compliance Monitoring | E44: 03.20 - Water Services Compliance Monitoring
B45: 03.21 | C45: Office Dmm - Core Service - Water | D45: 03.21 - Office Dmm - Core Service - Water | E45: 03.21 - Office Dmm - Core Service - Water
B46: 03.22 | C46: Office Dmm - Core Service - Waste Water | D46: 03.22 - Office Dmm - Core Service - Waste Water | E46: 03.22 - Office Dmm - Core Service - Waste Water
B47: Vote 04 | C47: City Planning And Development Department
B48: 04.1 | C48: Office Of The Gm - Planning | D48: =CONCATENATE(B48, " - ", C48) -> 04.1 - Office Of The Gm - Planning | E48: 04.1 - Office Of The Gm - Planning
B49: 04.2 | C49: Land Use Management | D49: 04.2 - Land Use Management | E49: 04.2 - Land Use Management
B50: 04.3 | C50: Local Economic Development | D50: 04.3 - Local Economic Development | E50: 04.3 - Local Economic Development
B51: 04.4 | C51: Rural Plan Traditional Affairs & Agric | D51: 04.4 - Rural Plan Traditional Affairs & Agric | E51: 04.4 - Rural Plan Traditional Affairs & Agric
B52: 04.5 | C52: Human Settlement | D52: 04.5 - Human Settlement | E52: 04.5 - Human Settlement
B53: 04.6 | C53: Tourism Business Regulations And Gov | D53: 04.6 - Tourism Business Regulations And Gov | E53: 04.6 - Tourism Business Regulations And Gov
B54: 04.7 | C54: Spatial Development Planning | D54: 04.7 - Spatial Development Planning | E54: 04.7 - Spatial Development Planning
B55: 04.8 | C55: Real Estate Management | D55: 04.8 - Real Estate Management | E55: 04.8 - Real Estate Management
B56: 04.9 | C56: Comda | D56: 04.9 - Comda | E56: 04.9 - Comda
B57: Vote 05 | C57: Corporate Services Department
B58: 05.1 | C58: Office Of The Gm - Corporate Services | D58: =CONCATENATE(B58, " - ", C58) -> 05.1 - Office Of The Gm - Corporate Services | E58: 05.1 - Office Of The Gm - Corporate Services
B59: 05.2 | C59: Public Stakehldr Partcipation Petitions | D59: 05.2 - Public Stakehldr Partcipation Petitions | E59: 05.2 - Public Stakehldr Partcipation Petitions
B60: 05.3 | C60: Hr Provision Organ Design & Empl Equity | D60: 05.3 - Hr Provision Organ Design & Empl Equity | E60: 05.3 - Hr Provision Organ Design & Empl Equity
B61: 05.4 | C61: Perform Management & Skills Development | D61: 05.4 - Perform Management & Skills Development | E61: 05.4 - Perform Management & Skills Development
B62: 05.5 | C62: Ohs; Wellness And Employment Relations | D62: 05.5 - Ohs; Wellness And Employment Relations | E62: 05.5 - Ohs; Wellness And Employment Relations
B63: 05.6 | C63: Facilities Management | D63: 05.6 - Facilities Management | E63: 05.6 - Facilities Management
B64: 05.7 | C64: Ict Records Management And Archives | D64: 05.7 - Ict Records Management And Archives | E64: 05.7 - Ict Records Management And Archives
B65: 05.8 | C65: Central Region | D65: 05.8 - Central Region | E65: 05.8 - Central Region
B66: 05.9 | C66: Eastern Region | D66: 05.9 - Eastern Region | E66: 05.9 - Eastern Region
B67: 05.10 | C67: Northern Region | D67: 05.10 - Northern Region | E67: 05.10 - Northern Region
B68: 05.11 | C68: Southern Region | D68: 05.11 - Southern Region | E68: 05.11 - Southern Region
B69: 05.12 | C69: Council Secretariate | D69: 05.12 - Council Secretariate | E69: 05.12 - Council Secretariate
B70: Vote 06 | C70: Strategic Management Services
B71: 06.1 | C71: Office Of The Gm - Strat Man Services | D71: =CONCATENATE(B71, " - ", C71) -> 06.1 - Office Of The Gm - Strat Man Services | E71: 06.1 - Office Of The Gm - Strat Man Services
B72: 06.2 | C72: Idp Coordinat And Policy Formulation | D72: 06.2 - Idp Coordinat And Policy Formulation | E72: 06.2 - Idp Coordinat And Policy Formulation
B73: 06.3 | C73: Idp Coordinat And Policy Form - Facilit | D73: 06.3 - Idp Coordinat And Policy Form - Facilit | E73: 06.3 - Idp Coordinat And Policy Form - Facilit
B74: 06.4 | C74: Corporate Communication | D74: 06.4 - Corporate Communication | E74: 06.4 - Corporate Communication
B75: 06.5 | C75: Cluster Coordination | D75: 06.5 - Cluster Coordination | E75: 06.5 - Cluster Coordination
B76: 06.6 | C76: Mayoral Support | D76: 06.6 - Mayoral Support | E76: 06.6 - Mayoral Support
B77: 06.7 | C77: International & Intergovmental Relations | D77: 06.7 - International & Intergovmental Relations | E77: 06.7 - International & Intergovmental Relations
B78: 06.8 | C78: Transversal & Disability | D78: 06.8 - Transversal & Disability | E78: 06.8 - Transversal & Disability
B79: Vote 07 | C79: Financial Management
B80: 07.1 | C80: Office Of The Cfo | D80: =CONCATENATE(B80, " - ", C80) -> 07.1 - Office Of The Cfo | E80: 07.1 - Office Of The Cfo
B81: 07.2 | C81: Fleet Management | D81: 07.2 - Fleet Management | E81: 07.2 - Fleet Management
B82: 07.3 | C82: Deputy Cfo - Finance | D82: 07.3 - Deputy Cfo - Finance | E82: 07.3 - Deputy Cfo - Finance
B83: 07.4 | C83: Deputy Cfo - Marketing | D83: 07.4 - Deputy Cfo - Marketing | E83: 07.4 - Deputy Cfo - Marketing
B84: 07.5 | C84: Financial Planning & Budgeting- Finance | D84: 07.5 - Financial Planning & Budgeting- Finance | E84: 07.5 - Financial Planning & Budgeting- Finance
B85: 07.6 | C85: Financial Planning & Budgeting - Bud&Tre | D85: 07.6 - Financial Planning & Budgeting - Bud&Tre | E85: 07.6 - Financial Planning & Budgeting - Bud&Tre
B86: 07.7 | C86: Financial Planning & Budgeting - Bud&Tre | D86: 07.7 - Financial Planning & Budgeting - Bud&Tre | E86: 07.7 - Financial Planning & Budgeting - Bud&Tre
B87: 07.8 | C87: Financial Planning & Budgeting - Inform | D87: 07.8 - Financial Planning & Budgeting - Inform | E87: 07.8 - Financial Planning & Budgeting - Inform
B88: 07.9 | C88: Assets Management | D88: 07.9 - Assets Management | E88: 07.9 - Assets Management
B89: 07.10 | C89: Revenue Management | D89: 07.10 - Revenue Management | E89: 07.10 - Revenue Management
B90: 07.11 | C90: Municipal Valuation And Rating | D90: 07.11 - Municipal Valuation And Rating | E90: 07.11 - Municipal Valuation And Rating
B91: 07.12 | C91: Supply Chain Management | D91: 07.12 - Supply Chain Management | E91: 07.12 - Supply Chain Management
B92: 07.13 | C92: Accounting Services - Finance | D92: 07.13 - Accounting Services - Finance | E92: 07.13 - Accounting Services - Finance
B93: 07.14 | C93: Accounting Services - Human Resources | D93: 07.14 - Accounting Services - Human Resources | E93: 07.14 - Accounting Services - Human Resources
B94: 07.15 | C94: Cash Collection & Customer Enquiries | D94: 07.15 - Cash Collection & Customer Enquiries | E94: 07.15 - Cash Collection & Customer Enquiries
B95: 07.16 | C95: Billing & Accounts | D95: 07.16 - Billing & Accounts | E95: 07.16 - Billing & Accounts
B96: 07.17 | C96: Sundry Income Management | D96: 07.17 - Sundry Income Management | E96: 07.17 - Sundry Income Management
B97: Vote 08 | C97: Technical Services
B98: 08.1 | C98: Legal Services And Support | D98: =CONCATENATE(B98, " - ", C98) -> 08.1 - Legal Services And Support | E98: 08.1 - Legal Services And Support
B99: 08.2 | C99: General Manager | D99: 08.2 - General Manager | E99: 08.2 - General Manager
B100: 08.3 | C100: Roads & Stormwater - Roads | D100: 08.3 - Roads & Stormwater - Roads | E100: 08.3 - Roads & Stormwater - Roads
B101: 08.4 | C101: Roads & Stormwater - Stormwater | D101: 08.4 - Roads & Stormwater - Stormwater | E101: 08.4 - Roads & Stormwater - Stormwater
B102: 08.5 | C102: Project Implementation Unit | D102: 08.5 - Project Implementation Unit | E102: 08.5 - Project Implementation Unit
B103: 08.6 | C103: Project Implementation Unit - Roads | D103: 08.6 - Project Implementation Unit - Roads | E103: 08.6 - Project Implementation Unit - Roads
B104: 08.7 | C104: Project Implementation Unit - S Water | D104: 08.7 - Project Implementation Unit - S Water | E104: 08.7 - Project Implementation Unit - S Water
B105: 08.8 | C105: Project Implementation Unit - Sports | D105: 08.8 - Project Implementation Unit - Sports | E105: 08.8 - Project Implementation Unit - Sports
B106: 08.9 | C106: Project Implementation Unit - Sewer | D106: 08.9 - Project Implementation Unit - Sewer | E106: 08.9 - Project Implementation Unit - Sewer
B107: 08.10 | C107: Project Implementation Unit - Halls | D107: 08.10 - Project Implementation Unit - Halls | E107: 08.10 - Project Implementation Unit - Halls
B108: 08.11 | C108: Project Implementation Unit - Landfill | D108: 08.11 - Project Implementation Unit - Landfill | E108: 08.11 - Project Implementation Unit - Landfill
B109: 08.12 | C109: Electricity Plan And Develmnt - Elec | D109: 08.12 - Electricity Plan And Develmnt - Elec | E109: 08.12 - Electricity Plan And Develmnt - Elec
B110: 08.13 | C110: Electricity Plan And Develmnt - Non Ele | D110: 08.13 - Electricity Plan And Develmnt - Non Ele | E110: 08.13 - Electricity Plan And Develmnt - Non Ele
B111: 08.14 | C111: Alternative Energy And Public Lighting | D111: 08.14 - Alternative Energy And Public Lighting | E111: 08.14 - Alternative Energy And Public Lighting
B112: 08.15 | C112: Electricity Maintenance And Operation | D112: 08.15 - Electricity Maintenance And Operation | E112: 08.15 - Electricity Maintenance And Operation
B113: 08.16 | C113: Water Services Planning & Development | D113: 08.16 - Water Services Planning & Development | E113: 08.16 - Water Services Planning & Development
B114: 08.17 | C114: Water Services Plan&Devlopment - Sewer | D114: 08.17 - Water Services Plan&Devlopment - Sewer | E114: 08.17 - Water Services Plan&Devlopment - Sewer
B115: 08.18 | C115: Water Services Plan&Dev - Water T/Ment | D115: 08.18 - Water Services Plan&Dev - Water T/Ment | E115: 08.18 - Water Services Plan&Dev - Water T/Ment
B116: 08.19 | C116: Water Services Opertn&Maint Sup - Water | D116: 08.19 - Water Services Opertn&Maint Sup - Water | E116: 08.19 - Water Services Opertn&Maint Sup - Water
B117: 08.20 | C117: Water Services Oprtn&Maint Sup - W/Water | D117: 08.20 - Water Services Oprtn&Maint Sup - W/Water | E117: 08.20 - Water Services Oprtn&Maint Sup - W/Water
B118: 08.21 | C118: Water Service Op&Maint Sup-Water Treatm | D118: 08.21 - Water Service Op&Maint Sup-Water Treatm | E118: 08.21 - Water Service Op&Maint Sup-Water Treatm
B119: 08.22 | C119: Water Service Op&Maint Sup- Waste W Trt | D119: 08.22 - Water Service Op&Maint Sup- Waste W Trt | E119: 08.22 - Water Service Op&Maint Sup- Waste W Trt
B120: Vote 09 | C120: Sports, Arts & Culture
B121: 09.1 | C121: Office Of The Gm - Regional Centre Coord | D121: =CONCATENATE(B121, " - ", C121) -> 09.1 - Office Of The Gm - Regional Centre Coord | E121: 09.1 - Office Of The Gm - Regional Centre Coord
B122: 09.2 | C122: Regional Centre - Central Region | D122: 09.2 - Regional Centre - Central Region | E122: 09.2 - Regional Centre - Central Region
B123: 09.3 | C123: Regional Centre - Northern Region | D123: 09.3 - Regional Centre - Northern Region | E123: 09.3 - Regional Centre - Northern Region
B124: 09.4 | C124: Regional Centre - Eastern Region | D124: 09.4 - Regional Centre - Eastern Region | E124: 09.4 - Regional Centre - Eastern Region
B125: 09.5 | C125: Regional Centre - Southern Region | D125: 09.5 - Regional Centre - Southern Region | E125: 09.5 - Regional Centre - Southern Region
B126: 09.6 | C126: Office Of The Gm | D126: 09.6 - Office Of The Gm | E126: 09.6 - Office Of The Gm
B127: 09.7 | C127: Sports Dev&Recreational Fac - Sports Dev | D127: 09.7 - Sports Dev&Recreational Fac - Sports Dev | E127: 09.7 - Sports Dev&Recreational Fac - Sports Dev
B128: 09.8 | C128: Sports Dev&Recreational Fac- Recr Faclty | D128: 09.8 - Sports Dev&Recreational Fac- Recr Faclty | E128: 09.8 - Sports Dev&Recreational Fac- Recr Faclty
B129: 09.9 | C129: Comm Halls; Arts & Cult - Halls | D129: 09.9 - Comm Halls; Arts & Cult - Halls | E129: 09.9 - Comm Halls; Arts & Cult - Halls
B130: 09.10 | C130: Comm Halls; Arts & Cult - Arts&Culture | D130: 09.10 - Comm Halls; Arts & Cult - Arts&Culture | E130: 09.10 - Comm Halls; Arts & Cult - Arts&Culture
B131: 09.11 | C131: Comm Halls; Arts & Cult - Library | D131: 09.11 - Comm Halls; Arts & Cult - Library | E131: 09.11 - Comm Halls; Arts & Cult - Library
B132: Vote 10 | C132: Community Services
B133: 10.1 | C133: Office Of The Gm - Communicty Services | D133: =CONCATENATE(B133, " - ", C133) -> 10.1 - Office Of The Gm - Communicty Services | E133: 10.1 - Office Of The Gm - Communicty Services
B134: 10.2 | C134: Solid Waste - Removal | D134: 10.2 - Solid Waste - Removal | E134: 10.2 - Solid Waste - Removal
B135: 10.3 | C135: Solid Waste - Landfill | D135: 10.3 - Solid Waste - Landfill | E135: 10.3 - Solid Waste - Landfill
B136: 10.4 | C136: Sports Recreation & Heritage - Sports | D136: 10.4 - Sports Recreation & Heritage - Sports | E136: 10.4 - Sports Recreation & Heritage - Sports
B137: 10.5 | C137: Sports Recreation & Heritage - Recrea | D137: 10.5 - Sports Recreation & Heritage - Recrea | E137: 10.5 - Sports Recreation & Heritage - Recrea
B138: 10.6 | C138: Sports Recreation & Heritage - Galary | D138: 10.6 - Sports Recreation & Heritage - Galary | E138: 10.6 - Sports Recreation & Heritage - Galary
B139: 10.7 | C139: Sports Recreation & Heritage - Halls | D139: 10.7 - Sports Recreation & Heritage - Halls | E139: 10.7 - Sports Recreation & Heritage - Halls
B140: 10.8 | C140: Sports Recreation & Heritage - Library | D140: 10.8 - Sports Recreation & Heritage - Library | E140: 10.8 - Sports Recreation & Heritage - Library
B141: 10.9 | C141: Sports Recreation & Heritage - Cultural | D141: 10.9 - Sports Recreation & Heritage - Cultural | E141: 10.9 - Sports Recreation & Heritage - Cultural
B142: 10.10 | C142: Parks And Cemetaries - Parks | D142: 10.10 - Parks And Cemetaries - Parks | E142: 10.10 - Parks And Cemetaries - Parks
B143: 10.11 | C143: Parks And Cemetaries - Cemetaries | D143: 10.11 - Parks And Cemetaries - Cemetaries | E143: 10.11 - Parks And Cemetaries - Cemetaries
B144: 10.12 | C144: Traffic Services | D144: 10.12 - Traffic Services | E144: 10.12 - Traffic Services
B145: 10.13 | C145: Mun Law Enforcmnt&Secty - Law Enforcmnt | D145: 10.13 - Mun Law Enforcmnt&Secty - Law Enforcmnt | E145: 10.13 - Mun Law Enforcmnt&Secty - Law Enforcmnt
B146: 10.14 | C146: Mun Law Enforcmnt&Secty - Law Enforcmnt | D146: 10.14 - Mun Law Enforcmnt&Secty - Law Enforcmnt | E146: 10.14 - Mun Law Enforcmnt&Secty - Law Enforcmnt
B147: 10.15 | C147: Mun Law Enforcmnt&Secty - Law Enforcmnt | D147: 10.15 - Mun Law Enforcmnt&Secty - Law Enforcmnt | E147: 10.15 - Mun Law Enforcmnt&Secty - Law Enforcmnt
B148: 10.16 | C148: Disaster Management - Disaster Manmnt | D148: 10.16 - Disaster Management - Disaster Manmnt | E148: 10.16 - Disaster Management - Disaster Manmnt
B149: 10.17 | C149: Disaster Management - Fire&Rescue Serv | D149: 10.17 - Disaster Management - Fire&Rescue Serv | E149: 10.17 - Disaster Management - Fire&Rescue Serv
B150: Vote 11 | C150: Public Works, Roads And Transport
B151: 11.1 | C151: Office Of The Gm - Roads | D151: =CONCATENATE(B151, " - ", C151) -> 11.1 - Office Of The Gm - Roads | E151: 11.1 - Office Of The Gm - Roads
B152: 11.2 | C152: Office Of The Gm - Stormwater | D152: 11.2 - Office Of The Gm - Stormwater | E152: 11.2 - Office Of The Gm - Stormwater
B153: 11.3 | C153: Roads And Stormwater - Roads | D153: 11.3 - Roads And Stormwater - Roads | E153: 11.3 - Roads And Stormwater - Roads
B154: 11.4 | C154: Roads And Stormwater - Stormwater | D154: 11.4 - Roads And Stormwater - Stormwater | E154: 11.4 - Roads And Stormwater - Stormwater
B155: 11.5 | C155: Roads And Stormwater - Signal | D155: 11.5 - Roads And Stormwater - Signal | E155: 11.5 - Roads And Stormwater - Signal
B156: 11.6 | C156: Public Transport Operations - Transport | D156: 11.6 - Public Transport Operations - Transport | E156: 11.6 - Public Transport Operations - Transport
B157: 11.7 | C157: Project Implementation Unit | D157: 11.7 - Project Implementation Unit | E157: 11.7 - Project Implementation Unit
B158: 11.8 | C158: Project Implementation Unit - Roads | D158: 11.8 - Project Implementation Unit - Roads | E158: 11.8 - Project Implementation Unit - Roads
B159: 11.9 | C159: Project Implementation Unit - S Water | D159: 11.9 - Project Implementation Unit - S Water | E159: 11.9 - Project Implementation Unit - S Water
B160: 11.10 | C160: Project Implementation Unit - P Transprt | D160: 11.10 - Project Implementation Unit - P Transprt | E160: 11.10 - Project Implementation Unit - P Transprt
B161: 11.11 | C161: Project Implementation Unit - Sports | D161: 11.11 - Project Implementation Unit - Sports | E161: 11.11 - Project Implementation Unit - Sports
B162: 11.12 | C162: Project Implementation Unit - Sewer | D162: 11.12 - Project Implementation Unit - Sewer | E162: 11.12 - Project Implementation Unit - Sewer
B163: 11.13 | C163: Project Implementation Unit - Halls | D163: 11.13 - Project Implementation Unit - Halls | E163: 11.13 - Project Implementation Unit - Halls
B164: 11.14 | C164: Project Implementation Unit - Landfill | D164: 11.14 - Project Implementation Unit - Landfill | E164: 11.14 - Project Implementation Unit - Landfill
B165: 11.15 | C165: Project Implementation Unit - Nc Roads | D165: 11.15 - Project Implementation Unit - Nc Roads | E165: 11.15 - Project Implementation Unit - Nc Roads
B166: 11.16 | C166: Project Implementation Unit - St Lights | D166: 11.16 - Project Implementation Unit - St Lights | E166: 11.16 - Project Implementation Unit - St Lights
B167: 11.17 | C167: Project Implementation Unit - Fleet | D167: 11.17 - Project Implementation Unit - Fleet | E167: 11.17 - Project Implementation Unit - Fleet
B168: 11.18 | C168: Project Implementation Unit - S Waste | D168: 11.18 - Project Implementation Unit - S Waste | E168: 11.18 - Project Implementation Unit - S Waste
B169: 11.19 | C169: Project Implementation Unit - Parks | D169: 11.19 - Project Implementation Unit - Parks | E169: 11.19 - Project Implementation Unit - Parks
B170: 11.20 | C170: Project Implementation Unit - Water Dist | D170: 11.20 - Project Implementation Unit - Water Dist | E170: 11.20 - Project Implementation Unit - Water Dist
B171: 11.21 | C171: Project Implementation Unit - Water Trt | D171: 11.21 - Project Implementation Unit - Water Trt | E171: 11.21 - Project Implementation Unit - Water Trt
B172: 11.22 | C172: Expanded Public Works Programme | D172: 11.22 - Expanded Public Works Programme | E172: 11.22 - Expanded Public Works Programme
B173: Vote 12 | C173: Local Economic Development
B174: 12.1 | C174: Office Of The Gm - Public Safety | D174: =CONCATENATE(B174, " - ", C174) -> 12.1 - Office Of The Gm - Public Safety | E174: 12.1 - Office Of The Gm - Public Safety
B175: 12.2 | C175: Law Enforce And Security Serv - Traffic | D175: 12.2 - Law Enforce And Security Serv - Traffic | E175: 12.2 - Law Enforce And Security Serv - Traffic
B176: 12.3 | C176: Law Enforce And Security Serv - Traffic | D176: 12.3 - Law Enforce And Security Serv - Traffic | E176: 12.3 - Law Enforce And Security Serv - Traffic
B177: 12.4 | C177: Law Enforce And Security Serv - Lic&Regu | D177: 12.4 - Law Enforce And Security Serv - Lic&Regu | E177: 12.4 - Law Enforce And Security Serv - Lic&Regu
B178: 12.5 | C178: Law Enforce And Security Serv - Security | D178: 12.5 - Law Enforce And Security Serv - Security | E178: 12.5 - Law Enforce And Security Serv - Security
B179: 12.6 | C179: Licencing And Traffic Services | D179: 12.6 - Licencing And Traffic Services | E179: 12.6 - Licencing And Traffic Services
B180: 12.7 | C180: Traffic Services | D180: 12.7 - Traffic Services | E180: 12.7 - Traffic Services
B181: 12.8 | C181: Traffic Services | D181: 12.8 - Traffic Services | E181: 12.8 - Traffic Services
B182: 12.9 | C182: Disaster Management - Fire And Protect | D182: 12.9 - Disaster Management - Fire And Protect | E182: 12.9 - Disaster Management - Fire And Protect
B183: 12.10 | C183: Disaster Management - Disaster Man | D183: 12.10 - Disaster Management - Disaster Man | E183: 12.10 - Disaster Management - Disaster Man
B184: 12.11 | C184: Office Of The Gm - Local Economic Development | D184: 12.11 - Office Of The Gm - Local Economic Development | E184: 12.11 - Office Of The Gm - Local Economic Development
B185: 12.12 | C185: Business Regulations And Governance | D185: 12.12 - Business Regulations And Governance | E185: 12.12 - Business Regulations And Governance
B186: 12.13 | C186: Tourism Development | D186: 12.13 - Tourism Development | E186: 12.13 - Tourism Development
B187: 12.14 | C187: Economic Development | D187: 12.14 - Economic Development | E187: 12.14 - Economic Development
B188: 12.15 | C188: Expanded Public Works Programme | D188: 12.15 - Expanded Public Works Programme | E188: 12.15 - Expanded Public Works Programme
B189: 12.16 | C189: Community Works Programme | D189: 12.16 - Community Works Programme | E189: 12.16 - Community Works Programme
B190: 12.17 | C190: Public Transport Operations | D190: 12.17 - Public Transport Operations | E190: 12.17 - Public Transport Operations
B191: Vote 13 | C191: Water And Sanitation
B192: 13.1 | C192: Office Of The Gm - Water | D192: =CONCATENATE(B192, " - ", C192) -> 13.1 - Office Of The Gm - Water | E192: 13.1 - Office Of The Gm - Water
B193: 13.2 | C193: Office Of The Gm - Sanitation | D193: 13.2 - Office Of The Gm - Sanitation | E193: 13.2 - Office Of The Gm - Sanitation
B194: 13.3 | C194: Water Services Plan And Develp - Water | D194: 13.3 - Water Services Plan And Develp - Water | E194: 13.3 - Water Services Plan And Develp - Water
B195: 13.4 | C195: Water Services Plan And Develp - Sanitat | D195: 13.4 - Water Services Plan And Develp - Sanitat | E195: 13.4 - Water Services Plan And Develp - Sanitat
B196: 13.5 | C196: Water Services Plan And Develp - W Treat | D196: 13.5 - Water Services Plan And Develp - W Treat | E196: 13.5 - Water Services Plan And Develp - W Treat
B197: 13.6 | C197: Water Services Plan And Develp - W Stor | D197: 13.6 - Water Services Plan And Develp - W Stor | E197: 13.6 - Water Services Plan And Develp - W Stor
B198: 13.7 | C198: Water Services Plan And Develp - W Distr | D198: 13.7 - Water Services Plan And Develp - W Distr | E198: 13.7 - Water Services Plan And Develp - W Distr
B199: 13.8 | C199: Contract Management - Water | D199: 13.8 - Contract Management - Water | E199: 13.8 - Contract Management - Water
B200: 13.9 | C200: Contract Management - Sanitation | D200: 13.9 - Contract Management - Sanitation | E200: 13.9 - Contract Management - Sanitation
... 12 more rows

Sheet Contacts
A1: =muni&" - "&" Contact Information" -> MP326 City of Mbombela - Contact Information
A3: A. GENERAL INFORMATION
A4: Municipality | B4: =muni -> MP326 City of Mbombela | C4: Set name on 'Instructions' sheet
A6: Grade | C6: 1 Grade in terms of the Remuneration of Public Office Bearers Act.
A8: Province | B8: =IF(B4>" ",VLOOKUP(B4,'Lookup and lists'!B28:C311,2, FALSE)," ") -> MP MPUMALANGA
A10: Web Address | B10: www.mbombela.gov.za
A12: e-mail Address | B12: customercare@mbombela.gov.za
A14: B. CONTACT INFORMATION
A15: Postal address:
A16: P.O. Box | B16: P.O. Box 45
A17: City / Town | B17: Nelspruit
A18: Postal Code | B18: 1200
A20: Street address
A21: Building | B21: Civic Centre
A22: Street No. & Name | B22: 1 Nel Street
A23: City / Town | B23: Nelspruit
A24: Postal Code | B24: 1200
A26: General Contacts
A27: Telephone number | B27: 013 - 759 9111
A28: Fax number | B28: 013 - 759 2070
A30: C. POLITICAL LEADERSHIP
A31: Speaker: | C31: Secretary/PA to the Speaker:
A32: ID Number | B32: 7911245467080 | C32: ID Number
A33: Title | B33: Mr. | C33: Title | D33: Mr.
A34: Name | B34: William Nkhata | C34: Name | D34: Adam Mhlongo
A35: Telephone number | B35: 013 - 759 2257 | C35: Telephone number | D35: 013 759 2258
A36: Cell number | B36: 0729368378 | C36: Cell number | D36: 072 950 0131
A37: Fax number | B37: 013-759 -2253 | C37: Fax number | D37: 013 759 2253
A38: E-mail address | B38: william.nkhata@mbombela.gov.za | C38: E-mail address | D38: adam.mhlongo@mbombela.gov.za
A40: Mayor/Executive Mayor: | C40: Secretary/PA to the Mayor/Executive Mayor:
A41: ID Number | C41: ID Number
A42: Title | B42: Ms. | C42: Title | D42: Ms.
A43: Name | B43: Sibongile Makushe | C43: Name | D43: Sindisiwe Mhlongo
A44: Telephone number | B44: 013 - 759 2003 | C44: Telephone number | D44: 013 759 2003
A45: Cell number | B45: 076 558 7772 | C45: Cell number | D45: 071 188 3873
A46: Fax number | B46: 013 - 759 -2253 | C46: Fax number | D46: 013 759 2253
A47: E-mail address | B47: sibongile.makushe@mbombela.gov.za | C47: E-mail address | D47: sindisiwe.gwebu@mbombela.gov.za
A49: Deputy Mayor/Executive Mayor: | C49: Secretary/PA to the Deputy Mayor/Executive Mayor:
A50: ID Number | C50: ID Number
A51: Title | C51: Title
A52: Name | C52: Name
A53: Telephone number | C53: Telephone number
A54: Cell number | C54: Cell number
A55: Fax number | C55: Fax number
A56: E-mail address | C56: E-mail address
A58: D. MANAGEMENT LEADERSHIP
A59: Municipal Manager: | C59: Secretary/PA to the Municipal Manager:
A60: ID Number | C60: ID Number
A61: Title | B61: Mr. | C61: Title | D61: Ms.
A62: Name | B62: Wiseman Khumalo | C62: Name | D62: Mantombi Mashigo
A63: Telephone number | B63: 013 759 9060 | C63: Telephone number | D63: 013 759 2041
A64: Cell number | B64: 082 460 1834 | C64: Cell number | D64: 072 763 2656
A65: Fax number | B65: 013 759 9055 | C65: Fax number
A66: E-mail address | B66: wiseman.khumalo@mbombela.gov.za | C66: E-mail address | D66: mantombi.mashigo@mbombela.gov.za
A68: Chief Financial Officer | C68: Secretary/PA to the Chief Financial Officer
A69: ID Number | B69: 7811240132087 | C69: ID Number
A70: Title | B70: Ms. | C70: Title | D70: Ms.
A71: Name | B71: Delight Sibanyoni | C71: Name | D71: Tebogo Kgotse
A72: Telephone number | B72: 013 759 9143 | C72: Telephone number | D72: 013 759 2005
A73: Cell number | B73: 082 049 3394 | C73: Cell number | D73: 082 968 0088
A74: Fax number | B74: 013 759 9055 | C74: Fax number | D74: 013 759 9055
A75: E-mail address | B75: delight.sibanyoni@mbombela.gov.za | C75: E-mail address | D75: tebogo.kgotse@mbombela.gov.za
A77: Official responsible for submitting financial information | C77: Official responsible for submitting financial information
A78: ID Number | C78: ID Number
A79: Title | B79: Ms. | C79: Title | D79: Mr.
A80: Name | B80: DELIGHT FUTHI SIBANYONI | C80: Name | D80: SABELO DLAMINI
A81: Telephone number | B81: 013 759 9143 | C81: Telephone number | D81: 013 759 9249
A82: Cell number | B82: 082 049 3394 | C82: Cell number | D82: 076 644 8910
A83: Fax number | B83: 013 759 9055 | C83: Fax number | D83: 013 759 9055
A84: E-mail address | B84: delight.sibanyoni@mbombela.gov.za | C84: E-mail address | D84: sabelo.dlamini@mbombela.gov.za
A85: Official responsible for submitting financial information | C85: Official responsible for submitting financial information
A86: ID Number | C86: ID Number
A87: Title | C87: Title
A88: Name | C88: Name
A89: Telephone number | C89: Telephone number
A90: Cell number | C90: Cell number
A91: Fax number | C91: Fax number
A92: E-mail address | C92: E-mail address
A93: Official responsible for submitting financial information | C93: Official responsible for submitting financial information
A94: ID Number | C94: ID Number
A95: Title | C95: Title
A96: Name | C96: Name
A97: Telephone number | C97: Telephone number
A98: Cell number | C98: Cell number
A99: Fax number | C99: Fax number
A100: E-mail address | C100: E-mail address
A101: Official responsible for submitting financial information | C101: Official responsible for submitting financial information
A102: ID Number | C102: ID Number
A103: Title | C103: Title
A104: Name | C104: Name
A105: Telephone number | C105: Telephone number
A106: Cell number | C106: Cell number
A107: Fax number | C107: Fax number
A108: E-mail address | C108: E-mail address
A109: Official responsible for submitting financial information | C109: Official responsible for submitting financial information
A110: ID Number | C110: ID Number
A111: Title | C111: Title
A112: Name | C112: Name
A113: Telephone number | C113: Telephone number
A114: Cell number | C114: Cell number
A115: Fax number | C115: Fax number
A116: E-mail address | C116: E-mail address
A117: Official responsible for submitting financial information | C117: Official responsible for submitting financial information
A118: ID Number | C118: ID Number
A119: Title | C119: Title
A120: Name | C120: Name
A121: Telephone number | C121: Telephone number
A122: Cell number | C122: Cell number
A123: Fax number | C123: Fax number
A124: E-mail address | C124: E-mail address
A125: Official responsible for submitting financial information | C125: Official responsible for submitting financial information
A126: ID Number | C126: ID Number
A127: Title | C127: Title
A128: Name | C128: Name
A129: Telephone number | C129: Telephone number
A130: Cell number | C130: Cell number
A131: Fax number | C131: Fax number
A132: E-mail address | C132: E-mail address
A133: Official responsible for submitting financial information
A134: ID Number
A135: Title
A136: Name
A137: Telephone number
A138: Cell number
A139: Fax number
A140: E-mail address

Sheet C1-Sum
A1: =muni& " - "&s71sum& " - "&date -> MP326 City of Mbombela - Table C1 Monthly Budget Statement Summary - Mid-Year Assessment
A2: =desc -> Description | B2: =Head1 -> 2021/22 | C2: =Head2 -> Budget Year 2022/23
B3: =Head5 -> Audited Outcome | C3: =Head6 -> Original Budget | D3: =Head7 -> Adjusted Budget | E3: =Head38 -> Monthly actual | F3: =Head39 -> YearTD actual | G3: =Head40 -> YearTD budget | H3: =Head41 -> YTD variance | I3: =Head41 -> YTD variance | J3: =Head8 -> Full Year Forecast
A4: R thousands | I4: %
A5: Financial Performance
A6: Property rates | B6: =SUM('C4-FinPerf RE'!C6:C6) -> 744046037.5 | C6: =SUM('C4-FinPerf RE'!D6:D6) -> 816052342 | D6: =SUM('C4-FinPerf RE'!E6:E6) -> 816052342 | E6: =SUM('C4-FinPerf RE'!F6:F6) -> 68176083.59 | F6: =SUM('C4-FinPerf RE'!G6:G6) -> 405422210.3 | G6: =SUM('C4-FinPerf RE'!H6:H6) -> 408026148 | H6: =F6-G6 -> -2603937.69 | I6: =IF(H6=0,"",H6/G6) -> -0.006381791223 | J6: =SUM('C4-FinPerf RE'!K6:K6) -> 816052342
A7: Service charges | B7: =SUM('C4-FinPerf RE'!C7:C10) -> 1549891754 | C7: =SUM('C4-FinPerf RE'!D7:D10) -> 1827652608 | D7: =SUM('C4-FinPerf RE'!E7:E10) -> 1827652608 | E7: =SUM('C4-FinPerf RE'!F7:F10) -> 126165924.8 | F7: =SUM('C4-FinPerf RE'!G7:G10) -> 810303257.2 | G7: =SUM('C4-FinPerf RE'!H7:H10) -> 913826124 | H7: =F7-G7 -> -103522866.8 | I7: =IF(H7=0,"",H7/G7) -> -0.1132850813 | J7: =SUM('C4-FinPerf RE'!K7:K10) -> 1827652608
A8: Investment revenue | B8: ='C4-FinPerf RE'!C13 -> 3558803.91 | C8: ='C4-FinPerf RE'!D13 -> 1783825 | D8: ='C4-FinPerf RE'!E13 -> 1783825 | E8: ='C4-FinPerf RE'!F13 -> 104927.85 | F8: ='C4-FinPerf RE'!G13 -> 2364038.55 | G8: ='C4-FinPerf RE'!H13 -> 891900 | H8: =F8-G8 -> 1472138.55 | I8: =IF(H8=0,"",H8/G8) -> 1.650564581 | J8: ='C4-FinPerf RE'!K13 -> 1783825
A9: Transfers and subsidies | B9: ='C4-FinPerf RE'!C19 -> 913257829 | C9: ='C4-FinPerf RE'!D19 -> 963947000 | D9: ='C4-FinPerf RE'!E19 -> 963947000 | E9: ='C4-FinPerf RE'!F19 -> 287022154 | F9: ='C4-FinPerf RE'!G19 -> 685776698.7 | G9: ='C4-FinPerf RE'!H19 -> 481973484 | H9: =F9-G9 -> 203803214.7 | I9: =IF(H9=0,"",H9/G9) -> 0.4228515084 | J9: ='C4-FinPerf RE'!K19 -> 963947000
A10: Other own revenue | B10: ='C4-FinPerf RE'!C12+'C4-FinPerf RE'!C14+'C4-FinPerf RE'!C15+'C4-FinPerf RE'!C16+'C4-FinPerf RE'!C17+'C4-FinPerf RE'!C18+'C4-FinPerf RE'!C20+'C4-FinPerf RE'!C21 -> 150395703.2 | C10: ='C4-FinPerf RE'!D12+'C4-FinPerf RE'!D14+'C4-FinPerf RE'!D15+'C4-FinPerf RE'!D16+'C4-FinPerf RE'!D17+'C4-FinPerf RE'!D18+'C4-FinPerf RE'!D20+'C4-FinPerf RE'!D21 -> 294095838 | D10: ='C4-FinPerf RE'!E12+'C4-FinPerf RE'!E14+'C4-FinPerf RE'!E15+'C4-FinPerf RE'!E16+'C4-FinPerf RE'!E17+'C4-FinPerf RE'!E18+'C4-FinPerf RE'!E20+'C4-FinPerf RE'!E21 -> 294095838 | E10: ='C4-FinPerf RE'!F12+'C4-FinPerf RE'!F14+'C4-FinPerf RE'!F15+'C4-FinPerf RE'!F16+'C4-FinPerf RE'!F17+'C4-FinPerf RE'!F18+'C4-FinPerf RE'!F20+'C4-FinPerf RE'!F21 -> 6503038.4 | F10: ='C4-FinPerf RE'!G12+'C4-FinPerf RE'!G14+'C4-FinPerf RE'!G15+'C4-FinPerf RE'!G16+'C4-FinPerf RE'!G17+'C4-FinPerf RE'!G18+'C4-FinPerf RE'!G20+'C4-FinPerf RE'!G21 -> 52201605.34 | G10: ='C4-FinPerf RE'!H12+'C4-FinPerf RE'!H14+'C4-FinPerf RE'!H15+'C4-FinPerf RE'!H16+'C4-FinPerf RE'!H17+'C4-FinPerf RE'!H18+'C4-FinPerf RE'!H20+'C4-FinPerf RE'!H21 -> 147047658 | H10: =F10-G10 -> -94846052.66 | I10: =IF(H10=0,"",H10/G10) -> -0.6450021303 | J10: ='C4-FinPerf RE'!K12+'C4-FinPerf RE'!K14+'C4-FinPerf RE'!K15+'C4-FinPerf RE'!K16+'C4-FinPerf RE'!K17+'C4-FinPerf RE'!K18+'C4-FinPerf RE'!K20+'C4-FinPerf RE'!K21 -> 294095838
A11: Total Revenue (excluding capital transfers and contributions) | B11: =SUM(B6:B10) -> 3361150127 | C11: 3903531613 | D11: 3903531613 | E11: 487972128.6 | F11: 1956067810 | G11: 1951765314 | H11: =F11-G11 -> 4302496.13 | I11: =IF(H11=0,"",H11/G11) -> 0.002204412641 | J11: 3903531613
A12: Employee costs | B12: ='C4-FinPerf RE'!C25 -> 1198405425 | C12: ='C4-FinPerf RE'!D25 -> 1188862070 | D12: ='C4-FinPerf RE'!E25 -> 1189517624 | E12: ='C4-FinPerf RE'!F25 -> 98768416.31 | F12: ='C4-FinPerf RE'!G25 -> 582879201.8 | G12: ='C4-FinPerf RE'!H25 -> 594652342 | H12: -11773140.12 | I12: -0.01979835828 | J12: ='C4-FinPerf RE'!K25 -> 1189517624
A13: Remuneration of Councillors | B13: ='C4-FinPerf RE'!C26 -> 59935638.82 | C13: ='C4-FinPerf RE'!D26 -> 62925664 | D13: ='C4-FinPerf RE'!E26 -> 62925664 | E13: ='C4-FinPerf RE'!F26 -> 5013931.11 | F13: ='C4-FinPerf RE'!G26 -> 30086359.78 | G13: ='C4-FinPerf RE'!H26 -> 31462950 | H13: -1376590.22 | I13: -0.04375273838 | J13: ='C4-FinPerf RE'!K26 -> 62925664
A14: Depreciation & asset impairment | B14: ='C4-FinPerf RE'!C28 -> 553635849 | C14: ='C4-FinPerf RE'!D28 -> 480056940 | D14: ='C4-FinPerf RE'!E28 -> 480056940 | E14: ='C4-FinPerf RE'!F28 -> 46145133.78 | F14: ='C4-FinPerf RE'!G28 -> 276870802.8 | G14: ='C4-FinPerf RE'!H28 -> 240028512 | H14: 36842290.83 | I14: 0.1534913104 | J14: ='C4-FinPerf RE'!K28 -> 480056940
A15: Finance charges | B15: ='C4-FinPerf RE'!C29 -> 115406494 | C15: ='C4-FinPerf RE'!D29 -> 34847091 | D15: ='C4-FinPerf RE'!E29 -> 34847091 | E15: ='C4-FinPerf RE'!F29 -> 16.63 | F15: ='C4-FinPerf RE'!G29 -> 9706293.58 | G15: ='C4-FinPerf RE'!H29 -> 17423634 | H15: -7717340.42 | I15: -0.4429236989 | J15: ='C4-FinPerf RE'!K29 -> 34847091
A16: Inventory consumed and bulk purchases | B16: =SUM('C4-FinPerf RE'!C30:C31) -> 1137145075 | C16: =SUM('C4-FinPerf RE'!D30:D31) -> 1205017847 | D16: =SUM('C4-FinPerf RE'!E30:E31) -> 1199615219 | E16: =SUM('C4-FinPerf RE'!F30:F31) -> 77355295.81 | F16: =SUM('C4-FinPerf RE'!G30:G31) -> 632846076.2 | G16: =SUM('C4-FinPerf RE'!H30:H31) -> 599886636.9 | H16: 32959439.37 | I16: 0.05494277976 | J16: =SUM('C4-FinPerf RE'!K30:K31) -> 1199615219
A17: Transfers and subsidies | B17: ='C4-FinPerf RE'!C33 -> 39335116.11 | C17: ='C4-FinPerf RE'!D33 -> 1826501 | D17: ='C4-FinPerf RE'!E33 -> 19006501 | E17: ='C4-FinPerf RE'!F33 -> 87267.6 | F17: ='C4-FinPerf RE'!G33 -> 14461382.24 | G17: ='C4-FinPerf RE'!H33 -> 8524332.54 | H17: 5937049.7 | I17: 0.696482648 | J17: ='C4-FinPerf RE'!K33 -> 19006501
A18: Other expenditure | B18: ='C4-FinPerf RE'!C36-SUM('C1-Sum'!B12:B17) -> 1096815739 | C18: ='C4-FinPerf RE'!D36-SUM('C1-Sum'!C12:C17) -> 755417414 | D18: ='C4-FinPerf RE'!E36-SUM('C1-Sum'!D12:D17) -> 742985117 | E18: ='C4-FinPerf RE'!F36-SUM('C1-Sum'!E12:E17) -> 43693299.72 | F18: ='C4-FinPerf RE'!G36-SUM('C1-Sum'!F12:F17) -> 220255434 | G18: ='C4-FinPerf RE'!H36-SUM('C1-Sum'!G12:G17) -> 372502873.1 | H18: -152247439.1 | I18: -0.4087148049 | J18: ='C4-FinPerf RE'!K36-SUM('C1-Sum'!J12:J17) -> 742985117
A19: Total Expenditure | B19: =SUM(B12:B18) -> 4200679337 | C19: 3728953527 | D19: 3728954156 | E19: 271063361 | F19: 1767105551 | G19: 1864481280 | H19: -97375729.99 | I19: -0.05222671368 | J19: =SUM(J12:J18) -> 3728954156
A20: Surplus/(Deficit) | B20: =B11-B19 -> -839529209.7 | C20: 174578086 | D20: 174577457 | E20: 216908767.7 | F20: 188962259.6 | G20: 87284033.5 | H20: 101678226.1 | I20: 1.164912093 | J20: =J11-J19 -> 174577457
A21: ='C4-FinPerf RE'!A39 -> Transfers and subsidies - capital (monetary allocations) (National / Provincial and District) | B21: ='C4-FinPerf RE'!C39 -> 436329950.9 | C21: ='C4-FinPerf RE'!D39 -> 480021000 | D21: ='C4-FinPerf RE'!E39 -> 480021000 | E21: ='C4-FinPerf RE'!F39 -> 28639280 | F21: ='C4-FinPerf RE'!G39 -> 146259993.4 | G21: ='C4-FinPerf RE'!H39 -> 240010488 | H21: -93750494.64 | I21: -0.3906099913 | J21: ='C4-FinPerf RE'!K39 -> 480021000
A22: ='C4-FinPerf RE'!A40&" & "&'C4-FinPerf RE'!A41 -> Transfers and subsidies - capital (monetary allocations) (National / Provincial Departmental Agencies, Households, Non-profit Institutions, Private Enterprises, Public Corporatons, Higher Educational Institutions) & Transfers and subsidies - capital (in-kind - all) | B22: =SUM('C4-FinPerf RE'!C40:C41) -> 9986181.25 | C22: =SUM('C4-FinPerf RE'!D40:D41) -> 0 | D22: =SUM('C4-FinPerf RE'!E40:E41) -> 0 | E22: =SUM('C4-FinPerf RE'!F40:F41) -> 0 | F22: =SUM('C4-FinPerf RE'!G40:G41) -> 0 | G22: =SUM('C4-FinPerf RE'!H40:H41) -> 0 | H22: 0 | J22: =SUM('C4-FinPerf RE'!K40:K41) -> 0
A23: Surplus/(Deficit) after capital transfers & contributions | B23: =B20+B21+B22 -> -393213077.6 | C23: 654599086 | D23: 654598457 | E23: 245548047.7 | F23: 335222253 | G23: 327294521.5 | H23: 7927731.48 | I23: 0.02422201094 | J23: =J20+J21+J22 -> 654598457
A24: Share of surplus/ (deficit) of associate | B24: ='C4-FinPerf RE'!C47 -> 0 | C24: ='C4-FinPerf RE'!D47 -> 0 | D24: ='C4-FinPerf RE'!E47 -> 0 | E24: ='C4-FinPerf RE'!F47 -> 0 | F24: ='C4-FinPerf RE'!G47 -> 0 | G24: ='C4-FinPerf RE'!H47 -> 0 | H24: 0 | J24: ='C4-FinPerf RE'!K47 -> 0
A25: Surplus/ (Deficit) for the year | B25: =B23+B24 -> -393213077.6 | C25: 654599086 | D25: 654598457 | E25: 245548047.7 | F25: 335222253 | G25: 327294521.5 | H25: 7927731.48 | I25: 0.02422201094 | J25: =J23+J24 -> 654598457
A27: Capital expenditure & funds sources
A28: Capital expenditure | B28: ='C5-Capex'!C40 -> 226327512.6 | C28: ='C5-Capex'!D40 -> 652820801 | D28: ='C5-Capex'!E40 -> 681107549 | E28: ='C5-Capex'!F40 -> 34503437.11 | F28: ='C5-Capex'!G40 -> 176280190.2 | G28: ='C5-Capex'!H40 -> 339298109.1 | H28: =F28-G28 -> -163017919 | I28: =IF(H28=0,"",H28/G28) -> -0.4804563143 | J28: ='C5-Capex'!K40 -> 681107549
A29: Capital transfers recognised | B29: ='C5-Capex'!C70 -> 163384802.4 | C29: ='C5-Capex'!D70 -> 484305001 | D29: ='C5-Capex'!E70 -> 484305001 | E29: ='C5-Capex'!F70 -> 27406580.6 | F29: ='C5-Capex'!G70 -> 147878287.3 | G29: ='C5-Capex'!H70 -> 242152734 | H29: -94274446.71 | I29: -0.3893181182 | J29: ='C5-Capex'!K70 -> 484305001
A31: Borrowing | B31: ='C5-Capex'!C72 -> 0 | C31: ='C5-Capex'!D72 -> 0 | D31: ='C5-Capex'!E72 -> 0 | E31: ='C5-Capex'!F72 -> 0 | F31: ='C5-Capex'!G72 -> 0 | G31: ='C5-Capex'!H72 -> 0 | H31: 0 | J31: ='C5-Capex'!K72 -> 0
A32: Internally generated funds | B32: ='C5-Capex'!C73 -> 62942710.15 | C32: ='C5-Capex'!D73 -> 168515800 | D32: ='C5-Capex'!E73 -> 196802548 | E32: ='C5-Capex'!F73 -> 7096856.51 | F32: ='C5-Capex'!G73 -> 28401902.87 | G32: ='C5-Capex'!H73 -> 97145375.11 | H32: -68743472.24 | I32: -0.7076350486 | J32: ='C5-Capex'!K73 -> 196802548
A33: Total sources of capital funds | B33: =+B29+B31+B32 -> 226327512.6 | C33: 652820801 | D33: 681107549 | E33: 34503437.11 | F33: 176280190.2 | G33: 339298109.1 | H33: -163017919 | I33: -0.4804563143 | J33: =+J29+J31+J32 -> 681107549
A35: Financial position
A36: Total current assets | B36: ='C6-FinPos'!C13 -> 977840784.7 | C36: ='C6-FinPos'!D13 -> 865694457 | D36: ='C6-FinPos'!E13 -> 865694457 | F36: ='C6-FinPos'!F13 -> 1279149100 | J36: ='C6-FinPos'!G13 -> 865694457
A37: Total non current assets | B37: ='C6-FinPos'!C25 -> 7622337573 | C37: ='C6-FinPos'!D25 -> 6654592482 | D37: ='C6-FinPos'!E25 -> 6682879230 | F37: ='C6-FinPos'!F25 -> 7521428722 | J37: ='C6-FinPos'!G25 -> 6682879230
A38: Total current liabilities | B38: ='C6-FinPos'!C35 -> 3133343958 | C38: ='C6-FinPos'!D35 -> 944427851 | D38: ='C6-FinPos'!E35 -> 944427851 | F38: ='C6-FinPos'!F35 -> 3073279400 | J38: ='C6-FinPos'!G35 -> 944427851
A39: Total non current liabilities | B39: ='C6-FinPos'!C40 -> 701138570.2 | C39: ='C6-FinPos'!D40 -> 894213300 | D39: ='C6-FinPos'!E40 -> 894213300 | F39: ='C6-FinPos'!F40 -> 645648302.7 | J39: ='C6-FinPos'!G40 -> 894213300
A40: Community wealth/Equity | B40: ='C6-FinPos'!C48 -> 4765695830 | C40: ='C6-FinPos'!D48 -> 5463619733 | D40: ='C6-FinPos'!E48 -> 5463619733 | F40: ='C6-FinPos'!F48 -> 5081993061 | J40: ='C6-FinPos'!G48 -> 5463619733
A42: Cash flows
A43: Net cash from (used) operating | B43: ='C7-CFlow'!C18 -> -2973351309 | C43: ='C7-CFlow'!D18 -> 721055591 | D43: ='C7-CFlow'!E18 -> 721055591 | E43: ='C7-CFlow'!F18 -> -12478729.08 | F43: ='C7-CFlow'!G18 -> -792479433.7 | G43: ='C7-CFlow'!H18 -> 360527795.6 | H43: =G43-F43 -> 1153007229 | I43: =IF(H43=0,"",H43/G43) -> 3.198109115 | J43: ='C7-CFlow'!K18 -> 721055591
A44: Net cash from (used) investing | B44: ='C7-CFlow'!C28 -> -226413448.9 | C44: ='C7-CFlow'!D28 -> -654909963.3 | D44: ='C7-CFlow'!E28 -> -652820801 | E44: ='C7-CFlow'!F28 -> -34503437.11 | F44: ='C7-CFlow'!G28 -> -174509266.1 | G44: ='C7-CFlow'!H28 -> -326410401.4 | H44: =G44-F44 -> -151901135.3 | I44: =IF(H44=0,"",H44/G44) -> 0.4653685502 | J44: ='C7-CFlow'!K28 -> -652820801
A45: Net cash from (used) financing | B45: ='C7-CFlow'!C37 -> 0 | C45: ='C7-CFlow'!D37 -> 43773117 | D45: ='C7-CFlow'!E37 -> 0 | E45: ='C7-CFlow'!F37 -> 0 | F45: ='C7-CFlow'!G37 -> 9927603.23 | G45: ='C7-CFlow'!H37 -> 21886558.5 | H45: =G45-F45 -> 11958955.27 | I45: =IF(H45=0,"",H45/G45) -> 0.5464063832 | J45: ='C7-CFlow'!K37 -> 43773117
A46: Cash/cash equivalents at the month/year end | B46: ='C7-CFlow'!C41 -> -3137432470 | C46: ='C7-CFlow'!D41 -> 109918744.7 | D46: ='C7-CFlow'!E41 -> 68234790 | E46: ='C7-CFlow'!F41 -> 0 | F46: ='C7-CFlow'!G41 -> -951500542.1 | G46: ='C7-CFlow'!H41 -> 56003952.72 | H46: =G46-F46 -> 1007504495 | I46: =IF(H46=0,"",H46/G46) -> 17.98988189 | J46: ='C7-CFlow'!K41 -> 117568461.5
A48: Debtors & creditors analysis | B48: ='SC3'!C3 -> 0-30 Days | C48: ='SC3'!D3 -> 31-60 Days | D48: ='SC3'!E3 -> 61-90 Days | E48: ='SC3'!F3 -> 91-120 Days | F48: ='SC3'!G3 -> 121-150 Dys | G48: ='SC3'!H3 -> 151-180 Dys | H48: ='SC3'!I3 -> 181 Dys-1 Yr | I48: ='SC3'!J3 -> Over 1Yr | J48: Total
A49: =LEFT('SC3'!A4,20) -> Debtors Age Analysis
A50: ='SC3'!A14 -> Total By Income Source | B50: ='SC3'!C14 -> 170223528 | C50: ='SC3'!D14 -> 350140 | D50: ='SC3'!E14 -> 66046438 | E50: ='SC3'!F14 -> 51082581 | F50: ='SC3'!G14 -> 42775113 | G50: ='SC3'!H14 -> 35852327 | H50: ='SC3'!I14 -> 182322483 | I50: ='SC3'!J14 -> 171586776 | J50: ='SC3'!K14 -> 720239386
A51: =LEFT('SC4'!A5,22) -> Creditors Age Analysis
A52: Total Creditors | B52: ='SC4'!C15 -> 94423050.76 | C52: ='SC4'!D15 -> 105169635.8 | D52: ='SC4'!E15 -> 109296728.7 | E52: ='SC4'!F15 -> 95645157.42 | F52: ='SC4'!G15 -> 144266870.6 | G52: ='SC4'!H15 -> 150554600.2 | H52: ='SC4'!I15 -> 721408627 | I52: ='SC4'!J15 -> 553901172.8 | J52: ='SC4'!K15 -> 1974665843

Sheet C2-FinPerf SC
A1: =muni& " - "&S71A& " - "&date -> MP326 City of Mbombela - Table C2 Monthly Budget Statement - Financial Performance (functional classification) - Mid-Year Assessment
A2: =desc -> Description | B2: =head27 -> Ref | C2: =Head1 -> 2021/22 | D2: =Head2 -> Budget Year 2022/23
C3: =Head5 -> Audited Outcome | D3: =Head6 -> Original Budget | E3: =Head7 -> Adjusted Budget | F3: =Head38 -> Monthly actual | G3: =Head39 -> YearTD actual | H3: =Head40 -> YearTD budget | I3: =Head41 -> YTD variance | J3: =Head41 -> YTD variance | K3: =Head8 -> Full Year Forecast
A4: R thousands | B4: 1 | J4: %
A5: Revenue - Functional
A6: Governance and administration | C6: =SUM(C7:C9) -> 957685315.8 | D6: 1116521003 | E6: 1116521003 | F6: 74477766.88 | G6: 585487808.2 | H6: 558260322 | I6: =G6-H6 -> 27227486.2 | J6: =IF(I6=0,"",I6/H6) -> 0.04877202468 | K6: =SUM(K7:K9) -> 1116521003
A7: Executive and council | C7: ='C2C'!C7 -> 1825853.69 | D7: ='C2C'!D7 -> 1157282 | E7: ='C2C'!E7 -> 1157282 | F7: ='C2C'!F7 -> 6030.74 | G7: ='C2C'!G7 -> 18929.95 | H7: ='C2C'!H7 -> 578616 | I7: -559686.05 | J7: =IF(I7=0,"",I7/H7) -> -0.9672840882 | K7: ='C2C'!K7 -> 1157282
A8: Finance and administration | C8: ='C2C'!C10 -> 955859462.1 | D8: ='C2C'!D10 -> 1115363563 | E8: ='C2C'!E10 -> 1115363563 | F8: ='C2C'!F10 -> 74471736.14 | G8: ='C2C'!G10 -> 585468878.2 | H8: ='C2C'!H10 -> 557681628 | I8: 27787250.25 | J8: 0.04982636841 | K8: ='C2C'!K10 -> 1115363563
A9: Internal audit | C9: ='C2C'!C24 -> 0 | D9: ='C2C'!D24 -> 158 | E9: ='C2C'!E24 -> 158 | F9: ='C2C'!F24 -> 0 | G9: ='C2C'!G24 -> 0 | H9: ='C2C'!H24 -> 78 | I9: -78 | J9: -1 | K9: ='C2C'!K24 -> 158
A10: Community and public safety | C10: =SUM(C11:C15) -> 47271154.21 | D10: 12504924 | E10: 12504924 | F10: 265183.84 | G10: 2644991.58 | H10: 6252390 | I10: -3607398.42 | J10: -0.5769631165 | K10: =SUM(K11:K15) -> 12504924
A11: Community and social services | C11: ='C2C'!C27 -> 7679389.98 | D11: ='C2C'!D27 -> 1355768 | E11: ='C2C'!E27 -> 1355768 | F11: ='C2C'!F27 -> 147951.69 | G11: ='C2C'!G27 -> 1043669.01 | H11: ='C2C'!H27 -> 677862 | I11: 365807.01 | J11: 0.5396482027 | K11: ='C2C'!K27 -> 1355768
A12: Sport and recreation | C12: ='C2C'!C49 -> 37187961.66 | D12: ='C2C'!D49 -> 266020 | E12: ='C2C'!E49 -> 266020 | F12: ='C2C'!F49 -> 14503.46 | G12: ='C2C'!G49 -> 115129.47 | H12: ='C2C'!H49 -> 132978 | I12: -17848.53 | J12: -0.1342216758 | K12: ='C2C'!K49 -> 266020
A13: Public safety | C13: ='C2C'!C55 -> 2403802.57 | D13: ='C2C'!D55 -> 10883136 | E13: ='C2C'!E55 -> 10883136 | F13: ='C2C'!F55 -> 102728.69 | G13: ='C2C'!G55 -> 1486193.1 | H13: ='C2C'!H55 -> 5441550 | I13: -3955356.9 | J13: -0.7268805579 | K13: ='C2C'!K55 -> 10883136
A14: Housing | C14: ='C2C'!C64 -> 0 | D14: ='C2C'!D64 -> 0 | E14: ='C2C'!E64 -> 0 | F14: ='C2C'!F64 -> 0 | G14: ='C2C'!G64 -> 0 | H14: ='C2C'!H64 -> 0 | I14: 0 | K14: ='C2C'!K64 -> 0
A15: Health | C15: ='C2C'!C67 -> 0 | D15: ='C2C'!D67 -> 0 | E15: ='C2C'!E67 -> 0 | F15: ='C2C'!F67 -> 0 | G15: ='C2C'!G67 -> 0 | H15: ='C2C'!H67 -> 0 | I15: 0 | K15: ='C2C'!K67 -> 0
A16: Economic and environmental services | C16: =SUM(C17:C19) -> 441532593.5 | D16: 461588097 | E16: 461588097 | F16: 18500899.42 | G16: 128340167.1 | H16: 230794002 | I16: -102453834.9 | J16: -0.4439189667 | K16: =SUM(K17:K19) -> 461588097
A17: Planning and development | C17: ='C2C'!C76 -> 391044262 | D17: ='C2C'!D76 -> 401915874 | E17: ='C2C'!E76 -> 401915874 | F17: ='C2C'!F76 -> 16252456.42 | G17: ='C2C'!G76 -> 113229650.3 | H17: ='C2C'!H76 -> 200957898 | I17: -87728247.72 | J17: -0.4365503849 | K17: ='C2C'!K76 -> 401915874
A18: Road transport | C18: ='C2C'!C87 -> 50488331.47 | D18: ='C2C'!D87 -> 59671906 | E18: ='C2C'!E87 -> 59671906 | F18: ='C2C'!F87 -> 2248443 | G18: ='C2C'!G87 -> 15110516.83 | H18: ='C2C'!H87 -> 29835948 | I18: -14725431.17 | J18: -0.493546616 | K18: ='C2C'!K87 -> 59671906
A19: Environmental protection | C19: ='C2C'!C92 -> 0 | D19: ='C2C'!D92 -> 317 | E19: ='C2C'!E92 -> 317 | F19: ='C2C'!F92 -> 0 | G19: ='C2C'!G92 -> 0 | H19: ='C2C'!H92 -> 156 | I19: -156 | J19: -1 | K19: ='C2C'!K92 -> 317
A20: Trading services | C20: =SUM(C21:C24) -> 2360977196 | D20: =SUM(D21:D24) -> 2792938589 | E20: 2792938589 | F20: 423367558.5 | G20: 1385854837 | H20: 1396469088 | I20: -10614251.4 | J20: -0.007600777913 | K20: =SUM(K21:K24) -> 2792938589
A21: Energy sources | C21: ='C2C'!C100 -> 1479334470 | D21: ='C2C'!D100 -> 1774347894 | E21: ='C2C'!E100 -> 1774347894 | F21: ='C2C'!F100 -> 103425388.3 | G21: ='C2C'!G100 -> 695707010.1 | H21: ='C2C'!H100 -> 887173854 | I21: =G21-H21 -> -191466843.9 | J21: -0.215816599 | K21: ='C2C'!K100 -> 1774347894
A22: Water management | C22: ='C2C'!C104 -> 393505252.5 | D22: ='C2C'!D104 -> 478253619 | E22: ='C2C'!E104 -> 478253619 | F22: ='C2C'!F104 -> 249906685.8 | G22: ='C2C'!G104 -> 385839527.9 | H22: ='C2C'!H104 -> 239126772 | I22: =G22-H22 -> 146712755.9 | J22: 0.6135354677 | K22: ='C2C'!K104 -> 478253619
A23: Waste water management | C23: ='C2C'!C108 -> 189426971.7 | D23: ='C2C'!D108 -> 216846049 | E23: ='C2C'!E108 -> 216846049 | F23: ='C2C'!F108 -> 57421998.93 | G23: ='C2C'!G108 -> 67702768.63 | H23: ='C2C'!H108 -> 108422994 | I23: =G23-H23 -> -40720225.37 | J23: -0.3755681693 | K23: ='C2C'!K108 -> 216846049
A24: Waste management | C24: ='C2C'!C113 -> 298710502.4 | D24: ='C2C'!D113 -> 323491027 | E24: ='C2C'!E113 -> 323491027 | F24: ='C2C'!F113 -> 12613485.37 | G24: ='C2C'!G113 -> 236605529.9 | H24: ='C2C'!H113 -> 161745468 | I24: =G24-H24 -> 74860061.93 | J24: 0.4628263336 | K24: ='C2C'!K113 -> 323491027
A25: Other | B25: 4 | C25: ='C2C'!C118 -> 0 | D25: ='C2C'!D118 -> 0 | E25: ='C2C'!E118 -> 0 | F25: ='C2C'!F118 -> 0 | G25: ='C2C'!G118 -> 0 | H25: ='C2C'!H118 -> 0 | I25: =G25-H25 -> 0 | K25: ='C2C'!K118 -> 0
A26: Total Revenue - Functional | B26: 2 | C26: =C6+C10+C16+C20+C25 -> 3807466260 | D26: =D6+D10+D16+D20+D25 -> 4383552613 | E26: 4383552613 | F26: 516611408.6 | G26: 2102327803 | H26: 2191775802 | I26: -89447998.51 | J26: -0.04081074279 | K26: =K6+K10+K16+K20+K25 -> 4383552613
A28: Expenditure - Functional
A29: Governance and administration | C29: =SUM(C30:C32) -> 960031037 | D29: 700664712 | E29: 716771802 | F29: 58298635.73 | G29: 353375161.8 | H29: 355025077.7 | I29: =G29-H29 -> -1649915.94 | J29: =IF(I29=0,"",I29/H29) -> -0.004647322242 | K29: =SUM(K30:K32) -> 716771802
A30: Executive and council | C30: ='C2C'!C129 -> 148811603 | D30: ='C2C'!D129 -> 145793601 | E30: ='C2C'!E129 -> 151266706 | F30: ='C2C'!F129 -> 11888998.36 | G30: ='C2C'!G129 -> 69435123.85 | H30: ='C2C'!H129 -> 75203998.02 | I30: -5768874.17 | J30: =IF(I30=0,"",I30/H30) -> -0.07670967398 | K30: ='C2C'!K129 -> 151266706
A31: Finance and administration | C31: ='C2C'!C132 -> 797028607.4 | D31: ='C2C'!D132 -> 537444478 | E31: ='C2C'!E132 -> 547893463 | F31: ='C2C'!F132 -> 44670279.47 | G31: ='C2C'!G132 -> 276571516.9 | H31: ='C2C'!H132 -> 271018973.7 | I31: 5552543.18 | J31: 0.02048765481 | K31: ='C2C'!K132 -> 547893463
A32: Internal audit | C32: ='C2C'!C146 -> 14190826.65 | D32: ='C2C'!D146 -> 17426633 | E32: ='C2C'!E146 -> 17611633 | F32: ='C2C'!F146 -> 1739357.9 | G32: ='C2C'!G146 -> 7368521.01 | H32: ='C2C'!H146 -> 8802105.96 | I32: -1433584.95 | J32: -0.1628684041 | K32: ='C2C'!K146 -> 17611633
A33: Community and public safety | C33: =SUM(C34:C38) -> 389750033.9 | D33: 297561677 | E33: 304783322 | F33: 26598801.06 | G33: 171384072.5 | H33: 150681842.1 | I33: 20702230.46 | J33: 0.1373903463 | K33: =SUM(K34:K38) -> 304783322
A34: Community and social services | C34: ='C2C'!C149 -> 89881312.27 | D34: ='C2C'!D149 -> 52267023 | E34: ='C2C'!E149 -> 56085508 | F34: ='C2C'!F149 -> 5800683.9 | G34: ='C2C'!G149 -> 32134822.42 | H34: ='C2C'!H149 -> 27049295.87 | I34: 5085526.55 | J34: 0.1880095724 | K34: ='C2C'!K149 -> 56085508
A35: Sport and recreation | C35: ='C2C'!C171 -> 136296915.5 | D35: ='C2C'!D171 -> 95364708 | E35: ='C2C'!E171 -> 97971868 | F35: ='C2C'!F171 -> 7475624.97 | G35: ='C2C'!G171 -> 51717265.02 | H35: ='C2C'!H171 -> 48417737.07 | I35: 3299527.95 | J35: 0.06814709133 | K35: ='C2C'!K171 -> 97971868
A36: Public safety | C36: ='C2C'!C177 -> 150839592.8 | D36: ='C2C'!D177 -> 137640188 | E36: ='C2C'!E177 -> 138324188 | F36: ='C2C'!F177 -> 12468200 | G36: ='C2C'!G177 -> 72172837.16 | H36: ='C2C'!H177 -> 69031263.97 | I36: 3141573.19 | J36: 0.04550942586 | K36: ='C2C'!K177 -> 138324188
A37: Housing | C37: ='C2C'!C186 -> 12732213.3 | D37: ='C2C'!D186 -> 12289758 | E37: ='C2C'!E186 -> 12401758 | F37: ='C2C'!F186 -> 854292.19 | G37: ='C2C'!G186 -> 15359147.94 | H37: ='C2C'!H186 -> 6183545.17 | I37: 9175602.77 | J37: 1.48387414 | K37: ='C2C'!K186 -> 12401758
A38: Health | C38: ='C2C'!C189 -> 0 | D38: ='C2C'!D189 -> 0 | E38: ='C2C'!E189 -> 0 | F38: ='C2C'!F189 -> 0 | G38: ='C2C'!G189 -> 0 | H38: ='C2C'!H189 -> 0 | I38: 0 | K38: ='C2C'!K189 -> 0
A39: Economic and environmental services | C39: =SUM(C40:C42) -> 439746280 | D39: 499572202 | E39: 489596606 | F39: 40170527.22 | G39: 226038285.4 | H39: 246023142.6 | I39: -19984857.18 | J39: -0.08123161492 | K39: =SUM(K40:K42) -> 489596606
A40: Planning and development | C40: ='C2C'!C198 -> 110054803.2 | D40: ='C2C'!D198 -> 150317309 | E40: ='C2C'!E198 -> 143043718 | F40: ='C2C'!F198 -> 7412456.95 | G40: ='C2C'!G198 -> 45145985.26 | H40: ='C2C'!H198 -> 72299435.16 | I40: -27153449.9 | J40: -0.3755693228 | K40: ='C2C'!K198 -> 143043718
A41: Road transport | C41: ='C2C'!C209 -> 315618817.9 | D41: ='C2C'!D209 -> 341398907 | E41: ='C2C'!E209 -> 338541902 | F41: ='C2C'!F209 -> 32289923.83 | G41: ='C2C'!G209 -> 178896107.1 | H41: ='C2C'!H209 -> 169728196.9 | I41: 9167910.13 | J41: 0.05401524494 | K41: ='C2C'!K209 -> 338541902
A42: Environmental protection | C42: ='C2C'!C214 -> 14072658.82 | D42: ='C2C'!D214 -> 7855986 | E42: ='C2C'!E214 -> 8010986 | F42: ='C2C'!F214 -> 468146.44 | G42: ='C2C'!G214 -> 1996193.09 | H42: ='C2C'!H214 -> 3995510.5 | I42: -1999317.41 | J42: -0.5003909788 | K42: ='C2C'!K214 -> 8010986
A43: Trading services | C43: =SUM(C44:C47) -> 2381367074 | D43: =SUM(D44:D47) -> 2203503211 | E43: 2181894098 | F43: 143408456.4 | G43: 1000548952 | H43: 1095704756 | I43: -95155803.53 | J43: -0.08684438307 | K43: =SUM(K44:K47) -> 2181894098
A44: Energy sources | C44: ='C2C'!C222 -> 1304655570 | D44: ='C2C'!D222 -> 1395444253 | E44: ='C2C'!E222 -> 1392044253 | F44: ='C2C'!F222 -> 85453245.06 | G44: ='C2C'!G222 -> 683045899.1 | H44: ='C2C'!H222 -> 696176899.6 | I44: -13131000.53 | J44: -0.0188615861 | K44: ='C2C'!K222 -> 1392044253
A45: Water management | C45: ='C2C'!C226 -> 466111438.2 | D45: ='C2C'!D226 -> 370756032 | E45: ='C2C'!E226 -> 347311539 | F45: ='C2C'!F226 -> 20322687.56 | G45: ='C2C'!G226 -> 153651326.8 | H45: ='C2C'!H226 -> 178901380.9 | I45: -25250054.11 | J45: -0.1411395149 | K45: ='C2C'!K226 -> 347311539
A46: Waste water management | C46: ='C2C'!C230 -> 182755342.1 | D46: ='C2C'!D230 -> 116582805 | E46: ='C2C'!E230 -> 159883573 | F46: ='C2C'!F230 -> 12005271.28 | G46: ='C2C'!G230 -> 56196382.65 | H46: ='C2C'!H230 -> 77633295.9 | I46: -21436913.25 | J46: -0.2761304026 | K46: ='C2C'!K230 -> 159883573
A47: Waste management | C47: ='C2C'!C235 -> 427844724.3 | D47: ='C2C'!D235 -> 320720121 | E47: ='C2C'!E235 -> 282654733 | F47: ='C2C'!F235 -> 25627252.46 | G47: ='C2C'!G235 -> 107655343.6 | H47: ='C2C'!H235 -> 142993179.2 | I47: -35337835.64 | J47: -0.2471295193 | K47: ='C2C'!K235 -> 282654733
A48: Other | C48: ='C2C'!C240 -> 29784911.91 | D48: ='C2C'!D240 -> 27651725 | E48: ='C2C'!E240 -> 35908328 | F48: ='C2C'!F240 -> 2586940.59 | G48: ='C2C'!G240 -> 15759078.67 | H48: ='C2C'!H240 -> 17046462.47 | I48: -1287383.8 | J48: -0.07552205053 | K48: ='C2C'!K240 -> 35908328
A49: Total Expenditure - Functional | B49: 3 | C49: =C29+C33+C39+C43+C48 -> 4200679337 | D49: =D29+D33+D39+D43+D48 -> 3728953527 | E49: 3728954156 | F49: 271063361 | G49: 1767105551 | H49: 1864481280 | I49: -97375729.99 | J49: -0.05222671368 | K49: =K29+K33+K39+K43+K48 -> 3728954156
A50: Surplus/ (Deficit) for the year | C50: =C26-C49 -> -393213077.6 | D50: 654599086 | E50: 654598457 | F50: 245548047.7 | G50: 335222253 | H50: 327294521.5 | I50: =I26-I49 -> 7927731.48 | J50: =IF(I50=0,"",I50/H50) -> 0.02422201094 | K50: =K26-K49 -> 654598457
A51: =head27a -> References
A52: 1. Government Finance Statistics Functions and Sub-functions are standardised to assist the compilation of national and international accounts for comparison purposes
A53: 2. Total Revenue by functional classification must reconcile to Total Operating Revenue shown in the Financial Performance Statement
A54: 3. Total Expenditure by functional classification must reconcile to total operating expenditure shown in 'Financial Performance Statement'
A55: 4. All amounts must be classified under a functional classification (modified GFS). The GFS function 'Other' is only for Abbatoirs, Air Transport, Licensing and Regulation, Markets and Tourism - and if used must be supported by footnotes. Nothing else may be placed under 'Other'. Assign associate share to relevant classification

Sheet C2C
A1: =muni& " - "&S71A& " - "&date -> MP326 City of Mbombela - Table C2 Monthly Budget Statement - Financial Performance (functional classification) - Mid-Year Assessment
A2: =desc -> Description | B2: =head27 -> Ref | C2: =Head1 -> 2021/22 | D2: =Head2 -> Budget Year 2022/23
C3: =Head5 -> Audited Outcome | D3: =Head6 -> Original Budget | E3: =Head7 -> Adjusted Budget | F3: =Head38 -> Monthly actual | G3: =Head39 -> YearTD actual | H3: =Head40 -> YearTD budget | I3: =Head41 -> YTD variance | J3: =Head41 -> YTD variance | K3: =Head8 -> Full Year Forecast
A4: R thousands | B4: 1 | J4: %
A5: Revenue - Functional
A6: Municipal governance and administration | C6: =C7+C10+C24 -> 957685315.8 | D6: 1116521003 | E6: 1116521003 | F6: 74477766.88 | G6: 585487808.2 | H6: 558260322 | I6: =G6-H6 -> 27227486.2 | J6: =IF(I6=0,"",I6/H6) -> 0.04877202468 | K6: =K7+K10+K24 -> 1116521003
A7: Executive and council | C7: =SUM(C8:C9) -> 1825853.69 | D7: =SUM(D8:D9) -> 1157282 | E7: 1157282 | F7: 6030.74 | G7: 18929.95 | H7: 578616 | I7: =G7-H7 -> -559686.05 | J7: =IF(I7=0,"",I7/H7) -> -0.9672840882 | K7: 1157282
A8: Mayor and Council | C8: 1751614.81 | D8: 799534 | E8: 799534 | F8: 0 | G8: -17349.49 | H8: 399762 | I8: -417111.49 | J8: -1.043399548 | K8: 799534
A9: Municipal Manager, Town Secretary and Chief Executive | C9: 74238.88 | D9: 357748 | E9: 357748 | F9: 6030.74 | G9: 36279.44 | H9: 178854 | I9: -142574.56 | J9: -0.7971561162 | K9: 357748
A10: Finance and administration | C10: =SUM(C11:C23) -> 955859462.1 | D10: 1115363563 | E10: 1115363563 | F10: 74471736.14 | G10: 585468878.2 | H10: 557681628 | I10: 27787250.25 | J10: 0.04982636841 | K10: =SUM(K11:K23) -> 1115363563
A11: Administrative and Corporate Support | C11: 336722.2 | D11: 780520 | E11: 780520 | F11: 27261.94 | G11: 163096.64 | H11: 390246 | I11: -227149.36 | J11: -0.5820671064 | K11: 780520
A12: Asset Management | C12: 0 | D12: 0 | E12: 0 | F12: 0 | G12: 0 | H12: 0 | I12: 0 | K12: 0
A13: Finance | C13: 203909653.9 | D13: 290857189 | E13: 290857189 | F13: 5909321.6 | G13: 176698187.9 | H13: 145428510 | I13: 31269677.87 | J13: 0.2150175221 | K13: 290857189
A14: Fleet Management | C14: 0 | D14: 0 | E14: 0 | F14: 0 | G14: 0 | H14: 0 | I14: 0 | K14: 0
A15: Human Resources | C15: 172093.13 | D15: 25443 | E15: 25443 | F15: -32405.1 | G15: 985613.62 | H15: 12720 | I15: 972893.62 | J15: 76.48534748 | K15: 25443
A16: Information Technology | C16: 0 | D16: 0 | E16: 0 | F16: 0 | G16: 0 | H16: 0 | I16: 0 | K16: 0
A17: Legal Services | C17: 0 | D17: 0 | E17: 0 | F17: 0 | G17: 0 | H17: 0 | I17: 0 | K17: 0
A18: Marketing, Customer Relations, Publicity and Media Co-ordination | C18: 0 | D18: 0 | E18: 0 | F18: 0 | G18: 0 | H18: 0 | I18: 0 | K18: 0
A19: Property Services | C19: 7394955.31 | D19: 4074399 | E19: 4074399 | F19: 391474.11 | G19: 2199769.81 | H19: 2037174 | I19: 162595.81 | J19: 0.07981439484 | K19: 4074399
A20: Risk Management | I20: 0
A21: Security Services | C21: 0 | D21: 17593 | E21: 17593 | F21: 0 | G21: 0 | H21: 8796 | I21: -8796 | J21: -1 | K21: 17593
A22: Supply Chain Management | C22: 0 | D22: 0 | E22: 0 | F22: 0 | G22: 0 | H22: 0 | I22: 0 | K22: 0
A23: Valuation Service | C23: 744046037.5 | D23: 819608419 | E23: 819608419 | F23: 68176083.59 | G23: 405422210.3 | H23: 409804182 | I23: -4381971.69 | J23: -0.01069284278 | K23: 819608419
A24: Internal audit | C24: =SUM(C25:C25) -> 0 | D24: 158 | E24: 158 | F24: 0 | G24: 0 | H24: 78 | I24: -78 | J24: -1 | K24: =SUM(K25:K25) -> 158
A25: Governance Function | C25: 0 | D25: 158 | E25: 158 | F25: 0 | G25: 0 | H25: 78 | I25: -78 | J25: -1 | K25: 158
A26: Community and public safety | C26: =C27+C49+C55+C64+C67 -> 47271154.21 | D26: =D27+D49+D55+D64+D67 -> 12504924 | E26: 12504924 | F26: 265183.84 | G26: 2644991.58 | H26: 6252390 | I26: -3607398.42 | J26: -0.5769631165 | K26: 12504924
A27: Community and social services | C27: =SUM(C28:C48) -> 7679389.98 | D27: 1355768 | E27: 1355768 | F27: 147951.69 | G27: 1043669.01 | H27: 677862 | I27: 365807.01 | J27: 0.5396482027 | K27: =SUM(K28:K48) -> 1355768
A28: Aged Care | I28: 0
A29: Agricultural | I29: 0
A30: Animal Care and Diseases | I30: 0
A31: Cemeteries, Funeral Parlours and Crematoriums | C31: 1551230.74 | D31: 712872 | E31: 712872 | F31: 113434.91 | G31: 700780.14 | H31: 356424 | I31: 344356.14 | J31: 0.9661418423 | K31: 712872
A32: Child Care Facilities | I32: 0
A33: Community Halls and Facilities | C33: 0 | D33: 0 | E33: 0 | F33: 0 | G33: 0 | H33: 0 | I33: 0 | K33: 0
A34: Consumer Protection | I34: 0
A35: Cultural Matters | C35: 0 | D35: 0 | E35: 0 | F35: 0 | G35: 0 | H35: 0 | I35: 0 | K35: 0
A36: Disaster Management | C36: 0 | D36: 0 | E36: 0 | F36: 0 | G36: 0 | H36: 0 | I36: 0 | K36: 0
A37: Education | I37: 0
A38: Indigenous and Customary Law | I38: 0
A39: Industrial Promotion | I39: 0
A40: Language Policy | I40: 0
A41: Libraries and Archives | C41: 5902229.47 | D41: 154195 | E41: 154195 | F41: 17047.05 | G41: 157153.67 | H41: 77088 | I41: 80065.67 | J41: 1.038626894 | K41: 154195
A42: Literacy Programmes | I42: 0
A43: Media Services | I43: 0
A44: Museums and Art Galleries | C44: 225929.77 | D44: 488701 | E44: 488701 | F44: 17469.73 | G44: 185735.2 | H44: 244350 | I44: -58614.8 | J44: -0.2398804993 | K44: 488701
A45: Population Development | I45: 0
A46: Provincial Cultural Matters | I46: 0
A47: Theatres | I47: 0
A48: Zoo's | I48: 0
A49: Sport and recreation | C49: =SUM(C50:C54) -> 37187961.66 | D49: =SUM(D50:D54) -> 266020 | E49: 266020 | F49: 14503.46 | G49: 115129.47 | H49: 132978 | I49: -17848.53 | J49: -0.1342216758 | K49: 266020
A50: Beaches and Jetties | I50: 0
A51: Casinos, Racing, Gambling, Wagering | I51: 0
A52: Community Parks (including Nurseries) | C52: 0 | D52: 64684 | E52: 64684 | F52: 0 | G52: 0 | H52: 32340 | I52: -32340 | J52: -1 | K52: 64684
A53: Recreational Facilities | C53: 195345.77 | D53: 126089 | E53: 126089 | F53: 14503.46 | G53: 115129.47 | H53: 63024 | I53: 52105.47 | J53: 0.8267559977 | K53: 126089
A54: Sports Grounds and Stadiums | C54: 36992615.89 | D54: 75247 | E54: 75247 | F54: 0 | G54: 0 | H54: 37614 | I54: -37614 | J54: -1 | K54: 75247
A55: Public safety | C55: =SUM(C56:C63) -> 2403802.57 | D55: =SUM(D56:D63) -> 10883136 | E55: 10883136 | F55: 102728.69 | G55: 1486193.1 | H55: 5441550 | I55: -3955356.9 | J55: -0.7268805579 | K55: 10883136
A56: Civil Defence | I56: 0
A57: Cleansing | I57: 0
A58: Control of Public Nuisances | I58: =G58-H58 -> 0 | J58: =IF(I58=0,"",I58/H58) -> 
A59: Fencing and Fences | I59: 0
A60: Fire Fighting and Protection | C60: 141316.38 | D60: 124961 | E60: 124961 | F60: 5375.65 | G60: 77422.36 | H60: 62478 | I60: 14944.36 | J60: 0.2391939563 | K60: 124961
A61: Licensing and Control of Animals | I61: =G61-H61 -> 0 | J61: =IF(I61=0,"",I61/H61) -> 
A62: Police Forces, Traffic and Street Parking Control | C62: 2262486.19 | D62: 10758175 | E62: 10758175 | F62: 97353.04 | G62: 1408770.74 | H62: 5379072 | I62: =G62-H62 -> -3970301.26 | J62: =IF(I62=0,"",I62/H62) -> -0.7381015275 | K62: 10758175
A63: Pounds | I63: 0
A64: Housing | C64: =SUM(C65:C66) -> 0 | D64: 0 | E64: 0 | F64: 0 | G64: 0 | H64: 0 | I64: =G64-H64 -> 0 | J64: =IF(I64=0,"",I64/H64) ->  | K64: =SUM(K65:K66) -> 0
A65: Housing | C65: 0 | D65: 0 | E65: 0 | F65: 0 | G65: 0 | H65: 0 | I65: =G65-H65 -> 0 | J65: =IF(I65=0,"",I65/H65) ->  | K65: 0
A66: Informal Settlements | I66: =G66-H66 -> 0 | J66: =IF(I66=0,"",I66/H66) -> 
A67: Health | C67: =SUM(C68:C74) -> 0 | D67: 0 | E67: 0 | F67: 0 | G67: 0 | H67: 0 | I67: 0 | K67: =SUM(K68:K74) -> 0
A68: Ambulance | I68: 0
A69: Health Services | I69: 0
A70: Laboratory Services | I70: =G70-H70 -> 0 | J70: =IF(I70=0,"",I70/H70) -> 
A71: Food Control | I71: =G71-H71 -> 0 | J71: =IF(I71=0,"",I71/H71) -> 
A72: Health Surveillance and Prevention of Communicable Diseases including immunizations | I72: 0
A73: Vector Control | I73: 0
A74: Chemical Safety | I74: 0
A75: Economic and environmental services | C75: =C76+C87+C92 -> 441532593.5 | D75: 461588097 | E75: 461588097 | F75: 18500899.42 | G75: 128340167.1 | H75: 230794002 | I75: -102453834.9 | J75: -0.4439189667 | K75: =K76+K87+K92 -> 461588097
A76: Planning and development | C76: =SUM(C77:C86) -> 391044262 | D76: 401915874 | E76: 401915874 | F76: 16252456.42 | G76: 113229650.3 | H76: 200957898 | I76: -87728247.72 | J76: -0.4365503849 | K76: =SUM(K77:K86) -> 401915874
A77: Billboards | I77: =G77-H77 -> 0 | J77: =IF(I77=0,"",I77/H77) -> 
A78: Corporate Wide Strategic Planning (IDPs, LEDs) | C78: 7036000.14 | D78: 8555000 | E78: 8555000 | F78: 928308 | G78: 8582876.46 | H78: 4277496 | I78: 4305380.46 | J78: 1.006518875 | K78: 8555000
A79: Central City Improvement District | I79: 0
A80: Development Facilitation | I80: =G80-H80 -> 0 | J80: =IF(I80=0,"",I80/H80) -> 
A81: Economic Development/Planning | C81: 17913.05 | D81: 53485 | E81: 53485 | F81: 0 | G81: 0 | H81: 26742 | I81: =G81-H81 -> -26742 | J81: =IF(I81=0,"",I81/H81) -> -1 | K81: 53485
A82: Regional Planning and Development | I82: =G82-H82 -> 0 | J82: =IF(I82=0,"",I82/H82) -> 
A83: Town Planning, Building Regulations and Enforcement, and City Engineer | C83: 15120300.05 | D83: 7945389 | E83: 7945389 | F83: 334525.42 | G83: 3909996.27 | H83: 3972666 | I83: =G83-H83 -> -62669.73 | J83: =IF(I83=0,"",I83/H83) -> -0.01577523255 | K83: 7945389
A84: Project Management Unit | C84: 368870048.7 | D84: 385362000 | E84: 385362000 | F84: 14989623 | G84: 100736777.5 | H84: 192680994 | I84: -91944216.45 | J84: -0.4771836316 | K84: 385362000
A85: Provincial Planning | I85: 0
A86: Support to Local Municipalities | I86: 0
A87: Road transport | C87: =SUM(C88:C91) -> 50488331.47 | D87: 59671906 | E87: 59671906 | F87: 2248443 | G87: 15110516.83 | H87: 29835948 | I87: -14725431.17 | J87: -0.493546616 | K87: =SUM(K88:K91) -> 59671906
A88: Public Transport | C88: 0 | D88: 0 | E88: 0 | F88: 0 | G88: 0 | H88: 0 | I88: 0 | K88: 0
A89: Road and Traffic Regulation | C89: 0 | D89: 59671906 | E89: 59671906 | F89: 0 | G89: 0 | H89: 29835948 | I89: -29835948 | J89: -1 | K89: 59671906
A90: Roads | C90: 50488331.47 | D90: 0 | E90: 0 | F90: 2248443 | G90: 15110516.83 | H90: 0 | I90: 15110516.83 | K90: 0
A91: Taxi Ranks | I91: 0
A92: Environmental protection | C92: =SUM(C93:C98) -> 0 | D92: =SUM(D93:D98) -> 317 | E92: 317 | F92: 0 | G92: 0 | H92: 156 | I92: -156 | J92: -1 | K92: 317
A93: Biodiversity and Landscape | I93: 0
A94: Coastal Protection | I94: 0
A95: Indigenous Forests | I95: =G95-H95 -> 0 | J95: =IF(I95=0,"",I95/H95) -> 
A96: Nature Conservation | I96: =G96-H96 -> 0 | J96: =IF(I96=0,"",I96/H96) -> 
A97: Pollution Control | C97: 0 | D97: 317 | E97: 317 | F97: 0 | G97: 0 | H97: 156 | I97: -156 | J97: -1 | K97: 317
A98: Soil Conservation | I98: 0
A99: Trading services | C99: =C100+C104+C108+C113 -> 2360977196 | D99: =D100+D104+D108+D113 -> 2792938589 | E99: 2792938589 | F99: 423367558.5 | G99: 1385854837 | H99: 1396469088 | I99: -10614251.4 | J99: -0.007600777913 | K99: =K100+K104+K108+K113 -> 2792938589
A100: Energy sources | C100: =SUM(C101:C103) -> 1479334470 | D100: =SUM(D101:D103) -> 1774347894 | E100: 1774347894 | F100: 103425388.3 | G100: 695707010.1 | H100: 887173854 | I100: -191466843.9 | J100: -0.215816599 | K100: 1774347894
A101: Electricity | C101: 1479334470 | D101: 1774347894 | E101: 1774347894 | F101: 103425388.3 | G101: 695707010.1 | H101: 887173854 | I101: -191466843.9 | J101: -0.215816599 | K101: 1774347894
A102: Street Lighting and Signal Systems | C102: 0 | D102: 0 | E102: 0 | F102: 0 | G102: 0 | H102: 0 | I102: =G102-H102 -> 0 | J102: =IF(I102=0,"",I102/H102) ->  | K102: 0
A103: Nonelectric Energy | C103: -0.1 | D103: 0 | E103: 0 | F103: 0 | G103: 0 | H103: 0 | I103: 0 | K103: 0
A104: Water management | C104: =SUM(C105:C107) -> 393505252.5 | D104: =SUM(D105:D107) -> 478253619 | E104: 478253619 | F104: 249906685.8 | G104: 385839527.9 | H104: 239126772 | I104: 146712755.9 | J104: 0.6135354677 | K104: 478253619
A105: Water Treatment | C105: 52656265.94 | D105: 71656111 | E105: 71656111 | F105: 4714866.13 | G105: 29869081.23 | H105: 35828052 | I105: -5958970.77 | J105: -0.1663213721 | K105: 71656111
A106: Water Distribution | C106: 340848986.6 | D106: 406597508 | E106: 406597508 | F106: 245191819.7 | G106: 355970446.7 | H106: 203298720 | I106: =G106-H106 -> 152671726.7 | J106: =IF(I106=0,"",I106/H106) -> 0.750972395 | K106: 406597508
A107: Water Storage | C107: 0 | D107: 0 | E107: 0 | F107: 0 | G107: 0 | H107: 0 | I107: 0 | K107: 0
A108: Waste water management | C108: =SUM(C109:C112) -> 189426971.7 | D108: =SUM(D109:D112) -> 216846049 | E108: 216846049 | F108: 57421998.93 | G108: 67702768.63 | H108: 108422994 | I108: -40720225.37 | J108: -0.3755681693 | K108: 216846049
A109: Public Toilets | I109: 0
A110: Sewerage | C110: 178862245.6 | D110: 203884740 | E110: 203884740 | F110: 56500566.54 | G110: 62362441.23 | H110: 101942346 | I110: -39579904.77 | J110: -0.388257739 | K110: 203884740
A111: Storm Water Management | C111: 0 | D111: 0 | E111: 0 | F111: 0 | G111: 0 | H111: 0 | I111: =G111-H111 -> 0 | J111: =IF(I111=0,"",I111/H111) ->  | K111: 0
A112: Waste Water Treatment | C112: 10564726.14 | D112: 12961309 | E112: 12961309 | F112: 921432.39 | G112: 5340327.4 | H112: 6480648 | I112: -1140320.6 | J112: -0.1759578055 | K112: 12961309
A113: Waste management | C113: =SUM(C114:C117) -> 298710502.4 | D113: 323491027 | E113: 323491027 | F113: 12613485.37 | G113: 236605529.9 | H113: 161745468 | I113: 74860061.93 | J113: 0.4628263336 | K113: =SUM(K114:K117) -> 323491027
A114: Recycling | I114: =G114-H114 -> 0 | J114: =IF(I114=0,"",I114/H114) -> 
A115: Solid Waste Disposal (Landfill Sites) | C115: 16445717 | D115: 0 | E115: 0 | F115: 0 | G115: 0 | H115: 0 | I115: =G115-H115 -> 0 | J115: =IF(I115=0,"",I115/H115) ->  | K115: 0
A116: Solid Waste Removal | C116: 282264785.4 | D116: 323491027 | E116: 323491027 | F116: 12613485.37 | G116: 236605529.9 | H116: 161745468 | I116: 74860061.93 | J116: 0.4628263336 | K116: 323491027
A117: Street Cleaning | I117: =G117-H117 -> 0 | J117: =IF(I117=0,"",I117/H117) -> 
A118: Other | C118: =SUM(C119:C124) -> 0 | D118: =SUM(D119:D124) -> 0 | E118: 0 | F118: 0 | G118: 0 | H118: 0 | I118: 0 | K118: 0
A119: Abattoirs | I119: 0
A120: Air Transport | I120: 0
A121: Forestry | I121: =G121-H121 -> 0 | J121: =IF(I121=0,"",I121/H121) -> 
A122: Licensing and Regulation | C122: 0 | D122: 0 | E122: 0 | F122: 0 | G122: 0 | H122: 0 | I122: 0 | K122: 0
A123: Markets | I123: 0
A124: Tourism | C124: 0 | D124: 0 | E124: 0 | F124: 0 | G124: 0 | H124: 0 | I124: =G124-H124 -> 0 | J124: =IF(I124=0,"",I124/H124) ->  | K124: 0
A125: ="Total "&A5 -> Total Revenue - Functional | B125: 2 | C125: =C6+C26+C75+C99+C118 -> 3807466260 | D125: 4383552613 | E125: 4383552613 | F125: 516611408.6 | G125: 2102327803 | H125: 2191775802 | I125: =G125-H125 -> -89447998.51 | J125: =IF(I125=0,"",I125/H125) -> -0.04081074279 | K125: =K6+K26+K75+K99+K118 -> 4383552613
A127: Expenditure - Functional
A128: =A6 -> Municipal governance and administration | C128: =C129+C132+C146 -> 960031037 | D128: 700664712 | E128: 716771802 | F128: 58298635.73 | G128: 353375161.8 | H128: 355025077.7 | I128: =G128-H128 -> -1649915.94 | J128: =IF(I128=0,"",I128/H128) -> -0.004647322242 | K128: =K129+K132+K146 -> 716771802
A129: Executive and council | C129: =SUM(C130:C131) -> 148811603 | D129: 145793601 | E129: 151266706 | F129: 11888998.36 | G129: 69435123.85 | H129: 75203998.02 | I129: -5768874.17 | J129: -0.07670967398 | K129: 151266706
A130: Mayor and Council | C130: 94748600.58 | D130: 99923221 | E130: 104424365 | F130: 8856343.34 | G130: 50969741.33 | H130: 51872749.75 | I130: -903008.42 | J130: -0.01740814636 | K130: 104424365
A131: Municipal Manager, Town Secretary and Chief Executive | C131: 54063002.4 | D131: 45870380 | E131: 46842341 | F131: 3032655.02 | G131: 18465382.52 | H131: 23331248.27 | I131: -4865865.75 | J131: -0.2085557401 | K131: 46842341
A132: Finance and administration | C132: =SUM(C133:C145) -> 797028607.4 | D132: 537444478 | E132: 547893463 | F132: 44670279.47 | G132: 276571516.9 | H132: 271018973.7 | I132: 5552543.18 | J132: 0.02048765481 | K132: =SUM(K133:K145) -> 547893463
A133: Administrative and Corporate Support | C133: 77505438.19 | D133: 38235271 | E133: 38345469 | F133: 2497881.57 | G133: 17655488.39 | H133: 19083578.32 | I133: -1428089.93 | J133: -0.07483344612 | K133: 38345469
A134: Asset Management | C134: 49544179.12 | D134: 53223297 | E134: 56713297 | F134: 5329614.55 | G134: 20004622.9 | H134: 27512984.37 | I134: -7508361.47 | J134: -0.2729024728 | K134: 56713297
A135: Finance | C135: 315085068.2 | D135: 214784737 | E135: 214327587 | F135: 14222427.02 | G135: 101159935.8 | H135: 106768001.6 | I135: -5608065.78 | J135: -0.05252571645 | K135: 214327587
A136: Fleet Management | C136: 0 | D136: 0 | E136: 0 | F136: 0 | G136: 0 | H136: 0 | I136: 0 | K136: 0
A137: Human Resources | C137: 105277611.6 | D137: 56927167 | E137: 60643669 | F137: 5018972.6 | G137: 29855074.42 | H137: 29969392.79 | I137: -114318.37 | J137: -0.003814504044 | K137: 60643669
A138: Information Technology | C138: 39171364.4 | D138: 27162181 | E138: 27330016 | F138: 1569538.74 | G138: 13316492.54 | H138: 13663526.25 | I138: -347033.71 | J138: -0.02539854673 | K138: 27330016
A139: Legal Services | C139: 23013221.11 | D139: 8314144 | E139: 21988214 | F139: 1110104.75 | G139: 7780904.4 | H139: 9760581.46 | I139: -1979677.06 | J139: -0.202823681 | K139: 21988214
A140: Marketing, Customer Relations, Publicity and Media Co-ordination | C140: 15801744.72 | D140: 15860769 | E140: 15860769 | F140: 1323192.72 | G140: 7825243.65 | H140: 7930428 | I140: -105184.35 | J140: -0.01326338881 | K140: 15860769
A141: Property Services | C141: 13372932.06 | D141: 13836198 | E141: 13836198 | F141: 735030.83 | G141: 4450231.67 | H141: 6918138 | I141: -2467906.33 | J141: -0.3567298499 | K141: 13836198
A142: Risk Management | C142: 35620801.98 | D142: 14732282 | E142: 4399812 | F142: 3081754.78 | G142: 18617926.01 | H142: 2196625.62 | I142: 16421300.39 | J142: 7.475693737 | K142: 4399812
A143: Security Services | C143: 84995613.97 | D143: 53946711 | E143: 53946711 | F143: 6956905.66 | G143: 36207258.22 | H143: 26973414 | I143: 9233844.22 | J143: 0.3423313126 | K143: 53946711
A144: Supply Chain Management | C144: 26394259.36 | D144: 25349666 | E144: 25349666 | F144: 1981300.57 | G144: 12033036.67 | H144: 12674886 | I144: -641849.33 | J144: -0.05063945585 | K144: 25349666
A145: Valuation Service | C145: 11246372.7 | D145: 15072055 | E145: 15152055 | F145: 843555.68 | G145: 7665302.2 | H145: 7567417.3 | I145: 97884.9 | J145: 0.01293504721 | K145: 15152055
A146: Internal audit | C146: =SUM(C147:C147) -> 14190826.65 | D146: 17426633 | E146: 17611633 | F146: 1739357.9 | G146: 7368521.01 | H146: 8802105.96 | I146: -1433584.95 | J146: -0.1628684041 | K146: =SUM(K147:K147) -> 17611633
A147: Governance Function | C147: 14190826.65 | D147: 17426633 | E147: 17611633 | F147: 1739357.9 | G147: 7368521.01 | H147: 8802105.96 | I147: -1433584.95 | J147: -0.1628684041 | K147: 17611633
A148: Community and public safety | C148: =C149+C171+C177+C186+C189 -> 389750033.9 | D148: 297561677 | E148: 304783322 | F148: 26598801.06 | G148: 171384072.5 | H148: 150681842.1 | I148: 20702230.46 | J148: 0.1373903463 | K148: =K149+K171+K177+K186+K189 -> 304783322
A149: Community and social services | C149: =SUM(C150:C170) -> 89881312.27 | D149: 52267023 | E149: 56085508 | F149: 5800683.9 | G149: 32134822.42 | H149: 27049295.87 | I149: 5085526.55 | J149: 0.1880095724 | K149: =SUM(K150:K170) -> 56085508
A150: Aged Care | I150: 0
A151: Agricultural | I151: 0
A152: Animal Care and Diseases | I152: 0
A153: Cemeteries, Funeral Parlours and Crematoriums | C153: 22311521.93 | D153: 12473300 | E153: 15964290 | F153: 1294413.36 | G153: 5934223.57 | H153: 7001512.21 | I153: -1067288.64 | J153: -0.1524368748 | K153: 15964290
A154: Child Care Facilities | I154: 0
A155: Community Halls and Facilities | C155: 10341929.77 | D155: 12131752 | E155: 12278247 | F155: 966441.1 | G155: 5502127.97 | H155: 6129107.92 | I155: -626979.95 | J155: -0.1022954659 | K155: 12278247
A156: Consumer Protection | I156: 0
A157: Cultural Matters | C157: 0 | D157: 0 | E157: 0 | F157: 0 | G157: 0 | H157: 0 | I157: =G157-H157 -> 0 | J157: =IF(I157=0,"",I157/H157) ->  | K157: 0
A158: Disaster Management | C158: 6623441.83 | D158: 6137759 | E158: 6318759 | F158: 665182.21 | G158: 3615709.37 | H158: 3156439.74 | I158: =G158-H158 -> 459269.63 | J158: =IF(I158=0,"",I158/H158) -> 0.1455024229 | K158: 6318759
A159: Education | I159: =G159-H159 -> 0 | J159: =IF(I159=0,"",I159/H159) -> 
A160: Indigenous and Customary Law | I160: 0
A161: Industrial Promotion | I161: 0
A162: Language Policy | I162: 0
A163: Libraries and Archives | C163: 19241513.09 | D163: 18808210 | E163: 18808210 | F163: 2753275.8 | G163: 16035448.44 | H163: 9404172 | I163: 6631276.44 | J163: 0.7051419774 | K163: 18808210
A164: Literacy Programmes | I164: 0
A165: Media Services | I165: 0
A166: Museums and Art Galleries | C166: 31362905.65 | D166: 2716002 | E166: 2716002 | F166: 121371.43 | G166: 1047313.07 | H166: 1358064 | I166: -310750.93 | J166: -0.2288190615 | K166: 2716002
A167: Population Development | I167: 0
A168: Provincial Cultural Matters | I168: 0
A169: Theatres | I169: 0
A170: Zoo's | I170: 0
A171: Sport and recreation | C171: =SUM(C172:C176) -> 136296915.5 | D171: 95364708 | E171: 97971868 | F171: 7475624.97 | G171: 51717265.02 | H171: 48417737.07 | I171: 3299527.95 | J171: 0.06814709133 | K171: 97971868
A172: Beaches and Jetties | I172: 0
A173: Casinos, Racing, Gambling, Wagering | I173: 0
A174: Community Parks (including Nurseries) | C174: 70165364.19 | D174: 59090321 | E174: 60279331 | F174: 4531383.09 | G174: 25751698.17 | H174: 29754691.51 | I174: -4002993.34 | J174: -0.1345331824 | K174: 60279331
A175: Recreational Facilities | C175: 21467313.75 | D175: 17093082 | E175: 17093082 | F175: 1407817.51 | G175: 8553328.87 | H175: 8546592 | I175: 6736.87 | J175: 0.0007882522063 | K175: 17093082
A176: Sports Grounds and Stadiums | C176: 44664237.58 | D176: 19181305 | E176: 20599455 | F176: 1536424.37 | G176: 17412237.98 | H176: 10116453.56 | I176: 7295784.42 | J176: 0.7211800437 | K176: 20599455
A177: Public safety | C177: =SUM(C178:C185) -> 150839592.8 | D177: 137640188 | E177: 138324188 | F177: 12468200 | G177: 72172837.16 | H177: 69031263.97 | I177: 3141573.19 | J177: 0.04550942586 | K177: 138324188
A178: Civil Defence | I178: 0
A179: Cleansing | I179: 0
A180: Control of Public Nuisances | I180: =G180-H180 -> 0 | J180: =IF(I180=0,"",I180/H180) -> 
A181: Fencing and Fences | I181: 0
A182: Fire Fighting and Protection | C182: 55409555.05 | D182: 51443199 | E182: 51443199 | F182: 4364598.44 | G182: 26411034.62 | H182: 25721670 | I182: 689364.62 | J182: 0.02680092778 | K182: 51443199
A183: Licensing and Control of Animals | I183: =G183-H183 -> 0 | J183: =IF(I183=0,"",I183/H183) -> 
A184: Police Forces, Traffic and Street Parking Control | C184: 95430037.78 | D184: 86196989 | E184: 86880989 | F184: 8103601.56 | G184: 45761802.54 | H184: 43309593.97 | I184: =G184-H184 -> 2452208.57 | J184: =IF(I184=0,"",I184/H184) -> 0.056620447 | K184: 86880989
A185: Pounds | I185: 0
A186: Housing | C186: =SUM(C187:C188) -> 12732213.3 | D186: 12289758 | E186: 12401758 | F186: 854292.19 | G186: 15359147.94 | H186: 6183545.17 | I186: =G186-H186 -> 9175602.77 | J186: =IF(I186=0,"",I186/H186) -> 1.48387414 | K186: =SUM(K187:K188) -> 12401758
A187: Housing | C187: 12732213.3 | D187: 12289758 | E187: 12401758 | F187: 854292.19 | G187: 15359147.94 | H187: 6183545.17 | I187: =G187-H187 -> 9175602.77 | J187: =IF(I187=0,"",I187/H187) -> 1.48387414 | K187: 12401758
A188: Informal Settlements | I188: =G188-H188 -> 0 | J188: =IF(I188=0,"",I188/H188) -> 
A189: Health | C189: =SUM(C190:C196) -> 0 | D189: 0 | E189: 0 | F189: 0 | G189: 0 | H189: 0 | I189: 0 | K189: 0
A190: Ambulance | I190: 0
A191: Health Services | I191: 0
A192: =A70 -> Laboratory Services | I192: 0
A193: Food Control | I193: =G193-H193 -> 0 | J193: =IF(I193=0,"",I193/H193) -> 
A194: Health Surveillance and Prevention of Communicable Diseases including immunizations | I194: =G194-H194 -> 0 | J194: =IF(I194=0,"",I194/H194) -> 
A195: Vector Control | I195: 0
A196: Chemical Safety | I196: 0
A197: Economic and environmental services | C197: =C198+C209+C214 -> 439746280 | D197: 499572202 | E197: 489596606 | F197: 40170527.22 | G197: 226038285.4 | H197: 246023142.6 | I197: -19984857.18 | J197: -0.08123161492 | K197: =K198+K209+K214 -> 489596606
A198: Planning and development | C198: =SUM(C199:C208) -> 110054803.2 | D198: 150317309 | E198: 143043718 | F198: 7412456.95 | G198: 45145985.26 | H198: 72299435.16 | I198: -27153449.9 | J198: -0.3755693228 | K198: 143043718
A199: Billboards | I199: 0
A200: Corporate Wide Strategic Planning (IDPs, LEDs) | C200: 33180494.06 | D200: 37157652 | E200: 37216210 | F200: 2905223.16 | G200: 16611623.39 | H200: 18616228.31 | I200: -2004604.92 | J200: -0.1076805079 | K200: 37216210
A201: Central City Improvement District | I201: 0
... 54 more rows

Sheet C3-FinPerf V
A1: =muni& " - "&S71C& " - "&date -> MP326 City of Mbombela - Table C3 Monthly Budget Statement - Financial Performance (revenue and expenditure by municipal vote) - Mid-Year Assessment
A2: =Vdesc -> Vote Description | B2: =head27 -> Ref | C2: =Head1 -> 2021/22 | D2: =Head2 -> Budget Year 2022/23
C3: =Head5 -> Audited Outcome | D3: =Head6 -> Original Budget | E3: =Head7 -> Adjusted Budget | F3: =Head38 -> Monthly actual | G3: =Head39 -> YearTD actual | H3: =Head40 -> YearTD budget | I3: =Head41 -> YTD variance | J3: =Head41 -> YTD variance | K3: =Head8 -> Full Year Forecast
A4: R thousands | J4: %
A5: Revenue by Vote | B5: 1
A6: ='Org structure'!A2 -> Vote 01 - Council | C6: ='C3C'!C6 -> -149776.77 | D6: ='C3C'!D6 -> 0 | E6: ='C3C'!E6 -> 0 | F6: ='C3C'!F6 -> 0 | G6: ='C3C'!G6 -> -17349.49 | H6: ='C3C'!H6 -> 0 | I6: =G6-H6 -> -17349.49 | J6: =IF(I6=0,"",I6/H6) ->  | K6: ='C3C'!K6 -> 0
A7: ='Org structure'!A3 -> Vote 02 - Office Of Council | C7: ='C3C'!C24 -> 1901391.58 | D7: ='C3C'!D24 -> 0 | E7: ='C3C'!E24 -> 0 | F7: ='C3C'!F24 -> 0 | G7: ='C3C'!G24 -> 0 | H7: ='C3C'!H24 -> 0 | I7: 0 | K7: ='C3C'!K24 -> 0
A8: ='Org structure'!A4 -> Vote 03 - Municipal Manager | C8: ='C3C'!C28 -> 11755695.58 | D8: ='C3C'!D28 -> 7770952 | E8: ='C3C'!E28 -> 7770952 | F8: ='C3C'!F28 -> 762607.24 | G8: ='C3C'!G28 -> 4575643.44 | H8: ='C3C'!H28 -> 3885468 | I8: 690175.44 | J8: 0.177629938 | K8: ='C3C'!K28 -> 7770952
A9: ='Org structure'!A5 -> Vote 04 - City Planning And Development Department | C9: ='C3C'!C51 -> 22533168.41 | D9: ='C3C'!D51 -> 12019788 | E9: ='C3C'!E51 -> 12019788 | F9: ='C3C'!F51 -> 725999.53 | G9: ='C3C'!G51 -> 6109766.08 | H9: ='C3C'!H51 -> 6009840 | I9: 99926.08 | J9: 0.01662707826 | K9: ='C3C'!K51 -> 12019788
A10: ='Org structure'!A6 -> Vote 05 - Corporate Services Department | C10: ='C3C'!C61 -> 508815.33 | D10: ='C3C'!D61 -> 1605497 | E10: ='C3C'!E61 -> 1605497 | F10: ='C3C'!F61 -> -5143.16 | G10: ='C3C'!G61 -> 1148710.26 | H10: ='C3C'!H61 -> 802728 | I10: 345982.26 | J10: 0.4310080874 | K10: ='C3C'!K61 -> 1605497
A11: ='Org structure'!A7 -> Vote 06 - Strategic Management Services | C11: ='C3C'!C74 -> 0 | D11: ='C3C'!D74 -> 357748 | E11: ='C3C'!E74 -> 357748 | F11: ='C3C'!F74 -> 6030.74 | G11: ='C3C'!G74 -> 36279.44 | H11: ='C3C'!H74 -> 178854 | I11: -142574.56 | J11: -0.7971561162 | K11: ='C3C'!K74 -> 357748
A12: ='Org structure'!A8 -> Vote 07 - Financial Management | C12: ='C3C'!C83 -> 947955691.4 | D12: ='C3C'!D83 -> 1110465608 | E12: ='C3C'!E83 -> 1110465608 | F12: ='C3C'!F83 -> 74085405.19 | G12: ='C3C'!G83 -> 582120398.2 | H12: ='C3C'!H83 -> 555232692 | I12: 26887706.18 | J12: 0.04842601412 | K12: ='C3C'!K83 -> 1110465608
A13: ='Org structure'!A9 -> Vote 08 - Technical Services | C13: ='C3C'!C101 -> 0 | D13: ='C3C'!D101 -> 2798639085 | E13: ='C3C'!E101 -> 2847039085 | F13: ='C3C'!F101 -> 363838756.2 | G13: ='C3C'!G101 -> 1006215739 | H13: ='C3C'!H101 -> 1423519382 | I13: -417303643.5 | J13: -0.293149253 | K13: ='C3C'!K101 -> 2847039085
A14: ='Org structure'!A10 -> Vote 09 - Sports, Arts & Culture | C14: ='C3C'!C124 -> 0 | D14: ='C3C'!D124 -> 844232 | E14: ='C3C'!E124 -> 844232 | F14: ='C3C'!F124 -> 49020.24 | G14: ='C3C'!G124 -> 385669.74 | H14: ='C3C'!H124 -> 422076 | I14: -36406.26 | J14: -0.08625522418 | K14: ='C3C'!K124 -> 844232
A15: ='Org structure'!A11 -> Vote 10 - Community Services | C15: ='C3C'!C136 -> 343577854 | D15: ='C3C'!D136 -> 335169312 | E15: ='C3C'!E136 -> 335169312 | F15: ='C3C'!F136 -> 12829648.97 | G15: ='C3C'!G136 -> 238752327.8 | H15: ='C3C'!H136 -> 167584578 | I15: 71167749.8 | J15: 0.4246676553 | K15: ='C3C'!K136 -> 335169312
A16: ='Org structure'!A12 -> Vote 11 - Public Works, Roads And Transport | C16: ='C3C'!C154 -> 426394380.3 | D16: ='C3C'!D154 -> 0 | E16: ='C3C'!E154 -> 0 | F16: ='C3C'!F154 -> 0 | G16: ='C3C'!G154 -> 0 | H16: ='C3C'!H154 -> 0 | I16: 0 | K16: ='C3C'!K154 -> 0
A17: ='Org structure'!A13 -> Vote 12 - Local Economic Development | C17: ='C3C'!C177 -> 2403802.57 | D17: ='C3C'!D177 -> 68280391 | E17: ='C3C'!E177 -> 68280391 | F17: ='C3C'!F177 -> 928308 | G17: ='C3C'!G177 -> 8695400.43 | H17: ='C3C'!H177 -> 34140186 | I17: -25444785.57 | J17: -0.7453030739 | K17: ='C3C'!K177 -> 68280391
A18: ='Org structure'!A14 -> Vote 13 - Water And Sanitation | C18: ='C3C'!C195 -> 571250767.6 | D18: ='C3C'!D195 -> 0 | E18: ='C3C'!E195 -> 0 | F18: ='C3C'!F195 -> -196915.91 | G18: ='C3C'!G195 -> -1965938.57 | H18: ='C3C'!H195 -> 0 | I18: -1965938.57 | K18: ='C3C'!K195 -> 0
A19: ='Org structure'!A15 -> Vote 14 - Energy | C19: ='C3C'!C209 -> 1479334470 | D19: ='C3C'!D209 -> 48400000 | E19: ='C3C'!E209 -> 0 | F19: ='C3C'!F209 -> 63587691.61 | G19: ='C3C'!G209 -> 256271157.7 | H19: ='C3C'!H209 -> -1.98 | I19: 256271159.6 | J19: -129429878.6 | K19: ='C3C'!K209 -> 0
A20: ='Org structure'!A16 -> Vote 15 - Other | C20: ='C3C'!C215 -> 0 | D20: ='C3C'!D215 -> 0 | E20: ='C3C'!E215 -> 0 | F20: ='C3C'!F215 -> 0 | G20: ='C3C'!G215 -> 0 | H20: ='C3C'!H215 -> 0 | I20: 0 | K20: ='C3C'!K215 -> 0
A21: Total Revenue by Vote | B21: 2 | C21: =SUM(C6:C20) -> 3807466260 | D21: =SUM(D6:D20) -> 4383552613 | E21: 4383552613 | F21: 516611408.6 | G21: 2102327803 | H21: 2191775802 | I21: -89447998.51 | J21: =IF(I21=0,"",I21/H21) -> -0.04081074279 | K21: =SUM(K6:K20) -> 4383552613
A23: Expenditure by Vote | B23: 1
A24: ='Org structure'!A2 -> Vote 01 - Council | C24: ='C3C'!C220 -> 68731750.99 | D24: ='C3C'!D220 -> 72121151 | E24: ='C3C'!E220 -> 75852295 | F24: ='C3C'!F220 -> 6095235.55 | G24: ='C3C'!G220 -> 35251971.76 | H24: ='C3C'!H220 -> 37627953.48 | I24: =G24-H24 -> -2375981.72 | J24: =IF(I24=0,"",I24/H24) -> -0.06314405914 | K24: ='C3C'!K220 -> 75852295
A25: ='Org structure'!A3 -> Vote 02 - Office Of Council | C25: ='C3C'!C238 -> 26016849.59 | D25: ='C3C'!D238 -> 2042941 | E25: ='C3C'!E238 -> 2042941 | F25: ='C3C'!F238 -> 988926.26 | G25: ='C3C'!G238 -> 8279390.04 | H25: ='C3C'!H238 -> 1021494 | I25: 7257896.04 | J25: 7.105177358 | K25: ='C3C'!K238 -> 2042941
A26: ='Org structure'!A4 -> Vote 03 - Municipal Manager | C26: ='C3C'!C242 -> 257186116.4 | D26: ='C3C'!D242 -> 167277091 | E26: ='C3C'!E242 -> 81651344 | F26: ='C3C'!F242 -> 7650034.16 | G26: ='C3C'!G242 -> 45610712.65 | H26: ='C3C'!H242 -> 43623492.98 | I26: 1987219.67 | J26: 0.04555388701 | K26: ='C3C'!K242 -> 81651344
A27: ='Org structure'!A5 -> Vote 04 - City Planning And Development Department | C27: ='C3C'!C265 -> 87028758.98 | D27: ='C3C'!D265 -> 90870042 | E27: ='C3C'!E265 -> 90683451 | F27: ='C3C'!F265 -> 4352303.49 | G27: ='C3C'!G265 -> 39629639.85 | H27: ='C3C'!H265 -> 45484535.16 | I27: -5854895.31 | J27: -0.1287227689 | K27: ='C3C'!K265 -> 90683451
A28: ='Org structure'!A6 -> Vote 05 - Corporate Services Department | C28: ='C3C'!C275 -> 177319288.3 | D28: ='C3C'!D275 -> 145145042 | E28: ='C3C'!E275 -> 150316379 | F28: ='C3C'!F275 -> 9919041.38 | G28: ='C3C'!G275 -> 59503169.99 | H28: ='C3C'!H275 -> 74673806.53 | I28: -15170636.54 | J28: -0.2031587413 | K28: ='C3C'!K275 -> 150316379
A29: ='Org structure'!A7 -> Vote 06 - Strategic Management Services | C29: ='C3C'!C288 -> 41495740.45 | D29: ='C3C'!D288 -> 56561740 | E29: ='C3C'!E288 -> 57877008 | F29: ='C3C'!F288 -> 4778290.27 | G29: ='C3C'!G288 -> 25535103.99 | H29: ='C3C'!H288 -> 28738890.29 | I29: -3203786.3 | J29: -0.1114791235 | K29: ='C3C'!K288 -> 57877008
A30: ='Org structure'!A8 -> Vote 07 - Financial Management | C30: ='C3C'!C297 -> 401887867.1 | D30: ='C3C'!D297 -> 308429755 | E30: ='C3C'!E297 -> 311542605 | F30: ='C3C'!F297 -> 22338034.2 | G30: ='C3C'!G297 -> 140600715.7 | H30: ='C3C'!H297 -> 154523289.3 | I30: -13922573.58 | J30: -0.09010016317 | K30: ='C3C'!K297 -> 311542605
A31: ='Org structure'!A9 -> Vote 08 - Technical Services | C31: ='C3C'!C315 -> 23013221.11 | D31: ='C3C'!D315 -> 2073153488 | E31: ='C3C'!E315 -> 2217497242 | F31: ='C3C'!F315 -> 80872591.94 | G31: ='C3C'!G315 -> 453460898.3 | H31: ='C3C'!H315 -> 1107555181 | I31: -654094282.2 | J31: -0.590574893 | K31: ='C3C'!K315 -> 2217497242
A32: ='Org structure'!A10 -> Vote 09 - Sports, Arts & Culture | C32: ='C3C'!C338 -> 34733290.34 | D32: ='C3C'!D338 -> 72869057 | E32: ='C3C'!E338 -> 74026900 | F32: ='C3C'!F338 -> 5448776.43 | G32: ='C3C'!G338 -> 32521940.45 | H32: ='C3C'!H338 -> 36820382.58 | I32: -4298442.13 | J32: -0.1167408329 | K32: ='C3C'!K338 -> 74026900
A33: ='Org structure'!A11 -> Vote 10 - Community Services | C33: ='C3C'!C350 -> 552793366.2 | D33: ='C3C'!D350 -> 570296925 | E33: ='C3C'!E350 -> 578309636 | F33: ='C3C'!F350 -> 54663705.27 | G33: ='C3C'!G350 -> 250102436.8 | H33: ='C3C'!H350 -> 287477356 | I33: -37374919.12 | J33: -0.1300099585 | K33: ='C3C'!K350 -> 578309636
A34: ='Org structure'!A12 -> Vote 11 - Public Works, Roads And Transport | C34: ='C3C'!C368 -> 444612823.3 | D34: ='C3C'!D368 -> 55261040 | E34: ='C3C'!E368 -> 0 | F34: ='C3C'!F368 -> 1578719.85 | G34: ='C3C'!G368 -> 24522561.4 | H34: ='C3C'!H368 -> 2511867.5 | I34: 22010693.9 | J34: 8.762681113 | K34: ='C3C'!K368 -> 0
A35: ='Org structure'!A13 -> Vote 12 - Local Economic Development | C35: ='C3C'!C391 -> 282912506.4 | D35: ='C3C'!D391 -> 84628784 | E35: ='C3C'!E391 -> 85090271 | F35: ='C3C'!F391 -> 2478444.67 | G35: ='C3C'!G391 -> 42994762.56 | H35: ='C3C'!H391 -> 42390953.46 | I35: 603809.1 | J35: 0.01424381975 | K35: ='C3C'!K391 -> 85090271
A36: ='Org structure'!A14 -> Vote 13 - Water And Sanitation | C36: ='C3C'!C409 -> 487018850.4 | D36: ='C3C'!D409 -> 27243016 | E36: ='C3C'!E409 -> 1872514 | F36: ='C3C'!F409 -> 72411.4 | G36: ='C3C'!G409 -> 27951816.33 | H36: ='C3C'!H409 -> 936279.18 | I36: 27015537.15 | J36: 28.85414706 | K36: ='C3C'!K409 -> 1872514
A37: ='Org structure'!A15 -> Vote 14 - Energy | C37: ='C3C'!C423 -> 1315928908 | D37: ='C3C'!D423 -> 3053455 | E37: ='C3C'!E423 -> 2191570 | F37: ='C3C'!F423 -> 69826846.09 | G37: ='C3C'!G423 -> 581140430.6 | H37: ='C3C'!H423 -> 1095799.56 | I37: 580044631.1 | J37: 529.3346085 | K37: ='C3C'!K423 -> 2191570
A38: ='Org structure'!A16 -> Vote 15 - Other | C38: ='C3C'!C429 -> 0 | D38: ='C3C'!D429 -> 0 | E38: ='C3C'!E429 -> 0 | F38: ='C3C'!F429 -> 0 | G38: ='C3C'!G429 -> 0 | H38: ='C3C'!H429 -> 0 | I38: 0 | K38: ='C3C'!K429 -> 0
A39: Total Expenditure by Vote | B39: 2 | C39: =SUM(C24:C38) -> 4200679337 | D39: =SUM(D24:D38) -> 3728953527 | E39: 3728954156 | F39: 271063361 | G39: 1767105551 | H39: 1864481281 | I39: -97375729.99 | J39: -0.05222671368 | K39: =SUM(K24:K38) -> 3728954156
A40: =result -> Surplus/ (Deficit) for the year | B40: 2 | C40: =C21-C39 -> -393213077.6 | D40: 654599086 | E40: 654598457 | F40: 245548047.7 | G40: 335222253 | H40: 327294521.5 | I40: =I21-I39 -> 7927731.48 | J40: 0.02422201094 | K40: =K21-K39 -> 654598457
A41: =head27a -> References
A42: 1. Insert 'Vote'; e.g. Department, if different to standard classification structure
A43: 2. Must reconcile to Monthly Budget Statement - Financial Performance Statement (standard classification)

Sheet C3C
A1: =muni& " - "&S71C& " - "&"A"& " - "&date -> MP326 City of Mbombela - Table C3 Monthly Budget Statement - Financial Performance (revenue and expenditure by municipal vote) - A - Mid-Year Assessment
A2: =Vdesc -> Vote Description | B2: =head27 -> Ref | C2: =Head1 -> 2021/22 | D2: =Head2 -> Budget Year 2022/23 | L2: =Head4 -> 
A3: R thousand | C3: =Head5 -> Audited Outcome | D3: =Head6 -> Original Budget | E3: =Head7 -> Adjusted Budget | F3: =Head38 -> Monthly actual | G3: =Head39 -> YearTD actual | H3: =Head40 -> YearTD budget | I3: =Head41 -> YTD variance | J3: =Head41 -> YTD variance | K3: =Head8 -> Full Year Forecast | L3: =Head12 -> Forecast 2010/11 | M3: =Head13 -> Forecast 2011/12 | N3: =Head14 -> Forecast 2012/13 | O3: =Head15 -> Forecast 2013/14 | P3: =Head16 -> Forecast 2014/15 | Q3: =Head17 -> Forecast 2015/16 | R3: =Head18 -> Forecast 2016/17 | S3: =Head19 -> Forecast 2017/18 | T3: =Head20 -> Forecast 2018/19 | U3: =Head21 -> Forecast 2019/20 | V3: =Head22 -> Forecast 2020/21 | W3: =Head23 -> Forecast 2021/22
J4: %
A5: Revenue by Vote | B5: 1
A6: ='Org structure'!A2 -> Vote 01 - Council | C6: =SUM(C7:C23) -> -149776.77 | D6: 0 | E6: 0 | F6: 0 | G6: -17349.49 | H6: 0 | I6: =G6-H6 -> -17349.49 | J6: =IF(I6=0,"",I6/H6) ->  | K6: =SUM(K7:K23) -> 0
A7: ='Org structure'!E3 -> 01.1 - Office Of The Mayor | C7: 0 | D7: 0 | E7: 0 | F7: 0 | G7: 0 | H7: 0 | I7: =G7-H7 -> 0 | J7: =IF(I7=0,"",I7/H7) ->  | K7: 0
A8: ='Org structure'!E4 -> 01.2 - Office Of The Chief Whip | C8: -149776.77 | D8: 0 | E8: 0 | F8: 0 | G8: -17349.49 | H8: 0 | I8: -17349.49 | K8: 0
A9: ='Org structure'!E5 -> 01.3 - Office Of The Speaker | C9: 0 | D9: 0 | E9: 0 | F9: 0 | G9: 0 | H9: 0 | I9: 0 | K9: 0
A10: ='Org structure'!E6 -> 01.4 - Mayoral Mmc - Budget & Treasury Servic | C10: 0 | D10: 0 | E10: 0 | F10: 0 | G10: 0 | H10: 0 | I10: 0 | K10: 0
A11: ='Org structure'!E7 -> 01.5 - Mayoral Mmc - Corporate Services | C11: 0 | D11: 0 | E11: 0 | F11: 0 | G11: 0 | H11: 0 | I11: 0 | K11: 0
A12: ='Org structure'!E8 -> 01.6 - Mmc - City Planning & Development | C12: 0 | D12: 0 | E12: 0 | F12: 0 | G12: 0 | H12: 0 | I12: 0 | K12: 0
A13: ='Org structure'!E9 -> 01.7 - Mmc - Strategic Management | C13: 0 | D13: 0 | E13: 0 | F13: 0 | G13: 0 | H13: 0 | I13: 0 | K13: 0
A14: ='Org structure'!E10 -> 01.8 - Mayoral Mmc - Community Services | C14: 0 | D14: 0 | E14: 0 | F14: 0 | G14: 0 | H14: 0 | I14: 0 | K14: 0
A15: ='Org structure'!E11 -> 01.9 - Mmc - Energy | C15: 0 | D15: 0 | E15: 0 | F15: 0 | G15: 0 | H15: 0 | I15: 0 | K15: 0
A16: ='Org structure'!E12 -> 01.10 - Mmc - Public Safety | C16: 0 | D16: 0 | E16: 0 | F16: 0 | G16: 0 | H16: 0 | I16: 0 | K16: 0
A17: ='Org structure'!E13 -> 01.11 - Mmc - Water & Sanitation | C17: 0 | D17: 0 | E17: 0 | F17: 0 | G17: 0 | H17: 0 | I17: 0 | K17: 0
A18: ='Org structure'!E14 -> 01.12 - Mmc - Public Works & Transport | C18: 0 | D18: 0 | E18: 0 | F18: 0 | G18: 0 | H18: 0 | I18: 0 | K18: 0
A19: ='Org structure'!E15 -> 01.13 - Mayoral Mmc - Centre Coordination | C19: 0 | D19: 0 | E19: 0 | F19: 0 | G19: 0 | H19: 0 | I19: 0 | K19: 0
A20: ='Org structure'!E16 -> 01.14 - Mpac (Section 79) | C20: 0 | D20: 0 | E20: 0 | F20: 0 | G20: 0 | H20: 0 | I20: 0 | K20: 0
A21: ='Org structure'!E17 -> 01.15 - Mmc - Local Economic Developme | C21: 0 | D21: 0 | E21: 0 | F21: 0 | G21: 0 | H21: 0 | I21: 0 | K21: 0
A22: ='Org structure'!E18 -> 01.16 - Mmc - Technical Services | C22: 0 | D22: 0 | E22: 0 | F22: 0 | G22: 0 | H22: 0 | I22: 0 | K22: 0
A23: ='Org structure'!E19 -> 01.17 - Mmc - Sports;Arts & Culture | C23: 0 | D23: 0 | E23: 0 | F23: 0 | G23: 0 | H23: 0 | I23: 0 | K23: 0
A24: ='Org structure'!A3 -> Vote 02 - Office Of Council | C24: =SUM(C25:C27) -> 1901391.58 | D24: 0 | E24: 0 | F24: 0 | G24: 0 | H24: 0 | I24: 0 | K24: =SUM(K25:K27) -> 0
A25: ='Org structure'!E21 -> 02.1 - Office Of The Gm - Office Of Council | C25: 0 | D25: 0 | E25: 0 | F25: 0 | G25: 0 | H25: 0 | I25: =G25-H25 -> 0 | J25: =IF(I25=0,"",I25/H25) ->  | K25: 0
A26: ='Org structure'!E22 -> 02.2 - Public Stakeholder Participtn Petitions | C26: 0 | D26: 0 | E26: 0 | F26: 0 | G26: 0 | H26: 0 | I26: =G26-H26 -> 0 | J26: =IF(I26=0,"",I26/H26) ->  | K26: 0
A27: ='Org structure'!E23 -> 02.3 - Council Secretariat | C27: 1901391.58 | D27: 0 | E27: 0 | F27: 0 | G27: 0 | H27: 0 | I27: =G27-H27 -> 0 | J27: =IF(I27=0,"",I27/H27) ->  | K27: 0
A28: ='Org structure'!A4 -> Vote 03 - Municipal Manager | C28: =SUM(C29:C50) -> 11755695.58 | D28: 7770952 | E28: 7770952 | F28: 762607.24 | G28: 4575643.44 | H28: 3885468 | I28: 690175.44 | J28: 0.177629938 | K28: =SUM(K29:K50) -> 7770952
A29: ='Org structure'!E25 -> 03.1 - Municipal Manager Administration | C29: 0 | D29: 0 | E29: 0 | F29: 0 | G29: 0 | H29: 0 | I29: =G29-H29 -> 0 | J29: =IF(I29=0,"",I29/H29) ->  | K29: 0
A30: ='Org structure'!E26 -> 03.2 - Municipal Manager Admin (Waste Man) | C30: 0 | D30: 0 | E30: 0 | F30: 0 | G30: 0 | H30: 0 | I30: 0 | K30: 0
A31: ='Org structure'!E27 -> 03.3 - Municipal Manager Admin (Electricity) | C31: 0 | D31: 0 | E31: 0 | F31: 0 | G31: 0 | H31: 0 | I31: 0 | K31: 0
A32: ='Org structure'!E28 -> 03.4 - Municipal Manager Admin (Rural Dev) | C32: 0 | D32: 0 | E32: 0 | F32: 0 | G32: 0 | H32: 0 | I32: 0 | K32: 0
A33: ='Org structure'!E29 -> 03.5 - Internal Audit | C33: 0 | D33: 158 | E33: 158 | F33: 0 | G33: 0 | H33: 78 | I33: -78 | J33: -1 | K33: 158
A34: ='Org structure'!E30 -> 03.6 - Environmental Management And Planning | C34: 0 | D34: 317 | E34: 317 | F34: 0 | G34: 0 | H34: 156 | I34: -156 | J34: -1 | K34: 317
A35: ='Org structure'!E31 -> 03.7 - Water Services Compliance Monitoring | C35: 0 | D35: 7770477 | E35: 7770477 | F35: 762607.24 | G35: 4575643.44 | H35: 3885234 | I35: 690409.44 | J35: 0.1777008643 | K35: 7770477
A36: ='Org structure'!E32 -> 03.8 - Monitoring | C36: 0 | D36: 0 | E36: 0 | F36: 0 | G36: 0 | H36: 0 | I36: 0 | K36: 0
A37: ='Org structure'!E33 -> 03.9 - Evaluation | C37: 0 | D37: 0 | E37: 0 | F37: 0 | G37: 0 | H37: 0 | I37: 0 | K37: 0
A38: ='Org structure'!E34 -> 03.10 - Enterprise Risk Management | C38: 0 | D38: 0 | E38: 0 | F38: 0 | G38: 0 | H38: 0 | I38: 0 | K38: 0
A39: ='Org structure'!E35 -> 03.11 - Legal Services | C39: 0 | D39: 0 | E39: 0 | F39: 0 | G39: 0 | H39: 0 | I39: 0 | K39: 0
A40: ='Org structure'!E36 -> 03.12 - Insurance Services | C40: 0 | D40: 0 | E40: 0 | F40: 0 | G40: 0 | H40: 0 | I40: 0 | K40: 0
A41: ='Org structure'!E37 -> 03.13 - Office Of The Dmm - Aux | C41: 0 | D41: 0 | E41: 0 | F41: 0 | G41: 0 | H41: 0 | I41: 0 | K41: 0
A42: ='Org structure'!E38 -> 03.14 - Performance And Monitoring | C42: 0 | D42: 0 | E42: 0 | F42: 0 | G42: 0 | H42: 0 | I42: 0 | K42: 0
A43: ='Org structure'!E39 -> 03.15 - Enterprise Risk Management | C43: 0 | D43: 0 | E43: 0 | F43: 0 | G43: 0 | H43: 0 | I43: 0 | K43: 0
A44: ='Org structure'!E40 -> 03.16 - Enviromental Management And Planning | C44: 0 | D44: 0 | E44: 0 | F44: 0 | G44: 0 | H44: 0 | I44: 0 | K44: 0
A45: ='Org structure'!E41 -> 03.17 - Enviromental Man&Plan - Soil Conserv | C45: 0 | D45: 0 | E45: 0 | F45: 0 | G45: 0 | H45: 0 | I45: 0 | K45: 0
A46: ='Org structure'!E42 -> 03.18 - Enviromental Man&Plan - Nature Cons | C46: 0 | D46: 0 | E46: 0 | F46: 0 | G46: 0 | H46: 0 | I46: 0 | K46: 0
A47: ='Org structure'!E43 -> 03.19 - Transversal Services | C47: 74238.88 | D47: 0 | E47: 0 | F47: 0 | G47: 0 | H47: 0 | I47: 0 | K47: 0
A48: ='Org structure'!E44 -> 03.20 - Water Services Compliance Monitoring | C48: 11681456.7 | D48: 0 | E48: 0 | F48: 0 | G48: 0 | H48: 0 | I48: 0 | K48: 0
A49: ='Org structure'!E45 -> 03.21 - Office Dmm - Core Service - Water | C49: 0 | D49: 0 | E49: 0 | F49: 0 | G49: 0 | H49: 0 | I49: 0 | K49: 0
A50: ='Org structure'!E46 -> 03.22 - Office Dmm - Core Service - Waste Water | C50: 0 | D50: 0 | E50: 0 | F50: 0 | G50: 0 | H50: 0 | I50: 0 | K50: 0
A51: ='Org structure'!A5 -> Vote 04 - City Planning And Development Department | C51: =SUM(C52:C60) -> 22533168.41 | D51: 12019788 | E51: 12019788 | F51: 725999.53 | G51: 6109766.08 | H51: 6009840 | I51: 99926.08 | J51: 0.01662707826 | K51: =SUM(K52:K60) -> 12019788
A52: ='Org structure'!E48 -> 04.1 - Office Of The Gm - Planning | C52: 0 | D52: 89945 | E52: 89945 | F52: 0 | G52: 0 | H52: 44964 | I52: =G52-H52 -> -44964 | J52: =IF(I52=0,"",I52/H52) -> -1 | K52: 89945
A53: ='Org structure'!E49 -> 04.2 - Land Use Management | C53: 15120300.05 | D53: 7855444 | E53: 7855444 | F53: 334525.42 | G53: 3909996.27 | H53: 3927702 | I53: -17705.73 | J53: -0.004507910733 | K53: 7855444
A54: ='Org structure'!E50 -> 04.3 - Local Economic Development | C54: 17913.05 | D54: 0 | E54: 0 | F54: 0 | G54: 0 | H54: 0 | I54: 0 | K54: 0
A55: ='Org structure'!E51 -> 04.4 - Rural Plan Traditional Affairs & Agric | C55: 0 | D55: 0 | E55: 0 | F55: 0 | G55: 0 | H55: 0 | I55: 0 | K55: 0
A56: ='Org structure'!E52 -> 04.5 - Human Settlement | C56: 0 | D56: 0 | E56: 0 | F56: 0 | G56: 0 | H56: 0 | I56: 0 | K56: 0
A57: ='Org structure'!E53 -> 04.6 - Tourism Business Regulations And Gov | C57: 0 | D57: 0 | E57: 0 | F57: 0 | G57: 0 | H57: 0 | I57: 0 | K57: 0
A58: ='Org structure'!E54 -> 04.7 - Spatial Development Planning | C58: 0 | D58: 0 | E58: 0 | F58: 0 | G58: 0 | H58: 0 | I58: 0 | K58: 0
A59: ='Org structure'!E55 -> 04.8 - Real Estate Management | C59: 7394955.31 | D59: 4074399 | E59: 4074399 | F59: 391474.11 | G59: 2199769.81 | H59: 2037174 | I59: 162595.81 | J59: 0.07981439484 | K59: 4074399
A60: ='Org structure'!E56 -> 04.9 - Comda | C60: 0 | D60: 0 | E60: 0 | F60: 0 | G60: 0 | H60: 0 | I60: 0 | K60: 0
A61: ='Org structure'!A6 -> Vote 05 - Corporate Services Department | C61: =SUM(C62:C73) -> 508815.33 | D61: 1605497 | E61: 1605497 | F61: -5143.16 | G61: 1148710.26 | H61: 802728 | I61: 345982.26 | J61: 0.4310080874 | K61: =SUM(K62:K73) -> 1605497
A62: ='Org structure'!E58 -> 05.1 - Office Of The Gm - Corporate Services | C62: 0 | D62: 0 | E62: 0 | F62: 0 | G62: 0 | H62: 0 | I62: =G62-H62 -> 0 | J62: =IF(I62=0,"",I62/H62) ->  | K62: 0
A63: ='Org structure'!E59 -> 05.2 - Public Stakehldr Partcipation Petitions | C63: 0 | D63: 0 | E63: 0 | F63: 0 | G63: 0 | H63: 0 | I63: 0 | K63: 0
A64: ='Org structure'!E60 -> 05.3 - Hr Provision Organ Design & Empl Equity | C64: 172922.13 | D64: 0 | E64: 0 | F64: -33205.1 | G64: 980813.62 | H64: 0 | I64: 980813.62 | K64: 0
A65: ='Org structure'!E61 -> 05.4 - Perform Management & Skills Development | C65: -829 | D65: 25443 | E65: 25443 | F65: 800 | G65: 4800 | H65: 12720 | I65: -7920 | J65: -0.6226415094 | K65: 25443
A66: ='Org structure'!E62 -> 05.5 - Ohs; Wellness And Employment Relations | C66: 0 | D66: 0 | E66: 0 | F66: 0 | G66: 0 | H66: 0 | I66: 0 | K66: 0
A67: ='Org structure'!E63 -> 05.6 - Facilities Management | C67: 336722.2 | D67: 780520 | E67: 780520 | F67: 27261.94 | G67: 163096.64 | H67: 390246 | I67: -227149.36 | J67: -0.5820671064 | K67: 780520
A68: ='Org structure'!E64 -> 05.7 - Ict Records Management And Archives | C68: 0 | D68: 0 | E68: 0 | F68: 0 | G68: 0 | H68: 0 | I68: 0 | K68: 0
A69: ='Org structure'!E65 -> 05.8 - Central Region | C69: 0 | D69: 0 | E69: 0 | F69: 0 | G69: 0 | H69: 0 | I69: 0 | K69: 0
A70: ='Org structure'!E66 -> 05.9 - Eastern Region | C70: 0 | D70: 0 | E70: 0 | F70: 0 | G70: 0 | H70: 0 | I70: 0 | K70: 0
A71: ='Org structure'!E67 -> 05.10 - Northern Region | C71: 0 | D71: 0 | E71: 0 | F71: 0 | G71: 0 | H71: 0 | I71: 0 | K71: 0
A72: ='Org structure'!E68 -> 05.11 - Southern Region | C72: 0 | D72: 0 | E72: 0 | F72: 0 | G72: 0 | H72: 0 | I72: 0 | K72: 0
A73: ='Org structure'!E69 -> 05.12 - Council Secretariate | C73: 0 | D73: 799534 | E73: 799534 | F73: 0 | G73: 0 | H73: 399762 | I73: -399762 | J73: -1 | K73: 799534
A74: ='Org structure'!A7 -> Vote 06 - Strategic Management Services | C74: =SUM(C75:C82) -> 0 | D74: 357748 | E74: 357748 | F74: 6030.74 | G74: 36279.44 | H74: 178854 | I74: -142574.56 | J74: -0.7971561162 | K74: =SUM(K75:K82) -> 357748
A75: ='Org structure'!E71 -> 06.1 - Office Of The Gm - Strat Man Services | C75: 0 | D75: 0 | E75: 0 | F75: 0 | G75: 0 | H75: 0 | I75: =G75-H75 -> 0 | J75: =IF(I75=0,"",I75/H75) ->  | K75: 0
A76: ='Org structure'!E72 -> 06.2 - Idp Coordinat And Policy Formulation | C76: 0 | D76: 0 | E76: 0 | F76: 0 | G76: 0 | H76: 0 | I76: 0 | K76: 0
A77: ='Org structure'!E73 -> 06.3 - Idp Coordinat And Policy Form - Facilit | C77: 0 | D77: 0 | E77: 0 | F77: 0 | G77: 0 | H77: 0 | I77: 0 | K77: 0
A78: ='Org structure'!E74 -> 06.4 - Corporate Communication | C78: 0 | D78: 0 | E78: 0 | F78: 0 | G78: 0 | H78: 0 | I78: 0 | K78: 0
A79: ='Org structure'!E75 -> 06.5 - Cluster Coordination | C79: 0 | D79: 0 | E79: 0 | F79: 0 | G79: 0 | H79: 0 | I79: 0 | K79: 0
A80: ='Org structure'!E76 -> 06.6 - Mayoral Support | C80: 0 | D80: 0 | E80: 0 | F80: 0 | G80: 0 | H80: 0 | I80: 0 | K80: 0
A81: ='Org structure'!E77 -> 06.7 - International & Intergovmental Relations | C81: 0 | D81: 0 | E81: 0 | F81: 0 | G81: 0 | H81: 0 | I81: 0 | K81: 0
A82: ='Org structure'!E78 -> 06.8 - Transversal & Disability | C82: 0 | D82: 357748 | E82: 357748 | F82: 6030.74 | G82: 36279.44 | H82: 178854 | I82: -142574.56 | J82: -0.7971561162 | K82: 357748
A83: ='Org structure'!A8 -> Vote 07 - Financial Management | C83: =SUM(C84:C100) -> 947955691.4 | D83: 1110465608 | E83: 1110465608 | F83: 74085405.19 | G83: 582120398.2 | H83: 555232692 | I83: =G83-H83 -> 26887706.18 | J83: =IF(I83=0,"",I83/H83) -> 0.04842601412 | K83: =SUM(K84:K100) -> 1110465608
A84: ='Org structure'!E80 -> 07.1 - Office Of The Cfo | C84: 124139099.9 | D84: 139802230 | E84: 139802230 | F84: 568627.96 | G84: 133741942.2 | H84: 69901074 | I84: =G84-H84 -> 63840868.17 | J84: =IF(I84=0,"",I84/H84) -> 0.9133031085 | K84: 139802230
A85: ='Org structure'!E81 -> 07.2 - Fleet Management | C85: 0 | D85: 0 | E85: 0 | F85: 0 | G85: 0 | H85: 0 | I85: 0 | K85: 0
A86: ='Org structure'!E82 -> 07.3 - Deputy Cfo - Finance | C86: 0 | D86: 0 | E86: 0 | F86: 0 | G86: 0 | H86: 0 | I86: 0 | K86: 0
A87: ='Org structure'!E83 -> 07.4 - Deputy Cfo - Marketing | C87: 0 | D87: 0 | E87: 0 | F87: 0 | G87: 0 | H87: 0 | I87: 0 | K87: 0
A88: ='Org structure'!E84 -> 07.5 - Financial Planning & Budgeting- Finance | C88: 1035364.97 | D88: 2366589 | E88: 2366589 | F88: 0 | G88: 1142029.22 | H88: 1183290 | I88: -41260.78 | J88: -0.0348695417 | K88: 2366589
A89: ='Org structure'!E85 -> 07.6 - Financial Planning & Budgeting - Bud&Tre | C89: 0 | D89: 0 | E89: 0 | F89: 0 | G89: 0 | H89: 0 | I89: 0 | K89: 0
A90: ='Org structure'!E86 -> 07.7 - Financial Planning & Budgeting - Bud&Tre | C90: 0 | D90: 0 | E90: 0 | F90: 0 | G90: 0 | H90: 0 | I90: 0 | K90: 0
A91: ='Org structure'!E87 -> 07.8 - Financial Planning & Budgeting - Inform | C91: 0 | D91: 0 | E91: 0 | F91: 0 | G91: 0 | H91: 0 | I91: 0 | K91: 0
A92: ='Org structure'!E88 -> 07.9 - Assets Management | C92: 0 | D92: 0 | E92: 0 | F92: 0 | G92: 0 | H92: 0 | I92: 0 | K92: 0
A93: ='Org structure'!E89 -> 07.10 - Revenue Management | C93: 68341966.16 | D93: 148578970 | E93: 148578970 | F93: 261721.41 | G93: 2601993.17 | H93: 74289450 | I93: -71687456.83 | J93: -0.9649749302 | K93: 148578970
A94: ='Org structure'!E90 -> 07.11 - Municipal Valuation And Rating | C94: 744046037.5 | D94: 819608419 | E94: 819608419 | F94: 68176083.59 | G94: 405422210.3 | H94: 409804182 | I94: -4381971.69 | J94: -0.01069284278 | K94: 819608419
A95: ='Org structure'!E91 -> 07.12 - Supply Chain Management | C95: 0 | D95: 0 | E95: 0 | F95: 0 | G95: 0 | H95: 0 | I95: 0 | K95: 0
A96: ='Org structure'!E92 -> 07.13 - Accounting Services - Finance | C96: 10393222.92 | D96: 109400 | E96: 109400 | F96: 104927.85 | G96: 1084597.49 | H96: 54696 | I96: 1029901.49 | J96: 18.82955774 | K96: 109400
A97: ='Org structure'!E93 -> 07.14 - Accounting Services - Human Resources | C97: 0 | D97: 0 | E97: 0 | F97: 0 | G97: 0 | H97: 0 | I97: 0 | K97: 0
A98: ='Org structure'!E94 -> 07.15 - Cash Collection & Customer Enquiries | C98: 0 | D98: 0 | E98: 0 | F98: 4974044.38 | G98: 37919873.33 | H98: 0 | I98: 37919873.33 | K98: 0
A99: ='Org structure'!E95 -> 07.16 - Billing & Accounts | C99: 0 | D99: 0 | E99: 0 | F99: 0 | G99: 207752.49 | H99: 0 | I99: 207752.49 | K99: 0
A100: ='Org structure'!E96 -> 07.17 - Sundry Income Management | C100: 0 | D100: 0 | E100: 0 | F100: 0 | G100: 0 | H100: 0 | I100: 0 | K100: 0
A101: ='Org structure'!A9 -> Vote 08 - Technical Services | C101: =SUM(C102:C123) -> 0 | D101: 2798639085 | E101: 2847039085 | F101: 363838756.2 | G101: 1006215739 | H101: 1423519382 | I101: -417303643.5 | J101: -0.293149253 | K101: =SUM(K102:K123) -> 2847039085
A102: ='Org structure'!E98 -> 08.1 - Legal Services And Support | C102: 0 | D102: 0 | E102: 0 | F102: 0 | G102: 0 | H102: 0 | I102: =G102-H102 -> 0 | J102: =IF(I102=0,"",I102/H102) ->  | K102: 0
A103: ='Org structure'!E99 -> 08.2 - General Manager | C103: 0 | D103: 0 | E103: 0 | F103: 0 | G103: 0 | H103: 0 | I103: 0 | K103: 0
A104: ='Org structure'!E100 -> 08.3 - Roads & Stormwater - Roads | C104: 0 | D104: 0 | E104: 0 | F104: 0 | G104: 0 | H104: 0 | I104: 0 | K104: 0
A105: ='Org structure'!E101 -> 08.4 - Roads & Stormwater - Stormwater | C105: 0 | D105: 0 | E105: 0 | F105: 0 | G105: 0 | H105: 0 | I105: 0 | K105: 0
A106: ='Org structure'!E102 -> 08.5 - Project Implementation Unit | C106: 0 | D106: 385362000 | E106: 385362000 | F106: 14989623 | G106: 100736777.5 | H106: 192680994 | I106: -91944216.45 | J106: -0.4771836316 | K106: 385362000
A107: ='Org structure'!E103 -> 08.6 - Project Implementation Unit - Roads | C107: 0 | D107: 0 | E107: 0 | F107: 2248443 | G107: 15110516.83 | H107: 0 | I107: 15110516.83 | K107: 0
A108: ='Org structure'!E104 -> 08.7 - Project Implementation Unit - S Water | C108: 0 | D108: 0 | E108: 0 | F108: 0 | G108: 0 | H108: 0 | I108: 0 | K108: 0
A109: ='Org structure'!E105 -> 08.8 - Project Implementation Unit - Sports | C109: 0 | D109: 0 | E109: 0 | F109: 0 | G109: 0 | H109: 0 | I109: 0 | K109: 0
A110: ='Org structure'!E106 -> 08.9 - Project Implementation Unit - Sewer | C110: 0 | D110: 0 | E110: 0 | F110: 0 | G110: 0 | H110: 0 | I110: 0 | K110: 0
A111: ='Org structure'!E107 -> 08.10 - Project Implementation Unit - Halls | C111: 0 | D111: 0 | E111: 0 | F111: 0 | G111: 0 | H111: 0 | I111: 0 | K111: 0
A112: ='Org structure'!E108 -> 08.11 - Project Implementation Unit - Landfill | C112: 0 | D112: 0 | E112: 0 | F112: 0 | G112: 0 | H112: 0 | I112: 0 | K112: 0
A113: ='Org structure'!E109 -> 08.12 - Electricity Plan And Develmnt - Elec | C113: 0 | D113: 0 | E113: 48400000 | F113: 0 | G113: 0 | H113: 24199999.98 | I113: -24199999.98 | J113: -1 | K113: 48400000
A114: ='Org structure'!E110 -> 08.13 - Electricity Plan And Develmnt - Non Ele | C114: 0 | D114: 0 | E114: 0 | F114: 0 | G114: 0 | H114: 0 | I114: 0 | K114: 0
A115: ='Org structure'!E111 -> 08.14 - Alternative Energy And Public Lighting | C115: 0 | D115: 0 | E115: 0 | F115: 0 | G115: 0 | H115: 0 | I115: 0 | K115: 0
A116: ='Org structure'!E112 -> 08.15 - Electricity Maintenance And Operation | C116: 0 | D116: 1725947894 | E116: 1725947894 | F116: 39837696.74 | G116: 439435852.5 | H116: 862973856 | I116: -423538003.5 | J116: -0.4907889162 | K116: 1725947894
A117: ='Org structure'!E113 -> 08.16 - Water Services Planning & Development | C117: 0 | D117: 0 | E117: 0 | F117: 1486441 | G117: 2453413 | H117: 0 | I117: 2453413 | K117: 0
A118: ='Org structure'!E114 -> 08.17 - Water Services Plan&Devlopment - Sewer | C118: 0 | D118: 0 | E118: 0 | F118: 0 | G118: 0 | H118: 0 | I118: 0 | K118: 0
A119: ='Org structure'!E115 -> 08.18 - Water Services Plan&Dev - Water T/Ment | C119: 0 | D119: 0 | E119: 0 | F119: 0 | G119: 0 | H119: 0 | I119: 0 | K119: 0
A120: ='Org structure'!E116 -> 08.19 - Water Services Opertn&Maint Sup - Water | C120: 0 | D120: 398827031 | E120: 398827031 | F120: 243102553.6 | G120: 350918902.2 | H120: 199413486 | I120: 151505416.2 | J120: 0.7597551161 | K120: 398827031
A121: ='Org structure'!E117 -> 08.20 - Water Services Oprtn&Maint Sup - W/Water | C121: 0 | D121: 203884740 | E121: 203884740 | F121: 56537700.32 | G121: 62940239.72 | H121: 101942346 | I121: -39002106.28 | J121: -0.3825898443 | K121: 203884740
A122: ='Org structure'!E118 -> 08.21 - Water Service Op&Maint Sup-Water Treatm | C122: 0 | D122: 71656111 | E122: 71656111 | F122: 4714866.13 | G122: 29279709.32 | H122: 35828052 | I122: -6548342.68 | J122: -0.1827713848 | K122: 71656111
A123: ='Org structure'!E119 -> 08.22 - Water Service Op&Maint Sup- Waste W Trt | C123: 0 | D123: 12961309 | E123: 12961309 | F123: 921432.39 | G123: 5340327.4 | H123: 6480648 | I123: -1140320.6 | J123: -0.1759578055 | K123: 12961309
A124: ='Org structure'!A10 -> Vote 09 - Sports, Arts & Culture | C124: =SUM(C125:C135) -> 0 | D124: 844232 | E124: 844232 | F124: 49020.24 | G124: 385669.74 | H124: 422076 | I124: -36406.26 | J124: -0.08625522418 | K124: =SUM(K125:K135) -> 844232
A125: ='Org structure'!E121 -> 09.1 - Office Of The Gm - Regional Centre Coord | C125: 0 | D125: 0 | E125: 0 | F125: 0 | G125: 0 | H125: 0 | I125: =G125-H125 -> 0 | J125: =IF(I125=0,"",I125/H125) ->  | K125: 0
A126: ='Org structure'!E122 -> 09.2 - Regional Centre - Central Region | C126: 0 | D126: 0 | E126: 0 | F126: 0 | G126: 0 | H126: 0 | I126: 0 | K126: 0
A127: ='Org structure'!E123 -> 09.3 - Regional Centre - Northern Region | C127: 0 | D127: 0 | E127: 0 | F127: 0 | G127: 0 | H127: 0 | I127: 0 | K127: 0
A128: ='Org structure'!E124 -> 09.4 - Regional Centre - Eastern Region | C128: 0 | D128: 0 | E128: 0 | F128: 0 | G128: 0 | H128: 0 | I128: 0 | K128: 0
A129: ='Org structure'!E125 -> 09.5 - Regional Centre - Southern Region | C129: 0 | D129: 0 | E129: 0 | F129: 0 | G129: 0 | H129: 0 | I129: 0 | K129: 0
A130: ='Org structure'!E126 -> 09.6 - Office Of The Gm | C130: 0 | D130: 0 | E130: 0 | F130: 0 | G130: 0 | H130: 0 | I130: 0 | K130: 0
A131: ='Org structure'!E127 -> 09.7 - Sports Dev&Recreational Fac - Sports Dev | C131: 0 | D131: 75247 | E131: 75247 | F131: 0 | G131: 0 | H131: 37614 | I131: -37614 | J131: -1 | K131: 75247
A132: ='Org structure'!E128 -> 09.8 - Sports Dev&Recreational Fac- Recr Faclty | C132: 0 | D132: 126089 | E132: 126089 | F132: 14503.46 | G132: 89944.57 | H132: 63024 | I132: 26920.57 | J132: 0.4271479119 | K132: 126089
A133: ='Org structure'!E129 -> 09.9 - Comm Halls; Arts & Cult - Halls | C133: 0 | D133: 0 | E133: 0 | F133: 0 | G133: 0 | H133: 0 | I133: 0 | K133: 0
A134: ='Org structure'!E130 -> 09.10 - Comm Halls; Arts & Cult - Arts&Culture | C134: 0 | D134: 488701 | E134: 488701 | F134: 17469.73 | G134: 172444.87 | H134: 244350 | I134: -71905.13 | J134: -0.2942710456 | K134: 488701
A135: ='Org structure'!E131 -> 09.11 - Comm Halls; Arts & Cult - Library | C135: 0 | D135: 154195 | E135: 154195 | F135: 17047.05 | G135: 123280.3 | H135: 77088 | I135: 46192.3 | J135: 0.5992151826 | K135: 154195
A136: ='Org structure'!A11 -> Vote 10 - Community Services | C136: =SUM(C137:C153) -> 343577854 | D136: 335169312 | E136: 335169312 | F136: 12829648.97 | G136: 238752327.8 | H136: 167584578 | I136: 71167749.8 | J136: 0.4246676553 | K136: =SUM(K137:K153) -> 335169312
A137: ='Org structure'!E133 -> 10.1 - Office Of The Gm - Communicty Services | C137: 0 | D137: 0 | E137: 0 | F137: 0 | G137: 0 | H137: 0 | I137: =G137-H137 -> 0 | J137: =IF(I137=0,"",I137/H137) ->  | K137: 0
A138: ='Org structure'!E134 -> 10.2 - Solid Waste - Removal | C138: 282264785.4 | D138: 323491027 | E138: 323491027 | F138: 12613485.37 | G138: 236605529.9 | H138: 161745468 | I138: 74860061.93 | J138: 0.4628263336 | K138: 323491027
A139: ='Org structure'!E135 -> 10.3 - Solid Waste - Landfill | C139: 16445717 | D139: 0 | E139: 0 | F139: 0 | G139: 0 | H139: 0 | I139: 0 | K139: 0
A140: ='Org structure'!E136 -> 10.4 - Sports Recreation & Heritage - Sports | C140: 36992615.89 | D140: 0 | E140: 0 | F140: 0 | G140: 0 | H140: 0 | I140: 0 | K140: 0
A141: ='Org structure'!E137 -> 10.5 - Sports Recreation & Heritage - Recrea | C141: 195345.77 | D141: 0 | E141: 0 | F141: 0 | G141: 25184.9 | H141: 0 | I141: 25184.9 | K141: 0
A142: ='Org structure'!E138 -> 10.6 - Sports Recreation & Heritage - Galary | C142: 225929.77 | D142: 0 | E142: 0 | F142: 0 | G142: 13290.33 | H142: 0 | I142: 13290.33 | K142: 0
A143: ='Org structure'!E139 -> 10.7 - Sports Recreation & Heritage - Halls | C143: 0 | D143: 0 | E143: 0 | F143: 0 | G143: 0 | H143: 0 | I143: 0 | K143: 0
A144: ='Org structure'!E140 -> 10.8 - Sports Recreation & Heritage - Library | C144: 5902229.47 | D144: 0 | E144: 0 | F144: 0 | G144: 33873.37 | H144: 0 | I144: 33873.37 | K144: 0
A145: ='Org structure'!E141 -> 10.9 - Sports Recreation & Heritage - Cultural | C145: 0 | D145: 0 | E145: 0 | F145: 0 | G145: 0 | H145: 0 | I145: 0 | K145: 0
A146: ='Org structure'!E142 -> 10.10 - Parks And Cemetaries - Parks | C146: 0 | D146: 64684 | E146: 64684 | F146: 0 | G146: 0 | H146: 32340 | I146: -32340 | J146: -1 | K146: 64684
A147: ='Org structure'!E143 -> 10.11 - Parks And Cemetaries - Cemetaries | C147: 1551230.74 | D147: 712872 | E147: 712872 | F147: 113434.91 | G147: 700780.14 | H147: 356424 | I147: 344356.14 | J147: 0.9661418423 | K147: 712872
A148: ='Org structure'!E144 -> 10.12 - Traffic Services | C148: 0 | D148: 10679046 | E148: 10679046 | F148: 97353.04 | G148: 1305429 | H148: 5339514 | I148: -4034085 | J148: -0.7555153896 | K148: 10679046
A149: ='Org structure'!E145 -> 10.13 - Mun Law Enforcmnt&Secty - Law Enforcmnt | C149: 0 | D149: 0 | E149: 0 | F149: 0 | G149: 0 | H149: 0 | I149: 0 | K149: 0
A150: ='Org structure'!E146 -> 10.14 - Mun Law Enforcmnt&Secty - Law Enforcmnt | C150: 0 | D150: 79129 | E150: 79129 | F150: 0 | G150: 1521.74 | H150: 39558 | I150: -38036.26 | J150: -0.9615314222 | K150: 79129
A151: ='Org structure'!E147 -> 10.15 - Mun Law Enforcmnt&Secty - Law Enforcmnt | C151: 0 | D151: 17593 | E151: 17593 | F151: 0 | G151: 0 | H151: 8796 | I151: -8796 | J151: -1 | K151: 17593
A152: ='Org structure'!E148 -> 10.16 - Disaster Management - Disaster Manmnt | C152: 0 | D152: 0 | E152: 0 | F152: 0 | G152: 0 | H152: 0 | I152: 0 | K152: 0
A153: ='Org structure'!E149 -> 10.17 - Disaster Management - Fire&Rescue Serv | C153: 0 | D153: 124961 | E153: 124961 | F153: 5375.65 | G153: 66718.39 | H153: 62478 | I153: 4240.39 | J153: 0.06787013029 | K153: 124961
A154: ='Org structure'!A12 -> Vote 11 - Public Works, Roads And Transport | C154: =SUM(C155:C176) -> 426394380.3 | D154: 0 | E154: 0 | F154: 0 | G154: 0 | H154: 0 | I154: 0 | K154: =SUM(K155:K176) -> 0
A155: ='Org structure'!E151 -> 11.1 - Office Of The Gm - Roads | C155: 0 | D155: 0 | E155: 0 | F155: 0 | G155: 0 | H155: 0 | I155: =G155-H155 -> 0 | J155: =IF(I155=0,"",I155/H155) ->  | K155: 0
A156: ='Org structure'!E152 -> 11.2 - Office Of The Gm - Stormwater | C156: 0 | D156: 0 | E156: 0 | F156: 0 | G156: 0 | H156: 0 | I156: 0 | K156: 0
A157: ='Org structure'!E153 -> 11.3 - Roads And Stormwater - Roads | C157: 4323680.71 | D157: 0 | E157: 0 | F157: 0 | G157: 0 | H157: 0 | I157: 0 | K157: 0
A158: ='Org structure'!E154 -> 11.4 - Roads And Stormwater - Stormwater | C158: 0 | D158: 0 | E158: 0 | F158: 0 | G158: 0 | H158: 0 | I158: 0 | K158: 0
A159: ='Org structure'!E155 -> 11.5 - Roads And Stormwater - Signal | C159: 0 | D159: 0 | E159: 0 | F159: 0 | G159: 0 | H159: 0 | I159: 0 | K159: 0
A160: ='Org structure'!E156 -> 11.6 - Public Transport Operations - Transport | C160: 0 | D160: 0 | E160: 0 | F160: 0 | G160: 0 | H160: 0 | I160: 0 | K160: 0
A161: ='Org structure'!E157 -> 11.7 - Project Implementation Unit | C161: 368870048.7 | D161: 0 | E161: 0 | F161: 0 | G161: 0 | H161: 0 | I161: 0 | K161: 0
A162: ='Org structure'!E158 -> 11.8 - Project Implementation Unit - Roads | C162: 46164650.76 | D162: 0 | E162: 0 | F162: 0 | G162: 0 | H162: 0 | I162: 0 | K162: 0
A163: ='Org structure'!E159 -> 11.9 - Project Implementation Unit - S Water | C163: 0 | D163: 0 | E163: 0 | F163: 0 | G163: 0 | H163: 0 | I163: 0 | K163: 0
A164: ='Org structure'!E160 -> 11.10 - Project Implementation Unit - P Transprt | C164: 0 | D164: 0 | E164: 0 | F164: 0 | G164: 0 | H164: 0 | I164: 0 | K164: 0
A165: ='Org structure'!E161 -> 11.11 - Project Implementation Unit - Sports | C165: 0 | D165: 0 | E165: 0 | F165: 0 | G165: 0 | H165: 0 | I165: 0 | K165: 0
A166: ='Org structure'!E162 -> 11.12 - Project Implementation Unit - Sewer | C166: 0 | D166: 0 | E166: 0 | F166: 0 | G166: 0 | H166: 0 | I166: 0 | K166: 0
A167: ='Org structure'!E163 -> 11.13 - Project Implementation Unit - Halls | C167: 0 | D167: 0 | E167: 0 | F167: 0 | G167: 0 | H167: 0 | I167: 0 | K167: 0
A168: ='Org structure'!E164 -> 11.14 - Project Implementation Unit - Landfill | C168: 0 | D168: 0 | E168: 0 | F168: 0 | G168: 0 | H168: 0 | I168: 0 | K168: 0
A169: ='Org structure'!E165 -> 11.15 - Project Implementation Unit - Nc Roads | C169: 0 | D169: 0 | E169: 0 | F169: 0 | G169: 0 | H169: 0 | I169: 0 | K169: 0
A170: ='Org structure'!E166 -> 11.16 - Project Implementation Unit - St Lights | C170: 0 | D170: 0 | E170: 0 | F170: 0 | G170: 0 | H170: 0 | I170: 0 | K170: 0
A171: ='Org structure'!E167 -> 11.17 - Project Implementation Unit - Fleet | C171: 0 | D171: 0 | E171: 0 | F171: 0 | G171: 0 | H171: 0 | I171: 0 | K171: 0
A172: ='Org structure'!E168 -> 11.18 - Project Implementation Unit - S Waste | C172: 0 | D172: 0 | E172: 0 | F172: 0 | G172: 0 | H172: 0 | I172: 0 | K172: 0
A173: ='Org structure'!E169 -> 11.19 - Project Implementation Unit - Parks | C173: 0 | D173: 0 | E173: 0 | F173: 0 | G173: 0 | H173: 0 | I173: 0 | K173: 0
A174: ='Org structure'!E170 -> 11.20 - Project Implementation Unit - Water Dist | C174: 0 | D174: 0 | E174: 0 | F174: 0 | G174: 0 | H174: 0 | I174: 0 | K174: 0
A175: ='Org structure'!E171 -> 11.21 - Project Implementation Unit - Water Trt | C175: 0 | D175: 0 | E175: 0 | F175: 0 | G175: 0 | H175: 0 | I175: 0 | K175: 0
A176: ='Org structure'!E172 -> 11.22 - Expanded Public Works Programme | C176: 7036000.14 | D176: 0 | E176: 0 | F176: 0 | G176: 0 | H176: 0 | I176: 0 | K176: 0
A177: ='Org structure'!A13 -> Vote 12 - Local Economic Development | C177: =SUM(C178:C194) -> 2403802.57 | D177: 68280391 | E177: 68280391 | F177: 928308 | G177: 8695400.43 | H177: 34140186 | I177: -25444785.57 | J177: -0.7453030739 | K177: =SUM(K178:K194) -> 68280391
A178: ='Org structure'!E174 -> 12.1 - Office Of The Gm - Public Safety | C178: 0 | D178: 0 | E178: 0 | F178: 0 | G178: 0 | H178: 0 | I178: =G178-H178 -> 0 | J178: =IF(I178=0,"",I178/H178) ->  | K178: 0
A179: ='Org structure'!E175 -> 12.2 - Law Enforce And Security Serv - Traffic | C179: 0 | D179: 0 | E179: 0 | F179: 0 | G179: 0 | H179: 0 | I179: 0 | K179: 0
A180: ='Org structure'!E176 -> 12.3 - Law Enforce And Security Serv - Traffic | C180: 0 | D180: 0 | E180: 0 | F180: 0 | G180: 0 | H180: 0 | I180: 0 | K180: 0
A181: ='Org structure'!E177 -> 12.4 - Law Enforce And Security Serv - Lic&Regu | C181: 0 | D181: 0 | E181: 0 | F181: 0 | G181: 0 | H181: 0 | I181: 0 | K181: 0
A182: ='Org structure'!E178 -> 12.5 - Law Enforce And Security Serv - Security | C182: 0 | D182: 0 | E182: 0 | F182: 0 | G182: 0 | H182: 0 | I182: 0 | K182: 0
A183: ='Org structure'!E179 -> 12.6 - Licencing And Traffic Services | C183: 0 | D183: 59671906 | E183: 59671906 | F183: 0 | G183: 0 | H183: 29835948 | I183: -29835948 | J183: -1 | K183: 59671906
A184: ='Org structure'!E180 -> 12.7 - Traffic Services | C184: 2262486.19 | D184: 0 | E184: 0 | F184: 0 | G184: 101820 | H184: 0 | I184: 101820 | K184: 0
A185: ='Org structure'!E181 -> 12.8 - Traffic Services | C185: 0 | D185: 0 | E185: 0 | F185: 0 | G185: 0 | H185: 0 | I185: 0 | K185: 0
A186: ='Org structure'!E182 -> 12.9 - Disaster Management - Fire And Protect | C186: 141316.38 | D186: 0 | E186: 0 | F186: 0 | G186: 10703.97 | H186: 0 | I186: 10703.97 | K186: 0
A187: ='Org structure'!E183 -> 12.10 - Disaster Management - Disaster Man | C187: 0 | D187: 0 | E187: 0 | F187: 0 | G187: 0 | H187: 0 | I187: 0 | K187: 0
A188: ='Org structure'!E184 -> 12.11 - Office Of The Gm - Local Economic Development | C188: 0 | D188: 0 | E188: 0 | F188: 0 | G188: 0 | H188: 0 | I188: 0 | K188: 0
A189: ='Org structure'!E185 -> 12.12 - Business Regulations And Governance | C189: 0 | D189: 0 | E189: 0 | F189: 0 | G189: 0 | H189: 0 | I189: 0 | K189: 0
A190: ='Org structure'!E186 -> 12.13 - Tourism Development | C190: 0 | D190: 0 | E190: 0 | F190: 0 | G190: 0 | H190: 0 | I190: 0 | K190: 0
A191: ='Org structure'!E187 -> 12.14 - Economic Development | C191: 0 | D191: 53485 | E191: 53485 | F191: 0 | G191: 0 | H191: 26742 | I191: -26742 | J191: -1 | K191: 53485
A192: ='Org structure'!E188 -> 12.15 - Expanded Public Works Programme | C192: 0 | D192: 8555000 | E192: 8555000 | F192: 928308 | G192: 8582876.46 | H192: 4277496 | I192: 4305380.46 | J192: 1.006518875 | K192: 8555000
A193: ='Org structure'!E189 -> 12.16 - Community Works Programme | C193: 0 | D193: 0 | E193: 0 | F193: 0 | G193: 0 | H193: 0 | I193: 0 | K193: 0
A194: ='Org structure'!E190 -> 12.17 - Public Transport Operations | C194: 0 | D194: 0 | E194: 0 | F194: 0 | G194: 0 | H194: 0 | I194: 0 | K194: 0
A195: ='Org structure'!A14 -> Vote 13 - Water And Sanitation | C195: =SUM(C196:C208) -> 571250767.6 | D195: 0 | E195: 0 | F195: -196915.91 | G195: -1965938.57 | H195: 0 | I195: =G195-H195 -> -1965938.57 | J195: =IF(I195=0,"",I195/H195) ->  | K195: =SUM(K196:K208) -> 0
A196: ='Org structure'!E192 -> 13.1 - Office Of The Gm - Water | C196: 0 | D196: 0 | E196: 0 | F196: 0 | G196: 0 | H196: 0 | I196: =G196-H196 -> 0 | J196: =IF(I196=0,"",I196/H196) ->  | K196: 0
A197: ='Org structure'!E193 -> 13.2 - Office Of The Gm - Sanitation | C197: 0 | D197: 0 | E197: 0 | F197: 0 | G197: 0 | H197: 0 | I197: 0 | K197: 0
A198: ='Org structure'!E194 -> 13.3 - Water Services Plan And Develp - Water | C198: 1989272 | D198: 0 | E198: 0 | F198: 0 | G198: 0 | H198: 0 | I198: 0 | K198: 0
A199: ='Org structure'!E195 -> 13.4 - Water Services Plan And Develp - Sanitat | C199: 0 | D199: 0 | E199: 0 | F199: 0 | G199: 0 | H199: 0 | I199: 0 | K199: 0
A200: ='Org structure'!E196 -> 13.5 - Water Services Plan And Develp - W Treat | C200: 0 | D200: 0 | E200: 0 | F200: 0 | G200: 0 | H200: 0 | I200: 0 | K200: 0
... 239 more rows

Sheet C4-FinPerf RE
A1: =muni& " - "&S71B& " - "&date -> MP326 City of Mbombela - Table C4 Monthly Budget Statement - Financial Performance (revenue and expenditure) - Mid-Year Assessment
A2: =desc -> Description | B2: =head27 -> Ref | C2: =Head1 -> 2021/22 | D2: =Head2 -> Budget Year 2022/23
C3: =Head5 -> Audited Outcome | D3: =Head6 -> Original Budget | E3: =Head7 -> Adjusted Budget | F3: =Head38 -> Monthly actual | G3: =Head39 -> YearTD actual | H3: =Head40 -> YearTD budget | I3: =Head41 -> YTD variance | J3: =Head41 -> YTD variance | K3: =Head8 -> Full Year Forecast
A4: R thousands | J4: %
A5: Revenue By Source
A6: Property rates | C6: 744046037.5 | D6: 816052342 | E6: 816052342 | F6: 68176083.59 | G6: 405422210.3 | H6: 408026148 | I6: =G6-H6 -> -2603937.69 | J6: =IF(I6=0,"",I6/H6) -> -0.006381791223 | K6: 816052342
A7: Service charges - electricity revenue | C7: 1258134428 | D7: 1505858250 | E7: 1505858250 | F7: 100841123 | G7: 660698981.9 | H7: 752929044 | I7: -92230062.09 | J7: -0.122495025 | K7: 1505858250
A8: Service charges - water revenue | C8: 109243597.3 | D8: 132387334 | E8: 132387334 | F8: 10597777.49 | G8: 61842296.75 | H8: 66193638 | I8: -4351341.25 | J8: -0.06573654782 | K8: 132387334
A9: Service charges - sanitation revenue | C9: 23171874.49 | D9: 27153857 | E9: 27153857 | F9: 2113538.93 | G9: 12394308.63 | H9: 13576902 | I9: -1182593.37 | J9: -0.08710332961 | K9: 27153857
A10: Service charges - refuse revenue | C10: 159341854.4 | D10: 162253167 | E10: 162253167 | F10: 12613485.37 | G10: 75367669.93 | H10: 81126540 | I10: -5758870.07 | J10: -0.07098626504 | K10: 162253167
A12: Rental of facilities and equipment | C12: 45284217.24 | D12: 57023016 | E12: 57023016 | F12: 450400.34 | G12: 2705436.12 | H12: 28511442 | I12: -25806005.88 | J12: -0.9051105125 | K12: 57023016
A13: Interest earned - external investments | C13: 3558803.91 | D13: 1783825 | E13: 1783825 | F13: 104927.85 | G13: 2364038.55 | H13: 891900 | I13: 1472138.55 | J13: 1.650564581 | K13: 1783825
A14: Interest earned - outstanding debtors | C14: 29528990.79 | D14: 30711280 | E14: 30711280 | F14: 3278615.89 | G14: 15894023.89 | H14: 15355602 | I14: 538421.89 | J14: 0.03506354814 | K14: 30711280
A15: Dividends received | I15: 0
A16: Fines, penalties and forfeits | C16: 5054283.73 | D16: 11718763 | E16: 11718763 | F16: 97154 | G16: 1413797.06 | H16: 5859348 | I16: -4445550.94 | J16: -0.7587108566 | K16: 11718763
A17: Licences and permits | C17: 2782.61 | D17: 7659221 | E17: 7659221 | F17: 0 | G17: 0 | H17: 3829608 | I17: -3829608 | J17: -1 | K17: 7659221
A18: Agency services | C18: 0 | D18: 0 | E18: 0 | F18: 0 | G18: 0 | H18: 0 | I18: 0 | K18: 0
A19: Transfers and subsidies | C19: 913257829 | D19: 963947000 | E19: 963947000 | F19: 287022154 | G19: 685776698.7 | H19: 481973484 | I19: 203803214.7 | J19: 0.4228515084 | K19: 963947000
A20: Other revenue | C20: 61416110.83 | D20: 186983558 | E20: 186983558 | F20: 2676868.17 | G20: 32188348.27 | H20: 93491658 | I20: -61303309.73 | J20: -0.6557088733 | K20: 186983558
A21: Gains | C21: 9109318 | D21: 0 | E21: 0 | F21: 0 | G21: 0 | H21: 0 | I21: 0 | K21: 0
A22: Total Revenue (excluding capital transfers and contributions) | C22: =SUM(C6:C10)+SUM(C12:C21) -> 3361150127 | D22: 3903531613 | E22: 3903531613 | F22: 487972128.6 | G22: 1956067810 | H22: 1951765314 | I22: 4302496.13 | J22: 0.002204412641 | K22: =SUM(K6:K10)+SUM(K12:K21) -> 3903531613
A24: Expenditure By Type
A25: Employee related costs | C25: 1198405425 | D25: 1188862070 | E25: 1189517624 | F25: 98768416.31 | G25: 582879201.8 | H25: 594652342 | I25: =G25-H25 -> -11773140.12 | J25: =IF(I25=0,"",I25/H25) -> -0.01979835828 | K25: 1189517624
A26: Remuneration of councillors | C26: 59935638.82 | D26: 62925664 | E26: 62925664 | F26: 5013931.11 | G26: 30086359.78 | H26: 31462950 | I26: -1376590.22 | J26: -0.04375273838 | K26: 62925664
A27: Debt impairment | C27: 159179776.2 | D27: 131885248 | E27: 131885248 | F27: 119578.05 | G27: 17760443.99 | H27: 65942634 | I27: -48182190.01 | J27: -0.7306682655 | K27: 131885248
A28: Depreciation & asset impairment | C28: 553635849 | D28: 480056940 | E28: 480056940 | F28: 46145133.78 | G28: 276870802.8 | H28: 240028512 | I28: 36842290.83 | J28: 0.1534913104 | K28: 480056940
A29: Finance charges | C29: 115406494 | D29: 34847091 | E29: 34847091 | F29: 16.63 | G29: 9706293.58 | H29: 17423634 | I29: -7717340.42 | J29: -0.4429236989 | K29: 34847091
A30: Bulk purchases - electricity | C30: 1057513385 | D30: 1137689750 | E30: 1134289750 | F30: 75001013.85 | G30: 604593512.7 | H30: 567299425.6 | I30: 37294087.06 | J30: 0.06573968768 | K30: 1134289750
A31: Inventory consumed | C31: 79631689.9 | D31: 67328097 | E31: 65325469 | F31: 2354281.96 | G31: 28252563.57 | H31: 32587211.26 | I31: -4334647.69 | J31: -0.1330168346 | K31: 65325469
A32: Contracted services | C32: 642528857.1 | D32: 458061190 | E32: 466289609 | F32: 35371905.07 | G32: 150312614.7 | H32: 230128248.8 | I32: -79815634.04 | J32: -0.3468311016 | K32: 466289609
A33: Transfers and subsidies | C33: 39335116.11 | D33: 1826501 | E33: 19006501 | F33: 87267.6 | G33: 14461382.24 | H33: 8524332.54 | I33: 5937049.7 | J33: 0.696482648 | K33: 19006501
A34: Other expenditure | C34: 290046926.4 | D34: 165470976 | E34: 144810260 | F34: 8201816.6 | G34: 52182375.29 | H34: 76431990.37 | I34: -24249615.08 | J34: -0.3172704906 | K34: 144810260
A35: Losses | C35: 5060179.49 | D35: 0 | E35: 0 | F35: 0 | G35: 0 | H35: 0 | I35: 0 | K35: 0
A36: Total Expenditure | C36: =SUM(C25:C35) -> 4200679337 | D36: =SUM(D25:D35) -> 3728953527 | E36: =SUM(E25:E35) -> 3728954156 | F36: 271063361 | G36: 1767105551 | H36: 1864481280 | I36: -97375729.99 | J36: -0.05222671368 | K36: 3728954156
A38: Surplus/(Deficit) | C38: =C22-C36 -> -839529209.7 | D38: 174578086 | E38: 174577457 | F38: 216908767.7 | G38: 188962259.6 | H38: 87284033.5 | I38: =I22-I36 -> 101678226.1 | J38: 1.164912093 | K38: =K22-K36 -> 174577457
A39: Transfers and subsidies - capital (monetary allocations) (National / Provincial and District) | C39: 436329950.9 | D39: 480021000 | E39: 480021000 | F39: 28639280 | G39: 146259993.4 | H39: 240010488 | I39: =G39-H39 -> -93750494.64 | J39: -0.3906099913 | K39: 480021000
A40: Transfers and subsidies - capital (monetary allocations) (National / Provincial Departmental Agencies, Households, Non-profit Institutions, Private Enterprises, Public Corporatons, Higher Educational Institutions) | C40: 4323680.71 | D40: 0 | E40: 0 | F40: 0 | G40: 0 | H40: 0 | I40: =G40-H40 -> 0 | K40: 0
A41: Transfers and subsidies - capital (in-kind - all) | C41: 5662500.54 | D41: 0 | E41: 0 | F41: 0 | G41: 0 | H41: 0 | I41: =G41-H41 -> 0 | K41: 0
A42: Surplus/(Deficit) after capital transfers & contributions | C42: =C38+SUM(C39:C41) -> -393213077.6 | D42: 654599086 | E42: 654598457 | F42: 245548047.7 | G42: 335222253 | H42: 327294521.5 | K42: =K38+SUM(K39:K41) -> 654598457
A43: Taxation | I43: =G43-H43 -> 0 | J43: =IF(I43=0,"",I43/H43) -> 
A44: Surplus/(Deficit) after taxation | C44: =C42-C43 -> -393213077.6 | D44: 654599086 | E44: 654598457 | F44: 245548047.7 | G44: 335222253 | H44: 327294521.5 | K44: =K42-K43 -> 654598457
A45: Attributable to minorities
A46: Surplus/(Deficit) attributable to municipality | C46: =SUM(C44:C45) -> -393213077.6 | D46: 654599086 | E46: 654598457 | F46: 245548047.7 | G46: 335222253 | H46: 327294521.5 | K46: =SUM(K44:K45) -> 654598457
A47: Share of surplus/ (deficit) of associate
A48: Surplus/ (Deficit) for the year | C48: =C46+C47 -> -393213077.6 | D48: 654599086 | E48: 654598457 | F48: 245548047.7 | G48: 335222253 | H48: 327294521.5 | K48: =K46+K47 -> 654598457
A49: =head27a -> References
A50: 1. Material variances to be explained on Table SC1
A53: =A22&" including capital transfers/contributions etc" -> Total Revenue (excluding capital transfers and contributions) including capital transfers/contributions etc | C53: =C22+SUM(C39:C41) -> 3807466260 | D53: 4383552613 | E53: 4383552613 | F53: 516611408.6 | G53: 2102327803 | H53: 2191775802 | K53: =K22+SUM(K39:K41) -> 4383552613

Sheet C5-Capex
A1: =muni& " - "&S71D& " - "&date -> MP326 City of Mbombela - Table C5 Monthly Budget Statement - Capital Expenditure (municipal vote, functional classification and funding) - Mid-Year Assessment
A2: =Vdesc -> Vote Description | B2: =head27 -> Ref | C2: =Head1 -> 2021/22 | D2: =Head2 -> Budget Year 2022/23
C3: =Head5 -> Audited Outcome | D3: =Head6 -> Original Budget | E3: =Head7 -> Adjusted Budget | F3: =Head38 -> Monthly actual | G3: =Head39 -> YearTD actual | H3: =Head40 -> YearTD budget | I3: =Head41 -> YTD variance | J3: =Head41 -> YTD variance | K3: =Head8 -> Full Year Forecast
A4: R thousands | B4: 1 | J4: %
A5: Multi-Year expenditure appropriation | B5: 2
A6: ='Org structure'!A2 -> Vote 01 - Council | C6: ='C5C'!C7 -> 0 | D6: ='C5C'!D7 -> 0 | E6: ='C5C'!E7 -> 0 | F6: ='C5C'!F7 -> 0 | G6: ='C5C'!G7 -> 0 | H6: ='C5C'!H7 -> 0 | I6: =G6-H6 -> 0 | J6: =IF(I6=0,"",I6/H6) ->  | K6: ='C5C'!K7 -> 0
A7: ='Org structure'!A3 -> Vote 02 - Office Of Council | C7: ='C5C'!C25 -> 0 | D7: ='C5C'!D25 -> 0 | E7: ='C5C'!E25 -> 0 | F7: ='C5C'!F25 -> 0 | G7: ='C5C'!G25 -> 0 | H7: ='C5C'!H25 -> 0 | I7: 0 | K7: ='C5C'!K25 -> 0
A8: ='Org structure'!A4 -> Vote 03 - Municipal Manager | C8: ='C5C'!C29 -> 0 | D8: ='C5C'!D29 -> 0 | E8: ='C5C'!E29 -> 0 | F8: ='C5C'!F29 -> 0 | G8: ='C5C'!G29 -> 0 | H8: ='C5C'!H29 -> 0 | I8: 0 | K8: ='C5C'!K29 -> 0
A9: ='Org structure'!A5 -> Vote 04 - City Planning And Development Department | C9: ='C5C'!C52 -> 0 | D9: ='C5C'!D52 -> 0 | E9: ='C5C'!E52 -> 0 | F9: ='C5C'!F52 -> 0 | G9: ='C5C'!G52 -> 0 | H9: ='C5C'!H52 -> 0 | I9: 0 | K9: ='C5C'!K52 -> 0
A10: ='Org structure'!A6 -> Vote 05 - Corporate Services Department | C10: ='C5C'!C62 -> 0 | D10: ='C5C'!D62 -> 0 | E10: ='C5C'!E62 -> 0 | F10: ='C5C'!F62 -> 0 | G10: ='C5C'!G62 -> 0 | H10: ='C5C'!H62 -> 0 | I10: 0 | K10: ='C5C'!K62 -> 0
A11: ='Org structure'!A7 -> Vote 06 - Strategic Management Services | C11: ='C5C'!C75 -> 0 | D11: ='C5C'!D75 -> 0 | E11: ='C5C'!E75 -> 0 | F11: ='C5C'!F75 -> 0 | G11: ='C5C'!G75 -> 0 | H11: ='C5C'!H75 -> 0 | I11: 0 | K11: ='C5C'!K75 -> 0
A12: ='Org structure'!A8 -> Vote 07 - Financial Management | C12: ='C5C'!C84 -> 0 | D12: ='C5C'!D84 -> 0 | E12: ='C5C'!E84 -> 0 | F12: ='C5C'!F84 -> 0 | G12: ='C5C'!G84 -> 0 | H12: ='C5C'!H84 -> 0 | I12: 0 | K12: ='C5C'!K84 -> 0
A13: ='Org structure'!A9 -> Vote 08 - Technical Services | C13: ='C5C'!C102 -> 0 | D13: ='C5C'!D102 -> 447432105 | E13: ='C5C'!E102 -> 479057462 | F13: ='C5C'!F102 -> 22357484.24 | G13: ='C5C'!G102 -> 134511377.8 | H13: ='C5C'!H102 -> 237311575.2 | I13: -102800197.5 | J13: -0.4331866128 | K13: ='C5C'!K102 -> 479057462
A14: ='Org structure'!A10 -> Vote 09 - Sports, Arts & Culture | C14: ='C5C'!C125 -> 0 | D14: ='C5C'!D125 -> 0 | E14: ='C5C'!E125 -> 0 | F14: ='C5C'!F125 -> 0 | G14: ='C5C'!G125 -> 0 | H14: ='C5C'!H125 -> 0 | I14: 0 | K14: ='C5C'!K125 -> 0
A15: ='Org structure'!A11 -> Vote 10 - Community Services | C15: ='C5C'!C137 -> 0 | D15: ='C5C'!D137 -> 3000000 | E15: ='C5C'!E137 -> 3000000 | F15: ='C5C'!F137 -> 0 | G15: ='C5C'!G137 -> 0 | H15: ='C5C'!H137 -> 1500000 | I15: -1500000 | J15: -1 | K15: ='C5C'!K137 -> 3000000
A16: ='Org structure'!A12 -> Vote 11 - Public Works, Roads And Transport | C16: ='C5C'!C155 -> 142995526.2 | D16: ='C5C'!D155 -> 0 | E16: ='C5C'!E155 -> 0 | F16: ='C5C'!F155 -> 0 | G16: ='C5C'!G155 -> 0 | H16: ='C5C'!H155 -> 0 | I16: 0 | K16: ='C5C'!K155 -> 0
A17: ='Org structure'!A13 -> Vote 12 - Local Economic Development | C17: ='C5C'!C178 -> 0 | D17: ='C5C'!D178 -> 0 | E17: ='C5C'!E178 -> 0 | F17: ='C5C'!F178 -> 0 | G17: ='C5C'!G178 -> 0 | H17: ='C5C'!H178 -> 0 | I17: 0 | K17: ='C5C'!K178 -> 0
A18: ='Org structure'!A14 -> Vote 13 - Water And Sanitation | C18: ='C5C'!C196 -> 12572897.95 | D18: ='C5C'!D196 -> 0 | E18: ='C5C'!E196 -> 0 | F18: ='C5C'!F196 -> 0 | G18: ='C5C'!G196 -> 0 | H18: ='C5C'!H196 -> 0 | I18: 0 | K18: ='C5C'!K196 -> 0
A19: ='Org structure'!A15 -> Vote 14 - Energy | C19: ='C5C'!C210 -> 5682863.57 | D19: ='C5C'!D210 -> 0 | E19: ='C5C'!E210 -> 0 | F19: ='C5C'!F210 -> 0 | G19: ='C5C'!G210 -> 0 | H19: ='C5C'!H210 -> 0 | I19: 0 | K19: ='C5C'!K210 -> 0
A20: ='Org structure'!A16 -> Vote 15 - Other | C20: ='C5C'!C216 -> 0 | D20: ='C5C'!D216 -> 0 | E20: ='C5C'!E216 -> 0 | F20: ='C5C'!F216 -> 0 | G20: ='C5C'!G216 -> 0 | H20: ='C5C'!H216 -> 0 | I20: 0 | K20: ='C5C'!K216 -> 0
A21: Total Capital Multi-year expenditure | B21: 4,7 | C21: =SUM(C6:C20) -> 161251287.7 | D21: =SUM(D6:D20) -> 450432105 | E21: 482057462 | F21: 22357484.24 | G21: 134511377.8 | H21: 238811575.2 | I21: -104300197.5 | J21: -0.4367468258 | K21: =SUM(K6:K20) -> 482057462
A23: Single Year expenditure appropriation | B23: 2
A24: ='C5C'!A222 -> Vote 01 - Council | C24: ='C5C'!C222 -> 0 | D24: ='C5C'!D222 -> 0 | E24: ='C5C'!E222 -> 0 | F24: ='C5C'!F222 -> 0 | G24: ='C5C'!G222 -> 0 | H24: ='C5C'!H222 -> 0 | I24: =G24-H24 -> 0 | J24: =IF(I24=0,"",I24/H24) ->  | K24: ='C5C'!K222 -> 0
A25: ='C5C'!A240 -> Vote 02 - Office Of Council | C25: ='C5C'!C240 -> 0 | D25: ='C5C'!D240 -> 0 | E25: ='C5C'!E240 -> 0 | F25: ='C5C'!F240 -> 0 | G25: ='C5C'!G240 -> 0 | H25: ='C5C'!H240 -> 0 | I25: 0 | K25: ='C5C'!K240 -> 0
A26: ='C5C'!A244 -> Vote 03 - Municipal Manager | C26: ='C5C'!C244 -> 0 | D26: ='C5C'!D244 -> 0 | E26: ='C5C'!E244 -> 0 | F26: ='C5C'!F244 -> 0 | G26: ='C5C'!G244 -> 0 | H26: ='C5C'!H244 -> 0 | I26: 0 | K26: ='C5C'!K244 -> 0
A27: ='C5C'!A267 -> Vote 04 - City Planning And Development Department | C27: ='C5C'!C267 -> 0 | D27: ='C5C'!D267 -> 0 | E27: ='C5C'!E267 -> 0 | F27: ='C5C'!F267 -> 0 | G27: ='C5C'!G267 -> 0 | H27: ='C5C'!H267 -> 0 | I27: 0 | K27: ='C5C'!K267 -> 0
A28: ='C5C'!A277 -> Vote 05 - Corporate Services Department | C28: ='C5C'!C277 -> 7044909.6 | D28: ='C5C'!D277 -> 12115800 | E28: ='C5C'!E277 -> 12115800 | F28: ='C5C'!F277 -> 800591.64 | G28: ='C5C'!G277 -> 750842.71 | H28: ='C5C'!H277 -> 6057918 | I28: -5307075.29 | J28: -0.87605598 | K28: ='C5C'!K277 -> 12115800
A29: ='C5C'!A290 -> Vote 06 - Strategic Management Services | C29: ='C5C'!C290 -> 0 | D29: ='C5C'!D290 -> 0 | E29: ='C5C'!E290 -> 0 | F29: ='C5C'!F290 -> 0 | G29: ='C5C'!G290 -> 0 | H29: ='C5C'!H290 -> 0 | I29: 0 | K29: ='C5C'!K290 -> 0
A30: ='C5C'!A299 -> Vote 07 - Financial Management | C30: ='C5C'!C299 -> 7233495.31 | D30: ='C5C'!D299 -> 7700000 | E30: ='C5C'!E299 -> 7700000 | F30: ='C5C'!F299 -> 20380 | G30: ='C5C'!G299 -> 6969422.93 | H30: ='C5C'!H299 -> 3850002 | I30: 3119420.93 | J30: 0.8102387817 | K30: ='C5C'!K299 -> 7700000
A31: ='C5C'!A317 -> Vote 08 - Technical Services | C31: ='C5C'!C317 -> 0 | D31: ='C5C'!D317 -> 165172896 | E31: ='C5C'!E317 -> 161382034 | F31: ='C5C'!F317 -> 11324981.23 | G31: ='C5C'!G317 -> 34048546.74 | H31: ='C5C'!H317 -> 81695735.63 | I31: -47647188.89 | J31: -0.5832273683 | K31: ='C5C'!K317 -> 161382034
A32: ='C5C'!A340 -> Vote 09 - Sports, Arts & Culture | C32: ='C5C'!C340 -> 0 | D32: ='C5C'!D340 -> 8100000 | E32: ='C5C'!E340 -> 7997173 | F32: ='C5C'!F340 -> 0 | G32: ='C5C'!G340 -> 0 | H32: ='C5C'!H340 -> 3980551.19 | I32: -3980551.19 | J32: -1 | K32: ='C5C'!K340 -> 7997173
A33: ='C5C'!A352 -> Vote 10 - Community Services | C33: ='C5C'!C352 -> 10614563.13 | D33: ='C5C'!D352 -> 9300000 | E33: ='C5C'!E352 -> 9855080 | F33: ='C5C'!F352 -> 0 | G33: ='C5C'!G352 -> 0 | H33: ='C5C'!H352 -> 4902327.05 | I33: -4902327.05 | J33: -1 | K33: ='C5C'!K352 -> 9855080
A34: ='C5C'!A370 -> Vote 11 - Public Works, Roads And Transport | C34: ='C5C'!C370 -> 8071422.24 | D34: ='C5C'!D370 -> 0 | E34: ='C5C'!E370 -> 0 | F34: ='C5C'!F370 -> 0 | G34: ='C5C'!G370 -> 0 | H34: ='C5C'!H370 -> 0 | I34: 0 | K34: ='C5C'!K370 -> 0
A35: ='C5C'!A393 -> Vote 12 - Local Economic Development | C35: ='C5C'!C393 -> 2166233.82 | D35: ='C5C'!D393 -> 0 | E35: ='C5C'!E393 -> 0 | F35: ='C5C'!F393 -> 0 | G35: ='C5C'!G393 -> 0 | H35: ='C5C'!H393 -> 0 | I35: 0 | K35: ='C5C'!K393 -> 0
A36: ='C5C'!A411 -> Vote 13 - Water And Sanitation | C36: ='C5C'!C411 -> 0 | D36: ='C5C'!D411 -> 0 | E36: ='C5C'!E411 -> 0 | F36: ='C5C'!F411 -> 0 | G36: ='C5C'!G411 -> 0 | H36: ='C5C'!H411 -> 0 | I36: 0 | K36: ='C5C'!K411 -> 0
A37: ='C5C'!A425 -> Vote 14 - Energy | C37: ='C5C'!C425 -> 29945600.74 | D37: ='C5C'!D425 -> 0 | E37: ='C5C'!E425 -> 0 | F37: ='C5C'!F425 -> 0 | G37: ='C5C'!G425 -> 0 | H37: ='C5C'!H425 -> 0 | I37: 0 | K37: ='C5C'!K425 -> 0
A38: ='C5C'!A431 -> Vote 15 - Other | C38: ='C5C'!C431 -> 0 | D38: ='C5C'!D431 -> 0 | E38: ='C5C'!E431 -> 0 | F38: ='C5C'!F431 -> 0 | G38: ='C5C'!G431 -> 0 | H38: ='C5C'!H431 -> 0 | I38: 0 | K38: ='C5C'!K431 -> 0
A39: Total Capital single-year expenditure | B39: 4 | C39: =SUM(C24:C38) -> 65076224.84 | D39: 202388696 | E39: 199050087 | F39: 12145952.87 | G39: 41768812.38 | H39: 100486533.9 | I39: -58717721.49 | J39: =IF(I39=0,"",I39/H39) -> -0.584334231 | K39: =SUM(K24:K38) -> 199050087
A40: Total Capital Expenditure | C40: =C39+C21 -> 226327512.6 | D40: 652820801 | E40: 681107549 | F40: 34503437.11 | G40: 176280190.2 | H40: 339298109.1 | I40: -163017918.9 | J40: =IF(I40=0,"",I40/H40) -> -0.4804563143 | K40: =K39+K21 -> 681107549
A42: Capital Expenditure - Functional Classification
A43: Governance and administration | C43: =SUM(C44:C46) -> 14878035.45 | D43: 19815800 | E43: 19815800 | F43: 820971.64 | G43: 7720265.64 | H43: 9907920 | I43: =G43-H43 -> -2187654.36 | J43: =IF(I43=0,"",I43/H43) -> -0.220798549 | K43: =SUM(K44:K46) -> 19815800
A44: Executive and council | C44: 0 | D44: 0 | E44: 0 | F44: 0 | G44: 0 | H44: 0 | I44: 0 | J44: =IF(I44=0,"",I44/H44) ->  | K44: 0
A45: Finance and administration | C45: 14878035.45 | D45: 19815800 | E45: 19815800 | F45: 820971.64 | G45: 7720265.64 | H45: 9907920 | I45: -2187654.36 | J45: -0.220798549 | K45: 19815800
A46: Internal audit | I46: 0
A47: Community and public safety | C47: =SUM(C48:C52) -> 20410265.67 | D47: 52223896 | E47: 56432886 | F47: 3911847.32 | G47: 4034556.17 | H47: 28022115 | I47: -23987558.83 | J47: -0.8560224248 | K47: =SUM(K48:K52) -> 56432886
A48: Community and social services | C48: 8817583.38 | D48: 28836896 | E48: 32093633 | F48: 513104.19 | G48: 635813.04 | H48: 15895734.8 | I48: -15259921.76 | J48: -0.9600010287 | K48: 32093633
A49: Sport and recreation | C49: 10026079.01 | D49: 17587000 | E49: 17984173 | F49: 3398743.13 | G49: 3398743.13 | H49: 8974061.15 | I49: -5575318.02 | J49: -0.6212703398 | K49: 17984173
A50: Public safety | C50: 1566603.28 | D50: 5800000 | E50: 6355080 | F50: 0 | G50: 0 | H50: 3152319.05 | I50: -3152319.05 | J50: -1 | K50: 6355080
A51: Housing | I51: 0
A52: Health | I52: 0
A53: Economic and environmental services | C53: =SUM(C54:C56) -> 127406465.5 | D53: 288547837 | E53: 282023211 | F53: 6035153.55 | G53: 62612323.58 | H53: 141022075.1 | I53: -78409751.53 | J53: -0.556010479 | K53: =SUM(K54:K56) -> 282023211
A54: Planning and development | C54: 3869498 | D54: 0 | E54: 0 | F54: 0 | G54: 0 | H54: 0 | I54: 0 | K54: 0
A55: Road transport | C55: 123536967.5 | D55: 288547837 | E55: 282023211 | F55: 6035153.55 | G55: 62612323.58 | H55: 141022075.1 | I55: -78409751.53 | J55: -0.556010479 | K55: 282023211
A56: Environmental protection | I56: 0
A57: Trading services | C57: =SUM(C58:C61) -> 63632745.96 | D57: 292233268 | E57: 322835652 | F57: 23735464.6 | G57: 101913044.8 | H57: 160345999 | I57: -58432954.23 | J57: -0.3644179125 | K57: =SUM(K58:K61) -> 322835652
A58: Energy sources | C58: 35628464.31 | D58: 156643000 | E58: 160311278 | F58: 10524485.93 | G58: 49938226.51 | H58: 79988939.05 | I58: -30050712.54 | J58: -0.3756858498 | K58: 160311278
A59: Water management | C59: 12389468.05 | D59: 74974000 | E59: 81664144 | F59: 10979294.04 | G59: 22621507.73 | H59: 40609065.5 | I59: -17987557.77 | J59: -0.4429443906 | K59: 81664144
A60: Waste water management | C60: 15614813.6 | D60: 56616268 | E60: 76860230 | F60: 2231684.63 | G60: 29353310.53 | H60: 37747990.45 | I60: -8394679.92 | J60: -0.2223874654 | K60: 76860230
A61: Waste management | C61: 0 | D61: 4000000 | E61: 4000000 | F61: 0 | G61: 0 | H61: 2000004 | I61: -2000004 | J61: -1 | K61: 4000000
A62: Other | C62: 0 | D62: 0 | E62: 0 | F62: 0 | G62: 0 | H62: 0 | I62: 0 | K62: 0
A63: Total Capital Expenditure - Functional Classification | B63: 3 | C63: =C43+C47+C53+C57+C62 -> 226327512.6 | D63: =D43+D47+D53+D57+D62 -> 652820801 | E63: 681107549 | F63: 34503437.11 | G63: 176280190.2 | H63: 339298109.1 | I63: -163017919 | J63: -0.4804563143 | K63: =K43+K47+K53+K57+K62 -> 681107549
A65: Funded by:
A66: National Government | C66: 163384802.4 | D66: 480021001 | E66: 480021001 | F66: 27152839.75 | G66: 143806581.8 | H66: 240010734 | I66: =G66-H66 -> -96204152.18 | J66: =IF(I66=0,"",I66/H66) -> -0.4008327068 | K66: 480021001
A67: Provincial Government | I67: 0
A68: District Municipality | I68: 0
A69: ='C4-FinPerf RE'!A40 -> Transfers and subsidies - capital (monetary allocations) (National / Provincial Departmental Agencies, Households, Non-profit Institutions, Private Enterprises, Public Corporatons, Higher Educational Institutions) | C69: 0 | D69: 4284000 | E69: 4284000 | F69: 253740.85 | G69: 4071705.47 | H69: 2142000 | I69: 1929705.47 | J69: 0.9008895752 | K69: 4284000
A70: Transfers recognised - capital | C70: =SUM(C66:C69) -> 163384802.4 | D70: 484305001 | E70: 484305001 | F70: 27406580.6 | G70: 147878287.3 | H70: 242152734 | I70: -94274446.71 | J70: -0.3893181182 | K70: =SUM(K66:K69) -> 484305001
A72: Borrowing | B72: 6 | I72: 0
A73: Internally generated funds | C73: 62942710.15 | D73: 168515800 | E73: 196802548 | F73: 7096856.51 | G73: 28401902.87 | H73: 97145375.11 | I73: -68743472.24 | J73: -0.7076350486 | K73: 196802548
A74: Total Capital Funding | C74: =+C70+C72+C73 -> 226327512.6 | D74: 652820801 | E74: 681107549 | F74: 34503437.11 | G74: 176280190.2 | H74: 339298109.1 | I74: -163017919 | J74: -0.4804563143 | K74: =+K70+K72+K73 -> 681107549
A75: =head27a -> References
A76: 1. Municipalities may choose to appropriate for capital expenditure for three years or for one year (if one year appropriation projected expenditure required for yr2 and yr3).
A77: 2. Include capital component of PPP unitary payment
A78: 3. Capital expenditure by functional classification must reconcile to the total of multi-year and single year appropriations
A79: 4. Include expenditure on investment property, intangible and biological assets
A81: 6. Include finance leases and PPP capital funding component of unitary payment - total borrowing/repayments to reconcile to changes in Table SA17
A86: check balance | C86: =C40-C74 -> 0 | D86: =D40-D74 -> 0 | E86: 0 | F86: 0 | G86: 0 | H86: 0 | K86: 0

Sheet C5C
A1: =muni& " - "&S71D& " - "&"A"& " - "&date -> MP326 City of Mbombela - Table C5 Monthly Budget Statement - Capital Expenditure (municipal vote, functional classification and funding) - A - Mid-Year Assessment
A2: =Vdesc -> Vote Description | B2: =head27 -> Ref | C2: =Head1 -> 2021/22 | D2: =Head2 -> Budget Year 2022/23 | L2: =Head4 -> 
A3: R thousand | C3: =Head5 -> Audited Outcome | D3: =Head6 -> Original Budget | E3: =Head7 -> Adjusted Budget | F3: =Head38 -> Monthly actual | G3: =Head39 -> YearTD actual | H3: =Head40 -> YearTD budget | I3: =Head41 -> YTD variance | J3: =Head41 -> YTD variance | K3: =Head8 -> Full Year Forecast | L3: =Head12 -> Forecast 2010/11 | M3: =Head13 -> Forecast 2011/12 | N3: =Head14 -> Forecast 2012/13 | O3: =Head15 -> Forecast 2013/14 | P3: =Head16 -> Forecast 2014/15 | Q3: =Head17 -> Forecast 2015/16 | R3: =Head18 -> Forecast 2016/17 | S3: =Head19 -> Forecast 2017/18 | T3: =Head20 -> Forecast 2018/19 | U3: =Head21 -> Forecast 2019/20 | V3: =Head22 -> Forecast 2020/21 | W3: =Head23 -> Forecast 2021/22
J4: %
A5: Capital expenditure - Municipal Vote
A6: Expenditure of multi-year capital appropriation | B6: 1
A7: ='Org structure'!A2 -> Vote 01 - Council | C7: =SUM(C8:C24) -> 0 | D7: 0 | E7: 0 | F7: 0 | G7: 0 | H7: 0 | I7: =G7-H7 -> 0 | J7: =IF(I7=0,"",I7/H7) ->  | K7: =SUM(K8:K24) -> 0
A8: ='Org structure'!E3 -> 01.1 - Office Of The Mayor | I8: =G8-H8 -> 0 | J8: =IF(I8=0,"",I8/H8) ->  | K8: 0
A9: ='Org structure'!E4 -> 01.2 - Office Of The Chief Whip | I9: 0 | K9: 0
A10: ='Org structure'!E5 -> 01.3 - Office Of The Speaker | I10: 0 | K10: 0
A11: ='Org structure'!E6 -> 01.4 - Mayoral Mmc - Budget & Treasury Servic | I11: 0 | K11: 0
A12: ='Org structure'!E7 -> 01.5 - Mayoral Mmc - Corporate Services | I12: 0 | K12: 0
A13: ='Org structure'!E8 -> 01.6 - Mmc - City Planning & Development | I13: 0 | K13: 0
A14: ='Org structure'!E9 -> 01.7 - Mmc - Strategic Management | I14: 0 | K14: 0
A15: ='Org structure'!E10 -> 01.8 - Mayoral Mmc - Community Services | I15: 0 | K15: 0
A16: ='Org structure'!E11 -> 01.9 - Mmc - Energy | I16: 0 | K16: 0
A17: ='Org structure'!E12 -> 01.10 - Mmc - Public Safety | I17: 0 | K17: 0
A18: ='Org structure'!E13 -> 01.11 - Mmc - Water & Sanitation | I18: 0 | K18: 0
A19: ='Org structure'!E14 -> 01.12 - Mmc - Public Works & Transport | I19: 0 | K19: 0
A20: ='Org structure'!E15 -> 01.13 - Mayoral Mmc - Centre Coordination | I20: 0 | K20: 0
A21: ='Org structure'!E16 -> 01.14 - Mpac (Section 79) | I21: 0 | K21: 0
A22: ='Org structure'!E17 -> 01.15 - Mmc - Local Economic Developme | I22: 0 | K22: 0
A23: ='Org structure'!E18 -> 01.16 - Mmc - Technical Services | I23: 0 | K23: 0
A24: ='Org structure'!E19 -> 01.17 - Mmc - Sports;Arts & Culture | I24: 0 | K24: 0
A25: ='Org structure'!A3 -> Vote 02 - Office Of Council | C25: =SUM(C26:C28) -> 0 | D25: 0 | E25: 0 | F25: 0 | G25: 0 | H25: 0 | I25: 0 | K25: =SUM(K26:K28) -> 0
A26: ='Org structure'!E21 -> 02.1 - Office Of The Gm - Office Of Council | I26: =G26-H26 -> 0 | J26: =IF(I26=0,"",I26/H26) ->  | K26: 0
A27: ='Org structure'!E22 -> 02.2 - Public Stakeholder Participtn Petitions | I27: =G27-H27 -> 0 | J27: =IF(I27=0,"",I27/H27) ->  | K27: 0
A28: ='Org structure'!E23 -> 02.3 - Council Secretariat | I28: =G28-H28 -> 0 | J28: =IF(I28=0,"",I28/H28) ->  | K28: 0
A29: ='Org structure'!A4 -> Vote 03 - Municipal Manager | C29: =SUM(C30:C51) -> 0 | D29: 0 | E29: 0 | F29: 0 | G29: 0 | H29: 0 | I29: 0 | K29: =SUM(K30:K51) -> 0
A30: ='Org structure'!E25 -> 03.1 - Municipal Manager Administration | I30: =G30-H30 -> 0 | J30: =IF(I30=0,"",I30/H30) ->  | K30: 0
A31: ='Org structure'!E26 -> 03.2 - Municipal Manager Admin (Waste Man) | I31: 0 | K31: 0
A32: ='Org structure'!E27 -> 03.3 - Municipal Manager Admin (Electricity) | I32: 0 | K32: 0
A33: ='Org structure'!E28 -> 03.4 - Municipal Manager Admin (Rural Dev) | I33: 0 | K33: 0
A34: ='Org structure'!E29 -> 03.5 - Internal Audit | I34: 0 | K34: 0
A35: ='Org structure'!E30 -> 03.6 - Environmental Management And Planning | I35: 0 | K35: 0
A36: ='Org structure'!E31 -> 03.7 - Water Services Compliance Monitoring | I36: 0 | K36: 0
A37: ='Org structure'!E32 -> 03.8 - Monitoring | I37: 0 | K37: 0
A38: ='Org structure'!E33 -> 03.9 - Evaluation | I38: 0 | K38: 0
A39: ='Org structure'!E34 -> 03.10 - Enterprise Risk Management | I39: 0 | K39: 0
A40: ='Org structure'!E35 -> 03.11 - Legal Services | I40: 0 | K40: 0
A41: ='Org structure'!E36 -> 03.12 - Insurance Services | I41: 0 | K41: 0
A42: ='Org structure'!E37 -> 03.13 - Office Of The Dmm - Aux | I42: 0 | K42: 0
A43: ='Org structure'!E38 -> 03.14 - Performance And Monitoring | I43: 0 | K43: 0
A44: ='Org structure'!E39 -> 03.15 - Enterprise Risk Management | I44: 0 | K44: 0
A45: ='Org structure'!E40 -> 03.16 - Enviromental Management And Planning | I45: 0 | K45: 0
A46: ='Org structure'!E41 -> 03.17 - Enviromental Man&Plan - Soil Conserv | I46: 0 | K46: 0
A47: ='Org structure'!E42 -> 03.18 - Enviromental Man&Plan - Nature Cons | I47: 0 | K47: 0
A48: ='Org structure'!E43 -> 03.19 - Transversal Services | I48: 0 | K48: 0
A49: ='Org structure'!E44 -> 03.20 - Water Services Compliance Monitoring | I49: 0 | K49: 0
A50: ='Org structure'!E45 -> 03.21 - Office Dmm - Core Service - Water | C50: 0 | D50: 0 | E50: 0 | F50: 0 | G50: 0 | H50: 0 | I50: 0 | K50: 0
A51: ='Org structure'!E46 -> 03.22 - Office Dmm - Core Service - Waste Water | C51: 0 | D51: 0 | E51: 0 | F51: 0 | G51: 0 | H51: 0 | I51: 0 | K51: 0
A52: ='Org structure'!A5 -> Vote 04 - City Planning And Development Department | C52: =SUM(C53:C61) -> 0 | D52: 0 | E52: 0 | F52: 0 | G52: 0 | H52: 0 | I52: 0 | K52: =SUM(K53:K61) -> 0
A53: ='Org structure'!E48 -> 04.1 - Office Of The Gm - Planning | I53: =G53-H53 -> 0 | J53: =IF(I53=0,"",I53/H53) ->  | K53: 0
A54: ='Org structure'!E49 -> 04.2 - Land Use Management | I54: 0 | K54: 0
A55: ='Org structure'!E50 -> 04.3 - Local Economic Development | C55: 0 | D55: 0 | E55: 0 | F55: 0 | G55: 0 | H55: 0 | I55: 0 | K55: 0
A56: ='Org structure'!E51 -> 04.4 - Rural Plan Traditional Affairs & Agric | I56: 0 | K56: 0
A57: ='Org structure'!E52 -> 04.5 - Human Settlement | I57: 0 | K57: 0
A58: ='Org structure'!E53 -> 04.6 - Tourism Business Regulations And Gov | C58: 0 | D58: 0 | E58: 0 | F58: 0 | G58: 0 | H58: 0 | I58: 0 | K58: 0
A59: ='Org structure'!E54 -> 04.7 - Spatial Development Planning | C59: 0 | D59: 0 | E59: 0 | F59: 0 | G59: 0 | H59: 0 | I59: 0 | K59: 0
A60: ='Org structure'!E55 -> 04.8 - Real Estate Management | I60: 0 | K60: 0
A61: ='Org structure'!E56 -> 04.9 - Comda | I61: 0 | K61: 0
A62: ='Org structure'!A6 -> Vote 05 - Corporate Services Department | C62: =SUM(C63:C74) -> 0 | D62: 0 | E62: 0 | F62: 0 | G62: 0 | H62: 0 | I62: 0 | K62: =SUM(K63:K74) -> 0
A63: ='Org structure'!E58 -> 05.1 - Office Of The Gm - Corporate Services | I63: =G63-H63 -> 0 | J63: =IF(I63=0,"",I63/H63) ->  | K63: 0
A64: ='Org structure'!E59 -> 05.2 - Public Stakehldr Partcipation Petitions | I64: 0 | K64: 0
A65: ='Org structure'!E60 -> 05.3 - Hr Provision Organ Design & Empl Equity | I65: 0 | K65: 0
A66: ='Org structure'!E61 -> 05.4 - Perform Management & Skills Development | I66: 0 | K66: 0
A67: ='Org structure'!E62 -> 05.5 - Ohs; Wellness And Employment Relations | I67: 0 | K67: 0
A68: ='Org structure'!E63 -> 05.6 - Facilities Management | I68: 0 | K68: 0
A69: ='Org structure'!E64 -> 05.7 - Ict Records Management And Archives | C69: 0 | D69: 0 | E69: 0 | F69: 0 | G69: 0 | H69: 0 | I69: 0 | K69: 0
A70: ='Org structure'!E65 -> 05.8 - Central Region | I70: 0 | K70: 0
A71: ='Org structure'!E66 -> 05.9 - Eastern Region | I71: 0 | K71: 0
A72: ='Org structure'!E67 -> 05.10 - Northern Region | I72: 0 | K72: 0
A73: ='Org structure'!E68 -> 05.11 - Southern Region | I73: 0 | K73: 0
A74: ='Org structure'!E69 -> 05.12 - Council Secretariate | I74: 0 | K74: 0
A75: ='Org structure'!A7 -> Vote 06 - Strategic Management Services | C75: =SUM(C76:C83) -> 0 | D75: 0 | E75: 0 | F75: 0 | G75: 0 | H75: 0 | I75: 0 | K75: =SUM(K76:K83) -> 0
A76: ='Org structure'!E71 -> 06.1 - Office Of The Gm - Strat Man Services | I76: =G76-H76 -> 0 | J76: =IF(I76=0,"",I76/H76) ->  | K76: 0
A77: ='Org structure'!E72 -> 06.2 - Idp Coordinat And Policy Formulation | I77: 0 | K77: 0
A78: ='Org structure'!E73 -> 06.3 - Idp Coordinat And Policy Form - Facilit | I78: 0 | K78: 0
A79: ='Org structure'!E74 -> 06.4 - Corporate Communication | I79: 0 | K79: 0
A80: ='Org structure'!E75 -> 06.5 - Cluster Coordination | I80: 0 | K80: 0
A81: ='Org structure'!E76 -> 06.6 - Mayoral Support | I81: 0 | K81: 0
A82: ='Org structure'!E77 -> 06.7 - International & Intergovmental Relations | I82: 0 | K82: 0
A83: ='Org structure'!E78 -> 06.8 - Transversal & Disability | I83: 0 | K83: 0
A84: ='Org structure'!A8 -> Vote 07 - Financial Management | C84: =SUM(C85:C101) -> 0 | D84: 0 | E84: 0 | F84: 0 | G84: 0 | H84: 0 | I84: =G84-H84 -> 0 | J84: =IF(I84=0,"",I84/H84) ->  | K84: =SUM(K85:K101) -> 0
A85: ='Org structure'!E80 -> 07.1 - Office Of The Cfo | I85: =G85-H85 -> 0 | J85: =IF(I85=0,"",I85/H85) ->  | K85: 0
A86: ='Org structure'!E81 -> 07.2 - Fleet Management | I86: 0 | K86: 0
A87: ='Org structure'!E82 -> 07.3 - Deputy Cfo - Finance | I87: 0 | K87: 0
A88: ='Org structure'!E83 -> 07.4 - Deputy Cfo - Marketing | I88: 0 | K88: 0
A89: ='Org structure'!E84 -> 07.5 - Financial Planning & Budgeting- Finance | I89: 0 | K89: 0
A90: ='Org structure'!E85 -> 07.6 - Financial Planning & Budgeting - Bud&Tre | I90: 0 | K90: 0
A91: ='Org structure'!E86 -> 07.7 - Financial Planning & Budgeting - Bud&Tre | I91: 0 | K91: 0
A92: ='Org structure'!E87 -> 07.8 - Financial Planning & Budgeting - Inform | I92: 0 | K92: 0
A93: ='Org structure'!E88 -> 07.9 - Assets Management | I93: 0 | K93: 0
A94: ='Org structure'!E89 -> 07.10 - Revenue Management | I94: 0 | K94: 0
A95: ='Org structure'!E90 -> 07.11 - Municipal Valuation And Rating | I95: 0 | K95: 0
A96: ='Org structure'!E91 -> 07.12 - Supply Chain Management | I96: 0 | K96: 0
A97: ='Org structure'!E92 -> 07.13 - Accounting Services - Finance | I97: 0 | K97: 0
A98: ='Org structure'!E93 -> 07.14 - Accounting Services - Human Resources | I98: 0 | K98: 0
A99: ='Org structure'!E94 -> 07.15 - Cash Collection & Customer Enquiries | I99: 0 | K99: 0
A100: ='Org structure'!E95 -> 07.16 - Billing & Accounts | I100: 0 | K100: 0
A101: ='Org structure'!E96 -> 07.17 - Sundry Income Management | I101: 0 | K101: 0
A102: ='Org structure'!A9 -> Vote 08 - Technical Services | C102: =SUM(C103:C124) -> 0 | D102: 447432105 | E102: 479057462 | F102: 22357484.24 | G102: 134511377.8 | H102: 237311575.2 | I102: -102800197.5 | J102: -0.4331866128 | K102: =SUM(K103:K124) -> 479057462
A103: ='Org structure'!E98 -> 08.1 - Legal Services And Support | I103: =G103-H103 -> 0 | J103: =IF(I103=0,"",I103/H103) ->  | K103: 0
A104: ='Org structure'!E99 -> 08.2 - General Manager | I104: 0 | K104: 0
A105: ='Org structure'!E100 -> 08.3 - Roads & Stormwater - Roads | I105: 0 | K105: 0
A106: ='Org structure'!E101 -> 08.4 - Roads & Stormwater - Stormwater | I106: 0 | K106: 0
A107: ='Org structure'!E102 -> 08.5 - Project Implementation Unit | I107: 0 | K107: 0
A108: ='Org structure'!E103 -> 08.6 - Project Implementation Unit - Roads | C108: 0 | D108: 240347837 | E108: 245823211 | F108: 6035153.55 | G108: 60781551.17 | H108: 121722013.1 | I108: -60940461.94 | J108: -0.500652761 | K108: 245823211
A109: ='Org structure'!E104 -> 08.7 - Project Implementation Unit - S Water | C109: 0 | D109: 4260268 | E109: 4260268 | F109: 0 | G109: 0 | H109: 2130144 | I109: -2130144 | J109: -1 | K109: 4260268
A110: ='Org structure'!E105 -> 08.8 - Project Implementation Unit - Sports | C110: 0 | D110: 2500000 | E110: 2500000 | F110: 0 | G110: 0 | H110: 1250004 | I110: -1250004 | J110: -1 | K110: 2500000
A111: ='Org structure'!E106 -> 08.9 - Project Implementation Unit - Sewer | C111: 0 | D111: 15000000 | E111: 18000000 | F111: 0 | G111: 4356120.69 | H111: 8863636.35 | I111: -4507515.66 | J111: -0.5085402291 | K111: 18000000
A112: ='Org structure'!E107 -> 08.10 - Project Implementation Unit - Halls | C112: 0 | D112: 2500000 | E112: 5741737 | F112: 0 | G112: 122708.85 | H112: 2723520.8 | I112: -2600811.95 | J112: -0.9549447722 | K112: 5741737
A113: ='Org structure'!E108 -> 08.11 - Project Implementation Unit - Landfill | C113: 0 | D113: 2000000 | E113: 2000000 | F113: 0 | G113: 0 | H113: 1000002 | I113: -1000002 | J113: -1 | K113: 2000000
A114: ='Org structure'!E109 -> 08.12 - Electricity Plan And Develmnt - Elec | C114: 0 | D114: 77544000 | E114: 75268500 | F114: 744953.8 | G114: 16955706.58 | H114: 38232666.86 | I114: -21276960.28 | J114: -0.5565125854 | K114: 75268500
A115: ='Org structure'!E110 -> 08.13 - Electricity Plan And Develmnt - Non Ele | I115: 0 | K115: 0
A116: ='Org structure'!E111 -> 08.14 - Alternative Energy And Public Lighting | I116: 0 | K116: 0
A117: ='Org structure'!E112 -> 08.15 - Electricity Maintenance And Operation | C117: 0 | D117: 0 | E117: 5668278 | F117: 2366398.22 | G117: 4676592.92 | H117: 1953113.33 | I117: 2723479.59 | J117: 1.394429882 | K117: 5668278
A118: ='Org structure'!E113 -> 08.16 - Water Services Planning & Development | C118: 0 | D118: 10200000 | E118: 12200000 | F118: 0 | G118: 6446474.04 | H118: 6009090.9 | I118: 437383.14 | J118: 0.07278690692 | K118: 12200000
A119: ='Org structure'!E114 -> 08.17 - Water Services Plan&Devlopment - Sewer | C119: 0 | D119: 9250000 | E119: 9250000 | F119: 0 | G119: 6502696.19 | H119: 4625010 | I119: 1877686.19 | J119: 0.4059853254 | K119: 9250000
A120: ='Org structure'!E115 -> 08.18 - Water Services Plan&Dev - Water T/Ment | C120: 0 | D120: 0 | E120: 0 | F120: 0 | G120: 0 | H120: 0 | I120: 0 | K120: 0
A121: ='Org structure'!E116 -> 08.19 - Water Services Opertn&Maint Sup - Water | C121: 0 | D121: 47500000 | E121: 45928519 | F121: 6786347.13 | G121: 11982086.78 | H121: 23116757.45 | I121: -11134670.67 | J121: -0.4816709564 | K121: 45928519
A122: ='Org structure'!E117 -> 08.20 - Water Services Oprtn&Maint Sup - W/Water | C122: 0 | D122: 0 | E122: 1888226 | F122: 630027.15 | G122: 1878933.61 | H122: 777245.5 | I122: 1101688.11 | J122: 1.417426167 | K122: 1888226
A123: ='Org structure'!E118 -> 08.21 - Water Service Op&Maint Sup-Water Treatm | C123: 0 | D123: 8224000 | E123: 12485625 | F123: 4192946.91 | G123: 4192946.91 | H123: 6049106.25 | I123: -1856159.34 | J123: -0.3068485266 | K123: 12485625
A124: ='Org structure'!E119 -> 08.22 - Water Service Op&Maint Sup- Waste W Trt | C124: 0 | D124: 28106000 | E124: 38043098 | F124: 1601657.48 | G124: 16615560.04 | H124: 18859264.69 | I124: -2243704.65 | J124: -0.1189709507 | K124: 38043098
A125: ='Org structure'!A10 -> Vote 09 - Sports, Arts & Culture | C125: =SUM(C126:C136) -> 0 | D125: 0 | E125: 0 | F125: 0 | G125: 0 | H125: 0 | I125: 0 | K125: =SUM(K126:K136) -> 0
A126: ='Org structure'!E121 -> 09.1 - Office Of The Gm - Regional Centre Coord | I126: =G126-H126 -> 0 | J126: =IF(I126=0,"",I126/H126) ->  | K126: 0
A127: ='Org structure'!E122 -> 09.2 - Regional Centre - Central Region | I127: 0 | K127: 0
A128: ='Org structure'!E123 -> 09.3 - Regional Centre - Northern Region | I128: 0 | K128: 0
A129: ='Org structure'!E124 -> 09.4 - Regional Centre - Eastern Region | I129: 0 | K129: 0
A130: ='Org structure'!E125 -> 09.5 - Regional Centre - Southern Region | I130: 0 | K130: 0
A131: ='Org structure'!E126 -> 09.6 - Office Of The Gm | I131: 0 | K131: 0
A132: ='Org structure'!E127 -> 09.7 - Sports Dev&Recreational Fac - Sports Dev | I132: 0 | K132: 0
A133: ='Org structure'!E128 -> 09.8 - Sports Dev&Recreational Fac- Recr Faclty | I133: 0 | K133: 0
A134: ='Org structure'!E129 -> 09.9 - Comm Halls; Arts & Cult - Halls | I134: 0 | K134: 0
A135: ='Org structure'!E130 -> 09.10 - Comm Halls; Arts & Cult - Arts&Culture | I135: 0 | K135: 0
A136: ='Org structure'!E131 -> 09.11 - Comm Halls; Arts & Cult - Library | I136: 0 | K136: 0
A137: ='Org structure'!A11 -> Vote 10 - Community Services | C137: =SUM(C138:C154) -> 0 | D137: 3000000 | E137: 3000000 | F137: 0 | G137: 0 | H137: 1500000 | I137: -1500000 | J137: -1 | K137: =SUM(K138:K154) -> 3000000
A138: ='Org structure'!E133 -> 10.1 - Office Of The Gm - Communicty Services | I138: =G138-H138 -> 0 | J138: =IF(I138=0,"",I138/H138) ->  | K138: 0
A139: ='Org structure'!E134 -> 10.2 - Solid Waste - Removal | C139: 0 | D139: 0 | E139: 0 | F139: 0 | G139: 0 | H139: 0 | I139: 0 | K139: 0
A140: ='Org structure'!E135 -> 10.3 - Solid Waste - Landfill | I140: 0 | K140: 0
A141: ='Org structure'!E136 -> 10.4 - Sports Recreation & Heritage - Sports | I141: 0 | K141: 0
A142: ='Org structure'!E137 -> 10.5 - Sports Recreation & Heritage - Recrea | I142: 0 | K142: 0
A143: ='Org structure'!E138 -> 10.6 - Sports Recreation & Heritage - Galary | I143: 0 | K143: 0
A144: ='Org structure'!E139 -> 10.7 - Sports Recreation & Heritage - Halls | I144: 0 | K144: 0
A145: ='Org structure'!E140 -> 10.8 - Sports Recreation & Heritage - Library | I145: 0 | K145: 0
A146: ='Org structure'!E141 -> 10.9 - Sports Recreation & Heritage - Cultural | I146: 0 | K146: 0
A147: ='Org structure'!E142 -> 10.10 - Parks And Cemetaries - Parks | I147: 0 | K147: 0
A148: ='Org structure'!E143 -> 10.11 - Parks And Cemetaries - Cemetaries | I148: 0 | K148: 0
A149: ='Org structure'!E144 -> 10.12 - Traffic Services | I149: 0 | K149: 0
A150: ='Org structure'!E145 -> 10.13 - Mun Law Enforcmnt&Secty - Law Enforcmnt | I150: 0 | K150: 0
A151: ='Org structure'!E146 -> 10.14 - Mun Law Enforcmnt&Secty - Law Enforcmnt | I151: 0 | K151: 0
A152: ='Org structure'!E147 -> 10.15 - Mun Law Enforcmnt&Secty - Law Enforcmnt | I152: 0 | K152: 0
A153: ='Org structure'!E148 -> 10.16 - Disaster Management - Disaster Manmnt | I153: 0 | K153: 0
A154: ='Org structure'!E149 -> 10.17 - Disaster Management - Fire&Rescue Serv | C154: 0 | D154: 3000000 | E154: 3000000 | F154: 0 | G154: 0 | H154: 1500000 | I154: -1500000 | J154: -1 | K154: 3000000
A155: ='Org structure'!A12 -> Vote 11 - Public Works, Roads And Transport | C155: =SUM(C156:C177) -> 142995526.2 | D155: 0 | E155: 0 | F155: 0 | G155: 0 | H155: 0 | I155: 0 | K155: =SUM(K156:K177) -> 0
A156: ='Org structure'!E151 -> 11.1 - Office Of The Gm - Roads | I156: =G156-H156 -> 0 | J156: =IF(I156=0,"",I156/H156) ->  | K156: 0
A157: ='Org structure'!E152 -> 11.2 - Office Of The Gm - Stormwater | I157: 0 | K157: 0
A158: ='Org structure'!E153 -> 11.3 - Roads And Stormwater - Roads | C158: 19833836.69 | D158: 0 | E158: 0 | F158: 0 | G158: 0 | H158: 0 | I158: 0 | K158: 0
A159: ='Org structure'!E154 -> 11.4 - Roads And Stormwater - Stormwater | C159: 0 | D159: 0 | E159: 0 | F159: 0 | G159: 0 | H159: 0 | I159: 0 | K159: 0
A160: ='Org structure'!E155 -> 11.5 - Roads And Stormwater - Signal | C160: 0 | D160: 0 | E160: 0 | F160: 0 | G160: 0 | H160: 0 | I160: 0 | K160: 0
A161: ='Org structure'!E156 -> 11.6 - Public Transport Operations - Transport | C161: 0.15 | D161: 0 | E161: 0 | F161: 0 | G161: 0 | H161: 0 | I161: 0 | K161: 0
A162: ='Org structure'!E157 -> 11.7 - Project Implementation Unit | C162: 0 | D162: 0 | E162: 0 | F162: 0 | G162: 0 | H162: 0 | I162: 0 | K162: 0
A163: ='Org structure'!E158 -> 11.8 - Project Implementation Unit - Roads | C163: 101472042.6 | D163: 0 | E163: 0 | F163: 0 | G163: 0 | H163: 0 | I163: 0 | K163: 0
A164: ='Org structure'!E159 -> 11.9 - Project Implementation Unit - S Water | C164: 11495266.92 | D164: 0 | E164: 0 | F164: 0 | G164: 0 | H164: 0 | I164: 0 | K164: 0
A165: ='Org structure'!E160 -> 11.10 - Project Implementation Unit - P Transprt | C165: 0 | D165: 0 | E165: 0 | F165: 0 | G165: 0 | H165: 0 | I165: 0 | K165: 0
A166: ='Org structure'!E161 -> 11.11 - Project Implementation Unit - Sports | C166: 0 | D166: 0 | E166: 0 | F166: 0 | G166: 0 | H166: 0 | I166: 0 | K166: 0
A167: ='Org structure'!E162 -> 11.12 - Project Implementation Unit - Sewer | C167: 3936116.78 | D167: 0 | E167: 0 | F167: 0 | G167: 0 | H167: 0 | I167: 0 | K167: 0
A168: ='Org structure'!E163 -> 11.13 - Project Implementation Unit - Halls | C168: 6258263.04 | D168: 0 | E168: 0 | F168: 0 | G168: 0 | H168: 0 | I168: 0 | K168: 0
A169: ='Org structure'!E164 -> 11.14 - Project Implementation Unit - Landfill | C169: 0 | D169: 0 | E169: 0 | F169: 0 | G169: 0 | H169: 0 | I169: 0 | K169: 0
A170: ='Org structure'!E165 -> 11.15 - Project Implementation Unit - Nc Roads | C170: 0 | D170: 0 | E170: 0 | F170: 0 | G170: 0 | H170: 0 | I170: 0 | K170: 0
A171: ='Org structure'!E166 -> 11.16 - Project Implementation Unit - St Lights | I171: 0 | K171: 0
A172: ='Org structure'!E167 -> 11.17 - Project Implementation Unit - Fleet | I172: 0 | K172: 0
A173: ='Org structure'!E168 -> 11.18 - Project Implementation Unit - S Waste | I173: 0 | K173: 0
A174: ='Org structure'!E169 -> 11.19 - Project Implementation Unit - Parks | I174: 0 | K174: 0
A175: ='Org structure'!E170 -> 11.20 - Project Implementation Unit - Water Dist | C175: 0 | D175: 0 | E175: 0 | F175: 0 | G175: 0 | H175: 0 | I175: 0 | K175: 0
A176: ='Org structure'!E171 -> 11.21 - Project Implementation Unit - Water Trt | C176: 0 | D176: 0 | E176: 0 | F176: 0 | G176: 0 | H176: 0 | I176: 0 | K176: 0
A177: ='Org structure'!E172 -> 11.22 - Expanded Public Works Programme | I177: 0 | K177: 0
A178: ='Org structure'!A13 -> Vote 12 - Local Economic Development | C178: =SUM(C179:C195) -> 0 | D178: 0 | E178: 0 | F178: 0 | G178: 0 | H178: 0 | I178: 0 | K178: =SUM(K179:K195) -> 0
A179: ='Org structure'!E174 -> 12.1 - Office Of The Gm - Public Safety | I179: =G179-H179 -> 0 | J179: =IF(I179=0,"",I179/H179) ->  | K179: 0
A180: ='Org structure'!E175 -> 12.2 - Law Enforce And Security Serv - Traffic | I180: 0 | K180: 0
A181: ='Org structure'!E176 -> 12.3 - Law Enforce And Security Serv - Traffic | I181: 0 | K181: 0
A182: ='Org structure'!E177 -> 12.4 - Law Enforce And Security Serv - Lic&Regu | I182: 0 | K182: 0
A183: ='Org structure'!E178 -> 12.5 - Law Enforce And Security Serv - Security | I183: 0 | K183: 0
A184: ='Org structure'!E179 -> 12.6 - Licencing And Traffic Services | I184: 0 | K184: 0
A185: ='Org structure'!E180 -> 12.7 - Traffic Services | I185: 0 | K185: 0
A186: ='Org structure'!E181 -> 12.8 - Traffic Services | I186: 0 | K186: 0
A187: ='Org structure'!E182 -> 12.9 - Disaster Management - Fire And Protect | I187: 0 | K187: 0
A188: ='Org structure'!E183 -> 12.10 - Disaster Management - Disaster Man | I188: 0 | K188: 0
A189: ='Org structure'!E184 -> 12.11 - Office Of The Gm - Local Economic Development | I189: 0 | K189: 0
A190: ='Org structure'!E185 -> 12.12 - Business Regulations And Governance | I190: 0 | K190: 0
A191: ='Org structure'!E186 -> 12.13 - Tourism Development | I191: 0 | K191: 0
A192: ='Org structure'!E187 -> 12.14 - Economic Development | I192: 0 | K192: 0
A193: ='Org structure'!E188 -> 12.15 - Expanded Public Works Programme | I193: 0 | K193: 0
A194: ='Org structure'!E189 -> 12.16 - Community Works Programme | I194: 0 | K194: 0
A195: ='Org structure'!E190 -> 12.17 - Public Transport Operations | I195: 0 | K195: 0
A196: ='Org structure'!A14 -> Vote 13 - Water And Sanitation | C196: =SUM(C197:C209) -> 12572897.95 | D196: 0 | E196: 0 | F196: 0 | G196: 0 | H196: 0 | I196: =G196-H196 -> 0 | J196: =IF(I196=0,"",I196/H196) ->  | K196: =SUM(K197:K209) -> 0
A197: ='Org structure'!E192 -> 13.1 - Office Of The Gm - Water | C197: 0 | D197: 0 | E197: 0 | F197: 0 | G197: 0 | H197: 0 | I197: =G197-H197 -> 0 | J197: =IF(I197=0,"",I197/H197) ->  | K197: 0
A198: ='Org structure'!E193 -> 13.2 - Office Of The Gm - Sanitation | I198: 0 | K198: 0
A199: ='Org structure'!E194 -> 13.3 - Water Services Plan And Develp - Water | C199: 0 | D199: 0 | E199: 0 | F199: 0 | G199: 0 | H199: 0 | I199: 0 | K199: 0
A200: ='Org structure'!E195 -> 13.4 - Water Services Plan And Develp - Sanitat | C200: 0 | D200: 0 | E200: 0 | F200: 0 | G200: 0 | H200: 0 | I200: 0 | K200: 0
... 236 more rows

Sheet C6-FinPos
A1: =muni& " - "&S71E& " - "&date -> MP326 City of Mbombela - Table C6 Monthly Budget Statement - Financial Position - Mid-Year Assessment
A2: =desc -> Description | B2: =head27 -> Ref | C2: =Head1 -> 2021/22 | D2: =Head2 -> Budget Year 2022/23
C3: =Head5 -> Audited Outcome | D3: =Head6 -> Original Budget | E3: =Head7 -> Adjusted Budget | F3: =Head39 -> YearTD actual | G3: =Head8 -> Full Year Forecast
A4: R thousands | B4: 1
A5: ASSETS
A6: Current assets
A7: Cash | C7: 95343237.93 | D7: 113019645 | E7: 113019645 | F7: -10805341.83 | G7: 113019645
A8: Call investment deposits | C8: 49167360.98 | D8: 0 | E8: 0 | F8: 120809390.2 | G8: 0
A9: Consumer debtors | C9: 400856654.1 | D9: 449255058 | E9: 449255058 | F9: 626098138.1 | G9: 449255058
A10: Other debtors | C10: 376395960.9 | D10: 302871682 | E10: 302871682 | F10: 487698518.4 | G10: 302871682
A11: Current portion of long-term receivables | C11: 867240.94 | D11: 548072 | E11: 548072 | F11: 867240.94 | G11: 548072
A12: Inventory | C12: 55210329.77 | D12: 0 | E12: 0 | F12: 54481154.04 | G12: 0
A13: Total current assets | C13: =SUM(C7:C12) -> 977840784.7 | D13: =SUM(D7:D12) -> 865694457 | E13: =SUM(E7:E12) -> 865694457 | F13: =SUM(F7:F12) -> 1279149100 | G13: =SUM(G7:G12) -> 865694457
A15: Non current assets
A16: Long-term receivables | C16: 2089162.24 | D16: 0 | E16: 0 | F16: 1770924.02 | G16: 0
A17: Investments | C17: 0.03 | D17: 0 | E17: 0 | F17: 0.03 | G17: 0
A18: Investment property | C18: 324072975.4 | D18: 321822597 | E18: 321822597 | F18: 322851647.4 | G18: 321822597
A19: Investments in Associate
A20: Property, plant and equipment | C20: 7276983498 | D20: 6314152115 | E20: 6342438863 | F20: 7170598761 | G20: 6342438863
A22: Biological
A23: Intangible | C23: 16863017.57 | D23: 16315800 | E23: 16315800 | F23: 23878469.98 | G23: 16315800
A24: Other non-current assets | C24: 2328919.67 | D24: 2301970 | E24: 2301970 | F24: 2328919.67 | G24: 2301970
A25: Total non current assets | C25: =SUM(C16:C20)+SUM(C22:C24) -> 7622337573 | D25: =SUM(D16:D20)+SUM(D22:D24) -> 6654592482 | E25: =SUM(E16:E20)+SUM(E22:E24) -> 6682879230 | F25: =SUM(F16:F20)+SUM(F22:F24) -> 7521428722 | G25: =SUM(G16:G20)+SUM(G22:G24) -> 6682879230
A26: TOTAL ASSETS | C26: =C13+C25 -> 8600178358 | D26: =D13+D25 -> 7520286939 | E26: =E13+E25 -> 7548573687 | F26: =F13+F25 -> 8800577822 | G26: =G13+G25 -> 7548573687
A28: LIABILITIES
A29: Current liabilities
A30: Bank overdraft | C30: 0 | D30: 0 | E30: 0 | F30: 0 | G30: 0
A31: Borrowing | C31: 20722925.44 | D31: 43336975 | E31: 43336975 | F31: 16204842.86 | G31: 43336975
A32: Consumer deposits | C32: 49469660.08 | D32: 43773117 | E32: 43773117 | F32: 51790472.27 | G32: 43773117
A33: Trade and other payables | C33: 3026519512 | D33: 834326664 | E33: 834326664 | F33: 2968652224 | G33: 834326664
A34: Provisions | C34: 36631860.5 | D34: 22991095 | E34: 22991095 | F34: 36631860.5 | G34: 22991095
A35: Total current liabilities | C35: =SUM(C30:C34) -> 3133343958 | D35: =SUM(D30:D34) -> 944427851 | E35: =SUM(E30:E34) -> 944427851 | F35: =SUM(F30:F34) -> 3073279400 | G35: =SUM(G30:G34) -> 944427851
A37: Non current liabilities
A38: Borrowing | C38: 254902293.6 | D38: 257433920 | E38: 257433920 | F38: 254902293.6 | G38: 257433920
A39: Provisions | C39: 446236276.6 | D39: 636779380 | E39: 636779380 | F39: 390746009.1 | G39: 636779380
A40: Total non current liabilities | C40: =SUM(C38:C39) -> 701138570.2 | D40: =SUM(D38:D39) -> 894213300 | E40: =SUM(E38:E39) -> 894213300 | F40: =SUM(F38:F39) -> 645648302.7 | G40: =SUM(G38:G39) -> 894213300
A41: TOTAL LIABILITIES | C41: =C35+C40 -> 3834482528 | D41: =D35+D40 -> 1838641151 | E41: =E35+E40 -> 1838641151 | F41: =F35+F40 -> 3718927703 | G41: =G35+G40 -> 1838641151
A43: NET ASSETS | B43: 2 | C43: =C26-C41 -> 4765695830 | D43: =D26-D41 -> 5681645788 | E43: =E26-E41 -> 5709932536 | F43: =F26-F41 -> 5081650120 | G43: =G26-G41 -> 5709932536
A45: COMMUNITY WEALTH/EQUITY
A46: Accumulated Surplus/(Deficit) | C46: 4765695830 | D46: 5463619733 | E46: 5463619733 | F46: 5081993061 | G46: 5463619733
A47: Reserves | C47: 0 | D47: 0 | E47: 0 | F47: 0 | G47: 0
A48: TOTAL COMMUNITY WEALTH/EQUITY | B48: 2 | C48: =SUM(C46:C47) -> 4765695830 | D48: =SUM(D46:D47) -> 5463619733 | E48: =SUM(E46:E47) -> 5463619733 | F48: =SUM(F46:F47) -> 5081993061 | G48: =SUM(G46:G47) -> 5463619733
A49: =head27a -> References
A50: 1. Material variances to be explained in Table SC1
A51: 2. Net assets must balance with Total Community Wealth/Equity
A54: check balance | C54: =C43-C48 -> 0 | D54: =D43-D48 -> 218026055 | E54: =E43-E48 -> 246312803 | F54: =F43-F48 -> -342941.73 | G54: =G43-G48 -> 246312803

Sheet C7-CFlow
A1: =muni& " - "&S71F& " - "&date -> MP326 City of Mbombela - Table C7 Monthly Budget Statement - Cash Flow - Mid-Year Assessment
A2: =desc -> Description | B2: =head27 -> Ref | C2: =Head1 -> 2021/22 | D2: =Head2 -> Budget Year 2022/23
C3: =Head5 -> Audited Outcome | D3: =Head6 -> Original Budget | E3: =Head7 -> Adjusted Budget | F3: =Head38 -> Monthly actual | G3: =Head39 -> YearTD actual | H3: =Head40 -> YearTD budget | I3: =Head41 -> YTD variance | J3: =Head41 -> YTD variance | K3: =Head8 -> Full Year Forecast
A4: R thousands | B4: 1 | J4: %
A5: CASH FLOW FROM OPERATING ACTIVITIES
A6: Receipts
A7: Property rates | C7: 718668148.5 | D7: 771449754 | E7: 771449754 | F7: 41981918.33 | G7: 374067329 | H7: 385724877 | I7: =G7-H7 -> -11657547.98 | J7: =IF(I7=0,"",I7/H7) -> -0.03022244267 | K7: 771449754
A8: Service charges | C8: 1514195744 | D8: 1791759807 | E8: 1791759807 | F8: 79640368.42 | G8: 728854434 | H8: 895879903.5 | I8: -167025469.5 | J8: =IF(I8=0,"",I8/H8) -> -0.1864373438 | K8: 1791759807
A9: Other revenue | C9: 970705293.9 | D9: 193563428 | E9: 193563428 | F9: 177142252.1 | G9: 679074231.9 | H9: 96781713.96 | I9: 582292517.9 | J9: =IF(I9=0,"",I9/H9) -> 6.016555133 | K9: 193563428
A10: Transfers and Subsidies - Operational | C10: 13586000 | D10: 963947000 | E10: 963947000 | F10: 3850000 | G10: 11923000 | H10: 481973500 | I10: -470050500 | J10: =IF(I10=0,"",I10/H10) -> -0.9752621254 | K10: 963947000
A11: Transfers and Subsidies - Capital | C11: 644544000 | D11: 480021000 | E11: 480021000 | F11: 105000000 | G11: 328340000 | H11: 240010500 | I11: 88329500 | J11: =IF(I11=0,"",I11/H11) -> 0.3680234823 | K11: 480021000
A12: Interest | C12: 32106321.25 | D12: 0 | E12: 0 | F12: 3383543.74 | G12: 18187721.79 | H12: 0 | I12: 18187721.79 | K12: 0
A13: Dividends | I13: 0
A14: Payments
A15: Suppliers and employees | C15: -6867156816 | D15: -3444838308 | E15: -3444838308 | F15: -423476811.6 | G15: -2932926150 | H15: -1722419154 | I15: =H15-G15 -> 1210506996 | J15: -0.7027946675 | K15: -3444838308
A16: Finance charges | C16: 0 | D16: -34847090 | E16: -34847090 | F16: 0 | G16: 0 | H16: -17423545.02 | I16: =H16-G16 -> -17423545.02 | J16: 1 | K16: -34847090
A17: Transfers and Grants | I17: =H17-G17 -> 0
A18: NET CASH FROM/(USED) OPERATING ACTIVITIES | C18: =SUM(C7:C13)+SUM(C15:C17) -> -2973351309 | D18: 721055591 | E18: 721055591 | F18: -12478729.08 | G18: -792479433.7 | H18: 360527795.6 | I18: =H18-G18 -> 1153007229 | J18: 3.198109115 | K18: =SUM(K7:K13)+SUM(K15:K17) -> 721055591
A20: CASH FLOWS FROM INVESTING ACTIVITIES
A21: Receipts
A22: Proceeds on disposal of PPE | I22: =G22-H22 -> 0 | J22: =IF(I22=0,"",I22/H22) -> 
A24: Decrease (increase) in non-current receivables | C24: -85836.33 | D24: -2089162.24 | E24: 0 | F24: 0 | G24: 1770924.02 | H24: 0 | I24: =G24-H24 -> 1770924.02 | K24: 0
A25: Decrease (increase) in non-current investments | C25: -100 | D25: -0.03 | E25: 0 | F25: 0 | G25: 0.03 | H25: 0 | I25: =G25-H25 -> 0.03 | K25: 0
A26: Payments
A27: Capital assets | C27: -226327512.6 | D27: -652820801 | E27: -652820801 | F27: -34503437.11 | G27: -176280190.2 | H27: -326410401.4 | I27: =H27-G27 -> -150130211.2 | J27: 0.4599430979 | K27: -652820801
A28: NET CASH FROM/(USED) INVESTING ACTIVITIES | C28: =SUM(C22:C25)+C27 -> -226413448.9 | D28: =SUM(D22:D25)+D27 -> -654909963.3 | E28: -652820801 | F28: -34503437.11 | G28: -174509266.1 | H28: -326410401.4 | I28: =H28-G28 -> -151901135.3 | J28: 0.4653685502 | K28: =SUM(K22:K25)+K27 -> -652820801
A30: CASH FLOWS FROM FINANCING ACTIVITIES
A31: Receipts
A32: Short term loans | I32: =G32-H32 -> 0 | J32: =IF(I32=0,"",I32/H32) -> 
A33: Borrowing long term/refinancing | C33: 0 | D33: 0 | E33: 0 | F33: 0 | G33: 0 | H33: 0 | I33: =G33-H33 -> 0 | K33: 0
A34: Increase (decrease) in consumer deposits | C34: 0 | D34: 43773117 | E34: 0 | F34: 0 | G34: 0 | H34: 21886558.5 | I34: =G34-H34 -> -21886558.5 | J34: -1 | K34: 43773117
A35: Payments
A36: Repayment of borrowing | C36: 0 | D36: 0 | E36: 0 | F36: 0 | G36: 9927603.23 | H36: 0 | I36: =H36-G36 -> -9927603.23 | K36: 0
A37: NET CASH FROM/(USED) FINANCING ACTIVITIES | C37: =SUM(C32:C34)+C36 -> 0 | D37: 43773117 | E37: 0 | F37: 0 | G37: 9927603.23 | H37: 21886558.5 | I37: =H37-G37 -> 11958955.27 | J37: 0.5464063832 | K37: =SUM(K32:K34)+K36 -> 43773117
A39: NET INCREASE/ (DECREASE) IN CASH HELD | C39: =C18+C28+C37 -> -3199764758 | D39: 109918744.7 | E39: 68234790 | F39: -46982166.19 | G39: -957061096.6 | H39: 56003952.72 | K39: =K18+K28+K37 -> 112007907
A40: Cash/cash equivalents at beginning: | C40: 62332287.05 | D40: 0 | E40: 0 | F40: 104443493.9 | G40: 5560554.45 | H40: =IF(E40=0, D40, E40) -> 0 | K40: =G40 -> 5560554.45
A41: Cash/cash equivalents at month/year end: | C41: =C39+C40 -> -3137432470 | D41: =D39+D40 -> 109918744.7 | E41: =E39+E40 -> 68234790 | G41: =G39+G40 -> -951500542.1 | H41: =H39+H40 -> 56003952.72 | K41: =K39+K40 -> 117568461.5
A42: References
A43: 1. Material variances to be explained in Table SC1

Sheet SC1
A1: =muni& " - "&S71G& " - "&date -> MP326 City of Mbombela - Supporting Table SC1 Material variance explanations - Mid-Year Assessment
A2: =head27 -> Ref | B2: =desc -> Description
C3: Variance | D3: Reasons for material deviations | E3: Remedial or corrective steps/remarks
B4: R thousands
A5: 1 | B5: ='C4-FinPerf RE'!A5 -> Revenue By Source
B6: Client elected Not to populate this sheet
A10: 2 | B10: ='C4-FinPerf RE'!A24 -> Expenditure By Type
B11: Client elected Not to populate this sheet
A15: 3 | B15: =RIGHT('C5-Capex'!A40,19) -> Capital Expenditure
B16: Client elected Not to populate this sheet
A20: 4 | B20: Financial Position
B21: Client elected Not to populate this sheet
A25: 5 | B25: Cash Flow
B26: Client elected Not to populate this sheet
A30: 6 | B30: Measureable performance
B31: Client elected Not to populate this sheet
A35: 7 | B35: Municipal Entities
B36: Client elected Not to populate this sheet
A41: =head27a -> References
A42: 1. Revenue for each source, vote and standard classification
A43: 2. Expenditure for each type, vote and standard classification
A44: 3. Capital expenditure for each vote and standard classification
A45: 4. Explain any material variances between the annual budget and the expected financial position based on current trends
A46: 5. Cash receipts by source and cash payments by type where not explained under revenue and expenditure
A47: 6. For Sept, Dec, Mar and Jun statements explain any material variances in achievement of measurable performance objectives

Sheet SC2
A1: =muni& " - "&S71H& " - "&Head57 -> MP326 City of Mbombela - Supporting Table SC2 Monthly Budget Statement - performance indicators - Mid-Year Assessment
A2: Description of financial indicator | B2: Basis of calculation | C2: =head27 -> Ref | D2: =Head1 -> 2021/22 | E2: =Head2 -> Budget Year 2022/23
D3: =Head5 -> Audited Outcome | E3: =Head6 -> Original Budget | F3: =Head7 -> Adjusted Budget | G3: =Head39 -> YearTD actual | H3: =Head8 -> Full Year Forecast
A5: Borrowing Management
A7: Capital Charges to Operating Expenditure | B7: Interest & principal paid/Operating Expenditure | D7: =IF(ISERROR((D42-D43)/D45),0,((D42-D43)/D45)) -> 0.02747329295 | E7: =IF(ISERROR((E42+E44)/E45),0,((E42+E44)/E45)) -> 0.138082716 | F7: =IF(ISERROR((F42+F44)/F45),0,((F42+F44)/F45)) -> 0.1380826927 | G7: =IF(ISERROR((G42+G44)/G45),0,((G42+G44)/G45)) -> 0.005492763903 | H7: =IF(ISERROR((H42+H44)/H45),0,((H42+H44)/H45)) -> 0.02621988657
A8: Borrowed funding of 'own' capital expenditure | B8: Borrowings/Capital expenditure excl. transfers and grants | D8: =IF(ISERROR(D47/D46),0,(D47/D46)) -> 0 | E8: =IF(ISERROR(E47/E46),0,(E47/E46)) -> 0 | F8: =IF(ISERROR(F47/F46),0,(F47/F46)) -> 0 | G8: =IF(ISERROR(G47/G46),0,(G47/G46)) -> 0 | H8: =IF(ISERROR(H47/H46),0,(H47/H46)) -> 0
A9: Safety of Capital
A10: Debt to Equity | B10: Loans, Accounts Payable, Overdraft & Tax Provision/ Funds & Reserves | D10: =IF(ISERROR(D48/D49),0,(D48/D49)) -> 0.6928987601 | E10: =IF(ISERROR(E48/E49),0,(E48/E49)) -> 0.2077555933 | F10: =IF(ISERROR(F48/F49),0,(F48/F49)) -> 0.2077555933 | G10: =IF(ISERROR(G48/G49),0,(G48/G49)) -> 0.6374977931 | H10: =IF(ISERROR(H48/H49),0,(H48/H49)) -> 0.2077555933
A11: Gearing | B11: Long Term Borrowing/ Funds & Reserves | D11: =IF(ISERROR(D51/D50),0,(D51/D50)) -> 0 | E11: =IF(ISERROR(E51/E50),0,(E51/E50)) -> 0 | F11: =IF(ISERROR(F51/F50),0,(F51/F50)) -> 0 | G11: =IF(ISERROR(G51/G50),0,(G51/G50)) -> 0 | H11: =IF(ISERROR(H51/H50),0,(H51/H50)) -> 0
A12: Liquidity
A13: Current Ratio | B13: Current assets/current liabilities | C13: 1 | D13: =IF(ISERROR(D52/D53),0,(D52/D53)) -> 0.312075788 | E13: =IF(ISERROR(E52/E53),0,(E52/E53)) -> 0.9166337652 | F13: =IF(ISERROR(F52/F53),0,(F52/F53)) -> 0.9166337652 | G13: =IF(ISERROR(G52/G53),0,(G52/G53)) -> 0.4162163388 | H13: =IF(ISERROR(H52/H53),0,(H52/H53)) -> 0.9166337652
A14: Liquidity Ratio | B14: Monetary Assets/Current Liabilities | D14: =IF(ISERROR(D54/D53),0,(D54/D53)) -> 0.04612024752 | E14: =IF(ISERROR(E54/E53),0,(E54/E53)) -> 0.119669962 | F14: =IF(ISERROR(F54/F53),0,(F54/F53)) -> 0.119669962 | G14: =IF(ISERROR(G54/G53),0,(G54/G53)) -> 0.03579370244 | H14: =IF(ISERROR(H54/H53),0,(H54/H53)) -> 0.119669962
A15: Revenue Management
A16: Annual Debtors Collection Rate (Payment Level %) | B16: Last 12 Mths Receipts/ Last 12 Mths Billing
A17: Outstanding Debtors to Revenue | B17: Total Outstanding Debtors to Annual Revenue | D17: =IF(ISERROR(D59/D55),0,(D59/D55)) -> 0.2321256084 | E17: =IF(ISERROR(E59/E55),0,(E59/E55)) -> 0.1928189359 | F17: =IF(ISERROR(F59/F55),0,(F59/F55)) -> 0.1928189359 | G17: =IF(ISERROR(G59/G55),0,(G59/G55)) -> 0.5707546618 | H17: =IF(ISERROR(H59/H55),0,(H59/H55)) -> 0.1928189359
A18: Longstanding Debtors Recovered | B18: Debtors > 12 Mths Recovered/Total Debtors > 12 Months Old | D18: =IF(ISERROR(D64/D63),0,(D64/D63)) -> 0 | E18: =IF(ISERROR(E64/E63),0,(E64/E63)) -> 0 | F18: =IF(ISERROR(F64/F63),0,(F64/F63)) -> 0 | G18: =IF(ISERROR(G64/G63),0,(G64/G63)) -> 0 | H18: =IF(ISERROR(H64/H63),0,(H64/H63)) -> 0
A19: Creditors Management
A20: Creditors System Efficiency | B20: % of Creditors Paid Within Terms (within MFMA s 65(e)) | D20: 0 | E20: 0.8 | F20: 0.8 | G20: 0 | H20: 0.8
A21: Funding of Provisions
A22: Percentage Of Provisions Not Funded | B22: Unfunded Provisions/Total Provisions
A23: Other Indicators
A24: Electricity Distribution Losses | B24: % Volume (units purchased and generated less units sold)/units purchased and generated | C24: 2 | D24: 0 | E24: 0.1254 | F24: 0.1254 | G24: 0 | H24: 0.1254
A25: Water Distribution Losses | B25: % Volume (units purchased and own source less units sold)/Total units purchased and own source | C25: 2 | D25: 0 | E25: 0.121 | F25: 0.121 | G25: 0 | H25: 0.121
A26: Employee costs | B26: Employee costs/Total Revenue - capital revenue | D26: =IF(ISERROR(D40/D55),0,(D40/D55)) -> 0.3565462355 | E26: =IF(ISERROR(E40/E55),0,(E40/E55)) -> 0.3045606358 | F26: =IF(ISERROR(F40/F55),0,(F40/F55)) -> 0.3047285745 | G26: =IF(ISERROR(G40/G55),0,(G40/G55)) -> 0.2979851715 | H26: =IF(ISERROR(H40/H55),0,(H40/H55)) -> 0.3047285745
A27: Repairs & Maintenance | B27: R&M/Total Revenue - capital revenue | D27: =IF(ISERROR(D41/D55),0,(D41/D55)) -> 0.1493322855 | E27: =IF(ISERROR(E41/E55),0,(E41/E55)) -> 0.0996655579 | F27: =IF(ISERROR(F41/F55),0,(F41/F55)) -> 0.09893185512 | G27: =IF(ISERROR(G41/G55),0,(G41/G55)) -> 0.08557814036 | H27: =IF(ISERROR(H41/H55),0,(H41/H55)) -> 0.09893185512
A28: Interest & Depreciation | B28: I&D/Total Revenue - capital revenue | D28: =IF(ISERROR((D42+D44)/D55),0,((D42+D44)/D55)) -> 0.1990516096 | E28: =IF(ISERROR((E42+E44)/E55),0,((E42+E44)/E55)) -> 0.1319072271 | F28: =IF(ISERROR((F42+F44)/F55),0,((F42+F44)/F55)) -> 0.1319072271 | G28: =IF(ISERROR((G42+G44)/G55),0,((G42+G44)/G55)) -> 0.004962145755 | H28: =IF(ISERROR((H42+H44)/H55),0,((H42+H44)/H55)) -> 0.02504725584
A29: IDP regulation financial viability indicators
A30: i. Debt coverage | B30: (Total Operating Revenue - Operating Grants)/Debt service payments due within financial year)
A31: ii. O/S Service Debtors to Revenue | B31: Total outstanding service debtors/annual revenue received for services
A32: iii. Cost coverage | B32: (Available cash + Investments)/monthly fixed operational expenditure
A33: References
A34: 1. Consumer debtors > 12 months old are excluded from current assets.
A35: 2. Material variances to be explained.
A37: Calculations
A38: ='C6-FinPos'!A38 -> Borrowing | D38: ='C6-FinPos'!C38 -> 254902293.6 | E38: ='C6-FinPos'!D38 -> 257433920 | F38: ='C6-FinPos'!E38 -> 257433920 | G38: ='C6-FinPos'!F38 -> 254902293.6 | H38: 0
A39: Total Assets | D39: ='C6-FinPos'!C26 -> 8600178358 | E39: ='C6-FinPos'!D26 -> 7520286939 | F39: ='C6-FinPos'!E26 -> 7548573687 | G39: ='C6-FinPos'!F26 -> 8800577822 | H39: ='C6-FinPos'!G26 -> 7548573687
A40: ='C4-FinPerf RE'!A25 -> Employee related costs | D40: ='C4-FinPerf RE'!C25 -> 1198405425 | E40: ='C4-FinPerf RE'!D25 -> 1188862070 | F40: ='C4-FinPerf RE'!E25 -> 1189517624 | G40: ='C4-FinPerf RE'!G25 -> 582879201.8 | H40: ='C4-FinPerf RE'!K25 -> 1189517624
A41: =A27 -> Repairs & Maintenance | D41: 501928230.3 | E41: 389047656 | F41: 386183624 | G41: 167396645.6 | H41: 386183624
A42: Interest (finance charges) | D42: ='C4-FinPerf RE'!C29 -> 115406494 | E42: ='C4-FinPerf RE'!D29 -> 34847091 | F42: ='C4-FinPerf RE'!E29 -> 34847091 | G42: ='C4-FinPerf RE'!G29 -> 9706293.58 | H42: ='C4-FinPerf RE'!K29 -> 34847091
A43: Principal paid | D43: =-'C7-CFlow'!C36 -> 0 | E43: =-'C7-CFlow'!D36 -> 0 | F43: =-'C7-CFlow'!E36 -> 0 | G43: =-'C7-CFlow'!G36 -> -9927603.23 | H43: =-'C7-CFlow'!K36 -> 0
A44: Depreciation | D44: ='C4-FinPerf RE'!C28 -> 553635849 | E44: ='C4-FinPerf RE'!D28 -> 480056940 | F44: ='C4-FinPerf RE'!E28 -> 480056940 | H44: ='C4-FinPerf RE'!K26 -> 62925664
A45: Operating expenditure | D45: ='C4-FinPerf RE'!C36 -> 4200679337 | E45: ='C4-FinPerf RE'!D36 -> 3728953527 | F45: ='C4-FinPerf RE'!E36 -> 3728954156 | G45: ='C4-FinPerf RE'!G36 -> 1767105551 | H45: ='C4-FinPerf RE'!K36 -> 3728954156
A46: ='C5-Capex'!A40 -> Total Capital Expenditure | D46: ='C5-Capex'!C40 -> 226327512.6 | E46: ='C5-Capex'!D40 -> 652820801 | F46: ='C5-Capex'!E40 -> 681107549 | G46: ='C5-Capex'!G40 -> 176280190.2 | H46: ='C5-Capex'!K40 -> 681107549
A47: Borrowed funding for capital | D47: ='C5-Capex'!C72 -> 0 | E47: ='C5-Capex'!D72 -> 0 | F47: ='C5-Capex'!E72 -> 0 | G47: ='C5-Capex'!G72 -> 0 | H47: ='C5-Capex'!K72 -> 0
A48: Debt | D48: ='C6-FinPos'!C30+'C6-FinPos'!C31+'C6-FinPos'!C33+'C6-FinPos'!C38 -> 3302144731 | E48: ='C6-FinPos'!D30+'C6-FinPos'!D31+'C6-FinPos'!D33+'C6-FinPos'!D38 -> 1135097559 | F48: ='C6-FinPos'!E30+'C6-FinPos'!E31+'C6-FinPos'!E33+'C6-FinPos'!E38 -> 1135097559 | G48: ='C6-FinPos'!F30+'C6-FinPos'!F31+'C6-FinPos'!F33+'C6-FinPos'!F38 -> 3239759361 | H48: ='C6-FinPos'!G30+'C6-FinPos'!G31+'C6-FinPos'!G33+'C6-FinPos'!G38 -> 1135097559
A49: Equity | D49: ='C6-FinPos'!C48 -> 4765695830 | E49: ='C6-FinPos'!D48 -> 5463619733 | F49: ='C6-FinPos'!E48 -> 5463619733 | G49: ='C6-FinPos'!F48 -> 5081993061 | H49: ='C6-FinPos'!G48 -> 5463619733
A50: ='C6-FinPos'!A47 -> Reserves | D50: ='C6-FinPos'!C47 -> 0 | E50: ='C6-FinPos'!D47 -> 0 | F50: ='C6-FinPos'!E47 -> 0 | G50: ='C6-FinPos'!F47 -> 0 | H50: ='C6-FinPos'!G47 -> 0
A51: ='C6-FinPos'!A38 -> Borrowing | D51: ='C6-FinPos'!C38 -> 254902293.6 | E51: ='C6-FinPos'!D38 -> 257433920 | F51: ='C6-FinPos'!E38 -> 257433920 | G51: ='C6-FinPos'!F38 -> 254902293.6 | H51: ='C6-FinPos'!G38 -> 257433920
A52: ='C6-FinPos'!A6 -> Current assets | D52: ='C6-FinPos'!C13 -> 977840784.7 | E52: ='C6-FinPos'!D13 -> 865694457 | F52: ='C6-FinPos'!E13 -> 865694457 | G52: ='C6-FinPos'!F13 -> 1279149100 | H52: ='C6-FinPos'!G13 -> 865694457
A53: ='C6-FinPos'!A29 -> Current liabilities | D53: ='C6-FinPos'!C35 -> 3133343958 | E53: ='C6-FinPos'!D35 -> 944427851 | F53: ='C6-FinPos'!E35 -> 944427851 | G53: ='C6-FinPos'!F35 -> 3073279400 | H53: ='C6-FinPos'!G35 -> 944427851
A54: Monetary assets | D54: ='C6-FinPos'!C7+'C6-FinPos'!C8 -> 144510598.9 | E54: ='C6-FinPos'!D7+'C6-FinPos'!D8 -> 113019645 | F54: ='C6-FinPos'!E7+'C6-FinPos'!E8 -> 113019645 | G54: ='C6-FinPos'!F7+'C6-FinPos'!F8 -> 110004048.4 | H54: ='C6-FinPos'!G7+'C6-FinPos'!G8 -> 113019645
A55: ='C4-FinPerf RE'!A22 -> Total Revenue (excluding capital transfers and contributions) | D55: ='C4-FinPerf RE'!C22 -> 3361150127 | E55: ='C4-FinPerf RE'!D22 -> 3903531613 | F55: ='C4-FinPerf RE'!E22 -> 3903531613 | G55: ='C4-FinPerf RE'!G22 -> 1956067810 | H55: ='C4-FinPerf RE'!K22 -> 3903531613
A56: ='C4-FinPerf RE'!A19 -> Transfers and subsidies | D56: ='C4-FinPerf RE'!C19 -> 913257829 | E56: ='C4-FinPerf RE'!D19 -> 963947000 | F56: ='C4-FinPerf RE'!E19 -> 963947000 | G56: ='C4-FinPerf RE'!G19 -> 685776698.7 | H56: ='C4-FinPerf RE'!K19 -> 963947000
A57: ='C4-FinPerf RE'!A39 -> Transfers and subsidies - capital (monetary allocations) (National / Provincial and District) | D57: ='C4-FinPerf RE'!C39 -> 436329950.9 | E57: ='C4-FinPerf RE'!D39 -> 480021000 | F57: ='C4-FinPerf RE'!E39 -> 480021000 | G57: ='C4-FinPerf RE'!G39 -> 146259993.4 | H57: ='C4-FinPerf RE'!K39 -> 480021000
A58: Debt service payments | D58: ='C7-CFlow'!C12+'C7-CFlow'!C36 -> 32106321.25 | E58: ='C7-CFlow'!D12+'C7-CFlow'!D36 -> 0 | F58: ='C7-CFlow'!E12+'C7-CFlow'!E36 -> 0 | G58: ='C7-CFlow'!G16+'C7-CFlow'!G36 -> 9927603.23 | H58: ='C7-CFlow'!K16+'C7-CFlow'!K36 -> -34847090
A59: Outstanding debtors (receivables) | D59: ='C6-FinPos'!C9+'C6-FinPos'!C10+'C6-FinPos'!C11+'C6-FinPos'!C16 -> 780209018.2 | E59: ='C6-FinPos'!D9+'C6-FinPos'!D10+'C6-FinPos'!D11+'C6-FinPos'!D16 -> 752674812 | F59: ='C6-FinPos'!E9+'C6-FinPos'!E10+'C6-FinPos'!E11+'C6-FinPos'!E16 -> 752674812 | G59: ='C6-FinPos'!F9+'C6-FinPos'!F10+'C6-FinPos'!F11+'C6-FinPos'!F16 -> 1116434821 | H59: ='C6-FinPos'!G9+'C6-FinPos'!G10+'C6-FinPos'!G11+'C6-FinPos'!G16 -> 752674812
A60: Annual services revenue | D60: =SUM('C4-FinPerf RE'!C7:C11) -> 1549891754 | E60: =SUM('C4-FinPerf RE'!D7:D11) -> 1827652608 | F60: =SUM('C4-FinPerf RE'!E7:E11) -> 1827652608 | G60: =SUM('C4-FinPerf RE'!G7:G11) -> 810303257.2
A61: Cash + investments | B61: Including LT investments | D61: ='C6-FinPos'!C7+'C6-FinPos'!C8+'C6-FinPos'!C17-'C6-FinPos'!C30 -> 144510598.9 | E61: ='C6-FinPos'!D7+'C6-FinPos'!D8+'C6-FinPos'!D17-'C6-FinPos'!D30 -> 113019645 | F61: ='C6-FinPos'!E7+'C6-FinPos'!E8+'C6-FinPos'!E17-'C6-FinPos'!E30 -> 113019645 | G61: ='C6-FinPos'!F7+'C6-FinPos'!F8+'C6-FinPos'!F17-'C6-FinPos'!F30 -> 110004048.4 | H61: ='C6-FinPos'!G7+'C6-FinPos'!G8+'C6-FinPos'!G17-'C6-FinPos'!G30 -> 113019645
A62: Fixed operational expend. (monthly)
A63: Longstanding debtors outstanding | D63: ='C6-FinPos'!C16 -> 2089162.24 | E63: ='C6-FinPos'!D16 -> 0 | F63: ='C6-FinPos'!E16 -> 0 | G63: ='C6-FinPos'!F16 -> 1770924.02 | H63: ='C6-FinPos'!G16 -> 0
A64: Longstanding debtors recovered
A65: Attorney collections

Sheet SC3
A1: =muni& " - "&S71I& " - "&Head57 -> MP326 City of Mbombela - Supporting Table SC3 Monthly Budget Statement - aged debtors - Mid-Year Assessment
A2: =desc -> Description | C2: =Head2 -> Budget Year 2022/23
A3: R thousands | B3: NT Code | C3: 0-30 Days | D3: 31-60 Days | E3: 61-90 Days | F3: 91-120 Days | G3: 121-150 Dys | H3: 151-180 Dys | I3: 181 Dys-1 Yr | J3: Over 1Yr | K3: Total | L3: Total over 90 days | M3: Actual Bad Debts Written Off against Debtors | N3: Impairment - Bad Debts i.t.o Council Policy
A4: Debtors Age Analysis By Income Source
A5: Trade and Other Receivables from Exchange Transactions - Water | B5: 1200 | C5: 11376681 | D5: 4034 | E5: 10835207 | F5: 7641208 | G5: 7012863 | H5: 4971827 | I5: 28412607 | J5: 14210394 | K5: =SUM(C5:J5) -> 84464821 | L5: =SUM(F5:J5) -> 62248899 | M5: 0 | N5: 0
A6: Trade and Other Receivables from Exchange Transactions - Electricity | B6: 1300 | C6: 89626567 | D6: 10784 | E6: 26545461 | F6: 19690986 | G6: 13344359 | H6: 10061586 | I6: 25700900 | J6: 12220176 | K6: =SUM(C6:J6) -> 197200819 | L6: =SUM(F6:J6) -> 81018007 | M6: 0 | N6: 0
A7: Receivables from Non-exchange Transactions - Property Rates | B7: 1400 | C7: 47122647 | D7: 87052 | E7: 15047460 | F7: 12420097 | G7: 11368471 | H7: 11278594 | I7: 66255382 | J7: 91886874 | K7: =SUM(C7:J7) -> 255466577 | L7: 193209418 | M7: 0 | N7: 0
A8: Receivables from Exchange Transactions - Waste Water Management | B8: 1500 | C8: 2339179 | D8: 89 | E8: 1436423 | F8: 1559436 | G8: 1219278 | H8: 884219 | I8: 5430146 | J8: 4460851 | K8: 17329621 | L8: 13553930 | M8: 0 | N8: 0
A9: Receivables from Exchange Transactions - Waste Management | B9: 1600 | C9: 13061442 | D9: 14903 | E9: 6334177 | F9: 5565373 | G9: 5326794 | H9: 5171474 | I9: 31342091 | J9: 8936517 | K9: 75752771 | L9: =SUM(F9:J9) -> 56342249 | M9: 0 | N9: 0
A10: Receivables from Exchange Transactions - Property Rental Debtors | B10: 1700 | C10: 176812 | D10: 0 | E10: 126342 | F10: 124268 | G10: 124256 | H10: 124114 | I10: 662604 | J10: 879364 | K10: 2217760 | L10: =SUM(F10:J10) -> 1914606 | M10: 0 | N10: 0
A11: Interest on Arrear Debtor Accounts | B11: 1810 | C11: 3307846 | D11: 0 | E11: 2935540 | F11: 2557661 | G11: 2298326 | H11: 2078304 | I11: 15351075 | J11: 32587963 | K11: 61116715 | L11: 54873329 | M11: 0 | N11: 0
A12: Recoverable unauthorised, irregular, fruitless and wasteful expenditure | B12: 1820 | K12: 0 | L12: 0
A13: Other | B13: 1900 | C13: 3212354 | D13: 233278 | E13: 2785828 | F13: 1523552 | G13: 2080766 | H13: 1282209 | I13: 9167678 | J13: 6404637 | K13: 26690302 | L13: =SUM(F13:J13) -> 20458842 | M13: 0 | N13: 0
A14: Total By Income Source | B14: 2000 | C14: =SUM(C5:C13) -> 170223528 | D14: 350140 | E14: 66046438 | F14: 51082581 | G14: 42775113 | H14: 35852327 | I14: 182322483 | J14: 171586776 | K14: 720239386 | L14: =SUM(L5:L13) -> 483619280 | M14: 0 | N14: 0
A15: =Head1&" - totals only" -> 2021/22 - totals only | K15: =SUM(C15:J15) -> 0 | L15: =SUM(F15:J15) -> 0
A16: Debtors Age Analysis By Customer Group
A17: Organs of State | B17: 2200 | C17: 18035356 | D17: 71768 | E17: 17848577 | F17: 13401790 | G17: 5431830 | H17: 5117978 | I17: 25440112 | J17: 98446182 | K17: =SUM(C17:J17) -> 183793593 | L17: =SUM(F17:J17) -> 147837892 | M17: 0 | N17: 0
A18: Commercial | B18: 2300 | C18: 41118709 | D18: 3047 | E18: 10983107 | F18: 9158556 | G18: 8672705 | H18: 8051965 | I18: 26811727 | J18: 22255742 | K18: =SUM(C18:J18) -> 127055558 | L18: =SUM(F18:J18) -> 74950695 | M18: 0 | N18: 0
A19: Households | B19: 2400 | C19: 110304107 | D19: 275118 | E19: 36692260 | F19: 28044209 | G19: 28239505 | H19: 22309875 | I19: 127555805 | J19: 50383153 | K19: =SUM(C19:J19) -> 403804032 | L19: =SUM(F19:J19) -> 256532547 | M19: 0 | N19: 0
A20: Other | B20: 2500 | C20: 765356 | D20: 207 | E20: 522494 | F20: 478026 | G20: 431073 | H20: 372509 | I20: 2514839 | J20: 501699 | K20: =SUM(C20:J20) -> 5586203 | L20: =SUM(F20:J20) -> 4298146 | M20: 0 | N20: 0
A21: Total By Customer Group | B21: 2600 | C21: =SUM(C17:C20) -> 170223528 | D21: 350140 | E21: 66046438 | F21: 51082581 | G21: 42775113 | H21: 35852327 | I21: 182322483 | J21: =SUM(J17:J20) -> 171586776 | K21: =SUM(K17:K20) -> 720239386 | L21: =SUM(L17:L20) -> 483619280 | M21: =SUM(M17:M20) -> 0 | N21: =SUM(N17:N20) -> 0
A22: Notes
A23: Material increases in value of debtors' categories compared to previous month to be explained
A24: Bad debts = amounts actually written off in the month
A25: Total by Income Source must reconcile with Total by Customer Group
C26: =C14-C21 -> 0 | D26: =D14-D21 -> 0 | E26: =E14-E21 -> 0 | F26: 0 | G26: 0 | H26: 0 | I26: 0 | J26: =J14-J21 -> 0 | K26: 0
C27: =IF(C26=0,"","MUST AGREE") ->  | D27: =IF(D26=0,"","MUST AGREE") -> 

Sheet SC4
A1: =muni& " - "&S71J& " - "&Head57 -> MP326 City of Mbombela - Supporting Table SC4 Monthly Budget Statement - aged creditors - Mid-Year Assessment
A2: =desc -> Description | B2: NT Code | C2: =Head2 -> Budget Year 2022/23 | L2: Prior year totals for chart (same period)
C3: 0 - 30 Days | D3: 31 - 60 Days | E3: 61 - 90 Days | F3: 91 - 120 Days | G3: 121 - 150 Days | H3: 151 - 180 Days | I3: 181 Days - 1 Year | J3: Over 1 Year | K3: Total
A4: R thousands
A5: Creditors Age Analysis By Customer Type
A6: Bulk Electricity | B6: 0100 | C6: 90692899.36 | D6: 86727297.84 | E6: 90461937.24 | F6: 78189797.54 | G6: 128307373.8 | H6: 122050274.9 | I6: 628110734.7 | J6: 9137562.93 | K6: =SUM(C6:J6) -> 1233677878
A7: Bulk Water | B7: 0200 | C7: 0 | D7: 0 | E7: 601343.06 | F7: 5957347.63 | G7: 1109881.23 | H7: 1874213.56 | I7: 2079137.8 | J7: 198902731.6 | K7: =SUM(C7:J7) -> 210524654.8
A8: PAYE deductions | B8: 0300 | K8: 0
A9: VAT (output less input) | B9: 0400 | K9: 0
A10: Pensions / Retirement deductions | B10: 0500 | K10: 0
A11: Loan repayments | B11: 0600 | K11: 0
A12: Trade Creditors | B12: 0700 | C12: 3678273.29 | D12: 18368184.47 | E12: 18233448.41 | F12: 11443808.15 | G12: 14788636.83 | H12: 26628352.07 | I12: 90919693.33 | J12: 126440174.4 | K12: 310500571
A13: Auditor General | B13: 0800 | C13: 0 | D13: 0 | E13: 0 | F13: 0 | G13: 0 | H13: 0 | I13: 0 | J13: 7518150.06 | K13: 7518150.06
A14: Other | B14: 0900 | C14: 51878.11 | D14: 74153.47 | E14: 0 | F14: 54204.1 | G14: 60978.66 | H14: 1759.64 | I14: 299061.17 | J14: 211902553.8 | K14: =SUM(C14:J14) -> 212444589
A15: Total By Customer Type | B15: 1000 | C15: =SUM(C6:C14) -> 94423050.76 | D15: =SUM(D6:D14) -> 105169635.8 | E15: 109296728.7 | F15: 95645157.42 | G15: 144266870.6 | H15: 150554600.2 | I15: 721408627 | J15: 553901172.8 | K15: =SUM(K6:K14) -> 1974665843 | L15: =SUM(L6:L14) -> 0
A16: Notes
A17: Material increases in value of creditors' categories compared to previous month to be explained

Sheet SC5
A1: =muni& " - "&S71K& " - "&Head57 -> MP326 City of Mbombela - Supporting Table SC5 Monthly Budget Statement - investment portfolio - Mid-Year Assessment
A2: Investments by maturity Name of institution & investment ID | B2: Ref | C2: Period of Investment | D2: Type of Investment | E2: Capital Guarantee (Yes/ No) | F2: Variable or Fixed interest rate | G2: Interest Rate ᶟ | H2: Commission Paid (Rands) | I2: Commission Recipient | J2: Expiry date of investment | K2: Opening balance | L2: Interest to be realised | M2: Partial / Premature Withdrawal (4) | N2: Investment Top Up | O2: Closing Balance
A3: R thousands | C3: Yrs/Months
A4: Municipality
O5: =SUM(K5:N5) -> 0
A6: Municipality sub-total | K6: =SUM(K5:K5) -> 0 | M6: =SUM(M5:M5) -> 0 | N6: =SUM(N5:N5) -> 0 | O6: =SUM(O5:O5) -> 0
A8: Entities
O9: =SUM(K9:N9) -> 0
O10: 0
O11: 0
O12: 0
O13: 0
O14: 0
O15: 0
A16: Entities sub-total | K16: =SUM(K9:K15) -> 0 | M16: =SUM(M9:M15) -> 0 | N16: =SUM(N9:N15) -> 0 | O16: =SUM(O9:O15) -> 0
A18: TOTAL INVESTMENTS AND INTEREST | B18: 2 | K18: =K6+K16 -> 0 | M18: =M6+M16 -> 0 | N18: =N6+N16 -> 0 | O18: =O6+O16 -> 0
A19: =head27a -> References
A20: 2. List investments in expiry date order
A21: 3. If 'variable' is selected in column F, input interest rate range
A22: 4. Withdrawals to be entered as negative

Sheet SC6
A1: =muni& " - "&S71L& " - "&Head57 -> MP326 City of Mbombela - Supporting Table SC6 Monthly Budget Statement - transfers and grant receipts - Mid-Year Assessment
A2: =desc -> Description | B2: =head27 -> Ref | C2: =Head1 -> 2021/22 | D2: =Head2 -> Budget Year 2022/23
C3: =Head5 -> Audited Outcome | D3: =Head6 -> Original Budget | E3: =Head7 -> Adjusted Budget | F3: =Head38 -> Monthly actual | G3: =Head39 -> YearTD actual | H3: =Head40 -> YearTD budget | I3: =Head41 -> YTD variance | J3: =Head41 -> YTD variance | K3: =Head8 -> Full Year Forecast
A4: R thousands | J4: %
A5: RECEIPTS: | B5: 1,2
A7: Operating Transfers and Grants
A8: National Government: | C8: =SUM(C9:C18) -> 913257829 | D8: 963947000 | E8: 963947000 | F8: 287022154 | G8: 685776698.7 | H8: 481973484 | I8: =G8-H8 -> 203803214.7 | J8: =IF(H8=0,"",I8/H8) -> 0.4228515084 | K8: =SUM(K9:K18) -> 963947000
A9: Energy Efficiency and Demand Side Management Grant | C9: 5217391 | D9: 4284000 | E9: 4284000 | F9: 0 | G9: 4284000.5 | H9: 2142000 | I9: 2142000.5 | J9: 1.000000233 | K9: 4284000
A10: Equitable Share | C10: 834510000 | D10: 948458000 | E10: 948458000 | F10: 282939000 | G10: 652837000 | H10: 474228990 | I10: 178608010 | J10: 0.3766281981 | K10: 948458000
A11: Expanded Public Works Programme Integrated Grant | C11: 7036000.14 | D11: 8555000 | E11: 8555000 | F11: 928308 | G11: 8582876.46 | H11: 4277496 | I11: 4305380.46 | J11: 1.006518875 | K11: 8555000
A12: Integrated National Electrification Programme Grant | C12: 9809478.37 | D12: 0 | E12: 0 | F12: 338042 | G12: 4007058.92 | H12: 0 | I12: 4007058.92 | K12: 0
A13: Local Government Financial Management Grant | C13: 2549999.74 | D13: 2650000 | E13: 2650000 | F13: 568361 | G13: 955246 | H13: 1324998 | I13: -369752 | J13: -0.2790585344 | K13: 2650000
A14: Municipal Demarcation Transition Grant | B14: 3 | C14: 0 | D14: 0 | E14: 0 | F14: 0 | G14: 0 | H14: 0 | I14: 0 | K14: 0
A15: Municipal Disaster Relief Grant | C15: 0 | D15: 0 | E15: 0 | F15: 0 | G15: 0 | H15: 0 | I15: 0 | K15: 0
A16: Municipal Infrastructure Grant | C16: 46164650.76 | D16: 0 | E16: 0 | F16: 2248443 | G16: 15110516.83 | H16: 0 | I16: 15110516.83 | K16: 0
A17: Neighbourhood Development Partnership Grant | C17: 1454740 | D17: 0 | E17: 0 | F17: 0 | G17: 0 | H17: 0 | I17: 0 | K17: 0
A18: Public Transport Network Grant | C18: 6515569 | D18: 0 | E18: 0 | F18: 0 | G18: 0 | H18: 0 | I18: 0 | K18: 0
A19: Other transfers and grants [insert description] | I19: =G19-H19 -> 0 | J19: =IF(I19=0,"",I19/H19) -> 
A20: Provincial Government: | C20: =SUM(C21:C22) -> 0 | D20: 0 | E20: 0 | F20: 0 | G20: 0 | H20: 0 | I20: 0 | K20: =SUM(K21:K22) -> 0
I21: =G21-H21 -> 0
A22: Other transfers and grants [insert description] | I22: 0
A23: District Municipality: | C23: =SUM(C24:C24) -> 0 | D23: 0 | E23: 0 | F23: 0 | G23: 0 | H23: 0 | I23: 0 | K23: =SUM(K24:K24) -> 0
A24: [insert description] | I24: 0
A25: Other grant providers: | C25: =SUM(C26:C31) -> 0 | D25: 0 | E25: 0 | F25: 0 | G25: 0 | H25: 0 | I25: =G25-H25 -> 0 | J25: =IF(H25=0,"",I25/H25) ->  | K25: =SUM(K26:K31) -> 0
A26: Injury on Duty | C26: 0 | D26: 0 | E26: 0 | F26: 0 | G26: 0 | H26: 0 | I26: 0 | K26: 0
A27: Municipal Demarcation Board | C27: 0 | D27: 0 | E27: 0 | F27: 0 | G27: 0 | H27: 0 | I27: 0 | K27: 0
A28: National Heritage Council South Africa | C28: 0 | D28: 0 | E28: 0 | F28: 0 | G28: 0 | H28: 0 | I28: 0 | K28: 0
A29: National Skills Fund | C29: 0 | D29: 0 | E29: 0 | F29: 0 | G29: 0 | H29: 0 | I29: 0 | K29: 0
A30: Social Relief | C30: 0 | D30: 0 | E30: 0 | F30: 0 | G30: 0 | H30: 0 | I30: 0 | K30: 0
A31: Unspecified | C31: 0 | D31: 0 | E31: 0 | F31: 0 | G31: 0 | H31: 0 | I31: 0 | K31: 0
A32: Total Operating Transfers and Grants | B32: 5 | C32: =C8+C20+C23+C25 -> 913257829 | D32: 963947000 | E32: 963947000 | F32: 287022154 | G32: 685776698.7 | H32: 481973484 | I32: 203803214.7 | J32: 0.4228515084 | K32: =K8+K20+K23+K25 -> 963947000
A34: Capital Transfers and Grants
A35: =A8 -> National Government: | C35: =SUM(C36:C41) -> 436329950.9 | D35: 480021000 | E35: 480021000 | F35: 28639280 | G35: 146259993.4 | H35: 240010488 | I35: =G35-H35 -> -93750494.64 | J35: =IF(H35=0,"",I35/H35) -> -0.3906099913 | K35: =SUM(K36:K41) -> 480021000
A36: Integrated National Electrification Programme Grant | C36: 60179131.12 | D36: 54659000 | E36: 54659000 | F36: 2253612 | G36: 26713724.81 | H36: 27329496 | I36: -615771.19 | J36: -0.02253137745 | K36: 54659000
A37: Municipal Infrastructure Grant | C37: 307764349.7 | D37: 384362000 | E37: 384362000 | F37: 14989623 | G37: 100736777.5 | H37: 192180996 | I37: -91444218.45 | J37: -0.4758234183 | K37: 384362000
A38: Neighbourhood Development Partnership Grant | C38: 9698260 | D38: 1000000 | E38: 1000000 | F38: 0 | G38: 0 | H38: 499998 | I38: -499998 | J38: -1 | K38: 1000000
A39: Public Transport Network Grant | C39: 43437130 | D39: 0 | E39: 0 | F39: 0 | G39: 0 | H39: 0 | I39: 0 | K39: 0
A40: Regional Bulk Infrastructure Grant | C40: 251080 | D40: 10000000 | E40: 10000000 | F40: 4732250 | G40: 4732250 | H40: 4999998 | I40: -267748 | J40: -0.05354962142 | K40: 10000000
A41: Water Services Infrastructure Grant | C41: 15000000 | D41: 30000000 | E41: 30000000 | F41: 6663795 | G41: 14077241 | H41: 15000000 | I41: -922759 | J41: -0.06151726667 | K41: 30000000
A42: =A20 -> Provincial Government: | C42: =SUM(C43:C43) -> 0 | D42: 0 | E42: 0 | F42: 0 | G42: 0 | H42: 0 | I42: =G42-H42 -> 0 | J42: =IF(I42=0,"",I42/H42) ->  | K42: =SUM(K43:K43) -> 0
A43: [insert description] | I43: 0 | J43: =IF(I43=0,"",I43/H43) -> 
A44: =A23 -> District Municipality: | C44: =SUM(C45:C45) -> 0 | D44: 0 | E44: 0 | F44: 0 | G44: 0 | H44: 0 | I44: 0 | J44: =IF(I44=0,"",I44/H44) ->  | K44: =SUM(K45:K45) -> 0
A45: [insert description] | I45: 0
A46: =A25 -> Other grant providers: | C46: =SUM(C47:C51) -> 9986181.25 | D46: 0 | E46: 0 | F46: 0 | G46: 0 | H46: 0 | I46: =G46-H46 -> 0 | J46: =IF(H46=0,"",I46/H46) ->  | K46: =SUM(K47:K51) -> 0
A47: [insert description] | I47: 0 | J47: =IF(I47=0,"",I47/H47) -> 
A48: Developers Contribution | C48: 4323680.71 | D48: 0 | E48: 0 | F48: 0 | G48: 0 | H48: 0 | I48: =G48-H48 -> 0 | J48: =IF(H48=0,"",I48/H48) ->  | K48: 0
A49: Limpopo Roads Agency | C49: 0 | D49: 0 | E49: 0 | F49: 0 | G49: 0 | H49: 0 | I49: =G49-H49 -> 0 | J49: =IF(H49=0,"",I49/H49) ->  | K49: 0
A50: National Lotteries Board | C50: 0 | D50: 0 | E50: 0 | F50: 0 | G50: 0 | H50: 0 | I50: =G50-H50 -> 0 | J50: =IF(H50=0,"",I50/H50) ->  | K50: 0
A51: Unspecified | C51: 5662500.54 | D51: 0 | E51: 0 | F51: 0 | G51: 0 | H51: 0 | I51: =G51-H51 -> 0 | J51: =IF(H51=0,"",I51/H51) ->  | K51: 0
A52: Total Capital Transfers and Grants | B52: 5 | C52: =C35+C42+C44+C46 -> 446316132.1 | D52: 480021000 | E52: 480021000 | F52: 28639280 | G52: 146259993.4 | H52: 240010488 | I52: -93750494.64 | J52: -0.3906099913 | K52: =K35+K42+K44+K46 -> 480021000
A54: TOTAL RECEIPTS OF TRANSFERS & GRANTS | B54: 5 | C54: =C32+C52 -> 1359573961 | D54: 1443968000 | E54: 1443968000 | F54: 315661434 | G54: 832036692.1 | H54: 721983972 | I54: 110052720.1 | J54: 0.152430974 | K54: =K32+K52 -> 1443968000
A55: =head27a -> References
A56: 1. Each grant is listed by name as gazetted together with the name of the transferring department or municipality, donor or other organisation
A57: 2. Grant expenditure must be separately listed for each grant received
A58: 3. Replacement of RSC levies
A59: 4. Housing subsidies for housing where ownership transferred
A60: 5. Total recurrent/capital grants and subsidies must reconcile to the 'Financial Performance' Statement

Sheet SC7(1)
A1: =muni& " - "&S71M& " - "&Head57 -> MP326 City of Mbombela - Supporting Table SC7(1) Monthly Budget Statement - transfers and grant expenditure - Mid-Year Assessment
A2: =desc -> Description | B2: =head27 -> Ref | C2: =Head1 -> 2021/22 | D2: =Head2 -> Budget Year 2022/23
C3: =Head5 -> Audited Outcome | D3: =Head6 -> Original Budget | E3: =Head7 -> Adjusted Budget | F3: =Head38 -> Monthly actual | G3: =Head39 -> YearTD actual | H3: =Head40 -> YearTD budget | I3: =Head41 -> YTD variance | J3: =Head41 -> YTD variance | K3: =Head8 -> Full Year Forecast
A4: R thousands | J4: %
A5: EXPENDITURE
A7: Operating expenditure of Transfers and Grants
A8: ='SC6'!A8 -> National Government: | C8: =SUM(C9:C17) -> 623313752.5 | D8: 599971552 | E8: 616837300 | F8: 54418136.77 | G8: 348779493.7 | H8: 307108130 | I8: 41671363.71 | J8: =IF(I8=0,"",I8/H8) -> 0.1356895492 | K8: =SUM(K9:K17) -> 616837300
I9: =G9-H9 -> 0
A10: Energy Efficiency and Demand Side Management Grant | C10: 5217391.7 | D10: 0 | E10: 0 | F10: 0 | G10: 0 | H10: 0 | I10: =G10-H10 -> 0 | J10: =IF(H10=0,"",I10/H10) ->  | K10: 0
A11: Equitable Share | C11: 607831759.8 | D11: 582766552 | E11: 599632300 | F11: 52713949.6 | G11: 338676023.4 | H11: 298505594 | I11: 40170429.49 | J11: 0.1345717812 | K11: 599632300
A12: Expanded Public Works Programme Integrated Grant | C12: 7036000.37 | D12: 8555000 | E12: 8555000 | F12: 1524271.86 | G12: 9150964.06 | H12: 4277502 | I12: 4873462.06 | J12: 1.139324321 | K12: 8555000
A13: Local Government Financial Management Grant | C13: 2281100.67 | D13: 2650000 | E13: 2650000 | F13: 179915.31 | G13: 952506.16 | H13: 1325034 | I13: -372527.84 | J13: -0.2811458725 | K13: 2650000
A14: Municipal Demarcation Transition Grant | C14: 0 | D14: 0 | E14: 0 | F14: 0 | G14: 0 | H14: 0 | I14: 0 | K14: 0
A15: Municipal Disaster Relief Grant | C15: 0 | D15: 0 | E15: 0 | F15: 0 | G15: 0 | H15: 0 | I15: 0 | K15: 0
A16: Municipal Infrastructure Grant | C16: 0 | D16: 6000000 | E16: 6000000 | F16: 0 | G16: 0 | H16: 3000000 | I16: -3000000 | J16: -1 | K16: 6000000
A17: Public Transport Network Grant | C17: 947500 | D17: 0 | E17: 0 | F17: 0 | G17: 0 | H17: 0 | I17: 0 | K17: 0
A18: ='SC6'!A20 -> Provincial Government: | C18: =SUM(C19:C19) -> 0 | D18: 0 | E18: 0 | F18: 0 | G18: 0 | H18: 0 | I18: 0 | K18: =SUM(K19:K19) -> 0
I19: =G19-H19 -> 0
A20: ='SC6'!A23 -> District Municipality: | C20: =SUM(C21:C21) -> 0 | D20: 0 | E20: 0 | F20: 0 | G20: 0 | H20: 0 | I20: 0 | K20: =SUM(K21:K21) -> 0
I21: 0
A22: ='SC6'!A25 -> Other grant providers: | C22: =SUM(C23:C25) -> 0 | D22: 0 | E22: 0 | F22: 0 | G22: 0 | H22: 0 | I22: 0 | K22: =SUM(K23:K25) -> 0
I23: 0
A24: Municipal Demarcation Board | C24: 0 | D24: 0 | E24: 0 | F24: 0 | G24: 0 | H24: 0 | I24: =G24-H24 -> 0 | J24: =IF(H24=0,"",I24/H24) ->  | K24: 0
A25: Unspecified | C25: 0 | D25: 0 | E25: 0 | F25: 0 | G25: 0 | H25: 0 | I25: =G25-H25 -> 0 | J25: =IF(H25=0,"",I25/H25) ->  | K25: 0
A26: Total operating expenditure of Transfers and Grants: | C26: =C8+C18+C20+C22 -> 623313752.5 | D26: 599971552 | E26: 616837300 | F26: 54418136.77 | G26: 348779493.7 | H26: 307108130 | I26: 41671363.71 | J26: 0.1356895492 | K26: =K8+K18+K20+K22 -> 616837300
A28: Capital expenditure of Transfers and Grants
A29: ='SC6'!A35 -> National Government: | C29: =SUM(C30:C35) -> 163384802.4 | D29: 480021001 | E29: 480021001 | F29: 27152839.75 | G29: 143806581.8 | H29: 240010734 | I29: -96204152.18 | J29: =IF(I29=0,"",I29/H29) -> -0.4008327068 | K29: =SUM(K30:K35) -> 480021001
A30: Integrated National Electrification Programme Grant | C30: 16359967.53 | D30: 54659000 | E30: 54659000 | F30: 2253612.35 | G30: 26713725.15 | H30: 27329508 | I30: =G30-H30 -> -615782.85 | J30: =IF(H30=0,"",I30/H30) -> -0.02253179421 | K30: 54659000
A31: Municipal Infrastructure Grant | C31: 122356656.2 | D31: 384362001 | E31: 384362001 | F31: 14989623.01 | G31: 100736778.2 | H31: 192181218 | I31: -91444439.76 | J31: -0.4758240202 | K31: 384362001
A32: Neighbourhood Development Partnership Grant | C32: 6662236.89 | D32: 1000000 | E32: 1000000 | F32: 0 | G32: 0 | H32: 500004 | I32: -500004 | J32: -1 | K32: 1000000
A33: Public Transport Network Grant | C33: 18005941.8 | D33: 0 | E33: 0 | F33: 0 | G33: 0 | H33: 0 | I33: 0 | K33: 0
A34: Regional Bulk Infrastructure Grant | C34: 0 | D34: 10000000 | E34: 10000000 | F34: 4115000 | G34: 4115000 | H34: 5000004 | I34: -885004 | J34: -0.1770006584 | K34: 10000000
A35: Water Services Infrastructure Grant | C35: 0 | D35: 30000000 | E35: 30000000 | F35: 5794604.39 | G35: 12241078.43 | H35: 15000000 | I35: -2758921.57 | J35: -0.1839281047 | K35: 30000000
A36: ='SC6'!A42 -> Provincial Government: | C36: =SUM(C37:C37) -> 0 | D36: 0 | E36: 0 | F36: 0 | G36: 0 | H36: 0 | I36: =G36-H36 -> 0 | K36: =SUM(K37:K37) -> 0
I37: 0
A38: ='SC6'!A44 -> District Municipality: | C38: =SUM(C39:C39) -> 0 | D38: 0 | E38: 0 | F38: 0 | G38: 0 | H38: 0 | I38: 0 | K38: =SUM(K39:K39) -> 0
I39: 0
A40: ='SC6'!A46 -> Other grant providers: | C40: =SUM(C41:C42) -> 0 | D40: 4284000 | E40: 4284000 | F40: 253740.85 | G40: 4071705.47 | H40: 2142000 | I40: 1929705.47 | J40: 0.9008895752 | K40: =SUM(K41:K42) -> 4284000
A41: Developers Contribution | C41: 0 | D41: 0 | E41: 0 | F41: 0 | G41: 0 | H41: 0 | I41: =G41-H41 -> 0 | J41: =IF(H41=0,"",I41/H41) ->  | K41: 0
A42: Unspecified | C42: 0 | D42: 4284000 | E42: 4284000 | F42: 253740.85 | G42: 4071705.47 | H42: 2142000 | I42: =G42-H42 -> 1929705.47 | J42: =IF(H42=0,"",I42/H42) -> 0.9008895752 | K42: 4284000
A43: Total capital expenditure of Transfers and Grants | C43: =C29+C36+C38+C40 -> 163384802.4 | D43: 484305001 | E43: 484305001 | F43: 27406580.6 | G43: 147878287.3 | H43: 242152734 | I43: -94274446.71 | J43: =IF(I43=0,"",I43/H43) -> -0.3893181182 | K43: =K29+K36+K38+K40 -> 484305001
A45: TOTAL EXPENDITURE OF TRANSFERS AND GRANTS | C45: =C26+C43 -> 786698554.9 | D45: 1084276553 | E45: 1101142301 | F45: 81824717.37 | G45: 496657781 | H45: 549260864 | I45: -52603083 | J45: =IF(I45=0,"",I45/H45) -> -0.09577067374 | K45: =K26+K43 -> 1101142301
A46: =head27a -> References

Sheet SC7(2)
A1: =muni& " - "&S71T& " - "&Head57 -> MP326 City of Mbombela - Supporting Table SC7(2) Monthly Budget Statement - Expenditure against approved rollovers - Mid-Year Assessment
A2: =desc -> Description | B2: =head27 -> Ref | C2: =Head2 -> Budget Year 2022/23
C3: ="Approved Rollover " &Head1 -> Approved Rollover 2021/22 | D3: =Head38 -> Monthly actual | E3: =Head39 -> YearTD actual | F3: =Head41 -> YTD variance | G3: =Head41 -> YTD variance
A4: R thousands | G4: %
A5: EXPENDITURE
A7: Operating expenditure of Approved Roll-overs
A8: ='SC6'!A8 -> National Government: | C8: =SUM(C9:C9) -> 0 | D8: =SUM(D9:D9) -> 0 | E8: =SUM(E9:E9) -> 79038167 | F8: =SUM(F9:F9) -> 79038167 | G8: =IF(F8=0,"",F8/C8) -> 
A9: Local Government Equitable Share | C9: 0 | D9: 0 | E9: 79038167 | F9: =E9-C9 -> 79038167 | G9: =IF(C9=0,"",F9/C9) -> 
A10: ='SC6'!A20 -> Provincial Government: | C10: =SUM(C11:C11) -> 0 | D10: =SUM(D11:D11) -> 0 | E10: =SUM(E11:E11) -> 0 | F10: =SUM(F11:F11) -> 0 | G10: =IF(F10=0,"",F10/C10) -> 
F11: =C11-E11 -> 0
A12: ='SC6'!A23 -> District Municipality: | C12: =SUM(C13:C13) -> 0 | D12: =SUM(D13:D13) -> 0 | E12: =SUM(E13:E13) -> 0 | F12: =SUM(F13:F13) -> 0
F13: =C13-E13 -> 0
A14: ='SC6'!A25 -> Other grant providers: | C14: =SUM(C15:C15) -> 0 | D14: =SUM(D15:D15) -> 0 | E14: =SUM(E15:E15) -> 0 | F14: =SUM(F15:F15) -> 0
F15: =C15-E15 -> 0
A16: Total operating expenditure of Approved Roll-overs | C16: =C8+C10+C12+C14 -> 0 | D16: =D8+D10+D12+D14 -> 0 | E16: =E8+E10+E12+E14 -> 79038167 | F16: =F8+F10+F12+F14 -> 79038167
A18: Capital expenditure of Approved Roll-overs
A19: ='SC6'!A35 -> National Government: | C19: =SUM(C20:C20) -> 0 | D19: =SUM(D20:D20) -> 0 | E19: =SUM(E20:E20) -> 0 | F19: =SUM(F20:F20) -> 0
F20: =C20-E20 -> 0
A21: ='SC6'!A42 -> Provincial Government: | C21: =SUM(C22:C22) -> 0 | D21: =SUM(D22:D22) -> 0 | E21: =SUM(E22:E22) -> 0 | F21: =SUM(F22:F22) -> 0
F22: =C22-E22 -> 0
A23: ='SC6'!A44 -> District Municipality: | C23: =SUM(C24:C24) -> 0 | D23: =SUM(D24:D24) -> 0 | E23: =SUM(E24:E24) -> 0 | F23: =SUM(F24:F24) -> 0
F24: =C24-E24 -> 0
A25: ='SC6'!A46 -> Other grant providers: | C25: =SUM(C26:C26) -> 0 | D25: =SUM(D26:D26) -> 0 | E25: =SUM(E26:E26) -> 0 | F25: =SUM(F26:F26) -> 0
F26: =C26-E26 -> 0
A27: Total capital expenditure of Approved Roll-overs | C27: =C19+C21+C23+C25 -> 0 | D27: =D19+D21+D23+D25 -> 0 | E27: =E19+E21+E23+E25 -> 0 | F27: =F19+F21+F23+F25 -> 0
A29: TOTAL EXPENDITURE OF APPROVED ROLL-OVERS | C29: =C16+C27 -> 0 | D29: =D16+D27 -> 0 | E29: =E16+E27 -> 79038167 | F29: =F16+F27 -> 79038167
A30: =head27a -> References

Sheet SC8
A1: =muni& " - "&S71N& " - "&Head57 -> MP326 City of Mbombela - Supporting Table SC8 Monthly Budget Statement - councillor and staff benefits - Mid-Year Assessment
A2: Summary of Employee and Councillor remuneration | B2: =head27 -> Ref | C2: =Head1 -> 2021/22 | D2: =Head2 -> Budget Year 2022/23
C3: =Head5 -> Audited Outcome | D3: =Head6 -> Original Budget | E3: =Head7 -> Adjusted Budget | F3: =Head38 -> Monthly actual | G3: =Head39 -> YearTD actual | H3: =Head40 -> YearTD budget | I3: =Head41 -> YTD variance | J3: =Head41 -> YTD variance | K3: =Head8 -> Full Year Forecast
A4: R thousands | J4: %
B5: 1 | C5: A | D5: B | E5: C | K5: D
A6: Councillors (Political Office Bearers plus Other)
A7: Basic Salaries and Wages | C7: 39838134.04 | D7: 38471683 | E7: 38471683 | F7: 3381704.95 | G7: 20360406.82 | H7: 19235862 | I7: =G7-H7 -> 1124544.82 | J7: =IF(I7=0,"",I7/H7) -> 0.0584608488 | K7: 38471683
A8: Pension and UIF Contributions | C8: 3367362.82 | D8: 4335022 | E8: 4335022 | F8: 248824.11 | G8: 1497324.59 | H8: 2167530 | I8: -670205.41 | J8: -0.3092023686 | K8: 4335022
A9: Medical Aid Contributions | C9: 414966.9 | D9: 291118 | E9: 291118 | F9: 29987.5 | G9: 188482.76 | H9: 145584 | I9: 42898.76 | J9: 0.2946667216 | K9: 291118
A10: Motor Vehicle Allowance | C10: 12625572.1 | D10: 15559339 | E10: 15559339 | F10: 1042219.8 | G10: 6085358.26 | H10: 7779702 | I10: =G10-H10 -> -1694343.74 | J10: =IF(I10=0,"",I10/H10) -> -0.2177903138 | K10: 15559339
A11: Cellphone Allowance | C11: 3637434 | D11: 4222771 | E11: 4222771 | F11: 306000 | G11: 1920343.64 | H11: 2111406 | I11: =G11-H11 -> -191062.36 | J11: =IF(I11=0,"",I11/H11) -> -0.09049058305 | K11: 4222771
A12: Housing Allowances | I12: =G12-H12 -> 0 | J12: =IF(I12=0,"",I12/H12) -> 
A13: Other benefits and allowances | C13: 52168.96 | D13: 45731 | E13: 45731 | F13: 5194.75 | G13: 34443.71 | H13: 22866 | I13: 11577.71 | J13: 0.5063286102 | K13: 45731
A14: Sub Total - Councillors | C14: =SUM(C7:C13) -> 59935638.82 | D14: 62925664 | E14: 62925664 | F14: 5013931.11 | G14: 30086359.78 | H14: 31462950 | I14: -1376590.22 | J14: -0.04375273838 | K14: 62925664
A15: % increase | B15: 4 | D15: =IF(D14=0,"",(D14/C14)-1) -> 0.04988726639 | E15: =IF(E14=0,"",(E14/C14)-1) -> 0.04988726639 | K15: =IF(K14=0,"",(K14/C14)-1) -> 0.04988726639
A17: Senior Managers of the Municipality | B17: 3
A18: Basic Salaries and Wages | C18: 19932888.79 | D18: 22748165 | E18: 22748165 | F18: 1582460.71 | G18: 9388977.41 | H18: 11374116 | I18: =G18-H18 -> -1985138.59 | J18: =IF(I18=0,"",I18/H18) -> -0.1745312418 | K18: 22748165
A19: Pension and UIF Contributions | C19: 617930.1 | D19: 700655 | E19: 700655 | F19: 1416.96 | G19: 181425.82 | H19: 350346 | I19: -168920.18 | J19: -0.4821524436 | K19: 700655
A20: Medical Aid Contributions | C20: 74642.4 | D20: 87424 | E20: 87424 | F20: 0 | G20: 20995.8 | H20: 43716 | I20: -22720.2 | J20: -0.519722756 | K20: 87424
A21: Overtime | I21: 0
A22: Performance Bonus | I22: =G22-H22 -> 0 | J22: =IF(I22=0,"",I22/H22) -> 
A23: Motor Vehicle Allowance | C23: 3665289.72 | D23: 4185068 | E23: 4185068 | F23: 216000 | G23: 1050860.85 | H23: 2092584 | I23: =G23-H23 -> -1041723.15 | J23: =IF(I23=0,"",I23/H23) -> -0.4978166468 | K23: 4185068
A24: Cellphone Allowance | C24: 758095.76 | D24: 838692 | E24: 838692 | F24: 38359.54 | G24: 224586.22 | H24: 419370 | I24: =G24-H24 -> -194783.78 | J24: =IF(I24=0,"",I24/H24) -> -0.4644676062 | K24: 838692
A25: Housing Allowances | I25: =G25-H25 -> 0 | J25: =IF(I25=0,"",I25/H25) -> 
A26: Other benefits and allowances | C26: 0 | D26: 14444 | E26: 14444 | F26: 0 | G26: 0 | H26: 7224 | I26: -7224 | J26: -1 | K26: 14444
A27: Payments in lieu of leave | C27: 295525.45 | D27: 0 | E27: 0 | F27: 908593.95 | G27: 1909732.97 | H27: 0 | I27: 1909732.97 | K27: 0
A28: Long service awards | I28: 0
A29: Post-retirement benefit obligations | B29: 2 | I29: 0
A30: Sub Total - Senior Managers of Municipality | C30: =SUM(C18:C29) -> 25344372.22 | D30: 28574448 | E30: 28574448 | F30: =SUM(F18:F29) -> 2746831.16 | G30: =SUM(G18:G29) -> 12776579.07 | H30: =SUM(H18:H29) -> 14287356 | I30: -1510776.93 | J30: =IF(I30=0,"",I30/H30) -> -0.1057422332 | K30: 28574448
A31: % increase | B31: 4 | D31: =IF(D30=0,"",(D30/C30)-1) -> 0.1274474567 | E31: =IF(E30=0,"",(E30/C30)-1) -> 0.1274474567 | K31: =IF(K30=0,"",(K30/C30)-1) -> 0.1274474567
A33: Other Municipal Staff
A34: Basic Salaries and Wages | C34: 605941787.2 | D34: 653187022 | E34: 653842576 | F34: 52698473.48 | G34: 317603474.4 | H34: 326812444 | I34: =G34-H34 -> -9208969.61 | J34: =IF(I34=0,"",I34/H34) -> -0.0281781486 | K34: 653842576
A35: Pension and UIF Contributions | C35: 122196461.4 | D35: 135762657 | E35: 135762657 | F35: 10720098.47 | G35: 64382539.02 | H35: 67881744 | I35: -3499204.98 | J35: -0.05154854271 | K35: 135762657
A36: Medical Aid Contributions | C36: 50597006.44 | D36: 55314125 | E36: 55314125 | F36: 4331207.52 | G36: 26033264.88 | H36: 27657252 | I36: -1623987.12 | J36: -0.05871831084 | K36: 55314125
A37: Overtime | C37: 184775963.5 | D37: 151872576 | E37: 151872576 | F37: 16326205.58 | G37: 80905043.41 | H37: 75936498 | I37: 4968545.41 | J37: 0.06543026793 | K37: 151872576
A38: Performance Bonus | C38: 48379496.56 | D38: 48345655 | E38: 48345655 | F38: 2446480.68 | G38: 23127713.43 | H38: 24173028 | I38: -1045314.57 | J38: -0.04324301325 | K38: 48345655
A39: Motor Vehicle Allowance | C39: 62478613.62 | D39: 68859453 | E39: 68859453 | F39: 5562474.12 | G39: 33408768.18 | H39: 34429902 | I39: =G39-H39 -> -1021133.82 | J39: =IF(I39=0,"",I39/H39) -> -0.02965834233 | K39: 68859453
A40: Cellphone Allowance | C40: 5992673.73 | D40: 6500784 | E40: 6500784 | F40: 553463.77 | G40: 3325092.87 | H40: 3250596 | I40: =G40-H40 -> 74496.87 | J40: =IF(I40=0,"",I40/H40) -> 0.02291791105 | K40: 6500784
A41: Housing Allowances | C41: 5747400.38 | D41: 6964602 | E41: 6964602 | F41: 503423.14 | G41: 3022392.55 | H41: 3482568 | I41: =G41-H41 -> -460175.45 | J41: =IF(I41=0,"",I41/H41) -> -0.1321368169 | K41: 6964602
A42: Other benefits and allowances | C42: 38814948.79 | D42: 32359300 | E42: 32359300 | F42: 3495594.95 | G42: 17545942.25 | H42: 16180188 | I42: 1365754.25 | J42: 0.08440904704 | K42: 32359300
A43: Payments in lieu of leave | C43: 6505701.13 | D43: 1121448 | E43: 1121448 | F43: -615836.56 | G43: 748391.83 | H43: 560766 | I43: 187625.83 | J43: 0.3345884558 | K43: 1121448
A44: Long service awards | C44: 0 | D44: 0 | E44: 0 | F44: 0 | G44: 0 | H44: 0 | I44: 0 | K44: 0
A45: Post-retirement benefit obligations | B45: 2 | C45: 41631000 | D45: 0 | E45: 0 | F45: 0 | G45: 0 | H45: 0 | I45: 0 | K45: 0
A46: Sub Total - Other Municipal Staff | C46: =SUM(C34:C45) -> 1173061053 | D46: 1160287622 | E46: 1160943176 | F46: =SUM(F34:F45) -> 96021585.15 | G46: =SUM(G34:G45) -> 570102622.8 | H46: =SUM(H34:H45) -> 580364986 | I46: -10262363.19 | J46: =IF(I46=0,"",I46/H46) -> -0.01768260222 | K46: 1160943176
A47: % increase | B47: 4 | D47: =IF(D46=0,"",(D46/C46)-1) -> -0.01088897348 | E47: =IF(E46=0,"",(E46/C46)-1) -> -0.010330133 | K47: =IF(K46=0,"",(K46/C46)-1) -> -0.010330133
A49: Total Parent Municipality | C49: =C14+C30+C46 -> 1258341064 | D49: =D14+D30+D46 -> 1251787734 | E49: 1252443288 | F49: 103782347.4 | G49: 612965561.6 | H49: 626115292 | I49: =G49-H49 -> -13149730.34 | J49: =IF(I49=0,"",I49/H49) -> -0.021002091 | K49: 1252443288
D50: =IF(D49=0,"",(D49/C49)-1) -> -0.005207912162 | E50: =IF(E49=0,"",(E49/C49)-1) -> -0.004686945296 | K50: =IF(K49=0,"",(K49/C49)-1) -> -0.004686945296
A51: Unpaid salary, allowances & benefits in arrears:
A53: Board Members of Entities
A54: Basic Salaries and Wages | I54: =G54-H54 -> 0 | J54: =IF(I54=0,"",I54/H54) -> 
A55: Pension and UIF Contributions | I55: 0
A56: Medical Aid Contributions | I56: 0
A57: Overtime | I57: =G57-H57 -> 0 | J57: =IF(I57=0,"",I57/H57) -> 
A58: Performance Bonus | I58: =G58-H58 -> 0 | J58: =IF(I58=0,"",I58/H58) -> 
A59: Motor Vehicle Allowance | I59: =G59-H59 -> 0 | J59: =IF(I59=0,"",I59/H59) -> 
A60: Cellphone Allowance | I60: =G60-H60 -> 0 | J60: =IF(I60=0,"",I60/H60) -> 
A61: Housing Allowances | I61: =G61-H61 -> 0 | J61: =IF(I61=0,"",I61/H61) -> 
A62: Other benefits and allowances | I62: 0
A63: Board Fees | I63: =G63-H63 -> 0 | J63: =IF(I63=0,"",I63/H63) -> 
A64: Payments in lieu of leave | I64: 0
A65: Long service awards | I65: 0
A66: Post-retirement benefit obligations | I66: 0
A67: Sub Total - Board Members of Entities | B67: 2 | C67: =SUM(C54:C66) -> 0 | D67: 0 | E67: 0 | F67: =SUM(F54:F66) -> 0 | G67: =SUM(G54:G66) -> 0 | H67: =SUM(H54:H66) -> 0 | I67: 0 | J67: =IF(I67=0,"",I67/H67) ->  | K67: 0
A68: % increase | B68: 4 | D68: =IF(D67=0,"",(D67/C67)-1) ->  | E68: =IF(E67=0,"",(E67/C67)-1) ->  | K68: =IF(K67=0,"",(K67/C67)-1) -> 
A70: Senior Managers of Entities
A71: Basic Salaries and Wages | I71: =G71-H71 -> 0 | J71: =IF(I71=0,"",I71/H71) -> 
A72: Pension and UIF Contributions | I72: 0
A73: Medical Aid Contributions | I73: 0
A74: Overtime | I74: 0
A75: Performance Bonus | I75: =G75-H75 -> 0 | J75: =IF(I75=0,"",I75/H75) -> 
A76: Motor Vehicle Allowance | I76: =G76-H76 -> 0 | J76: =IF(I76=0,"",I76/H76) -> 
A77: Cellphone Allowance | I77: =G77-H77 -> 0 | J77: =IF(I77=0,"",I77/H77) -> 
A78: Housing Allowances | I78: =G78-H78 -> 0 | J78: =IF(I78=0,"",I78/H78) -> 
A79: Other benefits and allowances | I79: 0
A80: Payments in lieu of leave | I80: 0
A81: Long service awards | I81: 0
A82: Post-retirement benefit obligations | B82: 2 | I82: 0
A83: Sub Total - Senior Managers of Entities | C83: =SUM(C71:C82) -> 0 | D83: 0 | E83: 0 | F83: =SUM(F71:F82) -> 0 | G83: =SUM(G71:G82) -> 0 | H83: =SUM(H71:H82) -> 0 | I83: 0 | J83: =IF(I83=0,"",I83/H83) ->  | K83: 0
A84: % increase | B84: 4 | D84: =IF(D83=0,"",(D83/C83)-1) ->  | E84: =IF(E83=0,"",(E83/C83)-1) ->  | K84: =IF(K83=0,"",(K83/C83)-1) -> 
A86: Other Staff of Entities
A87: Basic Salaries and Wages | I87: =G87-H87 -> 0 | J87: =IF(I87=0,"",I87/H87) -> 
A88: Pension and UIF Contributions | I88: 0
A89: Medical Aid Contributions | I89: =G89-H89 -> 0 | J89: =IF(I89=0,"",I89/H89) -> 
A90: Overtime | I90: =G90-H90 -> 0 | J90: =IF(I90=0,"",I90/H90) -> 
A91: Performance Bonus | I91: =G91-H91 -> 0 | J91: =IF(I91=0,"",I91/H91) -> 
A92: Motor Vehicle Allowance | I92: =G92-H92 -> 0 | J92: =IF(I92=0,"",I92/H92) -> 
A93: Cellphone Allowance | I93: 0
A94: Housing Allowances | I94: 0
A95: Other benefits and allowances | I95: 0
A96: Payments in lieu of leave | I96: 0
A97: Long service awards | I97: 0
A98: Post-retirement benefit obligations | I98: 0
A99: Sub Total - Other Staff of Entities | C99: =SUM(C87:C98) -> 0 | D99: 0 | E99: 0 | F99: 0 | G99: 0 | H99: 0 | I99: 0 | J99: =IF(I99=0,"",I99/H99) ->  | K99: =SUM(K87:K98) -> 0
A100: % increase | B100: 4 | D100: =IF(D99=0,"",(D99/C99)-1) ->  | E100: =IF(E99=0,"",(E99/C99)-1) ->  | K100: =IF(K99=0,"",(K99/C99)-1) -> 
A102: Total Municipal Entities | C102: =C67+C83+C99 -> 0 | D102: 0 | E102: 0 | F102: 0 | G102: 0 | H102: 0 | I102: =G102-H102 -> 0 | J102: =IF(I102=0,"",I102/H102) ->  | K102: =K67+K83+K99 -> 0
A104: TOTAL SALARY, ALLOWANCES & BENEFITS | C104: =C49+C102 -> 1258341064 | D104: 1251787734 | E104: 1252443288 | F104: 103782347.4 | G104: 612965561.6 | H104: 626115292 | I104: =G104-H104 -> -13149730.34 | J104: =IF(I104=0,"",I104/H104) -> -0.021002091 | K104: =K49+K102 -> 1252443288
A105: % increase | B105: 4 | D105: =IF(D104=0,"",(D104/C104)-1) -> -0.005207912162 | E105: =IF(E104=0,"",(E104/C104)-1) -> -0.004686945296 | K105: =IF(K104=0,"",(K104/C104)-1) -> -0.004686945296
A106: TOTAL MANAGERS AND STAFF | C106: =C30+C46+C83+C99 -> 1198405425 | D106: 1188862070 | E106: 1189517624 | F106: 98768416.31 | G106: 582879201.8 | H106: 594652342 | I106: -11773140.12 | J106: =IF(I106=0,"",I106/H106) -> -0.01979835828 | K106: =K30+K46+K83+K99 -> 1189517624
A107: =head27a -> References
A108: 1. Include 'Loans and advances' where applicable if any reportable amounts until phased compliance with s164 of MFMA achieved
A109: 2. If benefits in kind are provided (e.g. provision of living quarters) the full market value must be shown as the cost to the municipality
A110: 3. s57 of the Systems Act
A111: 4. B/A, C/A, D/A
A112: Column Definitions:
A113: A. Audited actual 2005/06 (audited financial statements). If audited amounts unavailable, unaudited amounts must be provided with a note stating these are unaudited
A114: B. The original budget approved by council for the 2006/07 budget year.
A115: C. The budget for 2006/07 budget year as adjusted by council resolution in terms of section 28 of the MFMA.
A116: D. An estimate of final actual amounts (pre audit - 2006/07 budget year) at the time of preparing the budget for the 2007/08 budget year. This may differ from C.

Sheet SC9
A1: =muni& " - "&S71O& " - "&Head57 -> MP326 City of Mbombela - Supporting Table SC9 Monthly Budget Statement - actuals and revised targets for cash receipts - Mid-Year Assessment
A2: =desc -> Description | B2: =head27 -> Ref | C2: =Head2 -> Budget Year 2022/23 | O2: ='Template names'!B5 -> 2022/23 Medium Term Revenue & Expenditure Framework
C3: July | D3: August | E3: Sept | F3: October | G3: Nov | H3: Dec | I3: January | J3: Feb | K3: March | L3: April | M3: May | N3: June | O3: =Head9 -> Budget Year 2022/23 | P3: =Head10 -> Budget Year +1 2023/24 | Q3: =Head11 -> Budget Year +2 2024/25
A4: R thousands | B4: 1 | C4: Outcome | D4: Outcome | E4: Outcome | F4: Outcome | G4: Outcome | H4: Outcome | I4: Budget | J4: Budget | K4: Budget | L4: Budget | M4: Budget | N4: Budget
A5: Cash Receipts By Source
A6: Property rates | C6: 58752286.35 | D6: 59681495.55 | E6: 69078373.86 | F6: 71991074.44 | G6: 72582180.49 | H6: 41981918.33 | I6: 64287479.5 | J6: 64287479.5 | K6: 64287479.5 | L6: 64287479.5 | M6: 64287479.5 | N6: =O6-SUM(C6:M6) -> 75945027.48 | O6: 771449754 | P6: 825451236 | Q6: 883232823
A7: Service charges - electricity revenue | C7: 95179920.98 | D7: 127181472.7 | E7: 104870596.4 | F7: 106267207.3 | G7: 113769783.6 | H7: 66534244.44 | I7: 121483107 | J7: 121483107 | K7: 121483107 | L7: 121483107 | M7: 121483107 | N7: 236578523.5 | O7: 1457797284 | P7: 1538905121 | Q7: 1631239429
A8: Service charges - water revenue | C8: 8064530.96 | D8: 8215208.59 | E8: 8849977.77 | F8: 7571636.9 | G8: 7775756.57 | H8: 4567234.18 | I8: 10480663.83 | J8: 10480663.83 | K8: 10480663.83 | L8: 10480663.83 | M8: 10480663.83 | N8: 28320301.88 | O8: 125767966 | P8: 134571724 | Q8: 143991744
A9: Service charges - sanitation revenue | C9: 1423035.41 | D9: 1928763.43 | E9: 1825726.27 | F9: 1648841.45 | G9: 2045212.74 | H9: 1102148.01 | I9: 2157099.75 | J9: 2157099.75 | K9: 2157099.75 | L9: 2157099.75 | M9: 2157099.75 | N9: 5125970.94 | O9: 25885197 | P9: 27696270 | Q9: 29634066
A10: Service charges - refuse | C10: 8797182.4 | D10: 11089786.29 | E10: 10004596.01 | F10: 10911023.54 | G10: 11793806.2 | H10: 7436741.79 | I10: 15192446.67 | J10: 15192446.67 | K10: 15192446.67 | L10: 15192446.67 | M10: 15192446.67 | N10: 46313990.42 | O10: 182309360 | P10: 194789327 | Q10: 208125989
A12: Rental of facilities and equipment | C12: 72206.08 | D12: 71498.98 | E12: 78907.88 | F12: 81733.09 | G12: 60734.69 | H12: 47797.7 | I12: 28976464.83 | J12: 28976464.83 | K12: 28976464.83 | L12: 28976464.83 | M12: 28976464.83 | N12: 202422375.4 | O12: 347717578 | P12: 381855298 | Q12: 420040827
A13: Interest earned - external investments | C13: 2378031.11 | D13: 2872761.44 | E13: 2897314.47 | F13: 3172865.93 | G13: 3483205.1 | H13: 3383543.74 | I13: 0 | J13: 0 | K13: 0 | L13: 0 | M13: 0 | N13: -18187721.79 | O13: 0 | P13: 0 | Q13: 0
A14: Interest earned - outstanding debtors | N14: 0
A15: Dividends received | N15: 0
A16: Fines, penalties and forfeits | C16: 1177.8 | D16: 3329.57 | E16: 21034.13 | F16: 3275.17 | G16: -1283.61 | H16: 114 | I16: 86946.08 | J16: 86946.08 | K16: 86946.08 | L16: 86946.08 | M16: 86946.08 | N16: 580975.54 | O16: 1043353 | P16: 1147689 | Q16: 1262455
A17: Licences and permits | C17: 0 | D17: 0 | E17: 0 | F17: 0 | G17: 0 | H17: 0 | I17: 638268.42 | J17: 638268.42 | K17: 638268.42 | L17: 638268.42 | M17: 638268.42 | N17: 4467878.9 | O17: 7659221 | P17: 8425142 | Q17: 9267657
A18: Agency services | C18: 0 | D18: 0 | E18: 0 | F18: 0 | G18: 0 | H18: 0 | I18: 0 | J18: 0 | K18: 0 | L18: 0 | M18: 0 | N18: 0 | O18: 0 | P18: 0 | Q18: 0
A19: Transfers and Subsidies - Operational | C19: 0 | D19: 6789000 | E19: 0 | F19: 0 | G19: 1284000 | H19: 3850000 | I19: 80328916.67 | J19: 80328916.67 | K19: 80328916.67 | L19: 80328916.67 | M19: 80328916.67 | N19: 550379416.6 | O19: 963947000 | P19: 1040329000 | Q19: 1133958000
A20: Other revenue | C20: 422864258.4 | D20: -26754276.65 | E20: 59246456.88 | F20: -53620632.02 | G20: 99803559.39 | H20: 177094340.4 | I20: -13571393.67 | J20: -13571393.67 | K20: -13571393.67 | L20: -13571393.67 | M20: -13571393.67 | N20: -773633462.1 | O20: -162856724 | P20: -125752166 | Q20: -128952051
A21: Cash Receipts by Source | C21: =SUM(C6:C10)+SUM(C12:C20) -> 597532629.5 | D21: =SUM(D6:D10)+SUM(D12:D20) -> 191079039.9 | E21: 256872983.7 | F21: 148027025.8 | G21: 312596955.2 | H21: 305998082.6 | I21: 310059999.1 | J21: 310059999.1 | K21: 310059999.1 | L21: 310059999.1 | M21: 310059999.1 | N21: 358313276.9 | O21: 3720719989 | P21: 4027418641 | Q21: 4331800939
N22: =O22-SUM(C22:M22) -> 0
A23: Other Cash Flows by Source | N23: 0
A24: ='C4-FinPerf RE'!A39 -> Transfers and subsidies - capital (monetary allocations) (National / Provincial and District) | C24: 82340000 | D24: 10000000 | E24: 0 | F24: 131000000 | G24: 0 | H24: 105000000 | I24: 40001750 | J24: 40001750 | K24: 40001750 | L24: 40001750 | M24: 40001750 | N24: -48327750 | O24: 480021000 | P24: 572319000 | Q24: 649998000
A25: ='C4-FinPerf RE'!A40 -> Transfers and subsidies - capital (monetary allocations) (National / Provincial Departmental Agencies, Households, Non-profit Institutions, Private Enterprises, Public Corporatons, Higher Educational Institutions) | N25: 0
A26: Proceeds on Disposal of Fixed and Intangible Assets | N26: 0
A27: Short term loans | N27: 0
A28: Borrowing long term/refinancing | C28: 0 | D28: 0 | E28: 0 | F28: 0 | G28: 0 | H28: 0 | I28: 0 | J28: 0 | K28: 0 | L28: 0 | M28: 0 | N28: 0 | O28: 0 | P28: 0 | Q28: 0
A29: Increase (decrease) in consumer deposits | C29: 0 | D29: 0 | E29: 0 | F29: 0 | G29: 0 | H29: 0 | I29: 0 | J29: 0 | K29: 0 | L29: 0 | M29: 0 | N29: -43773117 | O29: -43773117 | P29: 2188656 | Q29: 2079223
A31: Decrease (increase) in non-current receivables | C31: 0 | D31: 0 | E31: 0 | F31: 0 | G31: 0 | H31: 0 | I31: 0 | J31: 0 | K31: 0 | L31: 0 | M31: 0 | N31: 2089162.24 | O31: 2089162.24 | P31: 0 | Q31: 0
A32: Decrease (increase) in non-current investments | C32: 0 | D32: 0 | E32: 0 | F32: 0 | G32: 0 | H32: 0 | I32: 0 | J32: 0 | K32: 0 | L32: 0 | M32: 0 | N32: 0.03 | O32: 0.03 | P32: 0 | Q32: 0
A33: Total Cash Receipts by Source | C33: =SUM(C21:C29)+SUM(C31:C32) -> 679872629.5 | D33: =SUM(D21:D29)+SUM(D31:D32) -> 201079039.9 | E33: 256872983.7 | F33: 279027025.8 | G33: 312596955.2 | H33: 410998082.6 | I33: 350061749.1 | J33: 350061749.1 | K33: 350061749.1 | L33: 350061749.1 | M33: 350061749.1 | N33: 268301572.2 | O33: 4159057034 | P33: 4601926297 | Q33: 4983878162
N34: =O34-SUM(C34:M34) -> 0
A35: Cash Payments by Type | N35: 0
A36: Employee related costs | C36: 128536697.2 | D36: 187291984.6 | E36: -121287472.2 | F36: 116222863.8 | G36: 207674799 | H36: 7078207.11 | I36: 104593252.1 | J36: 104593252.1 | K36: 104593252.1 | L36: 104593252.1 | M36: 104593252.1 | N36: 206635685 | O36: 1255119025 | P36: 1298850202 | Q36: 1379792712
A37: Remuneration of councillors | N37: 0
A38: Interest paid | C38: 0 | D38: 0 | E38: 0 | F38: 0 | G38: 0 | H38: 0 | I38: 2903924.17 | J38: 2903924.17 | K38: 2903924.17 | L38: 2903924.17 | M38: 2903924.17 | N38: 20327469.15 | O38: 34847090 | P38: 35544032 | Q38: 36254913
A39: Bulk purchases - Electricity | C39: 301975124.7 | D39: 159091555.7 | E39: 216453351.1 | F39: 151186749.2 | G39: 136527989.4 | H39: 215668053.8 | I39: 94807479.17 | J39: 94807479.17 | K39: 94807479.17 | L39: 94807479.17 | M39: 94807479.17 | N39: -517250469.7 | O39: 1137689750 | P39: 1195951135 | Q39: 1267708203
A40: Acquisitions - water & other inventory | C40: 0 | D40: 1156479.68 | E40: 2438440.19 | F40: 542054.43 | G40: 112258.71 | H40: 804701.52 | I40: 5751928.57 | J40: 5751928.57 | K40: 5751928.57 | L40: 5751928.57 | M40: 5751928.57 | N40: 35209565.62 | O40: 69023143 | P40: 66614476 | Q40: 64159072
A42: Contracted services | N42: 0
A43: Grants and subsidies paid - other municipalities | N43: 0
A44: Grants and subsidies paid - other | N44: 0
A45: General expenses | C45: 396948038.8 | D45: 55809269.16 | E45: 213542551.9 | F45: 137959940.9 | G45: 198135234.4 | H45: 199399656.4 | I45: 81917199.17 | J45: 81917199.17 | K45: 81917199.17 | L45: 81917199.17 | M45: 81917199.17 | N45: -628374297.6 | O45: 983006390 | P45: 1167724743 | Q45: 1242563002
A46: Cash Payments by Type | B46: =SUM(B36:B45) -> 0 | C46: =SUM(C36:C45) -> 827459860.7 | D46: =SUM(D36:D45) -> 403349289.1 | E46: 311146871 | F46: 405911608.5 | G46: 542450281.6 | H46: 422950618.9 | I46: 289973783.1 | J46: 289973783.1 | K46: 289973783.1 | L46: 289973783.1 | M46: 289973783.1 | N46: -883452047.5 | O46: 3479685398 | P46: 3764684588 | Q46: 3990477902
N47: =O47-SUM(C47:M47) -> 0
A48: Other Cash Flows/Payments by Type
A49: Capital assets | C49: 6770705.69 | D49: 19100714.63 | E49: 23929880.29 | F49: 44437794.08 | G49: 47537658.36 | H49: 34503437.11 | I49: 54401733.56 | J49: 54401733.56 | K49: 54401733.56 | L49: 54401733.56 | M49: 54401733.56 | N49: =O49-SUM(C49:M49) -> 204531943 | O49: 652820801 | P49: 857781958 | Q49: 959551008
A50: Repayment of borrowing | C50: 0 | D50: 0 | E50: 0 | F50: -9927603.23 | G50: 0 | H50: 0 | I50: 0 | J50: 0 | K50: 0 | L50: 0 | M50: 0 | N50: =O50-SUM(C50:M50) -> 9927603.23 | O50: 0 | P50: 0 | Q50: 0
A51: Other Cash Flows/Payments | C51: 5807763.64 | D51: 7977249.73 | E51: 1298306.17 | F51: 1765644.48 | G51: 4873655.56 | H51: 526192.73 | I51: 0 | J51: 0 | K51: 0 | L51: 0 | M51: 0 | N51: =O51-SUM(C51:M51) -> -22248812.31 | O51: 0 | P51: 0 | Q51: 0
A52: Total Cash Payments by Type | B52: =SUM(B46:B51) -> 0 | C52: 840038330 | D52: 430427253.5 | E52: 336375057.5 | F52: 442187443.8 | G52: 594861595.5 | H52: 457980248.7 | I52: 344375516.7 | J52: 344375516.7 | K52: 344375516.7 | L52: 344375516.7 | M52: 344375516.7 | N52: -691241313.5 | O52: 4132506199 | P52: 4622466546 | Q52: 4950028910
N53: =O53-SUM(C53:M53) -> 0
A54: NET INCREASE/(DECREASE) IN CASH HELD | B54: =B33-B52 -> 0 | C54: -160165700.5 | D54: -229348213.5 | E54: -79502073.81 | F54: -163160418 | G54: -282264640.3 | H54: -46982166.19 | I54: 5686232.37 | J54: 5686232.37 | K54: 5686232.37 | L54: 5686232.37 | M54: 5686232.37 | N54: 959542885.8 | O54: 26550835.27 | P54: -20540249 | Q54: 33849252
A55: Cash/cash equivalents at the month/year beginning: | C55: 144510598.9 | D55: =C56 -> -15655101.57 | E55: =D56 -> -245003315.1 | F55: -324505388.9 | G55: -487665807 | H55: -769930447.2 | I55: -816912613.4 | J55: -811226381.1 | K55: -805540148.7 | L55: -799853916.3 | M55: -794167683.9 | N55: -788481451.6 | O55: =C55 -> 144510598.9 | P55: =O56 -> 171061434.2 | Q55: =P56 -> 150521185.2
A56: Cash/cash equivalents at the month/year end: | C56: =C54+C55 -> -15655101.57 | D56: =D54+D55 -> -245003315.1 | E56: =E54+E55 -> -324505388.9 | F56: -487665807 | G56: -769930447.2 | H56: -816912613.4 | I56: -811226381.1 | J56: -805540148.7 | K56: -799853916.3 | L56: -794167683.9 | M56: -788481451.6 | N56: 171061434.2 | O56: =O54+O55 -> 171061434.2 | P56: =P54+P55 -> 150521185.2 | Q56: =Q54+Q55 -> 184370437.2
A57: =head27a -> References
A58: 1. Replace 'budget' heading with adjusted budget, or 'outcome' only for month/s complete
A59: 2. Total of monthly amounts must always agree to the approved or adjusted budget
A60: 3. Amend 'cash-at-beginning' when prior year actual known (as part of the adjustments budget)
E65: =E46+E64 -> 311146871 | F65: 405911608.5 | G65: 542450281.6 | H65: 422950618.9 | I65: 289973783.1 | J65: 289973783.1 | K65: 289973783.1 | L65: 289973783.1 | N65: =N46+N64 -> -883452047.5 | O65: 3479685398 | P65: 3764684588
E66: =E54-E64 -> -79502073.81 | F66: -163160418 | G66: -282264640.3 | H66: -46982166.19 | I66: 5686232.37 | J66: 5686232.37 | K66: 5686232.37 | L66: 5686232.37 | M66: =M54-M64 -> 5686232.37 | N66: =N54-N64 -> 959542885.8 | O66: 26550835.27 | P66: -20540249

Sheet SC10
A1: =muni& " - "&S71P& " - "&Head57 -> MP326 City of Mbombela - NOT REQUIRED - municipality does not have entities or this is the parent municipality's budget - Mid-Year Assessment
A2: =desc -> Description | B2: =head27 -> Ref | C2: =Head1 -> 2021/22 | D2: =Head2 -> Budget Year 2022/23
C3: =Head5 -> Audited Outcome | D3: =Head6 -> Original Budget | E3: =Head7 -> Adjusted Budget | F3: =Head38 -> Monthly actual | G3: =Head39 -> YearTD actual | H3: =Head40 -> YearTD budget | I3: =Head41 -> YTD variance | J3: =Head41 -> YTD variance | K3: =Head8 -> Full Year Forecast
A4: R thousands | B4: 1 | J4: %
A5: ='C4-FinPerf RE'!A5 -> Revenue By Source
A6: ='C4-FinPerf RE'!A6 -> Property rates | I6: =G6-H6 -> 0 | J6: =IF(I6=0,"",I6/H6) -> 
A7: ='C4-FinPerf RE'!A7 -> Service charges - electricity revenue | I7: 0 | J7: =IF(I7=0,"",I7/H7) -> 
A8: ='C4-FinPerf RE'!A8 -> Service charges - water revenue | I8: 0
A9: ='C4-FinPerf RE'!A9 -> Service charges - sanitation revenue | I9: 0
A10: ='C4-FinPerf RE'!A10 -> Service charges - refuse revenue | I10: 0
A12: ='C4-FinPerf RE'!A12 -> Rental of facilities and equipment | I12: 0
A13: ='C4-FinPerf RE'!A13 -> Interest earned - external investments | I13: 0
A14: ='C4-FinPerf RE'!A14 -> Interest earned - outstanding debtors | I14: 0
A15: ='C4-FinPerf RE'!A15 -> Dividends received | I15: 0
A16: ='C4-FinPerf RE'!A16 -> Fines, penalties and forfeits | I16: 0
A17: ='C4-FinPerf RE'!A17 -> Licences and permits | I17: 0
A18: ='C4-FinPerf RE'!A18 -> Agency services | I18: 0
A19: ='C4-FinPerf RE'!A19 -> Transfers and subsidies | I19: 0
A20: ='C4-FinPerf RE'!A20 -> Other revenue | I20: 0
A21: ='C4-FinPerf RE'!A21 -> Gains | I21: 0
A22: Total Revenue (excluding capital transfers and contributions) | C22: =SUM(C6:C10)+SUM(C12:C21) -> 0 | D22: 0 | E22: 0 | F22: 0 | G22: 0 | H22: 0 | I22: =G22-H22 -> 0 | K22: =SUM(K6:K10)+SUM(K12:K21) -> 0
A24: Expenditure By Type
A25: ='C4-FinPerf RE'!A25 -> Employee related costs | I25: =G25-H25 -> 0 | J25: =IF(I25=0,"",I25/H25) -> 
A26: ='C4-FinPerf RE'!A26 -> Remuneration of councillors | I26: 0
A27: ='C4-FinPerf RE'!A27 -> Debt impairment | I27: 0
A28: ='C4-FinPerf RE'!A28 -> Depreciation & asset impairment | I28: 0
A29: ='C4-FinPerf RE'!A29 -> Finance charges | I29: 0
A30: ='C4-FinPerf RE'!A30 -> Bulk purchases - electricity | I30: 0
A31: ='C4-FinPerf RE'!A31 -> Inventory consumed | I31: 0
A32: ='C4-FinPerf RE'!A32 -> Contracted services | I32: 0
A33: ='C4-FinPerf RE'!A33 -> Transfers and subsidies | I33: 0
A34: ='C4-FinPerf RE'!A34 -> Other expenditure | I34: 0
A35: ='C4-FinPerf RE'!A35 -> Losses | I35: 0
A36: Total Expenditure | C36: =SUM(C25:C35) -> 0 | D36: 0 | E36: 0 | F36: 0 | G36: 0 | H36: 0 | I36: 0 | K36: =SUM(K25:K35) -> 0
I37: 0
A38: ='C4-FinPerf RE'!A38 -> Surplus/(Deficit) | C38: =C22-C36 -> 0 | D38: 0 | E38: 0 | F38: 0 | G38: 0 | H38: 0 | I38: 0 | K38: =K22-K36 -> 0
A39: ='C4-FinPerf RE'!A39 -> Transfers and subsidies - capital (monetary allocations) (National / Provincial and District) | I39: 0
A40: ='C4-FinPerf RE'!A40 -> Transfers and subsidies - capital (monetary allocations) (National / Provincial Departmental Agencies, Households, Non-profit Institutions, Private Enterprises, Public Corporatons, Higher Educational Institutions) | I40: 0
A41: ='C4-FinPerf RE'!A41 -> Transfers and subsidies - capital (in-kind - all) | I41: 0
A42: ='C4-FinPerf RE'!A42 -> Surplus/(Deficit) after capital transfers & contributions | C42: =C38+SUM(C39:C41) -> 0 | D42: =D38+SUM(D39:D41) -> 0 | E42: 0 | F42: 0 | G42: 0 | H42: 0 | I42: 0 | K42: 0
A43: ='C4-FinPerf RE'!A43 -> Taxation | I43: 0
A44: ='C4-FinPerf RE'!A44 -> Surplus/(Deficit) after taxation | C44: =C42-C43 -> 0 | D44: 0 | E44: 0 | F44: 0 | G44: 0 | H44: 0 | I44: 0 | K44: =K42-K43 -> 0
A45: =head27a -> References
A46: 1. Votes (consolidated) are revenue sources and expenditure type

Sheet SC11
A1: =muni& " - "&S71Q& " - "&Head57 -> MP326 City of Mbombela - NOT REQUIRED - municipality does not have entities or this is the parent municipality's budget - Mid-Year Assessment
A2: =desc -> Description | B2: =head27 -> Ref | C2: =Head1 -> 2021/22 | D2: =Head2 -> Budget Year 2022/23
C3: =Head5 -> Audited Outcome | D3: =Head6 -> Original Budget | E3: =Head7 -> Adjusted Budget | F3: =Head38 -> Monthly actual | G3: =Head39 -> YearTD actual | H3: =Head40 -> YearTD budget | I3: =Head41 -> YTD variance | J3: =Head41 -> YTD variance | K3: =Head8 -> Full Year Forecast
A4: R thousands | J4: %
A5: Revenue By Municipal Entity
A6: Insert name of municipal entity | I6: =G6-H6 -> 0 | J6: =IF(I6=0,"",I6/H6) -> 
I7: 0 | J7: =IF(I7=0,"",I7/H7) -> 
I8: 0
I9: 0
I10: 0
I11: 0
I12: 0
I13: 0
I14: 0
I15: 0
A16: Total Operating Revenue | B16: 1 | C16: =SUM(C6:C15) -> 0 | D16: 0 | E16: 0 | F16: 0 | G16: 0 | H16: 0 | I16: 0 | K16: =SUM(K6:K15) -> 0
A18: Expenditure By Municipal Entity
A19: =A6 -> Insert name of municipal entity | I19: 0 | J19: =IF(I19=0,"",I19/H19) -> 
A20: =IF(A7="","",A7) ->  | I20: 0
A21: =IF(A8="","",A8) ->  | I21: 0
I22: 0
I23: 0
I24: 0
I25: 0
I26: 0
I27: 0
I28: 0
A29: Total Operating Expenditure | B29: 2 | C29: =SUM(C19:C28) -> 0 | D29: 0 | E29: 0 | F29: 0 | G29: 0 | H29: 0 | I29: 0 | K29: =SUM(K19:K28) -> 0
A31: =Head42 -> Surplus/ (Deficit) for the yr/period | C31: =C16-C29 -> 0 | D31: =D16-D29 -> 0 | E31: 0 | F31: 0 | G31: 0 | H31: 0 | I31: =I16+I29 -> 0 | K31: 0
A32: Capital Expenditure By Municipal Entity
A33: =$A$6 -> Insert name of municipal entity | I33: 0
A34: =IF(A7="","",A7) ->  | I34: 0
A35: =IF(A8="","",A8) ->  | I35: 0
I36: 0
I37: 0
I38: 0
I39: 0
I40: 0
I41: 0
A43: Total Capital Expenditure | B43: 3 | C43: =SUM(C32:C42) -> 0 | D43: =SUM(D32:D42) -> 0 | E43: 0 | F43: 0 | G43: 0 | H43: =SUM(H32:H42) -> 0 | I43: =G43-H43 -> 0 | K43: 0
A44: =head27a -> References
A45: 1. Must reconcile to the sum of all municipal entity monthly revenue reports
A46: 2. Must reconcile to the sum of all municipal entity monthly expenditure reports
A47: 3. YTD = Year to date; FAV - favourable variance or unfavourable variance
A48: 4. Material variances to be explained
A49: 5. Insert additional 'Adjustment' Budget column for each Adjustment made by an entity

Sheet SC12
A1: =muni& " - "&S71R& " - "&Head57 -> MP326 City of Mbombela - Supporting Table SC12 Monthly Budget Statement - capital expenditure trend - Mid-Year Assessment
A2: Month | B2: =Head1 -> 2021/22 | C2: =Head2 -> Budget Year 2022/23
B3: =Head5 -> Audited Outcome | C3: =Head6 -> Original Budget | D3: =Head7 -> Adjusted Budget | E3: =Head38 -> Monthly actual | F3: =Head39 -> YearTD actual | G3: =Head40 -> YearTD budget | H3: =Head41 -> YTD variance | I3: =Head41 -> YTD variance | J3: % spend of Original Budget
A4: R thousands | I4: %
A5: Monthly expenditure performance trend
A6: July | B6: 18412593.63 | C6: 54401733.56 | D6: 54456203.91 | E6: 6770705.69 | F6: =IF(E6>0,E6,"") -> 6770705.69 | G6: =IF(D6>0,D6,C6) -> 54456203.91 | H6: =IF(F6="",0,G6-F6) -> 47685498.22 | I6: =IF(F6="","",IF(H6=0,"",H6/G6)) -> 0.8756669543 | J6: =IF(F6="","",F6/$C$18) -> 0.01037146133
A7: August | B7: 18412593.63 | C7: 54401733.56 | D7: 56968381.04 | E7: 19100714.63 | F7: =IF(E7>0,E7+F6,"") -> 25871420.32 | G7: =IF(D7>0,D7+D6,C7+C6) -> 111424584.9 | H7: 85553164.63 | I7: 0.7678122801 | J7: 0.03963020216
A8: September | B8: 18412593.63 | C8: 54401733.56 | D8: 56968381.04 | E8: 23929880.29 | F8: =IF(E8>0,E8+F7,"") -> 49801300.61 | G8: =IF(D8>0,D8+G7,C8+G7) -> 168392966 | H8: 118591665.4 | I8: 0.704255458 | J8: 0.07628632625
A9: October | B9: 18412593.63 | C9: 54401733.56 | D9: 56968381.04 | E9: 44437794.08 | F9: 94239094.69 | G9: =IF(D9>0,D9+G8,C9+G8) -> 225361347 | H9: 131122252.3 | I9: 0.5818311528 | J9: 0.1443567585
A10: November | B10: 18412593.63 | C10: 54401733.56 | D10: 56968381.04 | E10: 47537658.36 | F10: 141776753.1 | G10: 282329728.1 | H10: 140552975 | I10: 0.4978327149 | J10: 0.217175606
A11: December | B11: 18412593.63 | C11: 54401733.56 | D11: 56968381.04 | E11: 34503437.11 | F11: 176280190.2 | G11: 339298109.1 | H11: 163017918.9 | I11: 0.4804563143 | J11: 0.2700284517
A12: January | B12: 18412593.63 | C12: 54401733.56 | D12: 56968381.04 | E12: 0 | G12: 396266490.2 | H12: 0
A13: February | B13: 18412593.63 | C13: 54401733.56 | D13: 56968381.04 | E13: 0 | G13: 453234871.2 | H13: 0
A14: March | B14: 18412593.63 | C14: 54401733.56 | D14: 56968381.04 | E14: 0 | G14: 510203252.2 | H14: 0
A15: April | B15: 18412593.63 | C15: 54401733.56 | D15: 56968381.04 | E15: 0 | G15: 567171633.3 | H15: 0
A16: May | B16: 18412593.63 | C16: 54401733.56 | D16: 56968381.04 | E16: 0 | G16: 624140014.3 | H16: 0
A17: June | B17: 23788982.63 | C17: 54401731.84 | D17: 56967534.69 | E17: 0 | G17: 681107549 | H17: =IF(F17="",0,G17-F17) -> 0 | I17: =IF(F17="","",IF(H17=0,"",H17/G17)) ->  | J17: =IF(F17="","",F17/$C$18) -> 
A18: Total Capital expenditure | B18: =SUM(B6:B17) -> 226327512.6 | C18: =SUM(C6:C17) -> 652820801 | D18: =SUM(D6:D17) -> 681107549 | E18: =SUM(E6:E17) -> 176280190.2

Sheet SC13a
A1: =muni& " - "&S71Sa& " - "&Head57 -> MP326 City of Mbombela - Supporting Table SC13a Monthly Budget Statement - capital expenditure on new assets by asset class - Mid-Year Assessment
A2: =desc -> Description | B2: =head27 -> Ref | C2: =Head1 -> 2021/22 | D2: =Head2 -> Budget Year 2022/23
C3: =Head5 -> Audited Outcome | D3: =Head6 -> Original Budget | E3: =Head7 -> Adjusted Budget | F3: =Head38 -> Monthly actual | G3: =Head39 -> YearTD actual | H3: =Head40 -> YearTD budget | I3: =Head41 -> YTD variance | J3: =Head41 -> YTD variance | K3: =Head8 -> Full Year Forecast
A4: R thousands | B4: 1 | J4: %
A5: Capital expenditure on new assets by Asset Class/Sub-class
A7: Infrastructure | C7: =C8+C13+C17+C27+C38+C45+C53+C63+C69 -> 139945544.1 | D7: 153519363 | E7: 189093513 | F7: 8921389.97 | G7: 54871245.9 | H7: 91877281.28 | I7: =H7-G7 -> 37006035.38 | J7: =IF(I7=0,"",I7/H7) -> 0.4027767786 | K7: =K8+K13+K17+K27+K38+K45+K53+K63+K69 -> 189093513
A8: Roads Infrastructure | C8: =SUM(C9:C12) -> 77701118.34 | D8: 36110363 | E8: 48909078 | F8: 1057275.89 | G8: 12981522.48 | H8: 22576312.61 | I8: 9594790.13 | J8: 0.4249936779 | K8: =SUM(K9:K12) -> 48909078
A9: Roads | C9: 71442855.3 | D9: 6000000 | E9: 18952289 | F9: 242859.52 | G9: 12044397.26 | H9: 7196411.55 | I9: -4847985.71 | J9: -0.6736671015 | K9: 18952289
A10: Road Structures | C10: 6258263.04 | D10: 29310363 | E10: 29156789 | F10: 814416.37 | G10: 937125.22 | H10: 14979899.06 | I10: 14042773.84 | J10: 0.9374411526 | K10: 29156789
A11: Road Furniture | C11: 0 | D11: 800000 | E11: 800000 | F11: 0 | G11: 0 | H11: 400002 | I11: 400002 | J11: 1 | K11: 800000
A12: Capital Spares | C12: 0 | D12: 0 | E12: 0 | F12: 0 | G12: 0 | H12: 0 | I12: 0 | K12: 0
A13: Storm water Infrastructure | C13: =SUM(C14:C16) -> 11495266.92 | D13: 0 | E13: 0 | F13: 0 | G13: 0 | H13: 0 | I13: 0 | K13: =SUM(K14:K16) -> 0
A14: Drainage Collection | C14: 11495266.92 | D14: 0 | E14: 0 | F14: 0 | G14: 0 | H14: 0 | I14: 0 | K14: 0
A15: Storm water Conveyance | I15: 0
A16: Attenuation | I16: 0
A17: Electrical Infrastructure | C17: =SUM(C18:C26) -> 34440981.62 | D17: 82859000 | E17: 88527278 | F17: 6991285.58 | G17: 35068133.08 | H17: 43382627.33 | I17: 8314494.25 | J17: 0.1916549264 | K17: =SUM(K18:K26) -> 88527278
A18: Power Plants | I18: 0
A19: HV Substations | C19: 0 | D19: 10044000 | E19: 10044000 | F19: 503552.95 | G19: 4626875.94 | H19: 5022006 | I19: 395130.06 | J19: 0.07867972679 | K19: 10044000
A20: HV Switching Station | C20: 0 | D20: 0 | E20: 0 | F20: 0 | G20: 0 | H20: 0 | I20: 0 | K20: 0
A21: HV Transmission Conductors | C21: 0 | D21: 9000000 | E21: 10724500 | F21: 241400.85 | G21: 7995912.33 | H21: 4746357.14 | I21: -3249555.19 | J21: -0.6846419463 | K21: 10724500
A22: MV Substations | I22: 0
A23: MV Switching Stations | C23: 0 | D23: 0 | E23: 0 | F23: 0 | G23: 0 | H23: 0 | I23: 0 | K23: 0
A24: MV Networks | C24: 21178436.12 | D24: 28200000 | E24: 33868278 | F24: 4737673.23 | G24: 8354407.93 | H24: 16053119.33 | I24: 7698711.4 | J24: 0.479577286 | K24: 33868278
A25: LV Networks | C25: 13262545.5 | D25: 35615000 | E25: 33890500 | F25: 1508658.55 | G25: 14090936.88 | H25: 17561144.86 | I25: 3470207.98 | J25: 0.197607161 | K25: 33890500
A26: Capital Spares | C26: 0 | D26: 0 | E26: 0 | F26: 0 | G26: 0 | H26: 0 | I26: 0 | K26: 0
A27: Water Supply Infrastructure | C27: =SUM(C28:C37) -> 12372060.43 | D27: 10300000 | E27: 22407157 | F27: 0 | G27: 0 | H27: 11929694.99 | I27: 11929694.99 | J27: 1 | K27: =SUM(K28:K37) -> 22407157
A28: Dams and Weirs | C28: 0 | D28: 0 | E28: 0 | F28: 0 | G28: 0 | H28: 0 | I28: 0 | K28: 0
A29: Boreholes | C29: 0 | D29: 1800000 | E29: 7218638 | F29: 0 | G29: 0 | H29: 3392695.91 | I29: 3392695.91 | J29: 1 | K29: 7218638
A30: Reservoirs | C30: 0 | D30: 8500000 | E30: 11000000 | F30: 0 | G30: 0 | H30: 6633126.83 | I30: 6633126.83 | J30: 1 | K30: 11000000
A31: Pump Stations | C31: 0 | D31: 0 | E31: 2000000 | F31: 0 | G31: 0 | H31: 909090.9 | I31: 909090.9 | J31: 1 | K31: 2000000
A32: Water Treatment Works | C32: 0 | D32: 0 | E32: 2000000 | F32: 0 | G32: 0 | H32: 909090.9 | I32: 909090.9 | J32: 1 | K32: 2000000
A33: Bulk Mains | C33: 12311480.43 | D33: 0 | E33: 188519 | F33: 0 | G33: 0 | H33: 85690.45 | I33: 85690.45 | J33: 1 | K33: 188519
A34: Distribution | C34: 0 | D34: 0 | E34: 0 | F34: 0 | G34: 0 | H34: 0 | I34: 0 | K34: 0
A35: Distribution Points | C35: 60580 | D35: 0 | E35: 0 | F35: 0 | G35: 0 | H35: 0 | I35: 0 | K35: 0
A36: PRV Stations | I36: 0
A37: Capital Spares | C37: 0 | D37: 0 | E37: 0 | F37: 0 | G37: 0 | H37: 0 | I37: 0 | K37: 0
A38: Sanitation Infrastructure | C38: =SUM(C39:C44) -> 3936116.78 | D38: 17250000 | E38: 20250000 | F38: 0 | G38: 4356120.69 | H38: 9988642.35 | I38: 5632521.66 | J38: 0.5638926155 | K38: =SUM(K39:K44) -> 20250000
A39: Pump Station | C39: 0 | D39: 0 | E39: 0 | F39: 0 | G39: 0 | H39: 0 | I39: 0 | K39: 0
A40: Reticulation | C40: 0 | D40: 17250000 | E40: 17250000 | F40: 0 | G40: 4356120.69 | H40: 8625006 | I40: =H40-G40 -> 4268885.31 | J40: =IF(I40=0,"",I40/H40) -> 0.49494288 | K40: 17250000
A41: Waste Water Treatment Works | C41: 0 | D41: 0 | E41: 0 | F41: 0 | G41: 0 | H41: 0 | I41: =H41-G41 -> 0 | J41: =IF(I41=0,"",I41/H41) ->  | K41: 0
A42: Outfall Sewers | C42: 3936116.78 | D42: 0 | E42: 3000000 | F42: 0 | G42: 0 | H42: 1363636.35 | I42: =H42-G42 -> 1363636.35 | J42: =IF(I42=0,"",I42/H42) -> 1 | K42: 3000000
A43: Toilet Facilities | C43: 0 | D43: 0 | E43: 0 | F43: 0 | G43: 0 | H43: 0 | I43: 0 | K43: 0
A44: Capital Spares | I44: 0
A45: Solid Waste Infrastructure | C45: =SUM(C46:C52) -> 0 | D45: 0 | E45: 0 | F45: 0 | G45: 0 | H45: 0 | I45: 0 | K45: =SUM(K46:K52) -> 0
A46: Landfill Sites | C46: 0 | D46: 0 | E46: 0 | F46: 0 | G46: 0 | H46: 0 | I46: 0 | K46: 0
A47: Waste Transfer Stations | C47: 0 | D47: 0 | E47: 0 | F47: 0 | G47: 0 | H47: 0 | I47: 0 | K47: 0
A48: Waste Processing Facilities | I48: =H48-G48 -> 0 | J48: =IF(I48=0,"",I48/H48) -> 
A49: Waste Drop-off Points | I49: 0
A50: Waste Separation Facilities | I50: 0
A51: Electricity Generation Facilities | I51: 0
A52: Capital Spares | I52: 0
A53: Rail Infrastructure | C53: =SUM(C54:C62) -> 0 | D53: 0 | E53: 0 | F53: 0 | G53: 0 | H53: 0 | I53: 0 | K53: =SUM(K54:K62) -> 0
A54: Rail Lines | I54: 0
A55: Rail Structures | I55: 0
A56: Rail Furniture | I56: 0
A57: Drainage Collection | I57: 0
A58: Storm water Conveyance | I58: 0
A59: Attenuation | I59: 0
A60: MV Substations | I60: 0
A61: LV Networks | I61: 0
A62: Capital Spares | I62: 0
A63: Coastal Infrastructure | C63: =SUM(C64:C68) -> 0 | D63: 0 | E63: 0 | F63: 0 | G63: 0 | H63: 0 | I63: 0 | K63: =SUM(K64:K68) -> 0
A64: Sand Pumps | I64: 0
A65: Piers | I65: 0
A66: Revetments | I66: 0
A67: Promenades | I67: 0
A68: Capital Spares | I68: 0
A69: Information and Communication Infrastructure | C69: =SUM(C70:C73) -> 0 | D69: 7000000 | E69: 9000000 | F69: 872828.5 | G69: 2465469.65 | H69: 4000004 | I69: =H69-G69 -> 1534534.35 | J69: 0.3836332039 | K69: =SUM(K70:K73) -> 9000000
A70: Data Centres | I70: =H70-G70 -> 0
A71: Core Layers | C71: 0 | D71: 7000000 | E71: 9000000 | F71: 872828.5 | G71: 2465469.65 | H71: 4000004 | I71: =H71-G71 -> 1534534.35 | J71: =IF(I71=0,"",I71/H71) -> 0.3836332039 | K71: 9000000
A72: Distribution Layers | I72: =H72-G72 -> 0
A73: Capital Spares | I73: =H73-G73 -> 0
A75: Community Assets | C75: =+C76+C99 -> 2363014.26 | D75: 29336896 | E75: 29351896 | F75: 513104.19 | G75: 513104.19 | H75: 14672214 | I75: =H75-G75 -> 14159109.81 | J75: 0.9650288505 | K75: =+K76+K99 -> 29351896
A76: Community Facilities | C76: =SUM(C77:C98) -> 2363014.26 | D76: 29336896 | E76: 29351896 | F76: 513104.19 | G76: 513104.19 | H76: 14672214 | I76: =H76-G76 -> 14159109.81 | J76: 0.9650288505 | K76: =SUM(K77:K98) -> 29351896
A77: Halls | C77: 1970836.22 | D77: 24836896 | E77: 24851896 | F77: 513104.19 | G77: 513104.19 | H77: 12422214 | I77: 11909109.81 | J77: 0.9586946264 | K77: 24851896
A78: Centres | C78: 0 | D78: 3000000 | E78: 3000000 | F78: 0 | G78: 0 | H78: 1500000 | I78: 1500000 | J78: 1 | K78: 3000000
A79: Crèches | I79: 0
A80: Clinics/Care Centres | C80: 0 | D80: 0 | E80: 0 | F80: 0 | G80: 0 | H80: 0 | I80: 0 | K80: 0
A81: Fire/Ambulance Stations | C81: 46745 | D81: 0 | E81: 0 | F81: 0 | G81: 0 | H81: 0 | I81: 0 | K81: 0
A82: Testing Stations | I82: 0
A83: Museums | I83: 0
A84: Galleries | I84: 0
A85: Theatres | I85: 0
A86: Libraries | I86: 0
A87: Cemeteries/Crematoria | C87: 345433.04 | D87: 1500000 | E87: 1500000 | F87: 0 | G87: 0 | H87: 750000 | I87: 750000 | J87: 1 | K87: 1500000
A88: Police | C88: 0 | D88: 0 | E88: 0 | F88: 0 | G88: 0 | H88: 0 | I88: 0 | K88: 0
A89: Purls | I89: 0
A90: Public Open Space | C90: 0 | D90: 0 | E90: 0 | F90: 0 | G90: 0 | H90: 0 | I90: 0 | K90: 0
A91: Nature Reserves | I91: 0
A92: Public Ablution Facilities | I92: 0
A93: Markets | C93: 0 | D93: 0 | E93: 0 | F93: 0 | G93: 0 | H93: 0 | I93: 0 | K93: 0
A94: Stalls | C94: 0 | D94: 0 | E94: 0 | F94: 0 | G94: 0 | H94: 0 | I94: 0 | K94: 0
A95: Abattoirs | C95: 0 | D95: 0 | E95: 0 | F95: 0 | G95: 0 | H95: 0 | I95: 0 | K95: 0
A96: Airports | I96: 0
A97: Taxi Ranks/Bus Terminals | C97: 0 | D97: 0 | E97: 0 | F97: 0 | G97: 0 | H97: 0 | I97: 0 | K97: 0
A98: Capital Spares | I98: 0
A99: Sport and Recreation Facilities | C99: =SUM(C100:C102) -> 0 | D99: 0 | E99: 0 | F99: 0 | G99: 0 | H99: 0 | I99: 0 | K99: =SUM(K100:K102) -> 0
A100: Indoor Facilities | C100: 0 | D100: 0 | E100: 0 | F100: 0 | G100: 0 | H100: 0 | I100: 0 | K100: 0
A101: Outdoor Facilities | I101: 0
A102: Capital Spares | C102: 0 | D102: 0 | E102: 0 | F102: 0 | G102: 0 | H102: 0 | I102: 0 | K102: 0
A103: Heritage assets | C103: =SUM(C104:C108) -> 26949.99 | D103: 0 | E103: 0 | F103: 0 | G103: 0 | H103: 0 | I103: 0 | K103: =SUM(K104:K108) -> 0
A104: Monuments | I104: 0
A105: Historic Buildings | I105: 0
A106: Works of Art | C106: 26949.99 | D106: 0 | E106: 0 | F106: 0 | G106: 0 | H106: 0 | I106: 0 | K106: 0
A107: Conservation Areas | I107: 0
A108: Other Heritage | I108: 0
I109: 0
A110: Investment properties | C110: =+C111+C114 -> 0 | D110: 0 | E110: 0 | F110: 0 | G110: 0 | H110: 0 | I110: 0 | K110: =+K111+K114 -> 0
A111: Revenue Generating | C111: =SUM(C112:C113) -> 0 | D111: 0 | E111: 0 | F111: 0 | G111: 0 | H111: 0 | I111: 0 | K111: =SUM(K112:K113) -> 0
A112: Improved Property | I112: 0
A113: Unimproved Property | I113: 0
A114: Non-revenue Generating | C114: =SUM(C115:C116) -> 0 | D114: 0 | E114: 0 | F114: 0 | G114: 0 | H114: 0 | I114: 0 | K114: =SUM(K115:K116) -> 0
A115: Improved Property | I115: 0
A116: Unimproved Property | I116: 0
A117: Other assets | C117: =+C118+C130 -> 981805.1 | D117: 2000000 | E117: 2000000 | F117: 0 | G117: 0 | H117: 1000008 | I117: 1000008 | J117: 1 | K117: =+K118+K130 -> 2000000
A118: Operational Buildings | C118: =SUM(C119:C129) -> 981805.1 | D118: 2000000 | E118: 2000000 | F118: 0 | G118: 0 | H118: 1000008 | I118: 1000008 | J118: 1 | K118: =SUM(K119:K129) -> 2000000
